Workbook

Sheet Birth
B1: Surname | C1: Comment | D1: Father | E1: M OR F | F1: Date | G1: Publication | H1: Page | I1: Code | J1: RD | K1: File Name | L1: File Path | M1: Space | N1: Comma | O1: Year | P1: Yearv | Q1: Month Name | R1: Month | S1: M No | T1: Date | U1: Upload text | V1: Len
A2: =OFFSET(A2,-1,0)+1 -> 1 | B2: Rabif | D2: Wm. | F2: 1930-01-09 | G2: The&nbsp;Sutton&nbsp;Reporter | H2: 4 | I2: 34 | J2: 922 | K2: rabif,_birth_to_wm_january_9,_1930_p4_tsr.pdf | L2: set03\tsr\tsr_january_1,_1925_-_january_8,_1931\births | O2: =YEAR(F2) -> 1930 | P2: 1930 | Q2: =TEXT(F2,"mmmm") -> January | R2: =MONTH(F2) -> 1 | S2: =R2 -> 1 | T2: =DAY(F2) -> 9 | U2: ="<tr><td class="&""""&"dataright"&""""&">"& TEXT(A2,"0")&"</td><td class="&""""&"dataleft"&""""&">"& "<a href="&""""&L2&"\"&K2&""""&">"&B2&"</a></td><td class="&"""dataleft"">"& TEXT(C2,"")&"</td><td class="&""""&"dataleft"&""""&">"& TEXT(D2,"")&"</td><td class="&""""&"datacenter"&""""&">"& TEXT(E2,"")&"</td><td class="&""""&"dataleft"&""""&">"& TEXT(Q2,"")&"&nbsp;"&T2&",&nbsp;"&O2&"</td><td class="&""""&"dataleft"&""""&">"& TEXT(G2,"0.0")&"</td><td class="&""""&"datacenter"&""""&">"& TEXT(H2,"0")&"</td>"& "</tr>" -> <tr><td class="dataright">1</td><td class="dataleft"><a href="set03\tsr\tsr_january_1,_1925_-_january_8,_1931\births\rabif,_birth_to_wm_january_9,_1930_p4_tsr.pdf">Rabif</a></td><td class="dataleft"></td><td class="dataleft">Wm.</td><td class="datacenter"></td><td class="dataleft">January&nbsp;9,&nbsp;1930</td><td class="dataleft">The&nbsp;Sutton&nbsp;Reporter</td><td class="datacenter">4</td></tr> | V2: =LEN(D2) -> 3
A3: =OFFSET(A3,-1,0)+1 -> 2 | B3: Frydenberg | C3: Richard Lloyd | D3: Oscar | E3: M | F3: 1930-03-06 | G3: The&nbsp;Sutton&nbsp;Reporter | H3: 4 | I3: 34 | J3: 896 | K3: frydenberg,_richard_lloyd_birth_to_oscar_march_6,_1930_p4_tsr.pdf | L3: set03\tsr\tsr_january_1,_1925_-_january_8,_1931\births | O3: =YEAR(F3) -> 1930 | P3: 1930 | Q3: =TEXT(F3,"mmmm") -> March | R3: =MONTH(F3) -> 3 | S3: =R3 -> 3 | T3: =DAY(F3) -> 6 | U3: ="<tr><td class="&""""&"dataright"&""""&">"& TEXT(A3,"0")&"</td><td class="&""""&"dataleft"&""""&">"& "<a href="&""""&L3&"\"&K3&""""&">"&B3&"</a></td><td class="&"""dataleft"">"& TEXT(C3,"")&"</td><td class="&""""&"dataleft"&""""&">"& TEXT(D3,"")&"</td><td class="&""""&"datacenter"&""""&">"& TEXT(E3,"")&"</td><td class="&""""&"dataleft"&""""&">"& TEXT(Q3,"")&"&nbsp;"&T3&",&nbsp;"&O3&"</td><td class="&""""&"dataleft"&""""&">"& TEXT(G3,"0.0")&"</td><td class="&""""&"datacenter"&""""&">"& TEXT(H3,"0")&"</td>"& "</tr>" -> <tr><td class="dataright">2</td><td class="dataleft"><a href="set03\tsr\tsr_january_1,_1925_-_january_8,_1931\births\frydenberg,_richard_lloyd_birth_to_oscar_march_6,_1930_p4_tsr.pdf">Frydenberg</a></td><td class="dataleft">Richard Lloyd</td><td class="dataleft">Oscar</td><td class="datacenter">M</td><td class="dataleft">March&nbsp;6,&nbsp;1930</td><td class="dataleft">The&nbsp;Sutton&nbsp;Reporter</td><td class="datacenter">4</td></tr> | V3: =LEN(D3) -> 5
A4: =OFFSET(A4,-1,0)+1 -> 3 | B4: Bolduc | C4: Mary Joan | D4: W. J. | E4: F | F4: 1930-04-03 | G4: The&nbsp;Sutton&nbsp;Reporter | H4: 4 | I4: 34 | J4: 883 | K4: bolduc,_mary_joan_birth_to_w_j_april_3,_1930_p4_tsr.pdf | L4: set03\tsr\tsr_january_1,_1925_-_january_8,_1931\births | O4: =YEAR(F4) -> 1930 | P4: 1930 | Q4: =TEXT(F4,"mmmm") -> April | R4: =MONTH(F4) -> 4 | S4: =R4 -> 4 | T4: =DAY(F4) -> 3 | U4: ="<tr><td class="&""""&"dataright"&""""&">"& TEXT(A4,"0")&"</td><td class="&""""&"dataleft"&""""&">"& "<a href="&""""&L4&"\"&K4&""""&">"&B4&"</a></td><td class="&"""dataleft"">"& TEXT(C4,"")&"</td><td class="&""""&"dataleft"&""""&">"& TEXT(D4,"")&"</td><td class="&""""&"datacenter"&""""&">"& TEXT(E4,"")&"</td><td class="&""""&"dataleft"&""""&">"& TEXT(Q4,"")&"&nbsp;"&T4&",&nbsp;"&O4&"</td><td class="&""""&"dataleft"&""""&">"& TEXT(G4,"0.0")&"</td><td class="&""""&"datacenter"&""""&">"& TEXT(H4,"0")&"</td>"& "</tr>" -> <tr><td class="dataright">3</td><td class="dataleft"><a href="set03\tsr\tsr_january_1,_1925_-_january_8,_1931\births\bolduc,_mary_joan_birth_to_w_j_april_3,_1930_p4_tsr.pdf">Bolduc</a></td><td class="dataleft">Mary Joan</td><td class="dataleft">W. J.</td><td class="datacenter">F</td><td class="dataleft">April&nbsp;3,&nbsp;1930</td><td class="dataleft">The&nbsp;Sutton&nbsp;Reporter</td><td class="datacenter">4</td></tr> | V4: =LEN(D4) -> 5
A5: =OFFSET(A5,-1,0)+1 -> 4 | B5: Sortland | D5: Olaf | E5: F | F5: 1930-05-15 | G5: The&nbsp;Sutton&nbsp;Reporter | H5: 4 | I5: 34 | J5: 934 | K5: sortland,_female_birth_to_olaf_may_15,_1930_p4_tsr.pdf | L5: set03\tsr\tsr_january_1,_1925_-_january_8,_1931\births | O5: =YEAR(F5) -> 1930 | P5: 1930 | Q5: =TEXT(F5,"mmmm") -> May | R5: =MONTH(F5) -> 5 | S5: =R5 -> 5 | T5: =DAY(F5) -> 15 | U5: ="<tr><td class="&""""&"dataright"&""""&">"& TEXT(A5,"0")&"</td><td class="&""""&"dataleft"&""""&">"& "<a href="&""""&L5&"\"&K5&""""&">"&B5&"</a></td><td class="&"""dataleft"">"& TEXT(C5,"")&"</td><td class="&""""&"dataleft"&""""&">"& TEXT(D5,"")&"</td><td class="&""""&"datacenter"&""""&">"& TEXT(E5,"")&"</td><td class="&""""&"dataleft"&""""&">"& TEXT(Q5,"")&"&nbsp;"&T5&",&nbsp;"&O5&"</td><td class="&""""&"dataleft"&""""&">"& TEXT(G5,"0.0")&"</td><td class="&""""&"datacenter"&""""&">"& TEXT(H5,"0")&"</td>"& "</tr>" -> <tr><td class="dataright">4</td><td class="dataleft"><a href="set03\tsr\tsr_january_1,_1925_-_january_8,_1931\births\sortland,_female_birth_to_olaf_may_15,_1930_p4_tsr.pdf">Sortland</a></td><td class="dataleft"></td><td class="dataleft">Olaf</td><td class="datacenter">F</td><td class="dataleft">May&nbsp;15,&nbsp;1930</td><td class="dataleft">The&nbsp;Sutton&nbsp;Reporter</td><td class="datacenter">4</td></tr> | V5: =LEN(D5) -> 4
A6: =OFFSET(A6,-1,0)+1 -> 5 | B6: Bailey | C6: Premature | D6: Ed | F6: 1930-05-22 | G6: The&nbsp;Sutton&nbsp;Reporter | H6: 4 | I6: 34 | J6: 880 | K6: bailey,_birth_prematurely_to_ed_may_22,_1930_p4_tsr.pdf | L6: set03\tsr\tsr_january_1,_1925_-_january_8,_1931\births | O6: =YEAR(F6) -> 1930 | P6: 1930 | Q6: =TEXT(F6,"mmmm") -> May | R6: =MONTH(F6) -> 5 | S6: =R6 -> 5 | T6: =DAY(F6) -> 22 | U6: ="<tr><td class="&""""&"dataright"&""""&">"& TEXT(A6,"0")&"</td><td class="&""""&"dataleft"&""""&">"& "<a href="&""""&L6&"\"&K6&""""&">"&B6&"</a></td><td class="&"""dataleft"">"& TEXT(C6,"")&"</td><td class="&""""&"dataleft"&""""&">"& TEXT(D6,"")&"</td><td class="&""""&"datacenter"&""""&">"& TEXT(E6,"")&"</td><td class="&""""&"dataleft"&""""&">"& TEXT(Q6,"")&"&nbsp;"&T6&",&nbsp;"&O6&"</td><td class="&""""&"dataleft"&""""&">"& TEXT(G6,"0.0")&"</td><td class="&""""&"datacenter"&""""&">"& TEXT(H6,"0")&"</td>"& "</tr>" -> <tr><td class="dataright">5</td><td class="dataleft"><a href="set03\tsr\tsr_january_1,_1925_-_january_8,_1931\births\bailey,_birth_prematurely_to_ed_may_22,_1930_p4_tsr.pdf">Bailey</a></td><td class="dataleft">Premature</td><td class="dataleft">Ed</td><td class="datacenter"></td><td class="dataleft">May&nbsp;22,&nbsp;1930</td><td class="dataleft">The&nbsp;Sutton&nbsp;Reporter</td><td class="datacenter">4</td></tr> | V6: =LEN(D6) -> 2
A7: =OFFSET(A7,-1,0)+1 -> 6 | B7: Peterson | D7: Joe | E7: F | F7: 1930-06-05 | G7: The&nbsp;Sutton&nbsp;Reporter | H7: 4 | I7: 34 | J7: 921 | K7: peterson,_female_birth_to_joe_june_5,_1930_p4_tsr.pdf | L7: set03\tsr\tsr_january_1,_1925_-_january_8,_1931\births | O7: =YEAR(F7) -> 1930 | P7: 1930 | Q7: =TEXT(F7,"mmmm") -> June | R7: =MONTH(F7) -> 6 | S7: =R7 -> 6 | T7: =DAY(F7) -> 5 | U7: ="<tr><td class="&""""&"dataright"&""""&">"& TEXT(A7,"0")&"</td><td class="&""""&"dataleft"&""""&">"& "<a href="&""""&L7&"\"&K7&""""&">"&B7&"</a></td><td class="&"""dataleft"">"& TEXT(C7,"")&"</td><td class="&""""&"dataleft"&""""&">"& TEXT(D7,"")&"</td><td class="&""""&"datacenter"&""""&">"& TEXT(E7,"")&"</td><td class="&""""&"dataleft"&""""&">"& TEXT(Q7,"")&"&nbsp;"&T7&",&nbsp;"&O7&"</td><td class="&""""&"dataleft"&""""&">"& TEXT(G7,"0.0")&"</td><td class="&""""&"datacenter"&""""&">"& TEXT(H7,"0")&"</td>"& "</tr>" -> <tr><td class="dataright">6</td><td class="dataleft"><a href="set03\tsr\tsr_january_1,_1925_-_january_8,_1931\births\peterson,_female_birth_to_joe_june_5,_1930_p4_tsr.pdf">Peterson</a></td><td class="dataleft"></td><td class="dataleft">Joe</td><td class="datacenter">F</td><td class="dataleft">June&nbsp;5,&nbsp;1930</td><td class="dataleft">The&nbsp;Sutton&nbsp;Reporter</td><td class="datacenter">4</td></tr> | V7: =LEN(D7) -> 3
A8: =OFFSET(A8,-1,0)+1 -> 7 | B8: Smith | D8: Henry R. | E8: M | F8: 1930-10-30 | G8: The&nbsp;Sutton&nbsp;Reporter | H8: 4 | I8: 34 | J8: 933 | K8: smith,_male_birth_to_henry_r_october_30,_1930_p4_tsr.pdf | L8: set03\tsr\tsr_january_1,_1925_-_january_8,_1931\births | O8: =YEAR(F8) -> 1930 | P8: 1930 | Q8: =TEXT(F8,"mmmm") -> October | R8: =MONTH(F8) -> 10 | S8: =R8 -> 10 | T8: =DAY(F8) -> 30 | U8: ="<tr><td class="&""""&"dataright"&""""&">"& TEXT(A8,"0")&"</td><td class="&""""&"dataleft"&""""&">"& "<a href="&""""&L8&"\"&K8&""""&">"&B8&"</a></td><td class="&"""dataleft"">"& TEXT(C8,"")&"</td><td class="&""""&"dataleft"&""""&">"& TEXT(D8,"")&"</td><td class="&""""&"datacenter"&""""&">"& TEXT(E8,"")&"</td><td class="&""""&"dataleft"&""""&">"& TEXT(Q8,"")&"&nbsp;"&T8&",&nbsp;"&O8&"</td><td class="&""""&"dataleft"&""""&">"& TEXT(G8,"0.0")&"</td><td class="&""""&"datacenter"&""""&">"& TEXT(H8,"0")&"</td>"& "</tr>" -> <tr><td class="dataright">7</td><td class="dataleft"><a href="set03\tsr\tsr_january_1,_1925_-_january_8,_1931\births\smith,_male_birth_to_henry_r_october_30,_1930_p4_tsr.pdf">Smith</a></td><td class="dataleft"></td><td class="dataleft">Henry R.</td><td class="datacenter">M</td><td class="dataleft">October&nbsp;30,&nbsp;1930</td><td class="dataleft">The&nbsp;Sutton&nbsp;Reporter</td><td class="datacenter">4</td></tr> | V8: =LEN(D8) -> 8
A9: =OFFSET(A9,-1,0)+1 -> 8 | B9: Rise | D9: Sverre | E9: F | F9: 1930-11-27 | G9: The&nbsp;Sutton&nbsp;Reporter | H9: 4 | I9: 34 | J9: 926 | K9: rise,_female_birth_to_sverre_november_27,_1930_p4_tsr.pdf | L9: set03\tsr\tsr_january_1,_1925_-_january_8,_1931\births | O9: =YEAR(F9) -> 1930 | P9: 1930 | Q9: =TEXT(F9,"mmmm") -> November | R9: =MONTH(F9) -> 11 | S9: =R9 -> 11 | T9: =DAY(F9) -> 27 | U9: ="<tr><td class="&""""&"dataright"&""""&">"& TEXT(A9,"0")&"</td><td class="&""""&"dataleft"&""""&">"& "<a href="&""""&L9&"\"&K9&""""&">"&B9&"</a></td><td class="&"""dataleft"">"& TEXT(C9,"")&"</td><td class="&""""&"dataleft"&""""&">"& TEXT(D9,"")&"</td><td class="&""""&"datacenter"&""""&">"& TEXT(E9,"")&"</td><td class="&""""&"dataleft"&""""&">"& TEXT(Q9,"")&"&nbsp;"&T9&",&nbsp;"&O9&"</td><td class="&""""&"dataleft"&""""&">"& TEXT(G9,"0.0")&"</td><td class="&""""&"datacenter"&""""&">"& TEXT(H9,"0")&"</td>"& "</tr>" -> <tr><td class="dataright">8</td><td class="dataleft"><a href="set03\tsr\tsr_january_1,_1925_-_january_8,_1931\births\rise,_female_birth_to_sverre_november_27,_1930_p4_tsr.pdf">Rise</a></td><td class="dataleft"></td><td class="dataleft">Sverre</td><td class="datacenter">F</td><td class="dataleft">November&nbsp;27,&nbsp;1930</td><td class="dataleft">The&nbsp;Sutton&nbsp;Reporter</td><td class="datacenter">4</td></tr> | V9: =LEN(D9) -> 6
A10: =OFFSET(A10,-1,0)+1 -> 9 | B10: Green | D10: A. L. | E10: F | F10: 1930-12-11 | G10: The&nbsp;Sutton&nbsp;Reporter | H10: 4 | I10: 34 | J10: 898 | K10: green,_female_birth_to_a_l_december_11,_1930_p4_tsr.pdf | L10: set03\tsr\tsr_january_1,_1925_-_january_8,_1931\births | O10: =YEAR(F10) -> 1930 | P10: 1930 | Q10: =TEXT(F10,"mmmm") -> December | R10: =MONTH(F10) -> 12 | S10: =R10 -> 12 | T10: =DAY(F10) -> 11 | U10: ="<tr><td class="&""""&"dataright"&""""&">"& TEXT(A10,"0")&"</td><td class="&""""&"dataleft"&""""&">"& "<a href="&""""&L10&"\"&K10&""""&">"&B10&"</a></td><td class="&"""dataleft"">"& TEXT(C10,"")&"</td><td class="&""""&"dataleft"&""""&">"& TEXT(D10,"")&"</td><td class="&""""&"datacenter"&""""&">"& TEXT(E10,"")&"</td><td class="&""""&"dataleft"&""""&">"& TEXT(Q10,"")&"&nbsp;"&T10&",&nbsp;"&O10&"</td><td class="&""""&"dataleft"&""""&">"& TEXT(G10,"0.0")&"</td><td class="&""""&"datacenter"&""""&">"& TEXT(H10,"0")&"</td>"& "</tr>" -> <tr><td class="dataright">9</td><td class="dataleft"><a href="set03\tsr\tsr_january_1,_1925_-_january_8,_1931\births\green,_female_birth_to_a_l_december_11,_1930_p4_tsr.pdf">Green </a></td><td class="dataleft"></td><td class="dataleft">A. L.</td><td class="datacenter">F</td><td class="dataleft">December&nbsp;11,&nbsp;1930</td><td class="dataleft">The&nbsp;Sutton&nbsp;Reporter</td><td class="datacenter">4</td></tr> | V10: =LEN(D10) -> 5
A11: =OFFSET(A11,-1,0)+1 -> 10 | B11: Hawkes | D11: B. E. | E11: M | F11: 1930-12-11 | G11: The&nbsp;Sutton&nbsp;Reporter | H11: 4 | I11: 34 | J11: 902 | K11: hawkes,_male_birth_to_b_e_december_11,_1930_p4_tsr.pdf | L11: set03\tsr\tsr_january_1,_1925_-_january_8,_1931\births | O11: =YEAR(F11) -> 1930 | P11: 1930 | Q11: =TEXT(F11,"mmmm") -> December | R11: =MONTH(F11) -> 12 | S11: =R11 -> 12 | T11: =DAY(F11) -> 11 | U11: ="<tr><td class="&""""&"dataright"&""""&">"& TEXT(A11,"0")&"</td><td class="&""""&"dataleft"&""""&">"& "<a href="&""""&L11&"\"&K11&""""&">"&B11&"</a></td><td class="&"""dataleft"">"& TEXT(C11,"")&"</td><td class="&""""&"dataleft"&""""&">"& TEXT(D11,"")&"</td><td class="&""""&"datacenter"&""""&">"& TEXT(E11,"")&"</td><td class="&""""&"dataleft"&""""&">"& TEXT(Q11,"")&"&nbsp;"&T11&",&nbsp;"&O11&"</td><td class="&""""&"dataleft"&""""&">"& TEXT(G11,"0.0")&"</td><td class="&""""&"datacenter"&""""&">"& TEXT(H11,"0")&"</td>"& "</tr>" -> <tr><td class="dataright">10</td><td class="dataleft"><a href="set03\tsr\tsr_january_1,_1925_-_january_8,_1931\births\hawkes,_male_birth_to_b_e_december_11,_1930_p4_tsr.pdf">Hawkes</a></td><td class="dataleft"></td><td class="dataleft">B. E.</td><td class="datacenter">M</td><td class="dataleft">December&nbsp;11,&nbsp;1930</td><td class="dataleft">The&nbsp;Sutton&nbsp;Reporter</td><td class="datacenter">4</td></tr> | V11: =LEN(D11) -> 5
A12: =OFFSET(A12,-1,0)+1 -> 11 | B12: Nelson | D12: A. H. | E12: F | F12: 1930-12-25 | G12: The&nbsp;Sutton&nbsp;Reporter | H12: 4 | I12: 34 | J12: 918 | K12: nelson,_female_birth_to_a_h_december_25,_1930_p4_tsr.pdf | L12: set03\tsr\tsr_january_1,_1925_-_january_8,_1931\births | O12: =YEAR(F12) -> 1930 | P12: 1930 | Q12: =TEXT(F12,"mmmm") -> December | R12: =MONTH(F12) -> 12 | S12: =R12 -> 12 | T12: =DAY(F12) -> 25 | U12: ="<tr><td class="&""""&"dataright"&""""&">"& TEXT(A12,"0")&"</td><td class="&""""&"dataleft"&""""&">"& "<a href="&""""&L12&"\"&K12&""""&">"&B12&"</a></td><td class="&"""dataleft"">"& TEXT(C12,"")&"</td><td class="&""""&"dataleft"&""""&">"& TEXT(D12,"")&"</td><td class="&""""&"datacenter"&""""&">"& TEXT(E12,"")&"</td><td class="&""""&"dataleft"&""""&">"& TEXT(Q12,"")&"&nbsp;"&T12&",&nbsp;"&O12&"</td><td class="&""""&"dataleft"&""""&">"& TEXT(G12,"0.0")&"</td><td class="&""""&"datacenter"&""""&">"& TEXT(H12,"0")&"</td>"& "</tr>" -> <tr><td class="dataright">11</td><td class="dataleft"><a href="set03\tsr\tsr_january_1,_1925_-_january_8,_1931\births\nelson,_female_birth_to_a_h_december_25,_1930_p4_tsr.pdf">Nelson</a></td><td class="dataleft"></td><td class="dataleft">A. H.</td><td class="datacenter">F</td><td class="dataleft">December&nbsp;25,&nbsp;1930</td><td class="dataleft">The&nbsp;Sutton&nbsp;Reporter</td><td class="datacenter">4</td></tr> | V12: =LEN(D12) -> 5
A13: =OFFSET(A13,-1,0)+1 -> 12 | B13: Gunderson | D13: Henry | E13: F | F13: 1929-01-24 | G13: The&nbsp;Sutton&nbsp;Reporter | H13: 4 | I13: 34 | J13: 899 | K13: gunderson,_female_birth_to_henry_january_24,_1929_p4_tsr.pdf | L13: set03\tsr\tsr_january_1,_1925_-_january_8,_1931\births | O13: =YEAR(F13) -> 1929 | P13: 1929 | Q13: =TEXT(F13,"mmmm") -> January | R13: =MONTH(F13) -> 1 | S13: =R13 -> 1 | T13: =DAY(F13) -> 24 | U13: ="<tr><td class="&""""&"dataright"&""""&">"& TEXT(A13,"0")&"</td><td class="&""""&"dataleft"&""""&">"& "<a href="&""""&L13&"\"&K13&""""&">"&B13&"</a></td><td class="&"""dataleft"">"& TEXT(C13,"")&"</td><td class="&""""&"dataleft"&""""&">"& TEXT(D13,"")&"</td><td class="&""""&"datacenter"&""""&">"& TEXT(E13,"")&"</td><td class="&""""&"dataleft"&""""&">"& TEXT(Q13,"")&"&nbsp;"&T13&",&nbsp;"&O13&"</td><td class="&""""&"dataleft"&""""&">"& TEXT(G13,"0.0")&"</td><td class="&""""&"datacenter"&""""&">"& TEXT(H13,"0")&"</td>"& "</tr>" -> <tr><td class="dataright">12</td><td class="dataleft"><a href="set03\tsr\tsr_january_1,_1925_-_january_8,_1931\births\gunderson,_female_birth_to_henry_january_24,_1929_p4_tsr.pdf">Gunderson</a></td><td class="dataleft"></td><td class="dataleft">Henry</td><td class="datacenter">F</td><td class="dataleft">January&nbsp;24,&nbsp;1929</td><td class="dataleft">The&nbsp;Sutton&nbsp;Reporter</td><td class="datacenter">4</td></tr> | V13: =LEN(D13) -> 5
A14: =OFFSET(A14,-1,0)+1 -> 13 | B14: Rhodes | D14: Orion E. | E14: F | F14: 1929-03-21 | G14: The&nbsp;Sutton&nbsp;Reporter | H14: 4 | I14: 34 | J14: 924 | K14: rhodes,_female_birth_to_orion_e_march_21,_1929_p4_tsr.pdf | L14: set03\tsr\tsr_january_1,_1925_-_january_8,_1931\births | O14: =YEAR(F14) -> 1929 | P14: 1929 | Q14: =TEXT(F14,"mmmm") -> March | R14: =MONTH(F14) -> 3 | S14: =R14 -> 3 | T14: =DAY(F14) -> 21 | U14: ="<tr><td class="&""""&"dataright"&""""&">"& TEXT(A14,"0")&"</td><td class="&""""&"dataleft"&""""&">"& "<a href="&""""&L14&"\"&K14&""""&">"&B14&"</a></td><td class="&"""dataleft"">"& TEXT(C14,"")&"</td><td class="&""""&"dataleft"&""""&">"& TEXT(D14,"")&"</td><td class="&""""&"datacenter"&""""&">"& TEXT(E14,"")&"</td><td class="&""""&"dataleft"&""""&">"& TEXT(Q14,"")&"&nbsp;"&T14&",&nbsp;"&O14&"</td><td class="&""""&"dataleft"&""""&">"& TEXT(G14,"0.0")&"</td><td class="&""""&"datacenter"&""""&">"& TEXT(H14,"0")&"</td>"& "</tr>" -> <tr><td class="dataright">13</td><td class="dataleft"><a href="set03\tsr\tsr_january_1,_1925_-_january_8,_1931\births\rhodes,_female_birth_to_orion_e_march_21,_1929_p4_tsr.pdf">Rhodes</a></td><td class="dataleft"></td><td class="dataleft">Orion E.</td><td class="datacenter">F</td><td class="dataleft">March&nbsp;21,&nbsp;1929</td><td class="dataleft">The&nbsp;Sutton&nbsp;Reporter</td><td class="datacenter">4</td></tr> | V14: =LEN(D14) -> 8
A15: =OFFSET(A15,-1,0)+1 -> 14 | B15: Root | D15: Dallas | E15: F | F15: 1929-04-04 | G15: The&nbsp;Sutton&nbsp;Reporter | H15: 4 | I15: 34 | J15: 929 | K15: root,_female_birth_to_dallas_april_4,_1929_p4_tsr.pdf | L15: set03\tsr\tsr_january_1,_1925_-_january_8,_1931\births | O15: =YEAR(F15) -> 1929 | P15: 1929 | Q15: =TEXT(F15,"mmmm") -> April | R15: =MONTH(F15) -> 4 | S15: =R15 -> 4 | T15: =DAY(F15) -> 4 | U15: ="<tr><td class="&""""&"dataright"&""""&">"& TEXT(A15,"0")&"</td><td class="&""""&"dataleft"&""""&">"& "<a href="&""""&L15&"\"&K15&""""&">"&B15&"</a></td><td class="&"""dataleft"">"& TEXT(C15,"")&"</td><td class="&""""&"dataleft"&""""&">"& TEXT(D15,"")&"</td><td class="&""""&"datacenter"&""""&">"& TEXT(E15,"")&"</td><td class="&""""&"dataleft"&""""&">"& TEXT(Q15,"")&"&nbsp;"&T15&",&nbsp;"&O15&"</td><td class="&""""&"dataleft"&""""&">"& TEXT(G15,"0.0")&"</td><td class="&""""&"datacenter"&""""&">"& TEXT(H15,"0")&"</td>"& "</tr>" -> <tr><td class="dataright">14</td><td class="dataleft"><a href="set03\tsr\tsr_january_1,_1925_-_january_8,_1931\births\root,_female_birth_to_dallas_april_4,_1929_p4_tsr.pdf">Root</a></td><td class="dataleft"></td><td class="dataleft">Dallas</td><td class="datacenter">F</td><td class="dataleft">April&nbsp;4,&nbsp;1929</td><td class="dataleft">The&nbsp;Sutton&nbsp;Reporter</td><td class="datacenter">4</td></tr> | V15: =LEN(D15) -> 6
A16: =OFFSET(A16,-1,0)+1 -> 15 | B16: Jackson | D16: Melvin | E16: F | F16: 1929-05-02 | G16: The&nbsp;Sutton&nbsp;Reporter | H16: 4 | I16: 34 | J16: 907 | K16: jackson,_female_birth_to_melvin_may_2,_1929_p4_tsr.pdf | L16: set03\tsr\tsr_january_1,_1925_-_january_8,_1931\births | O16: =YEAR(F16) -> 1929 | P16: 1929 | Q16: =TEXT(F16,"mmmm") -> May | R16: =MONTH(F16) -> 5 | S16: =R16 -> 5 | T16: =DAY(F16) -> 2 | U16: ="<tr><td class="&""""&"dataright"&""""&">"& TEXT(A16,"0")&"</td><td class="&""""&"dataleft"&""""&">"& "<a href="&""""&L16&"\"&K16&""""&">"&B16&"</a></td><td class="&"""dataleft"">"& TEXT(C16,"")&"</td><td class="&""""&"dataleft"&""""&">"& TEXT(D16,"")&"</td><td class="&""""&"datacenter"&""""&">"& TEXT(E16,"")&"</td><td class="&""""&"dataleft"&""""&">"& TEXT(Q16,"")&"&nbsp;"&T16&",&nbsp;"&O16&"</td><td class="&""""&"dataleft"&""""&">"& TEXT(G16,"0.0")&"</td><td class="&""""&"datacenter"&""""&">"& TEXT(H16,"0")&"</td>"& "</tr>" -> <tr><td class="dataright">15</td><td class="dataleft"><a href="set03\tsr\tsr_january_1,_1925_-_january_8,_1931\births\jackson,_female_birth_to_melvin_may_2,_1929_p4_tsr.pdf">Jackson</a></td><td class="dataleft"></td><td class="dataleft">Melvin</td><td class="datacenter">F</td><td class="dataleft">May&nbsp;2,&nbsp;1929</td><td class="dataleft">The&nbsp;Sutton&nbsp;Reporter</td><td class="datacenter">4</td></tr> | V16: =LEN(D16) -> 6
A17: =OFFSET(A17,-1,0)+1 -> 16 | B17: Ebentier | C17: Birth and Death | D17: A. H. | F17: 1929-05-16 | G17: The&nbsp;Sutton&nbsp;Reporter | H17: 4 | I17: 34 | J17: 888 | K17: ebentier,_child_of_a_h_birth_and_death_may_16,_1929_p4_tsr.pdf | L17: set03\tsr\tsr_january_1,_1925_-_january_8,_1931\births | O17: =YEAR(F17) -> 1929 | P17: 1929 | Q17: =TEXT(F17,"mmmm") -> May | R17: =MONTH(F17) -> 5 | S17: =R17 -> 5 | T17: =DAY(F17) -> 16 | U17: ="<tr><td class="&""""&"dataright"&""""&">"& TEXT(A17,"0")&"</td><td class="&""""&"dataleft"&""""&">"& "<a href="&""""&L17&"\"&K17&""""&">"&B17&"</a></td><td class="&"""dataleft"">"& TEXT(C17,"")&"</td><td class="&""""&"dataleft"&""""&">"& TEXT(D17,"")&"</td><td class="&""""&"datacenter"&""""&">"& TEXT(E17,"")&"</td><td class="&""""&"dataleft"&""""&">"& TEXT(Q17,"")&"&nbsp;"&T17&",&nbsp;"&O17&"</td><td class="&""""&"dataleft"&""""&">"& TEXT(G17,"0.0")&"</td><td class="&""""&"datacenter"&""""&">"& TEXT(H17,"0")&"</td>"& "</tr>" -> <tr><td class="dataright">16</td><td class="dataleft"><a href="set03\tsr\tsr_january_1,_1925_-_january_8,_1931\births\ebentier,_child_of_a_h_birth_and_death_may_16,_1929_p4_tsr.pdf">Ebentier</a></td><td class="dataleft">Birth and Death</td><td class="dataleft">A. H.</td><td class="datacenter"></td><td class="dataleft">May&nbsp;16,&nbsp;1929</td><td class="dataleft">The&nbsp;Sutton&nbsp;Reporter</td><td class="datacenter">4</td></tr> | V17: =LEN(D17) -> 5
A18: =OFFSET(A18,-1,0)+1 -> 17 | B18: Wright | D18: A. W. | E18: M | F18: 1929-05-23 | G18: The&nbsp;Sutton&nbsp;Reporter | H18: 1 | I18: 34 | J18: 943 | K18: wright,_male_birth_to_a_w_may_23,_1929_p1_tsr.pdf | L18: set03\tsr\tsr_january_1,_1925_-_january_8,_1931\births | O18: =YEAR(F18) -> 1929 | P18: 1929 | Q18: =TEXT(F18,"mmmm") -> May | R18: =MONTH(F18) -> 5 | S18: =R18 -> 5 | T18: =DAY(F18) -> 23 | U18: ="<tr><td class="&""""&"dataright"&""""&">"& TEXT(A18,"0")&"</td><td class="&""""&"dataleft"&""""&">"& "<a href="&""""&L18&"\"&K18&""""&">"&B18&"</a></td><td class="&"""dataleft"">"& TEXT(C18,"")&"</td><td class="&""""&"dataleft"&""""&">"& TEXT(D18,"")&"</td><td class="&""""&"datacenter"&""""&">"& TEXT(E18,"")&"</td><td class="&""""&"dataleft"&""""&">"& TEXT(Q18,"")&"&nbsp;"&T18&",&nbsp;"&O18&"</td><td class="&""""&"dataleft"&""""&">"& TEXT(G18,"0.0")&"</td><td class="&""""&"datacenter"&""""&">"& TEXT(H18,"0")&"</td>"& "</tr>" -> <tr><td class="dataright">17</td><td class="dataleft"><a href="set03\tsr\tsr_january_1,_1925_-_january_8,_1931\births\wright,_male_birth_to_a_w_may_23,_1929_p1_tsr.pdf">Wright</a></td><td class="dataleft"></td><td class="dataleft">A. W.</td><td class="datacenter">M</td><td class="dataleft">May&nbsp;23,&nbsp;1929</td><td class="dataleft">The&nbsp;Sutton&nbsp;Reporter</td><td class="datacenter">1</td></tr> | V18: =LEN(D18) -> 5
A19: =OFFSET(A19,-1,0)+1 -> 18 | B19: Thoreson | D19: L. V. | E19: M | F19: 1929-07-04 | G19: The&nbsp;Sutton&nbsp;Reporter | H19: 4 | I19: 34 | J19: 938 | K19: thoreson,_male_birth_to_l_v_july_4,_1929_p4_tsr.pdf | L19: set03\tsr\tsr_january_1,_1925_-_january_8,_1931\births | O19: =YEAR(F19) -> 1929 | P19: 1929 | Q19: =TEXT(F19,"mmmm") -> July | R19: =MONTH(F19) -> 7 | S19: =R19 -> 7 | T19: =DAY(F19) -> 4 | U19: ="<tr><td class="&""""&"dataright"&""""&">"& TEXT(A19,"0")&"</td><td class="&""""&"dataleft"&""""&">"& "<a href="&""""&L19&"\"&K19&""""&">"&B19&"</a></td><td class="&"""dataleft"">"& TEXT(C19,"")&"</td><td class="&""""&"dataleft"&""""&">"& TEXT(D19,"")&"</td><td class="&""""&"datacenter"&""""&">"& TEXT(E19,"")&"</td><td class="&""""&"dataleft"&""""&">"& TEXT(Q19,"")&"&nbsp;"&T19&",&nbsp;"&O19&"</td><td class="&""""&"dataleft"&""""&">"& TEXT(G19,"0.0")&"</td><td class="&""""&"datacenter"&""""&">"& TEXT(H19,"0")&"</td>"& "</tr>" -> <tr><td class="dataright">18</td><td class="dataleft"><a href="set03\tsr\tsr_january_1,_1925_-_january_8,_1931\births\thoreson,_male_birth_to_l_v_july_4,_1929_p4_tsr.pdf">Thoreson</a></td><td class="dataleft"></td><td class="dataleft">L. V.</td><td class="datacenter">M</td><td class="dataleft">July&nbsp;4,&nbsp;1929</td><td class="dataleft">The&nbsp;Sutton&nbsp;Reporter</td><td class="datacenter">4</td></tr> | V19: =LEN(D19) -> 5
A20: =OFFSET(A20,-1,0)+1 -> 19 | B20: Fallen | D20: C. W. | E20: F | F20: 1929-08-29 | G20: The&nbsp;Sutton&nbsp;Reporter | H20: 4 | I20: 34 | J20: 893 | K20: fallen,_female_birth_to_c_w_august_29,_1929_p4_tsr.pdf | L20: set03\tsr\tsr_january_1,_1925_-_january_8,_1931\births | O20: =YEAR(F20) -> 1929 | P20: 1929 | Q20: =TEXT(F20,"mmmm") -> August | R20: =MONTH(F20) -> 8 | S20: =R20 -> 8 | T20: =DAY(F20) -> 29 | U20: ="<tr><td class="&""""&"dataright"&""""&">"& TEXT(A20,"0")&"</td><td class="&""""&"dataleft"&""""&">"& "<a href="&""""&L20&"\"&K20&""""&">"&B20&"</a></td><td class="&"""dataleft"">"& TEXT(C20,"")&"</td><td class="&""""&"dataleft"&""""&">"& TEXT(D20,"")&"</td><td class="&""""&"datacenter"&""""&">"& TEXT(E20,"")&"</td><td class="&""""&"dataleft"&""""&">"& TEXT(Q20,"")&"&nbsp;"&T20&",&nbsp;"&O20&"</td><td class="&""""&"dataleft"&""""&">"& TEXT(G20,"0.0")&"</td><td class="&""""&"datacenter"&""""&">"& TEXT(H20,"0")&"</td>"& "</tr>" -> <tr><td class="dataright">19</td><td class="dataleft"><a href="set03\tsr\tsr_january_1,_1925_-_january_8,_1931\births\fallen,_female_birth_to_c_w_august_29,_1929_p4_tsr.pdf">Fallen</a></td><td class="dataleft"></td><td class="dataleft">C. W.</td><td class="datacenter">F</td><td class="dataleft">August&nbsp;29,&nbsp;1929</td><td class="dataleft">The&nbsp;Sutton&nbsp;Reporter</td><td class="datacenter">4</td></tr> | V20: =LEN(D20) -> 5
A21: =OFFSET(A21,-1,0)+1 -> 20 | B21: Frydenberg | D21: Elmer | E21: F | F21: 1929-08-29 | G21: The&nbsp;Sutton&nbsp;Reporter | H21: 4 | I21: 34 | J21: 895 | K21: frydenberg,_female_birth_to_elmer_august_29,_1929_p4_tsr.pdf | L21: set03\tsr\tsr_january_1,_1925_-_january_8,_1931\births | O21: =YEAR(F21) -> 1929 | P21: 1929 | Q21: =TEXT(F21,"mmmm") -> August | R21: =MONTH(F21) -> 8 | S21: =R21 -> 8 | T21: =DAY(F21) -> 29 | U21: ="<tr><td class="&""""&"dataright"&""""&">"& TEXT(A21,"0")&"</td><td class="&""""&"dataleft"&""""&">"& "<a href="&""""&L21&"\"&K21&""""&">"&B21&"</a></td><td class="&"""dataleft"">"& TEXT(C21,"")&"</td><td class="&""""&"dataleft"&""""&">"& TEXT(D21,"")&"</td><td class="&""""&"datacenter"&""""&">"& TEXT(E21,"")&"</td><td class="&""""&"dataleft"&""""&">"& TEXT(Q21,"")&"&nbsp;"&T21&",&nbsp;"&O21&"</td><td class="&""""&"dataleft"&""""&">"& TEXT(G21,"0.0")&"</td><td class="&""""&"datacenter"&""""&">"& TEXT(H21,"0")&"</td>"& "</tr>" -> <tr><td class="dataright">20</td><td class="dataleft"><a href="set03\tsr\tsr_january_1,_1925_-_january_8,_1931\births\frydenberg,_female_birth_to_elmer_august_29,_1929_p4_tsr.pdf">Frydenberg</a></td><td class="dataleft"></td><td class="dataleft">Elmer</td><td class="datacenter">F</td><td class="dataleft">August&nbsp;29,&nbsp;1929</td><td class="dataleft">The&nbsp;Sutton&nbsp;Reporter</td><td class="datacenter">4</td></tr> | V21: =LEN(D21) -> 5
A22: =OFFSET(A22,-1,0)+1 -> 21 | B22: Ernst | D22: Chas | E22: M | F22: 1929-09-19 | G22: The&nbsp;Sutton&nbsp;Reporter | H22: 4 | I22: 34 | J22: 890 | K22: ernst,_male_birth_to_chas_september_19,_1929_p4_tsr.pdf | L22: set03\tsr\tsr_january_1,_1925_-_january_8,_1931\births | O22: =YEAR(F22) -> 1929 | P22: 1929 | Q22: =TEXT(F22,"mmmm") -> September | R22: =MONTH(F22) -> 9 | S22: =R22 -> 9 | T22: =DAY(F22) -> 19 | U22: ="<tr><td class="&""""&"dataright"&""""&">"& TEXT(A22,"0")&"</td><td class="&""""&"dataleft"&""""&">"& "<a href="&""""&L22&"\"&K22&""""&">"&B22&"</a></td><td class="&"""dataleft"">"& TEXT(C22,"")&"</td><td class="&""""&"dataleft"&""""&">"& TEXT(D22,"")&"</td><td class="&""""&"datacenter"&""""&">"& TEXT(E22,"")&"</td><td class="&""""&"dataleft"&""""&">"& TEXT(Q22,"")&"&nbsp;"&T22&",&nbsp;"&O22&"</td><td class="&""""&"dataleft"&""""&">"& TEXT(G22,"0.0")&"</td><td class="&""""&"datacenter"&""""&">"& TEXT(H22,"0")&"</td>"& "</tr>" -> <tr><td class="dataright">21</td><td class="dataleft"><a href="set03\tsr\tsr_january_1,_1925_-_january_8,_1931\births\ernst,_male_birth_to_chas_september_19,_1929_p4_tsr.pdf">Ernst</a></td><td class="dataleft"></td><td class="dataleft">Chas</td><td class="datacenter">M</td><td class="dataleft">September&nbsp;19,&nbsp;1929</td><td class="dataleft">The&nbsp;Sutton&nbsp;Reporter</td><td class="datacenter">4</td></tr> | V22: =LEN(D22) -> 4
A23: =OFFSET(A23,-1,0)+1 -> 22 | B23: Starr | D23: A. M. | E23: F | F23: 1929-09-19 | G23: The&nbsp;Sutton&nbsp;Reporter | H23: 4 | I23: 34 | J23: 936 | K23: starr,_female_birth_to_a_m_september_19,_1929_p4_tsr.pdf | L23: set03\tsr\tsr_january_1,_1925_-_january_8,_1931\births | O23: =YEAR(F23) -> 1929 | P23: 1929 | Q23: =TEXT(F23,"mmmm") -> September | R23: =MONTH(F23) -> 9 | S23: =R23 -> 9 | T23: =DAY(F23) -> 19 | U23: ="<tr><td class="&""""&"dataright"&""""&">"& TEXT(A23,"0")&"</td><td class="&""""&"dataleft"&""""&">"& "<a href="&""""&L23&"\"&K23&""""&">"&B23&"</a></td><td class="&"""dataleft"">"& TEXT(C23,"")&"</td><td class="&""""&"dataleft"&""""&">"& TEXT(D23,"")&"</td><td class="&""""&"datacenter"&""""&">"& TEXT(E23,"")&"</td><td class="&""""&"dataleft"&""""&">"& TEXT(Q23,"")&"&nbsp;"&T23&",&nbsp;"&O23&"</td><td class="&""""&"dataleft"&""""&">"& TEXT(G23,"0.0")&"</td><td class="&""""&"datacenter"&""""&">"& TEXT(H23,"0")&"</td>"& "</tr>" -> <tr><td class="dataright">22</td><td class="dataleft"><a href="set03\tsr\tsr_january_1,_1925_-_january_8,_1931\births\starr,_female_birth_to_a_m_september_19,_1929_p4_tsr.pdf">Starr</a></td><td class="dataleft"></td><td class="dataleft">A. M.</td><td class="datacenter">F</td><td class="dataleft">September&nbsp;19,&nbsp;1929</td><td class="dataleft">The&nbsp;Sutton&nbsp;Reporter</td><td class="datacenter">4</td></tr> | V23: =LEN(D23) -> 5
A24: =OFFSET(A24,-1,0)+1 -> 23 | B24: Hoffman | D24: Dr. O. H. | E24: F | F24: 1929-10-10 | G24: The&nbsp;Sutton&nbsp;Reporter | H24: 4 | I24: 34 | J24: 905 | K24: hoffman,_female_birth_to_dr_o_h_october_10,_1929_p4_tsr.pdf | L24: set03\tsr\tsr_january_1,_1925_-_january_8,_1931\births | O24: =YEAR(F24) -> 1929 | P24: 1929 | Q24: =TEXT(F24,"mmmm") -> October | R24: =MONTH(F24) -> 10 | S24: =R24 -> 10 | T24: =DAY(F24) -> 10 | U24: ="<tr><td class="&""""&"dataright"&""""&">"& TEXT(A24,"0")&"</td><td class="&""""&"dataleft"&""""&">"& "<a href="&""""&L24&"\"&K24&""""&">"&B24&"</a></td><td class="&"""dataleft"">"& TEXT(C24,"")&"</td><td class="&""""&"dataleft"&""""&">"& TEXT(D24,"")&"</td><td class="&""""&"datacenter"&""""&">"& TEXT(E24,"")&"</td><td class="&""""&"dataleft"&""""&">"& TEXT(Q24,"")&"&nbsp;"&T24&",&nbsp;"&O24&"</td><td class="&""""&"dataleft"&""""&">"& TEXT(G24,"0.0")&"</td><td class="&""""&"datacenter"&""""&">"& TEXT(H24,"0")&"</td>"& "</tr>" -> <tr><td class="dataright">23</td><td class="dataleft"><a href="set03\tsr\tsr_january_1,_1925_-_january_8,_1931\births\hoffman,_female_birth_to_dr_o_h_october_10,_1929_p4_tsr.pdf">Hoffman</a></td><td class="dataleft"></td><td class="dataleft">Dr. O. H.</td><td class="datacenter">F</td><td class="dataleft">October&nbsp;10,&nbsp;1929</td><td class="dataleft">The&nbsp;Sutton&nbsp;Reporter</td><td class="datacenter">4</td></tr> | V24: =LEN(D24) -> 9
A25: =OFFSET(A25,-1,0)+1 -> 24 | B25: Hill | D25: H. L. | E25: M | F25: 1929-12-05 | G25: The&nbsp;Sutton&nbsp;Reporter | H25: 4 | I25: 34 | J25: 903 | K25: hill,_male_birth_to_h_l_december_5,_1929_p4_tsr.pdf | L25: set03\tsr\tsr_january_1,_1925_-_january_8,_1931\births | O25: =YEAR(F25) -> 1929 | P25: 1929 | Q25: =TEXT(F25,"mmmm") -> December | R25: =MONTH(F25) -> 12 | S25: =R25 -> 12 | T25: =DAY(F25) -> 5 | U25: ="<tr><td class="&""""&"dataright"&""""&">"& TEXT(A25,"0")&"</td><td class="&""""&"dataleft"&""""&">"& "<a href="&""""&L25&"\"&K25&""""&">"&B25&"</a></td><td class="&"""dataleft"">"& TEXT(C25,"")&"</td><td class="&""""&"dataleft"&""""&">"& TEXT(D25,"")&"</td><td class="&""""&"datacenter"&""""&">"& TEXT(E25,"")&"</td><td class="&""""&"dataleft"&""""&">"& TEXT(Q25,"")&"&nbsp;"&T25&",&nbsp;"&O25&"</td><td class="&""""&"dataleft"&""""&">"& TEXT(G25,"0.0")&"</td><td class="&""""&"datacenter"&""""&">"& TEXT(H25,"0")&"</td>"& "</tr>" -> <tr><td class="dataright">24</td><td class="dataleft"><a href="set03\tsr\tsr_january_1,_1925_-_january_8,_1931\births\hill,_male_birth_to_h_l_december_5,_1929_p4_tsr.pdf">Hill</a></td><td class="dataleft"></td><td class="dataleft">H. L.</td><td class="datacenter">M</td><td class="dataleft">December&nbsp;5,&nbsp;1929</td><td class="dataleft">The&nbsp;Sutton&nbsp;Reporter</td><td class="datacenter">4</td></tr> | V25: =LEN(D25) -> 5
A26: =OFFSET(A26,-1,0)+1 -> 25 | B26: Wagoner | D26: R. C. | E26: F | F26: 1929-12-05 | G26: The&nbsp;Sutton&nbsp;Reporter | H26: 4 | I26: 34 | J26: 940 | K26: wagoner,_female_birth_to_r_c_december_5,_1929_p4_tsr.pdf | L26: set03\tsr\tsr_january_1,_1925_-_january_8,_1931\births | O26: =YEAR(F26) -> 1929 | P26: 1929 | Q26: =TEXT(F26,"mmmm") -> December | R26: =MONTH(F26) -> 12 | S26: =R26 -> 12 | T26: =DAY(F26) -> 5 | U26: ="<tr><td class="&""""&"dataright"&""""&">"& TEXT(A26,"0")&"</td><td class="&""""&"dataleft"&""""&">"& "<a href="&""""&L26&"\"&K26&""""&">"&B26&"</a></td><td class="&"""dataleft"">"& TEXT(C26,"")&"</td><td class="&""""&"dataleft"&""""&">"& TEXT(D26,"")&"</td><td class="&""""&"datacenter"&""""&">"& TEXT(E26,"")&"</td><td class="&""""&"dataleft"&""""&">"& TEXT(Q26,"")&"&nbsp;"&T26&",&nbsp;"&O26&"</td><td class="&""""&"dataleft"&""""&">"& TEXT(G26,"0.0")&"</td><td class="&""""&"datacenter"&""""&">"& TEXT(H26,"0")&"</td>"& "</tr>" -> <tr><td class="dataright">25</td><td class="dataleft"><a href="set03\tsr\tsr_january_1,_1925_-_january_8,_1931\births\wagoner,_female_birth_to_r_c_december_5,_1929_p4_tsr.pdf">Wagoner</a></td><td class="dataleft"></td><td class="dataleft">R. C.</td><td class="datacenter">F</td><td class="dataleft">December&nbsp;5,&nbsp;1929</td><td class="dataleft">The&nbsp;Sutton&nbsp;Reporter</td><td class="datacenter">4</td></tr> | V26: =LEN(D26) -> 5
A27: =OFFSET(A27,-1,0)+1 -> 26 | B27: Lose | D27: Emil | E27: M | F27: 1928-02-02 | G27: The&nbsp;Sutton&nbsp;Reporter | H27: 4 | I27: 34 | J27: 912 | K27: lowe,_male_birth_to_emil_february_2,_1928_p4_tsr.pdf | L27: set03\tsr\tsr_january_1,_1925_-_january_8,_1931\births | O27: =YEAR(F27) -> 1928 | P27: 1928 | Q27: =TEXT(F27,"mmmm") -> February | R27: =MONTH(F27) -> 2 | S27: =R27 -> 2 | T27: =DAY(F27) -> 2 | U27: ="<tr><td class="&""""&"dataright"&""""&">"& TEXT(A27,"0")&"</td><td class="&""""&"dataleft"&""""&">"& "<a href="&""""&L27&"\"&K27&""""&">"&B27&"</a></td><td class="&"""dataleft"">"& TEXT(C27,"")&"</td><td class="&""""&"dataleft"&""""&">"& TEXT(D27,"")&"</td><td class="&""""&"datacenter"&""""&">"& TEXT(E27,"")&"</td><td class="&""""&"dataleft"&""""&">"& TEXT(Q27,"")&"&nbsp;"&T27&",&nbsp;"&O27&"</td><td class="&""""&"dataleft"&""""&">"& TEXT(G27,"0.0")&"</td><td class="&""""&"datacenter"&""""&">"& TEXT(H27,"0")&"</td>"& "</tr>" -> <tr><td class="dataright">26</td><td class="dataleft"><a href="set03\tsr\tsr_january_1,_1925_-_january_8,_1931\births\lowe,_male_birth_to_emil_february_2,_1928_p4_tsr.pdf">Lose</a></td><td class="dataleft"></td><td class="dataleft">Emil</td><td class="datacenter">M</td><td class="dataleft">February&nbsp;2,&nbsp;1928</td><td class="dataleft">The&nbsp;Sutton&nbsp;Reporter</td><td class="datacenter">4</td></tr> | V27: =LEN(D27) -> 4
A28: =OFFSET(A28,-1,0)+1 -> 27 | B28: Werner | D28: Wm. | E28: F | F28: 1928-04-26 | G28: The&nbsp;Sutton&nbsp;Reporter | H28: 6 | I28: 34 | J28: 941 | K28: werner,_female_birth_to_wm_april_26,_1928_p6_tsr.pdf | L28: set03\tsr\tsr_january_1,_1925_-_january_8,_1931\births | O28: =YEAR(F28) -> 1928 | P28: 1928 | Q28: =TEXT(F28,"mmmm") -> April | R28: =MONTH(F28) -> 4 | S28: =R28 -> 4 | T28: =DAY(F28) -> 26 | U28: ="<tr><td class="&""""&"dataright"&""""&">"& TEXT(A28,"0")&"</td><td class="&""""&"dataleft"&""""&">"& "<a href="&""""&L28&"\"&K28&""""&">"&B28&"</a></td><td class="&"""dataleft"">"& TEXT(C28,"")&"</td><td class="&""""&"dataleft"&""""&">"& TEXT(D28,"")&"</td><td class="&""""&"datacenter"&""""&">"& TEXT(E28,"")&"</td><td class="&""""&"dataleft"&""""&">"& TEXT(Q28,"")&"&nbsp;"&T28&",&nbsp;"&O28&"</td><td class="&""""&"dataleft"&""""&">"& TEXT(G28,"0.0")&"</td><td class="&""""&"datacenter"&""""&">"& TEXT(H28,"0")&"</td>"& "</tr>" -> <tr><td class="dataright">27</td><td class="dataleft"><a href="set03\tsr\tsr_january_1,_1925_-_january_8,_1931\births\werner,_female_birth_to_wm_april_26,_1928_p6_tsr.pdf">Werner</a></td><td class="dataleft"></td><td class="dataleft">Wm.</td><td class="datacenter">F</td><td class="dataleft">April&nbsp;26,&nbsp;1928</td><td class="dataleft">The&nbsp;Sutton&nbsp;Reporter</td><td class="datacenter">6</td></tr> | V28: =LEN(D28) -> 3
A29: =OFFSET(A29,-1,0)+1 -> 28 | B29: Peterson | D29: Joseph | E29: M | F29: 1928-07-19 | G29: The&nbsp;Sutton&nbsp;Reporter | H29: 4 | I29: 34 | J29: 920 | K29: peterson,_male_birth_to_joseph_july_19,_1928_p4_tsr | L29: set03\tsr\tsr_january_1,_1925_-_january_8,_1931\births | O29: =YEAR(F29) -> 1928 | P29: 1928 | Q29: =TEXT(F29,"mmmm") -> July | R29: =MONTH(F29) -> 7 | S29: =R29 -> 7 | T29: =DAY(F29) -> 19 | U29: ="<tr><td class="&""""&"dataright"&""""&">"& TEXT(A29,"0")&"</td><td class="&""""&"dataleft"&""""&">"& "<a href="&""""&L29&"\"&K29&""""&">"&B29&"</a></td><td class="&"""dataleft"">"& TEXT(C29,"")&"</td><td class="&""""&"dataleft"&""""&">"& TEXT(D29,"")&"</td><td class="&""""&"datacenter"&""""&">"& TEXT(E29,"")&"</td><td class="&""""&"dataleft"&""""&">"& TEXT(Q29,"")&"&nbsp;"&T29&",&nbsp;"&O29&"</td><td class="&""""&"dataleft"&""""&">"& TEXT(G29,"0.0")&"</td><td class="&""""&"datacenter"&""""&">"& TEXT(H29,"0")&"</td>"& "</tr>" -> <tr><td class="dataright">28</td><td class="dataleft"><a href="set03\tsr\tsr_january_1,_1925_-_january_8,_1931\births\peterson,_male_birth_to_joseph_july_19,_1928_p4_tsr">Peterson</a></td><td class="dataleft"></td><td class="dataleft">Joseph</td><td class="datacenter">M</td><td class="dataleft">July&nbsp;19,&nbsp;1928</td><td class="dataleft">The&nbsp;Sutton&nbsp;Reporter</td><td class="datacenter">4</td></tr> | V29: =LEN(D29) -> 6
A30: =OFFSET(A30,-1,0)+1 -> 29 | B30: Rise | D30: Sverre | E30: M | F30: 1928-07-19 | G30: The&nbsp;Sutton&nbsp;Reporter | H30: 4 | I30: 34 | J30: 925 | K30: rise,_male_birth_to_sverre_july_19,_1928_p4_tsr.pdf | L30: set03\tsr\tsr_january_1,_1925_-_january_8,_1931\births | O30: =YEAR(F30) -> 1928 | P30: 1928 | Q30: =TEXT(F30,"mmmm") -> July | R30: =MONTH(F30) -> 7 | S30: =R30 -> 7 | T30: =DAY(F30) -> 19 | U30: ="<tr><td class="&""""&"dataright"&""""&">"& TEXT(A30,"0")&"</td><td class="&""""&"dataleft"&""""&">"& "<a href="&""""&L30&"\"&K30&""""&">"&B30&"</a></td><td class="&"""dataleft"">"& TEXT(C30,"")&"</td><td class="&""""&"dataleft"&""""&">"& TEXT(D30,"")&"</td><td class="&""""&"datacenter"&""""&">"& TEXT(E30,"")&"</td><td class="&""""&"dataleft"&""""&">"& TEXT(Q30,"")&"&nbsp;"&T30&",&nbsp;"&O30&"</td><td class="&""""&"dataleft"&""""&">"& TEXT(G30,"0.0")&"</td><td class="&""""&"datacenter"&""""&">"& TEXT(H30,"0")&"</td>"& "</tr>" -> <tr><td class="dataright">29</td><td class="dataleft"><a href="set03\tsr\tsr_january_1,_1925_-_january_8,_1931\births\rise,_male_birth_to_sverre_july_19,_1928_p4_tsr.pdf">Rise</a></td><td class="dataleft"></td><td class="dataleft">Sverre</td><td class="datacenter">M</td><td class="dataleft">July&nbsp;19,&nbsp;1928</td><td class="dataleft">The&nbsp;Sutton&nbsp;Reporter</td><td class="datacenter">4</td></tr> | V30: =LEN(D30) -> 6
A31: =OFFSET(A31,-1,0)+1 -> 30 | B31: Frederick | D31: D. C. | E31: M | F31: 1928-07-26 | G31: The&nbsp;Sutton&nbsp;Reporter | H31: 4 | I31: 34 | J31: 894 | K31: frederick,_male_birth_to_d_c_july_26,_1928_p4_tsr.pdf | L31: set03\tsr\tsr_january_1,_1925_-_january_8,_1931\births | O31: =YEAR(F31) -> 1928 | P31: 1928 | Q31: =TEXT(F31,"mmmm") -> July | R31: =MONTH(F31) -> 7 | S31: =R31 -> 7 | T31: =DAY(F31) -> 26 | U31: ="<tr><td class="&""""&"dataright"&""""&">"& TEXT(A31,"0")&"</td><td class="&""""&"dataleft"&""""&">"& "<a href="&""""&L31&"\"&K31&""""&">"&B31&"</a></td><td class="&"""dataleft"">"& TEXT(C31,"")&"</td><td class="&""""&"dataleft"&""""&">"& TEXT(D31,"")&"</td><td class="&""""&"datacenter"&""""&">"& TEXT(E31,"")&"</td><td class="&""""&"dataleft"&""""&">"& TEXT(Q31,"")&"&nbsp;"&T31&",&nbsp;"&O31&"</td><td class="&""""&"dataleft"&""""&">"& TEXT(G31,"0.0")&"</td><td class="&""""&"datacenter"&""""&">"& TEXT(H31,"0")&"</td>"& "</tr>" -> <tr><td class="dataright">30</td><td class="dataleft"><a href="set03\tsr\tsr_january_1,_1925_-_january_8,_1931\births\frederick,_male_birth_to_d_c_july_26,_1928_p4_tsr.pdf">Frederick </a></td><td class="dataleft"></td><td class="dataleft">D. C.</td><td class="datacenter">M</td><td class="dataleft">July&nbsp;26,&nbsp;1928</td><td class="dataleft">The&nbsp;Sutton&nbsp;Reporter</td><td class="datacenter">4</td></tr> | V31: =LEN(D31) -> 5
A32: =OFFSET(A32,-1,0)+1 -> 31 | B32: Wagoner | D32: R. C. | E32: M | F32: 1928-09-20 | G32: The&nbsp;Sutton&nbsp;Reporter | H32: 4 | I32: 34 | J32: 939 | K32: wagoner,_male_birth_to_r_c_september_20,_1928_p4_tsr.pdf | L32: set03\tsr\tsr_january_1,_1925_-_january_8,_1931\births | O32: =YEAR(F32) -> 1928 | P32: 1928 | Q32: =TEXT(F32,"mmmm") -> September | R32: =MONTH(F32) -> 9 | S32: =R32 -> 9 | T32: =DAY(F32) -> 20 | U32: ="<tr><td class="&""""&"dataright"&""""&">"& TEXT(A32,"0")&"</td><td class="&""""&"dataleft"&""""&">"& "<a href="&""""&L32&"\"&K32&""""&">"&B32&"</a></td><td class="&"""dataleft"">"& TEXT(C32,"")&"</td><td class="&""""&"dataleft"&""""&">"& TEXT(D32,"")&"</td><td class="&""""&"datacenter"&""""&">"& TEXT(E32,"")&"</td><td class="&""""&"dataleft"&""""&">"& TEXT(Q32,"")&"&nbsp;"&T32&",&nbsp;"&O32&"</td><td class="&""""&"dataleft"&""""&">"& TEXT(G32,"0.0")&"</td><td class="&""""&"datacenter"&""""&">"& TEXT(H32,"0")&"</td>"& "</tr>" -> <tr><td class="dataright">31</td><td class="dataleft"><a href="set03\tsr\tsr_january_1,_1925_-_january_8,_1931\births\wagoner,_male_birth_to_r_c_september_20,_1928_p4_tsr.pdf">Wagoner</a></td><td class="dataleft"></td><td class="dataleft">R. C.</td><td class="datacenter">M</td><td class="dataleft">September&nbsp;20,&nbsp;1928</td><td class="dataleft">The&nbsp;Sutton&nbsp;Reporter</td><td class="datacenter">4</td></tr> | V32: =LEN(D32) -> 5
A33: =OFFSET(A33,-1,0)+1 -> 32 | B33: Rhodes | D33: Ed | E33: M | F33: 1928-10-04 | G33: The&nbsp;Sutton&nbsp;Reporter | H33: 4 | I33: 34 | J33: 923 | K33: rhodes,_male_birth_to_ed_october_4,_1928_p4_tsr.pdf | L33: set03\tsr\tsr_january_1,_1925_-_january_8,_1931\births | O33: =YEAR(F33) -> 1928 | P33: 1928 | Q33: =TEXT(F33,"mmmm") -> October | R33: =MONTH(F33) -> 10 | S33: =R33 -> 10 | T33: =DAY(F33) -> 4 | U33: ="<tr><td class="&""""&"dataright"&""""&">"& TEXT(A33,"0")&"</td><td class="&""""&"dataleft"&""""&">"& "<a href="&""""&L33&"\"&K33&""""&">"&B33&"</a></td><td class="&"""dataleft"">"& TEXT(C33,"")&"</td><td class="&""""&"dataleft"&""""&">"& TEXT(D33,"")&"</td><td class="&""""&"datacenter"&""""&">"& TEXT(E33,"")&"</td><td class="&""""&"dataleft"&""""&">"& TEXT(Q33,"")&"&nbsp;"&T33&",&nbsp;"&O33&"</td><td class="&""""&"dataleft"&""""&">"& TEXT(G33,"0.0")&"</td><td class="&""""&"datacenter"&""""&">"& TEXT(H33,"0")&"</td>"& "</tr>" -> <tr><td class="dataright">32</td><td class="dataleft"><a href="set03\tsr\tsr_january_1,_1925_-_january_8,_1931\births\rhodes,_male_birth_to_ed_october_4,_1928_p4_tsr.pdf">Rhodes</a></td><td class="dataleft"></td><td class="dataleft">Ed</td><td class="datacenter">M</td><td class="dataleft">October&nbsp;4,&nbsp;1928</td><td class="dataleft">The&nbsp;Sutton&nbsp;Reporter</td><td class="datacenter">4</td></tr> | V33: =LEN(D33) -> 2
A34: =OFFSET(A34,-1,0)+1 -> 33 | B34: Jacobson | D34: Jacob | E34: F | F34: 1927-03-03 | G34: The&nbsp;Sutton&nbsp;Reporter | H34: 4 | I34: 34 | J34: 909 | K34: jacobson,_female_birth_to_jacob_march_3,_1927p4_tsr.pdf | L34: set03\tsr\tsr_january_1,_1925_-_january_8,_1931\births | O34: =YEAR(F34) -> 1927 | P34: 1927 | Q34: =TEXT(F34,"mmmm") -> March | R34: =MONTH(F34) -> 3 | S34: =R34 -> 3 | T34: =DAY(F34) -> 3 | U34: ="<tr><td class="&""""&"dataright"&""""&">"& TEXT(A34,"0")&"</td><td class="&""""&"dataleft"&""""&">"& "<a href="&""""&L34&"\"&K34&""""&">"&B34&"</a></td><td class="&"""dataleft"">"& TEXT(C34,"")&"</td><td class="&""""&"dataleft"&""""&">"& TEXT(D34,"")&"</td><td class="&""""&"datacenter"&""""&">"& TEXT(E34,"")&"</td><td class="&""""&"dataleft"&""""&">"& TEXT(Q34,"")&"&nbsp;"&T34&",&nbsp;"&O34&"</td><td class="&""""&"dataleft"&""""&">"& TEXT(G34,"0.0")&"</td><td class="&""""&"datacenter"&""""&">"& TEXT(H34,"0")&"</td>"& "</tr>" -> <tr><td class="dataright">33</td><td class="dataleft"><a href="set03\tsr\tsr_january_1,_1925_-_january_8,_1931\births\jacobson,_female_birth_to_jacob_march_3,_1927p4_tsr.pdf">Jacobson</a></td><td class="dataleft"></td><td class="dataleft">Jacob</td><td class="datacenter">F</td><td class="dataleft">March&nbsp;3,&nbsp;1927</td><td class="dataleft">The&nbsp;Sutton&nbsp;Reporter</td><td class="datacenter">4</td></tr> | V34: =LEN(D34) -> 5
A35: =OFFSET(A35,-1,0)+1 -> 34 | B35: Jacobson | D35: Jacob | E35: F | F35: 1927-03-10 | G35: The&nbsp;Sutton&nbsp;Reporter | H35: 4 | I35: 34 | J35: 908 | K35: jacobson,_female_birth_feb_16_to_jacob_march_10,_1927_p4_tsr.pdf | L35: set03\tsr\tsr_january_1,_1925_-_january_8,_1931\births | O35: =YEAR(F35) -> 1927 | P35: 1927 | Q35: =TEXT(F35,"mmmm") -> March | R35: =MONTH(F35) -> 3 | S35: =R35 -> 3 | T35: =DAY(F35) -> 10 | U35: ="<tr><td class="&""""&"dataright"&""""&">"& TEXT(A35,"0")&"</td><td class="&""""&"dataleft"&""""&">"& "<a href="&""""&L35&"\"&K35&""""&">"&B35&"</a></td><td class="&"""dataleft"">"& TEXT(C35,"")&"</td><td class="&""""&"dataleft"&""""&">"& TEXT(D35,"")&"</td><td class="&""""&"datacenter"&""""&">"& TEXT(E35,"")&"</td><td class="&""""&"dataleft"&""""&">"& TEXT(Q35,"")&"&nbsp;"&T35&",&nbsp;"&O35&"</td><td class="&""""&"dataleft"&""""&">"& TEXT(G35,"0.0")&"</td><td class="&""""&"datacenter"&""""&">"& TEXT(H35,"0")&"</td>"& "</tr>" -> <tr><td class="dataright">34</td><td class="dataleft"><a href="set03\tsr\tsr_january_1,_1925_-_january_8,_1931\births\jacobson,_female_birth_feb_16_to_jacob_march_10,_1927_p4_tsr.pdf">Jacobson</a></td><td class="dataleft"></td><td class="dataleft">Jacob</td><td class="datacenter">F</td><td class="dataleft">March&nbsp;10,&nbsp;1927</td><td class="dataleft">The&nbsp;Sutton&nbsp;Reporter</td><td class="datacenter">4</td></tr> | V35: =LEN(D35) -> 5
A36: =OFFSET(A36,-1,0)+1 -> 35 | B36: Martin | D36: F. L. | E36: F | F36: 1927-03-10 | G36: The&nbsp;Sutton&nbsp;Reporter | H36: 4 | I36: 34 | J36: 915 | K36: martin,_female_birth_to_f_l_march_10,_1927_p4_tsr.pdf | L36: set03\tsr\tsr_january_1,_1925_-_january_8,_1931\births | O36: =YEAR(F36) -> 1927 | P36: 1927 | Q36: =TEXT(F36,"mmmm") -> March | R36: =MONTH(F36) -> 3 | S36: =R36 -> 3 | T36: =DAY(F36) -> 10 | U36: ="<tr><td class="&""""&"dataright"&""""&">"& TEXT(A36,"0")&"</td><td class="&""""&"dataleft"&""""&">"& "<a href="&""""&L36&"\"&K36&""""&">"&B36&"</a></td><td class="&"""dataleft"">"& TEXT(C36,"")&"</td><td class="&""""&"dataleft"&""""&">"& TEXT(D36,"")&"</td><td class="&""""&"datacenter"&""""&">"& TEXT(E36,"")&"</td><td class="&""""&"dataleft"&""""&">"& TEXT(Q36,"")&"&nbsp;"&T36&",&nbsp;"&O36&"</td><td class="&""""&"dataleft"&""""&">"& TEXT(G36,"0.0")&"</td><td class="&""""&"datacenter"&""""&">"& TEXT(H36,"0")&"</td>"& "</tr>" -> <tr><td class="dataright">35</td><td class="dataleft"><a href="set03\tsr\tsr_january_1,_1925_-_january_8,_1931\births\martin,_female_birth_to_f_l_march_10,_1927_p4_tsr.pdf">Martin</a></td><td class="dataleft"></td><td class="dataleft">F. L.</td><td class="datacenter">F</td><td class="dataleft">March&nbsp;10,&nbsp;1927</td><td class="dataleft">The&nbsp;Sutton&nbsp;Reporter</td><td class="datacenter">4</td></tr> | V36: =LEN(D36) -> 5
A37: =OFFSET(A37,-1,0)+1 -> 36 | B37: Crommett | D37: E. A. | E37: F | F37: 1927-06-09 | G37: The&nbsp;Sutton&nbsp;Reporter | H37: 4 | I37: 34 | J37: 885 | K37: crommett,_female_birth_to_e_a_june_9,_1927p4_tsr.pdf | L37: set03\tsr\tsr_january_1,_1925_-_january_8,_1931\births | O37: =YEAR(F37) -> 1927 | P37: 1927 | Q37: =TEXT(F37,"mmmm") -> June | R37: =MONTH(F37) -> 6 | S37: =R37 -> 6 | T37: =DAY(F37) -> 9 | U37: ="<tr><td class="&""""&"dataright"&""""&">"& TEXT(A37,"0")&"</td><td class="&""""&"dataleft"&""""&">"& "<a href="&""""&L37&"\"&K37&""""&">"&B37&"</a></td><td class="&"""dataleft"">"& TEXT(C37,"")&"</td><td class="&""""&"dataleft"&""""&">"& TEXT(D37,"")&"</td><td class="&""""&"datacenter"&""""&">"& TEXT(E37,"")&"</td><td class="&""""&"dataleft"&""""&">"& TEXT(Q37,"")&"&nbsp;"&T37&",&nbsp;"&O37&"</td><td class="&""""&"dataleft"&""""&">"& TEXT(G37,"0.0")&"</td><td class="&""""&"datacenter"&""""&">"& TEXT(H37,"0")&"</td>"& "</tr>" -> <tr><td class="dataright">36</td><td class="dataleft"><a href="set03\tsr\tsr_january_1,_1925_-_january_8,_1931\births\crommett,_female_birth_to_e_a_june_9,_1927p4_tsr.pdf">Crommett</a></td><td class="dataleft"></td><td class="dataleft">E. A.</td><td class="datacenter">F</td><td class="dataleft">June&nbsp;9,&nbsp;1927</td><td class="dataleft">The&nbsp;Sutton&nbsp;Reporter</td><td class="datacenter">4</td></tr> | V37: =LEN(D37) -> 5
A38: =OFFSET(A38,-1,0)+1 -> 37 | B38: Bailey | D38: J. W. | E38: F | F38: 1927-06-23 | G38: The&nbsp;Sutton&nbsp;Reporter | H38: 4 | I38: 34 | J38: 879 | K38: bailey,_female_birth_to_j_w_june_23,_1927_p4_tsr.pdf | L38: set03\tsr\tsr_january_1,_1925_-_january_8,_1931\births | O38: =YEAR(F38) -> 1927 | P38: 1927 | Q38: =TEXT(F38,"mmmm") -> June | R38: =MONTH(F38) -> 6 | S38: =R38 -> 6 | T38: =DAY(F38) -> 23 | U38: ="<tr><td class="&""""&"dataright"&""""&">"& TEXT(A38,"0")&"</td><td class="&""""&"dataleft"&""""&">"& "<a href="&""""&L38&"\"&K38&""""&">"&B38&"</a></td><td class="&"""dataleft"">"& TEXT(C38,"")&"</td><td class="&""""&"dataleft"&""""&">"& TEXT(D38,"")&"</td><td class="&""""&"datacenter"&""""&">"& TEXT(E38,"")&"</td><td class="&""""&"dataleft"&""""&">"& TEXT(Q38,"")&"&nbsp;"&T38&",&nbsp;"&O38&"</td><td class="&""""&"dataleft"&""""&">"& TEXT(G38,"0.0")&"</td><td class="&""""&"datacenter"&""""&">"& TEXT(H38,"0")&"</td>"& "</tr>" -> <tr><td class="dataright">37</td><td class="dataleft"><a href="set03\tsr\tsr_january_1,_1925_-_january_8,_1931\births\bailey,_female_birth_to_j_w_june_23,_1927_p4_tsr.pdf">Bailey</a></td><td class="dataleft"></td><td class="dataleft">J. W.</td><td class="datacenter">F</td><td class="dataleft">June&nbsp;23,&nbsp;1927</td><td class="dataleft">The&nbsp;Sutton&nbsp;Reporter</td><td class="datacenter">4</td></tr> | V38: =LEN(D38) -> 5
A39: =OFFSET(A39,-1,0)+1 -> 38 | B39: Hamilton | D39: M. E. | E39: M | F39: 1927-06-23 | G39: The&nbsp;Sutton&nbsp;Reporter | H39: 4 | I39: 34 | J39: 900 | K39: hamilton,_male_birth_to_m_e_june_23,_1927_p4_tsr.pdf | L39: set03\tsr\tsr_january_1,_1925_-_january_8,_1931\births | O39: =YEAR(F39) -> 1927 | P39: 1927 | Q39: =TEXT(F39,"mmmm") -> June | R39: =MONTH(F39) -> 6 | S39: =R39 -> 6 | T39: =DAY(F39) -> 23 | U39: ="<tr><td class="&""""&"dataright"&""""&">"& TEXT(A39,"0")&"</td><td class="&""""&"dataleft"&""""&">"& "<a href="&""""&L39&"\"&K39&""""&">"&B39&"</a></td><td class="&"""dataleft"">"& TEXT(C39,"")&"</td><td class="&""""&"dataleft"&""""&">"& TEXT(D39,"")&"</td><td class="&""""&"datacenter"&""""&">"& TEXT(E39,"")&"</td><td class="&""""&"dataleft"&""""&">"& TEXT(Q39,"")&"&nbsp;"&T39&",&nbsp;"&O39&"</td><td class="&""""&"dataleft"&""""&">"& TEXT(G39,"0.0")&"</td><td class="&""""&"datacenter"&""""&">"& TEXT(H39,"0")&"</td>"& "</tr>" -> <tr><td class="dataright">38</td><td class="dataleft"><a href="set03\tsr\tsr_january_1,_1925_-_january_8,_1931\births\hamilton,_male_birth_to_m_e_june_23,_1927_p4_tsr.pdf">Hamilton</a></td><td class="dataleft"></td><td class="dataleft">M. E.</td><td class="datacenter">M</td><td class="dataleft">June&nbsp;23,&nbsp;1927</td><td class="dataleft">The&nbsp;Sutton&nbsp;Reporter</td><td class="datacenter">4</td></tr> | V39: =LEN(D39) -> 5
A40: =OFFSET(A40,-1,0)+1 -> 39 | B40: Nelson | D40: A. H. | E40: F | F40: 1927-07-21 | G40: The&nbsp;Sutton&nbsp;Reporter | H40: 4 | I40: 34 | J40: 917 | K40: nelson,_female_birth_to_a_h_july_21,_1927_p4_tsr.pdf | L40: set03\tsr\tsr_january_1,_1925_-_january_8,_1931\births | O40: =YEAR(F40) -> 1927 | P40: 1927 | Q40: =TEXT(F40,"mmmm") -> July | R40: =MONTH(F40) -> 7 | S40: =R40 -> 7 | T40: =DAY(F40) -> 21 | U40: ="<tr><td class="&""""&"dataright"&""""&">"& TEXT(A40,"0")&"</td><td class="&""""&"dataleft"&""""&">"& "<a href="&""""&L40&"\"&K40&""""&">"&B40&"</a></td><td class="&"""dataleft"">"& TEXT(C40,"")&"</td><td class="&""""&"dataleft"&""""&">"& TEXT(D40,"")&"</td><td class="&""""&"datacenter"&""""&">"& TEXT(E40,"")&"</td><td class="&""""&"dataleft"&""""&">"& TEXT(Q40,"")&"&nbsp;"&T40&",&nbsp;"&O40&"</td><td class="&""""&"dataleft"&""""&">"& TEXT(G40,"0.0")&"</td><td class="&""""&"datacenter"&""""&">"& TEXT(H40,"0")&"</td>"& "</tr>" -> <tr><td class="dataright">39</td><td class="dataleft"><a href="set03\tsr\tsr_january_1,_1925_-_january_8,_1931\births\nelson,_female_birth_to_a_h_july_21,_1927_p4_tsr.pdf">Nelson</a></td><td class="dataleft"></td><td class="dataleft">A. H.</td><td class="datacenter">F</td><td class="dataleft">July&nbsp;21,&nbsp;1927</td><td class="dataleft">The&nbsp;Sutton&nbsp;Reporter</td><td class="datacenter">4</td></tr> | V40: =LEN(D40) -> 5
A41: =OFFSET(A41,-1,0)+1 -> 40 | B41: Fadness | D41: Emil | E41: F | F41: 1927-08-04 | G41: The&nbsp;Sutton&nbsp;Reporter | H41: 4 | I41: 34 | J41: 892 | K41: fadness,_female_birth_to_emil_august_4,_1927_p4_tsr.pdf | L41: set03\tsr\tsr_january_1,_1925_-_january_8,_1931\births | O41: =YEAR(F41) -> 1927 | P41: 1927 | Q41: =TEXT(F41,"mmmm") -> August | R41: =MONTH(F41) -> 8 | S41: =R41 -> 8 | T41: =DAY(F41) -> 4 | U41: ="<tr><td class="&""""&"dataright"&""""&">"& TEXT(A41,"0")&"</td><td class="&""""&"dataleft"&""""&">"& "<a href="&""""&L41&"\"&K41&""""&">"&B41&"</a></td><td class="&"""dataleft"">"& TEXT(C41,"")&"</td><td class="&""""&"dataleft"&""""&">"& TEXT(D41,"")&"</td><td class="&""""&"datacenter"&""""&">"& TEXT(E41,"")&"</td><td class="&""""&"dataleft"&""""&">"& TEXT(Q41,"")&"&nbsp;"&T41&",&nbsp;"&O41&"</td><td class="&""""&"dataleft"&""""&">"& TEXT(G41,"0.0")&"</td><td class="&""""&"datacenter"&""""&">"& TEXT(H41,"0")&"</td>"& "</tr>" -> <tr><td class="dataright">40</td><td class="dataleft"><a href="set03\tsr\tsr_january_1,_1925_-_january_8,_1931\births\fadness,_female_birth_to_emil_august_4,_1927_p4_tsr.pdf">Fadness</a></td><td class="dataleft"></td><td class="dataleft">Emil</td><td class="datacenter">F</td><td class="dataleft">August&nbsp;4,&nbsp;1927</td><td class="dataleft">The&nbsp;Sutton&nbsp;Reporter</td><td class="datacenter">4</td></tr> | V41: =LEN(D41) -> 4
A42: =OFFSET(A42,-1,0)+1 -> 41 | B42: Sorvik | D42: Harold | E42: M | F42: 1927-08-11 | G42: The&nbsp;Sutton&nbsp;Reporter | H42: 4 | I42: 34 | J42: 935 | K42: sorvik,_male_birth_to_harold_august_11,_1927_p4_tsr.pdf | L42: set03\tsr\tsr_january_1,_1925_-_january_8,_1931\births | O42: =YEAR(F42) -> 1927 | P42: 1927 | Q42: =TEXT(F42,"mmmm") -> August | R42: =MONTH(F42) -> 8 | S42: =R42 -> 8 | T42: =DAY(F42) -> 11 | U42: ="<tr><td class="&""""&"dataright"&""""&">"& TEXT(A42,"0")&"</td><td class="&""""&"dataleft"&""""&">"& "<a href="&""""&L42&"\"&K42&""""&">"&B42&"</a></td><td class="&"""dataleft"">"& TEXT(C42,"")&"</td><td class="&""""&"dataleft"&""""&">"& TEXT(D42,"")&"</td><td class="&""""&"datacenter"&""""&">"& TEXT(E42,"")&"</td><td class="&""""&"dataleft"&""""&">"& TEXT(Q42,"")&"&nbsp;"&T42&",&nbsp;"&O42&"</td><td class="&""""&"dataleft"&""""&">"& TEXT(G42,"0.0")&"</td><td class="&""""&"datacenter"&""""&">"& TEXT(H42,"0")&"</td>"& "</tr>" -> <tr><td class="dataright">41</td><td class="dataleft"><a href="set03\tsr\tsr_january_1,_1925_-_january_8,_1931\births\sorvik,_male_birth_to_harold_august_11,_1927_p4_tsr.pdf">Sorvik</a></td><td class="dataleft"></td><td class="dataleft">Harold</td><td class="datacenter">M</td><td class="dataleft">August&nbsp;11,&nbsp;1927</td><td class="dataleft">The&nbsp;Sutton&nbsp;Reporter</td><td class="datacenter">4</td></tr> | V42: =LEN(D42) -> 6
A43: =OFFSET(A43,-1,0)+1 -> 42 | B43: Melgard | D43: Fred | E43: M | F43: 1927-08-18 | G43: The&nbsp;Sutton&nbsp;Reporter | H43: 4 | I43: 34 | J43: 916 | K43: melgard,_male_birth_to_fred_august_18,_1927_p4_tsr.pdf | L43: set03\tsr\tsr_january_1,_1925_-_january_8,_1931\births | O43: =YEAR(F43) -> 1927 | P43: 1927 | Q43: =TEXT(F43,"mmmm") -> August | R43: =MONTH(F43) -> 8 | S43: =R43 -> 8 | T43: =DAY(F43) -> 18 | U43: ="<tr><td class="&""""&"dataright"&""""&">"& TEXT(A43,"0")&"</td><td class="&""""&"dataleft"&""""&">"& "<a href="&""""&L43&"\"&K43&""""&">"&B43&"</a></td><td class="&"""dataleft"">"& TEXT(C43,"")&"</td><td class="&""""&"dataleft"&""""&">"& TEXT(D43,"")&"</td><td class="&""""&"datacenter"&""""&">"& TEXT(E43,"")&"</td><td class="&""""&"dataleft"&""""&">"& TEXT(Q43,"")&"&nbsp;"&T43&",&nbsp;"&O43&"</td><td class="&""""&"dataleft"&""""&">"& TEXT(G43,"0.0")&"</td><td class="&""""&"datacenter"&""""&">"& TEXT(H43,"0")&"</td>"& "</tr>" -> <tr><td class="dataright">42</td><td class="dataleft"><a href="set03\tsr\tsr_january_1,_1925_-_january_8,_1931\births\melgard,_male_birth_to_fred_august_18,_1927_p4_tsr.pdf">Melgard</a></td><td class="dataleft"></td><td class="dataleft">Fred</td><td class="datacenter">M</td><td class="dataleft">August&nbsp;18,&nbsp;1927</td><td class="dataleft">The&nbsp;Sutton&nbsp;Reporter</td><td class="datacenter">4</td></tr> | V43: =LEN(D43) -> 4
A44: =OFFSET(A44,-1,0)+1 -> 43 | B44: Anderson | D44: Arnold | E44: M | F44: 1927-09-01 | G44: The&nbsp;Sutton&nbsp;Reporter | H44: 4 | I44: 34 | J44: 878 | K44: anderson,_male_birth_to_arnold_september_1,_1927_p4_tsr.pdf | L44: set03\tsr\tsr_january_1,_1925_-_january_8,_1931\births | O44: =YEAR(F44) -> 1927 | P44: 1927 | Q44: =TEXT(F44,"mmmm") -> September | R44: =MONTH(F44) -> 9 | S44: =R44 -> 9 | T44: =DAY(F44) -> 1 | U44: ="<tr><td class="&""""&"dataright"&""""&">"& TEXT(A44,"0")&"</td><td class="&""""&"dataleft"&""""&">"& "<a href="&""""&L44&"\"&K44&""""&">"&B44&"</a></td><td class="&"""dataleft"">"& TEXT(C44,"")&"</td><td class="&""""&"dataleft"&""""&">"& TEXT(D44,"")&"</td><td class="&""""&"datacenter"&""""&">"& TEXT(E44,"")&"</td><td class="&""""&"dataleft"&""""&">"& TEXT(Q44,"")&"&nbsp;"&T44&",&nbsp;"&O44&"</td><td class="&""""&"dataleft"&""""&">"& TEXT(G44,"0.0")&"</td><td class="&""""&"datacenter"&""""&">"& TEXT(H44,"0")&"</td>"& "</tr>" -> <tr><td class="dataright">43</td><td class="dataleft"><a href="set03\tsr\tsr_january_1,_1925_-_january_8,_1931\births\anderson,_male_birth_to_arnold_september_1,_1927_p4_tsr.pdf">Anderson</a></td><td class="dataleft"></td><td class="dataleft">Arnold</td><td class="datacenter">M</td><td class="dataleft">September&nbsp;1,&nbsp;1927</td><td class="dataleft">The&nbsp;Sutton&nbsp;Reporter</td><td class="datacenter">4</td></tr> | V44: =LEN(D44) -> 6
A45: =OFFSET(A45,-1,0)+1 -> 44 | B45: Ernst | D45: Chas | E45: F | F45: 1926-01-21 | G45: The&nbsp;Sutton&nbsp;Reporter | H45: 4 | I45: 34 | J45: 889 | K45: ernst,_female_birth_to_chas_january_21,_1926_p4_tsr.pdf | L45: set03\tsr\tsr_january_1,_1925_-_january_8,_1931\births | O45: =YEAR(F45) -> 1926 | P45: 1926 | Q45: =TEXT(F45,"mmmm") -> January | R45: =MONTH(F45) -> 1 | S45: =R45 -> 1 | T45: =DAY(F45) -> 21 | U45: ="<tr><td class="&""""&"dataright"&""""&">"& TEXT(A45,"0")&"</td><td class="&""""&"dataleft"&""""&">"& "<a href="&""""&L45&"\"&K45&""""&">"&B45&"</a></td><td class="&"""dataleft"">"& TEXT(C45,"")&"</td><td class="&""""&"dataleft"&""""&">"& TEXT(D45,"")&"</td><td class="&""""&"datacenter"&""""&">"& TEXT(E45,"")&"</td><td class="&""""&"dataleft"&""""&">"& TEXT(Q45,"")&"&nbsp;"&T45&",&nbsp;"&O45&"</td><td class="&""""&"dataleft"&""""&">"& TEXT(G45,"0.0")&"</td><td class="&""""&"datacenter"&""""&">"& TEXT(H45,"0")&"</td>"& "</tr>" -> <tr><td class="dataright">44</td><td class="dataleft"><a href="set03\tsr\tsr_january_1,_1925_-_january_8,_1931\births\ernst,_female_birth_to_chas_january_21,_1926_p4_tsr.pdf">Ernst</a></td><td class="dataleft"></td><td class="dataleft">Chas</td><td class="datacenter">F</td><td class="dataleft">January&nbsp;21,&nbsp;1926</td><td class="dataleft">The&nbsp;Sutton&nbsp;Reporter</td><td class="datacenter">4</td></tr> | V45: =LEN(D45) -> 4
A46: =OFFSET(A46,-1,0)+1 -> 45 | B46: Boisjolie | D46: A. R. | E46: F | F46: 1926-02-25 | G46: The&nbsp;Sutton&nbsp;Reporter | H46: 4 | I46: 34 | J46: 882 | K46: boisjolie,_female_birth_to_a_r_february_25,_1926_p4_tsr.pdf | L46: set03\tsr\tsr_january_1,_1925_-_january_8,_1931\births | O46: =YEAR(F46) -> 1926 | P46: 1926 | Q46: =TEXT(F46,"mmmm") -> February | R46: =MONTH(F46) -> 2 | S46: =R46 -> 2 | T46: =DAY(F46) -> 25 | U46: ="<tr><td class="&""""&"dataright"&""""&">"& TEXT(A46,"0")&"</td><td class="&""""&"dataleft"&""""&">"& "<a href="&""""&L46&"\"&K46&""""&">"&B46&"</a></td><td class="&"""dataleft"">"& TEXT(C46,"")&"</td><td class="&""""&"dataleft"&""""&">"& TEXT(D46,"")&"</td><td class="&""""&"datacenter"&""""&">"& TEXT(E46,"")&"</td><td class="&""""&"dataleft"&""""&">"& TEXT(Q46,"")&"&nbsp;"&T46&",&nbsp;"&O46&"</td><td class="&""""&"dataleft"&""""&">"& TEXT(G46,"0.0")&"</td><td class="&""""&"datacenter"&""""&">"& TEXT(H46,"0")&"</td>"& "</tr>" -> <tr><td class="dataright">45</td><td class="dataleft"><a href="set03\tsr\tsr_january_1,_1925_-_january_8,_1931\births\boisjolie,_female_birth_to_a_r_february_25,_1926_p4_tsr.pdf">Boisjolie</a></td><td class="dataleft"></td><td class="dataleft">A. R.</td><td class="datacenter">F</td><td class="dataleft">February&nbsp;25,&nbsp;1926</td><td class="dataleft">The&nbsp;Sutton&nbsp;Reporter</td><td class="datacenter">4</td></tr> | V46: =LEN(D46) -> 5
A47: =OFFSET(A47,-1,0)+1 -> 46 | B47: Dahl | D47: Joe | F47: 1926-02-25 | G47: The&nbsp;Sutton&nbsp;Reporter | H47: 4 | I47: 34 | J47: 886 | K47: dahl,_birth_to_joe_of_litchville_february_25,_1926_p4_tsr.pdf | L47: set03\tsr\tsr_january_1,_1925_-_january_8,_1931\births | O47: =YEAR(F47) -> 1926 | P47: 1926 | Q47: =TEXT(F47,"mmmm") -> February | R47: =MONTH(F47) -> 2 | S47: =R47 -> 2 | T47: =DAY(F47) -> 25 | U47: ="<tr><td class="&""""&"dataright"&""""&">"& TEXT(A47,"0")&"</td><td class="&""""&"dataleft"&""""&">"& "<a href="&""""&L47&"\"&K47&""""&">"&B47&"</a></td><td class="&"""dataleft"">"& TEXT(C47,"")&"</td><td class="&""""&"dataleft"&""""&">"& TEXT(D47,"")&"</td><td class="&""""&"datacenter"&""""&">"& TEXT(E47,"")&"</td><td class="&""""&"dataleft"&""""&">"& TEXT(Q47,"")&"&nbsp;"&T47&",&nbsp;"&O47&"</td><td class="&""""&"dataleft"&""""&">"& TEXT(G47,"0.0")&"</td><td class="&""""&"datacenter"&""""&">"& TEXT(H47,"0")&"</td>"& "</tr>" -> <tr><td class="dataright">46</td><td class="dataleft"><a href="set03\tsr\tsr_january_1,_1925_-_january_8,_1931\births\dahl,_birth_to_joe_of_litchville_february_25,_1926_p4_tsr.pdf">Dahl </a></td><td class="dataleft"></td><td class="dataleft">Joe</td><td class="datacenter"></td><td class="dataleft">February&nbsp;25,&nbsp;1926</td><td class="dataleft">The&nbsp;Sutton&nbsp;Reporter</td><td class="datacenter">4</td></tr> | V47: =LEN(D47) -> 3
A48: =OFFSET(A48,-1,0)+1 -> 47 | B48: Malde | D48: Olaf | E48: F | F48: 1926-03-18 | G48: The&nbsp;Sutton&nbsp;Reporter | H48: 4 | I48: 34 | J48: 914 | K48: malde,_female_birth_to_olaf_march_18,_1926_p4_tsr.pdf | L48: set03\tsr\tsr_january_1,_1925_-_january_8,_1931\births | O48: =YEAR(F48) -> 1926 | P48: 1926 | Q48: =TEXT(F48,"mmmm") -> March | R48: =MONTH(F48) -> 3 | S48: =R48 -> 3 | T48: =DAY(F48) -> 18 | U48: ="<tr><td class="&""""&"dataright"&""""&">"& TEXT(A48,"0")&"</td><td class="&""""&"dataleft"&""""&">"& "<a href="&""""&L48&"\"&K48&""""&">"&B48&"</a></td><td class="&"""dataleft"">"& TEXT(C48,"")&"</td><td class="&""""&"dataleft"&""""&">"& TEXT(D48,"")&"</td><td class="&""""&"datacenter"&""""&">"& TEXT(E48,"")&"</td><td class="&""""&"dataleft"&""""&">"& TEXT(Q48,"")&"&nbsp;"&T48&",&nbsp;"&O48&"</td><td class="&""""&"dataleft"&""""&">"& TEXT(G48,"0.0")&"</td><td class="&""""&"datacenter"&""""&">"& TEXT(H48,"0")&"</td>"& "</tr>" -> <tr><td class="dataright">47</td><td class="dataleft"><a href="set03\tsr\tsr_january_1,_1925_-_january_8,_1931\births\malde,_female_birth_to_olaf_march_18,_1926_p4_tsr.pdf">Malde</a></td><td class="dataleft"></td><td class="dataleft">Olaf</td><td class="datacenter">F</td><td class="dataleft">March&nbsp;18,&nbsp;1926</td><td class="dataleft">The&nbsp;Sutton&nbsp;Reporter</td><td class="datacenter">4</td></tr> | V48: =LEN(D48) -> 4
A49: =OFFSET(A49,-1,0)+1 -> 48 | B49: Crommett | D49: E. A. | E49: F | F49: 1926-04-08 | G49: The&nbsp;Sutton&nbsp;Reporter | H49: 4 | I49: 34 | J49: 884 | K49: crommett,_female_birth_to_e_a_april_8,_1926_p4_tsr.pdf | L49: set03\tsr\tsr_january_1,_1925_-_january_8,_1931\births | O49: =YEAR(F49) -> 1926 | P49: 1926 | Q49: =TEXT(F49,"mmmm") -> April | R49: =MONTH(F49) -> 4 | S49: =R49 -> 4 | T49: =DAY(F49) -> 8 | U49: ="<tr><td class="&""""&"dataright"&""""&">"& TEXT(A49,"0")&"</td><td class="&""""&"dataleft"&""""&">"& "<a href="&""""&L49&"\"&K49&""""&">"&B49&"</a></td><td class="&"""dataleft"">"& TEXT(C49,"")&"</td><td class="&""""&"dataleft"&""""&">"& TEXT(D49,"")&"</td><td class="&""""&"datacenter"&""""&">"& TEXT(E49,"")&"</td><td class="&""""&"dataleft"&""""&">"& TEXT(Q49,"")&"&nbsp;"&T49&",&nbsp;"&O49&"</td><td class="&""""&"dataleft"&""""&">"& TEXT(G49,"0.0")&"</td><td class="&""""&"datacenter"&""""&">"& TEXT(H49,"0")&"</td>"& "</tr>" -> <tr><td class="dataright">48</td><td class="dataleft"><a href="set03\tsr\tsr_january_1,_1925_-_january_8,_1931\births\crommett,_female_birth_to_e_a_april_8,_1926_p4_tsr.pdf">Crommett</a></td><td class="dataleft"></td><td class="dataleft">E. A.</td><td class="datacenter">F</td><td class="dataleft">April&nbsp;8,&nbsp;1926</td><td class="dataleft">The&nbsp;Sutton&nbsp;Reporter</td><td class="datacenter">4</td></tr> | V49: =LEN(D49) -> 5
A50: =OFFSET(A50,-1,0)+1 -> 49 | B50: Haugland | D50: Einor | E50: M | F50: 1926-04-15 | G50: The&nbsp;Sutton&nbsp;Reporter | H50: 4 | I50: 34 | J50: 901 | K50: haugland,_male_birth_to_einor_april_15,_1926_p4_tsr.pdf | L50: set03\tsr\tsr_january_1,_1925_-_january_8,_1931\births | O50: =YEAR(F50) -> 1926 | P50: 1926 | Q50: =TEXT(F50,"mmmm") -> April | R50: =MONTH(F50) -> 4 | S50: =R50 -> 4 | T50: =DAY(F50) -> 15 | U50: ="<tr><td class="&""""&"dataright"&""""&">"& TEXT(A50,"0")&"</td><td class="&""""&"dataleft"&""""&">"& "<a href="&""""&L50&"\"&K50&""""&">"&B50&"</a></td><td class="&"""dataleft"">"& TEXT(C50,"")&"</td><td class="&""""&"dataleft"&""""&">"& TEXT(D50,"")&"</td><td class="&""""&"datacenter"&""""&">"& TEXT(E50,"")&"</td><td class="&""""&"dataleft"&""""&">"& TEXT(Q50,"")&"&nbsp;"&T50&",&nbsp;"&O50&"</td><td class="&""""&"dataleft"&""""&">"& TEXT(G50,"0.0")&"</td><td class="&""""&"datacenter"&""""&">"& TEXT(H50,"0")&"</td>"& "</tr>" -> <tr><td class="dataright">49</td><td class="dataleft"><a href="set03\tsr\tsr_january_1,_1925_-_january_8,_1931\births\haugland,_male_birth_to_einor_april_15,_1926_p4_tsr.pdf">Haugland</a></td><td class="dataleft"></td><td class="dataleft">Einor</td><td class="datacenter">M</td><td class="dataleft">April&nbsp;15,&nbsp;1926</td><td class="dataleft">The&nbsp;Sutton&nbsp;Reporter</td><td class="datacenter">4</td></tr> | V50: =LEN(D50) -> 5
A51: =OFFSET(A51,-1,0)+1 -> 50 | B51: DeForge | D51: A. B. | E51: F | F51: 1926-05-06 | G51: The&nbsp;Sutton&nbsp;Reporter | H51: 4 | I51: 34 | J51: 887 | K51: de_forge,_female_birth_to_a_b_may_6,_1926_p4_tsr.pdf | L51: set03\tsr\tsr_january_1,_1925_-_january_8,_1931\births | O51: =YEAR(F51) -> 1926 | P51: 1926 | Q51: =TEXT(F51,"mmmm") -> May | R51: =MONTH(F51) -> 5 | S51: =R51 -> 5 | T51: =DAY(F51) -> 6 | U51: ="<tr><td class="&""""&"dataright"&""""&">"& TEXT(A51,"0")&"</td><td class="&""""&"dataleft"&""""&">"& "<a href="&""""&L51&"\"&K51&""""&">"&B51&"</a></td><td class="&"""dataleft"">"& TEXT(C51,"")&"</td><td class="&""""&"dataleft"&""""&">"& TEXT(D51,"")&"</td><td class="&""""&"datacenter"&""""&">"& TEXT(E51,"")&"</td><td class="&""""&"dataleft"&""""&">"& TEXT(Q51,"")&"&nbsp;"&T51&",&nbsp;"&O51&"</td><td class="&""""&"dataleft"&""""&">"& TEXT(G51,"0.0")&"</td><td class="&""""&"datacenter"&""""&">"& TEXT(H51,"0")&"</td>"& "</tr>" -> <tr><td class="dataright">50</td><td class="dataleft"><a href="set03\tsr\tsr_january_1,_1925_-_january_8,_1931\births\de_forge,_female_birth_to_a_b_may_6,_1926_p4_tsr.pdf">DeForge</a></td><td class="dataleft"></td><td class="dataleft">A. B.</td><td class="datacenter">F</td><td class="dataleft">May&nbsp;6,&nbsp;1926</td><td class="dataleft">The&nbsp;Sutton&nbsp;Reporter</td><td class="datacenter">4</td></tr> | V51: =LEN(D51) -> 5
A52: =OFFSET(A52,-1,0)+1 -> 51 | B52: Johnston | D52: Fred | E52: F | F52: 1926-07-29 | G52: The&nbsp;Sutton&nbsp;Reporter | H52: 4 | I52: 34 | J52: 910 | K52: johnston,_female_birth_to_fred_july_29,_1926_p4_tsr.pdf | L52: set03\tsr\tsr_january_1,_1925_-_january_8,_1931\births | O52: =YEAR(F52) -> 1926 | P52: 1926 | Q52: =TEXT(F52,"mmmm") -> July | R52: =MONTH(F52) -> 7 | S52: =R52 -> 7 | T52: =DAY(F52) -> 29 | U52: ="<tr><td class="&""""&"dataright"&""""&">"& TEXT(A52,"0")&"</td><td class="&""""&"dataleft"&""""&">"& "<a href="&""""&L52&"\"&K52&""""&">"&B52&"</a></td><td class="&"""dataleft"">"& TEXT(C52,"")&"</td><td class="&""""&"dataleft"&""""&">"& TEXT(D52,"")&"</td><td class="&""""&"datacenter"&""""&">"& TEXT(E52,"")&"</td><td class="&""""&"dataleft"&""""&">"& TEXT(Q52,"")&"&nbsp;"&T52&",&nbsp;"&O52&"</td><td class="&""""&"dataleft"&""""&">"& TEXT(G52,"0.0")&"</td><td class="&""""&"datacenter"&""""&">"& TEXT(H52,"0")&"</td>"& "</tr>" -> <tr><td class="dataright">51</td><td class="dataleft"><a href="set03\tsr\tsr_january_1,_1925_-_january_8,_1931\births\johnston,_female_birth_to_fred_july_29,_1926_p4_tsr.pdf">Johnston</a></td><td class="dataleft"></td><td class="dataleft">Fred</td><td class="datacenter">F</td><td class="dataleft">July&nbsp;29,&nbsp;1926</td><td class="dataleft">The&nbsp;Sutton&nbsp;Reporter</td><td class="datacenter">4</td></tr> | V52: =LEN(D52) -> 4
A53: =OFFSET(A53,-1,0)+1 -> 52 | B53: Root | D53: Dallas | E53: M | F53: 1926-12-23 | G53: The&nbsp;Sutton&nbsp;Reporter | H53: 4 | I53: 34 | J53: 928 | K53: root,_male_birth_to_dallas_december_23,_1926_p4_tsr.pdf | L53: set03\tsr\tsr_january_1,_1925_-_january_8,_1931\births | O53: =YEAR(F53) -> 1926 | P53: 1926 | Q53: =TEXT(F53,"mmmm") -> December | R53: =MONTH(F53) -> 12 | S53: =R53 -> 12 | T53: =DAY(F53) -> 23 | U53: ="<tr><td class="&""""&"dataright"&""""&">"& TEXT(A53,"0")&"</td><td class="&""""&"dataleft"&""""&">"& "<a href="&""""&L53&"\"&K53&""""&">"&B53&"</a></td><td class="&"""dataleft"">"& TEXT(C53,"")&"</td><td class="&""""&"dataleft"&""""&">"& TEXT(D53,"")&"</td><td class="&""""&"datacenter"&""""&">"& TEXT(E53,"")&"</td><td class="&""""&"dataleft"&""""&">"& TEXT(Q53,"")&"&nbsp;"&T53&",&nbsp;"&O53&"</td><td class="&""""&"dataleft"&""""&">"& TEXT(G53,"0.0")&"</td><td class="&""""&"datacenter"&""""&">"& TEXT(H53,"0")&"</td>"& "</tr>" -> <tr><td class="dataright">52</td><td class="dataleft"><a href="set03\tsr\tsr_january_1,_1925_-_january_8,_1931\births\root,_male_birth_to_dallas_december_23,_1926_p4_tsr.pdf">Root</a></td><td class="dataleft"></td><td class="dataleft">Dallas</td><td class="datacenter">M</td><td class="dataleft">December&nbsp;23,&nbsp;1926</td><td class="dataleft">The&nbsp;Sutton&nbsp;Reporter</td><td class="datacenter">4</td></tr> | V53: =LEN(D53) -> 6
A54: =OFFSET(A54,-1,0)+1 -> 53 | B54: Williams | D54: Barry | E54: M | F54: 1925-01-15 | G54: The&nbsp;Sutton&nbsp;Reporter | H54: 1 | I54: 34 | J54: 942 | K54: williams,_male_birth_to_barry_january_15,_1925_p1_tsr.pdf | L54: set03\tsr\tsr_january_1,_1925_-_january_8,_1931\births | O54: =YEAR(F54) -> 1925 | P54: 1925 | Q54: =TEXT(F54,"mmmm") -> January | R54: =MONTH(F54) -> 1 | S54: =R54 -> 1 | T54: =DAY(F54) -> 15 | U54: ="<tr><td class="&""""&"dataright"&""""&">"& TEXT(A54,"0")&"</td><td class="&""""&"dataleft"&""""&">"& "<a href="&""""&L54&"\"&K54&""""&">"&B54&"</a></td><td class="&"""dataleft"">"& TEXT(C54,"")&"</td><td class="&""""&"dataleft"&""""&">"& TEXT(D54,"")&"</td><td class="&""""&"datacenter"&""""&">"& TEXT(E54,"")&"</td><td class="&""""&"dataleft"&""""&">"& TEXT(Q54,"")&"&nbsp;"&T54&",&nbsp;"&O54&"</td><td class="&""""&"dataleft"&""""&">"& TEXT(G54,"0.0")&"</td><td class="&""""&"datacenter"&""""&">"& TEXT(H54,"0")&"</td>"& "</tr>" -> <tr><td class="dataright">53</td><td class="dataleft"><a href="set03\tsr\tsr_january_1,_1925_-_january_8,_1931\births\williams,_male_birth_to_barry_january_15,_1925_p1_tsr.pdf">Williams</a></td><td class="dataleft"></td><td class="dataleft">Barry</td><td class="datacenter">M</td><td class="dataleft">January&nbsp;15,&nbsp;1925</td><td class="dataleft">The&nbsp;Sutton&nbsp;Reporter</td><td class="datacenter">1</td></tr> | V54: =LEN(D54) -> 5
A55: =OFFSET(A55,-1,0)+1 -> 54 | B55: Sutton | D55: Will | E55: F | F55: 1925-04-09 | G55: The&nbsp;Sutton&nbsp;Reporter | H55: 1 | I55: 34 | J55: 937 | K55: sutton,_female_birth_to_will_april_9,_1925_p1_tsr.pdf | L55: set03\tsr\tsr_january_1,_1925_-_january_8,_1931\births | O55: =YEAR(F55) -> 1925 | P55: 1925 | Q55: =TEXT(F55,"mmmm") -> April | R55: =MONTH(F55) -> 4 | S55: =R55 -> 4 | T55: =DAY(F55) -> 9 | U55: ="<tr><td class="&""""&"dataright"&""""&">"& TEXT(A55,"0")&"</td><td class="&""""&"dataleft"&""""&">"& "<a href="&""""&L55&"\"&K55&""""&">"&B55&"</a></td><td class="&"""dataleft"">"& TEXT(C55,"")&"</td><td class="&""""&"dataleft"&""""&">"& TEXT(D55,"")&"</td><td class="&""""&"datacenter"&""""&">"& TEXT(E55,"")&"</td><td class="&""""&"dataleft"&""""&">"& TEXT(Q55,"")&"&nbsp;"&T55&",&nbsp;"&O55&"</td><td class="&""""&"dataleft"&""""&">"& TEXT(G55,"0.0")&"</td><td class="&""""&"datacenter"&""""&">"& TEXT(H55,"0")&"</td>"& "</tr>" -> <tr><td class="dataright">54</td><td class="dataleft"><a href="set03\tsr\tsr_january_1,_1925_-_january_8,_1931\births\sutton,_female_birth_to_will_april_9,_1925_p1_tsr.pdf">Sutton</a></td><td class="dataleft"></td><td class="dataleft">Will</td><td class="datacenter">F</td><td class="dataleft">April&nbsp;9,&nbsp;1925</td><td class="dataleft">The&nbsp;Sutton&nbsp;Reporter</td><td class="datacenter">1</td></tr> | V55: =LEN(D55) -> 4
A56: =OFFSET(A56,-1,0)+1 -> 55 | B56: Root | D56: Dallas | E56: M | F56: 1925-04-16 | G56: The&nbsp;Sutton&nbsp;Reporter | H56: 4 | I56: 34 | J56: 927 | K56: root,_male_birth_to_dallas_april_16,_1925_p4_tsr.pdf | L56: set03\tsr\tsr_january_1,_1925_-_january_8,_1931\births | O56: =YEAR(F56) -> 1925 | P56: 1925 | Q56: =TEXT(F56,"mmmm") -> April | R56: =MONTH(F56) -> 4 | S56: =R56 -> 4 | T56: =DAY(F56) -> 16 | U56: ="<tr><td class="&""""&"dataright"&""""&">"& TEXT(A56,"0")&"</td><td class="&""""&"dataleft"&""""&">"& "<a href="&""""&L56&"\"&K56&""""&">"&B56&"</a></td><td class="&"""dataleft"">"& TEXT(C56,"")&"</td><td class="&""""&"dataleft"&""""&">"& TEXT(D56,"")&"</td><td class="&""""&"datacenter"&""""&">"& TEXT(E56,"")&"</td><td class="&""""&"dataleft"&""""&">"& TEXT(Q56,"")&"&nbsp;"&T56&",&nbsp;"&O56&"</td><td class="&""""&"dataleft"&""""&">"& TEXT(G56,"0.0")&"</td><td class="&""""&"datacenter"&""""&">"& TEXT(H56,"0")&"</td>"& "</tr>" -> <tr><td class="dataright">55</td><td class="dataleft"><a href="set03\tsr\tsr_january_1,_1925_-_january_8,_1931\births\root,_male_birth_to_dallas_april_16,_1925_p4_tsr.pdf">Root</a></td><td class="dataleft"></td><td class="dataleft">Dallas</td><td class="datacenter">M</td><td class="dataleft">April&nbsp;16,&nbsp;1925</td><td class="dataleft">The&nbsp;Sutton&nbsp;Reporter</td><td class="datacenter">4</td></tr> | V56: =LEN(D56) -> 6
A57: =OFFSET(A57,-1,0)+1 -> 56 | B57: Goodnow | D57: Hans | E57: M | F57: 1925-05-14 | G57: The&nbsp;Sutton&nbsp;Reporter | H57: 4 | I57: 34 | J57: 897 | K57: goodnow,_male_birth_to_hans_may_14,_1925_p4_tsr.pdf | L57: set03\tsr\tsr_january_1,_1925_-_january_8,_1931\births | O57: =YEAR(F57) -> 1925 | P57: 1925 | Q57: =TEXT(F57,"mmmm") -> May | R57: =MONTH(F57) -> 5 | S57: =R57 -> 5 | T57: =DAY(F57) -> 14 | U57: ="<tr><td class="&""""&"dataright"&""""&">"& TEXT(A57,"0")&"</td><td class="&""""&"dataleft"&""""&">"& "<a href="&""""&L57&"\"&K57&""""&">"&B57&"</a></td><td class="&"""dataleft"">"& TEXT(C57,"")&"</td><td class="&""""&"dataleft"&""""&">"& TEXT(D57,"")&"</td><td class="&""""&"datacenter"&""""&">"& TEXT(E57,"")&"</td><td class="&""""&"dataleft"&""""&">"& TEXT(Q57,"")&"&nbsp;"&T57&",&nbsp;"&O57&"</td><td class="&""""&"dataleft"&""""&">"& TEXT(G57,"0.0")&"</td><td class="&""""&"datacenter"&""""&">"& TEXT(H57,"0")&"</td>"& "</tr>" -> <tr><td class="dataright">56</td><td class="dataleft"><a href="set03\tsr\tsr_january_1,_1925_-_january_8,_1931\births\goodnow,_male_birth_to_hans_may_14,_1925_p4_tsr.pdf">Goodnow</a></td><td class="dataleft"></td><td class="dataleft">Hans</td><td class="datacenter">M</td><td class="dataleft">May&nbsp;14,&nbsp;1925</td><td class="dataleft">The&nbsp;Sutton&nbsp;Reporter</td><td class="datacenter">4</td></tr> | V57: =LEN(D57) -> 4
A58: =OFFSET(A58,-1,0)+1 -> 57 | B58: Honey | D58: H. S. | E58: M | F58: 1925-06-04 | G58: The&nbsp;Sutton&nbsp;Reporter | H58: 4 | I58: 34 | J58: 906 | K58: honey,_male_birth_to_hs_june_4,_1925_p4_tsr.pdf | L58: set03\tsr\tsr_january_1,_1925_-_january_8,_1931\births | O58: =YEAR(F58) -> 1925 | P58: 1925 | Q58: =TEXT(F58,"mmmm") -> June | R58: =MONTH(F58) -> 6 | S58: =R58 -> 6 | T58: =DAY(F58) -> 4 | U58: ="<tr><td class="&""""&"dataright"&""""&">"& TEXT(A58,"0")&"</td><td class="&""""&"dataleft"&""""&">"& "<a href="&""""&L58&"\"&K58&""""&">"&B58&"</a></td><td class="&"""dataleft"">"& TEXT(C58,"")&"</td><td class="&""""&"dataleft"&""""&">"& TEXT(D58,"")&"</td><td class="&""""&"datacenter"&""""&">"& TEXT(E58,"")&"</td><td class="&""""&"dataleft"&""""&">"& TEXT(Q58,"")&"&nbsp;"&T58&",&nbsp;"&O58&"</td><td class="&""""&"dataleft"&""""&">"& TEXT(G58,"0.0")&"</td><td class="&""""&"datacenter"&""""&">"& TEXT(H58,"0")&"</td>"& "</tr>" -> <tr><td class="dataright">57</td><td class="dataleft"><a href="set03\tsr\tsr_january_1,_1925_-_january_8,_1931\births\honey,_male_birth_to_hs_june_4,_1925_p4_tsr.pdf">Honey</a></td><td class="dataleft"></td><td class="dataleft">H. S.</td><td class="datacenter">M</td><td class="dataleft">June&nbsp;4,&nbsp;1925</td><td class="dataleft">The&nbsp;Sutton&nbsp;Reporter</td><td class="datacenter">4</td></tr> | V58: =LEN(D58) -> 5
A59: =OFFSET(A59,-1,0)+1 -> 58 | B59: Biggerstaff | D59: P. A. | E59: F | F59: 1925-07-02 | G59: The&nbsp;Sutton&nbsp;Reporter | H59: 1 | I59: 34 | J59: 881 | K59: biggerstaff,_female_birth_to_p_a_july_2,_1925_p1_tsr.pdf | L59: set03\tsr\tsr_january_1,_1925_-_january_8,_1931\births | O59: =YEAR(F59) -> 1925 | P59: 1925 | Q59: =TEXT(F59,"mmmm") -> July | R59: =MONTH(F59) -> 7 | S59: =R59 -> 7 | T59: =DAY(F59) -> 2 | U59: ="<tr><td class="&""""&"dataright"&""""&">"& TEXT(A59,"0")&"</td><td class="&""""&"dataleft"&""""&">"& "<a href="&""""&L59&"\"&K59&""""&">"&B59&"</a></td><td class="&"""dataleft"">"& TEXT(C59,"")&"</td><td class="&""""&"dataleft"&""""&">"& TEXT(D59,"")&"</td><td class="&""""&"datacenter"&""""&">"& TEXT(E59,"")&"</td><td class="&""""&"dataleft"&""""&">"& TEXT(Q59,"")&"&nbsp;"&T59&",&nbsp;"&O59&"</td><td class="&""""&"dataleft"&""""&">"& TEXT(G59,"0.0")&"</td><td class="&""""&"datacenter"&""""&">"& TEXT(H59,"0")&"</td>"& "</tr>" -> <tr><td class="dataright">58</td><td class="dataleft"><a href="set03\tsr\tsr_january_1,_1925_-_january_8,_1931\births\biggerstaff,_female_birth_to_p_a_july_2,_1925_p1_tsr.pdf">Biggerstaff</a></td><td class="dataleft"></td><td class="dataleft">P. A.</td><td class="datacenter">F</td><td class="dataleft">July&nbsp;2,&nbsp;1925</td><td class="dataleft">The&nbsp;Sutton&nbsp;Reporter</td><td class="datacenter">1</td></tr> | V59: =LEN(D59) -> 5
A60: =OFFSET(A60,-1,0)+1 -> 59 | B60: Nyberg | D60: Nels | E60: M | F60: 1925-07-30 | G60: The&nbsp;Sutton&nbsp;Reporter | H60: 4 | I60: 34 | J60: 919 | K60: nyberg,_male_birth_to_nels_july_30,_1925_p4_tsr.pdf | L60: set03\tsr\tsr_january_1,_1925_-_january_8,_1931\births | O60: =YEAR(F60) -> 1925 | P60: 1925 | Q60: =TEXT(F60,"mmmm") -> July | R60: =MONTH(F60) -> 7 | S60: =R60 -> 7 | T60: =DAY(F60) -> 30 | U60: ="<tr><td class="&""""&"dataright"&""""&">"& TEXT(A60,"0")&"</td><td class="&""""&"dataleft"&""""&">"& "<a href="&""""&L60&"\"&K60&""""&">"&B60&"</a></td><td class="&"""dataleft"">"& TEXT(C60,"")&"</td><td class="&""""&"dataleft"&""""&">"& TEXT(D60,"")&"</td><td class="&""""&"datacenter"&""""&">"& TEXT(E60,"")&"</td><td class="&""""&"dataleft"&""""&">"& TEXT(Q60,"")&"&nbsp;"&T60&",&nbsp;"&O60&"</td><td class="&""""&"dataleft"&""""&">"& TEXT(G60,"0.0")&"</td><td class="&""""&"datacenter"&""""&">"& TEXT(H60,"0")&"</td>"& "</tr>" -> <tr><td class="dataright">59</td><td class="dataleft"><a href="set03\tsr\tsr_january_1,_1925_-_january_8,_1931\births\nyberg,_male_birth_to_nels_july_30,_1925_p4_tsr.pdf">Nyberg</a></td><td class="dataleft"></td><td class="dataleft">Nels</td><td class="datacenter">M</td><td class="dataleft">July&nbsp;30,&nbsp;1925</td><td class="dataleft">The&nbsp;Sutton&nbsp;Reporter</td><td class="datacenter">4</td></tr> | V60: =LEN(D60) -> 4
A61: =OFFSET(A61,-1,0)+1 -> 60 | B61: Saint | D61: Herman | E61: F | F61: 1925-07-30 | G61: The&nbsp;Sutton&nbsp;Reporter | H61: 4 | I61: 34 | J61: 930 | K61: saint,_female_birth_to_herman_july_30,_1925_p4_tsr.pdf | L61: set03\tsr\tsr_january_1,_1925_-_january_8,_1931\births | O61: =YEAR(F61) -> 1925 | P61: 1925 | Q61: =TEXT(F61,"mmmm") -> July | R61: =MONTH(F61) -> 7 | S61: =R61 -> 7 | T61: =DAY(F61) -> 30 | U61: ="<tr><td class="&""""&"dataright"&""""&">"& TEXT(A61,"0")&"</td><td class="&""""&"dataleft"&""""&">"& "<a href="&""""&L61&"\"&K61&""""&">"&B61&"</a></td><td class="&"""dataleft"">"& TEXT(C61,"")&"</td><td class="&""""&"dataleft"&""""&">"& TEXT(D61,"")&"</td><td class="&""""&"datacenter"&""""&">"& TEXT(E61,"")&"</td><td class="&""""&"dataleft"&""""&">"& TEXT(Q61,"")&"&nbsp;"&T61&",&nbsp;"&O61&"</td><td class="&""""&"dataleft"&""""&">"& TEXT(G61,"0.0")&"</td><td class="&""""&"datacenter"&""""&">"& TEXT(H61,"0")&"</td>"& "</tr>" -> <tr><td class="dataright">60</td><td class="dataleft"><a href="set03\tsr\tsr_january_1,_1925_-_january_8,_1931\births\saint,_female_birth_to_herman_july_30,_1925_p4_tsr.pdf">Saint</a></td><td class="dataleft"></td><td class="dataleft">Herman</td><td class="datacenter">F</td><td class="dataleft">July&nbsp;30,&nbsp;1925</td><td class="dataleft">The&nbsp;Sutton&nbsp;Reporter</td><td class="datacenter">4</td></tr> | V61: =LEN(D61) -> 6
A62: =OFFSET(A62,-1,0)+1 -> 61 | B62: Lowe | D62: Emil | E62: M | F62: 1925-09-03 | G62: The&nbsp;Sutton&nbsp;Reporter | H62: 4 | I62: 34 | J62: 913 | K62: lowe,_male_birth_to_emil_september_3,_1925_p4_tsr.pdf | L62: set03\tsr\tsr_january_1,_1925_-_january_8,_1931\births | O62: =YEAR(F62) -> 1925 | P62: 1925 | Q62: =TEXT(F62,"mmmm") -> September | R62: =MONTH(F62) -> 9 | S62: =R62 -> 9 | T62: =DAY(F62) -> 3 | U62: ="<tr><td class="&""""&"dataright"&""""&">"& TEXT(A62,"0")&"</td><td class="&""""&"dataleft"&""""&">"& "<a href="&""""&L62&"\"&K62&""""&">"&B62&"</a></td><td class="&"""dataleft"">"& TEXT(C62,"")&"</td><td class="&""""&"dataleft"&""""&">"& TEXT(D62,"")&"</td><td class="&""""&"datacenter"&""""&">"& TEXT(E62,"")&"</td><td class="&""""&"dataleft"&""""&">"& TEXT(Q62,"")&"&nbsp;"&T62&",&nbsp;"&O62&"</td><td class="&""""&"dataleft"&""""&">"& TEXT(G62,"0.0")&"</td><td class="&""""&"datacenter"&""""&">"& TEXT(H62,"0")&"</td>"& "</tr>" -> <tr><td class="dataright">61</td><td class="dataleft"><a href="set03\tsr\tsr_january_1,_1925_-_january_8,_1931\births\lowe,_male_birth_to_emil_september_3,_1925_p4_tsr.pdf">Lowe</a></td><td class="dataleft"></td><td class="dataleft">Emil</td><td class="datacenter">M</td><td class="dataleft">September&nbsp;3,&nbsp;1925</td><td class="dataleft">The&nbsp;Sutton&nbsp;Reporter</td><td class="datacenter">4</td></tr> | V62: =LEN(D62) -> 4
A63: =OFFSET(A63,-1,0)+1 -> 62 | B63: Fadness | D63: Severt | E63: F | F63: 1925-10-01 | G63: The&nbsp;Sutton&nbsp;Reporter | H63: 4 | I63: 34 | J63: 891 | K63: fadness,_female_birth_to_severt_october_1,_1925_p4_tsr.pdf | L63: set03\tsr\tsr_january_1,_1925_-_january_8,_1931\births | O63: =YEAR(F63) -> 1925 | P63: 1925 | Q63: =TEXT(F63,"mmmm") -> October | R63: =MONTH(F63) -> 10 | S63: =R63 -> 10 | T63: =DAY(F63) -> 1 | U63: ="<tr><td class="&""""&"dataright"&""""&">"& TEXT(A63,"0")&"</td><td class="&""""&"dataleft"&""""&">"& "<a href="&""""&L63&"\"&K63&""""&">"&B63&"</a></td><td class="&"""dataleft"">"& TEXT(C63,"")&"</td><td class="&""""&"dataleft"&""""&">"& TEXT(D63,"")&"</td><td class="&""""&"datacenter"&""""&">"& TEXT(E63,"")&"</td><td class="&""""&"dataleft"&""""&">"& TEXT(Q63,"")&"&nbsp;"&T63&",&nbsp;"&O63&"</td><td class="&""""&"dataleft"&""""&">"& TEXT(G63,"0.0")&"</td><td class="&""""&"datacenter"&""""&">"& TEXT(H63,"0")&"</td>"& "</tr>" -> <tr><td class="dataright">62</td><td class="dataleft"><a href="set03\tsr\tsr_january_1,_1925_-_january_8,_1931\births\fadness,_female_birth_to_severt_october_1,_1925_p4_tsr.pdf">Fadness</a></td><td class="dataleft"></td><td class="dataleft">Severt</td><td class="datacenter">F</td><td class="dataleft">October&nbsp;1,&nbsp;1925</td><td class="dataleft">The&nbsp;Sutton&nbsp;Reporter</td><td class="datacenter">4</td></tr> | V63: =LEN(D63) -> 6
A64: =OFFSET(A64,-1,0)+1 -> 63 | B64: Smith | D64: Forrest | E64: M | F64: 1925-10-22 | G64: The&nbsp;Sutton&nbsp;Reporter | H64: 4 | I64: 34 | J64: 932 | K64: smith,_male_birth_to_forrest_october_22,_1925_p4_tsr.pdf | L64: set03\tsr\tsr_january_1,_1925_-_january_8,_1931\births | O64: =YEAR(F64) -> 1925 | P64: 1925 | Q64: =TEXT(F64,"mmmm") -> October | R64: =MONTH(F64) -> 10 | S64: =R64 -> 10 | T64: =DAY(F64) -> 22 | U64: ="<tr><td class="&""""&"dataright"&""""&">"& TEXT(A64,"0")&"</td><td class="&""""&"dataleft"&""""&">"& "<a href="&""""&L64&"\"&K64&""""&">"&B64&"</a></td><td class="&"""dataleft"">"& TEXT(C64,"")&"</td><td class="&""""&"dataleft"&""""&">"& TEXT(D64,"")&"</td><td class="&""""&"datacenter"&""""&">"& TEXT(E64,"")&"</td><td class="&""""&"dataleft"&""""&">"& TEXT(Q64,"")&"&nbsp;"&T64&",&nbsp;"&O64&"</td><td class="&""""&"dataleft"&""""&">"& TEXT(G64,"0.0")&"</td><td class="&""""&"datacenter"&""""&">"& TEXT(H64,"0")&"</td>"& "</tr>" -> <tr><td class="dataright">63</td><td class="dataleft"><a href="set03\tsr\tsr_january_1,_1925_-_january_8,_1931\births\smith,_male_birth_to_forrest_october_22,_1925_p4_tsr.pdf">Smith</a></td><td class="dataleft"></td><td class="dataleft">Forrest</td><td class="datacenter">M</td><td class="dataleft">October&nbsp;22,&nbsp;1925</td><td class="dataleft">The&nbsp;Sutton&nbsp;Reporter</td><td class="datacenter">4</td></tr> | V64: =LEN(D64) -> 7
A65: =OFFSET(A65,-1,0)+1 -> 64 | B65: Kirkeby | D65: John | E65: M | F65: 1925-11-05 | G65: The&nbsp;Sutton&nbsp;Reporter | H65: 4 | I65: 34 | J65: 911 | K65: kirkeby,_male_birth_to_john_november_5,_1925_p4_tsr.pdf | L65: set03\tsr\tsr_january_1,_1925_-_january_8,_1931\births | O65: =YEAR(F65) -> 1925 | P65: 1925 | Q65: =TEXT(F65,"mmmm") -> November | R65: =MONTH(F65) -> 11 | S65: =R65 -> 11 | T65: =DAY(F65) -> 5 | U65: ="<tr><td class="&""""&"dataright"&""""&">"& TEXT(A65,"0")&"</td><td class="&""""&"dataleft"&""""&">"& "<a href="&""""&L65&"\"&K65&""""&">"&B65&"</a></td><td class="&"""dataleft"">"& TEXT(C65,"")&"</td><td class="&""""&"dataleft"&""""&">"& TEXT(D65,"")&"</td><td class="&""""&"datacenter"&""""&">"& TEXT(E65,"")&"</td><td class="&""""&"dataleft"&""""&">"& TEXT(Q65,"")&"&nbsp;"&T65&",&nbsp;"&O65&"</td><td class="&""""&"dataleft"&""""&">"& TEXT(G65,"0.0")&"</td><td class="&""""&"datacenter"&""""&">"& TEXT(H65,"0")&"</td>"& "</tr>" -> <tr><td class="dataright">64</td><td class="dataleft"><a href="set03\tsr\tsr_january_1,_1925_-_january_8,_1931\births\kirkeby,_male_birth_to_john_november_5,_1925_p4_tsr.pdf">Kirkeby</a></td><td class="dataleft"></td><td class="dataleft">John</td><td class="datacenter">M</td><td class="dataleft">November&nbsp;5,&nbsp;1925</td><td class="dataleft">The&nbsp;Sutton&nbsp;Reporter</td><td class="datacenter">4</td></tr> | V65: =LEN(D65) -> 4
A66: =OFFSET(A66,-1,0)+1 -> 65 | B66: Smesrud | D66: Selmer | E66: M | F66: 1925-12-10 | G66: The&nbsp;Sutton&nbsp;Reporter | H66: 4 | I66: 34 | J66: 931 | K66: smesrud,_male_birth_to_selmer__december_10,_1925_p4_tsr.pdf | L66: set03\tsr\tsr_january_1,_1925_-_january_8,_1931\births | O66: =YEAR(F66) -> 1925 | P66: 1925 | Q66: =TEXT(F66,"mmmm") -> December | R66: =MONTH(F66) -> 12 | S66: =R66 -> 12 | T66: =DAY(F66) -> 10 | U66: ="<tr><td class="&""""&"dataright"&""""&">"& TEXT(A66,"0")&"</td><td class="&""""&"dataleft"&""""&">"& "<a href="&""""&L66&"\"&K66&""""&">"&B66&"</a></td><td class="&"""dataleft"">"& TEXT(C66,"")&"</td><td class="&""""&"dataleft"&""""&">"& TEXT(D66,"")&"</td><td class="&""""&"datacenter"&""""&">"& TEXT(E66,"")&"</td><td class="&""""&"dataleft"&""""&">"& TEXT(Q66,"")&"&nbsp;"&T66&",&nbsp;"&O66&"</td><td class="&""""&"dataleft"&""""&">"& TEXT(G66,"0.0")&"</td><td class="&""""&"datacenter"&""""&">"& TEXT(H66,"0")&"</td>"& "</tr>" -> <tr><td class="dataright">65</td><td class="dataleft"><a href="set03\tsr\tsr_january_1,_1925_-_january_8,_1931\births\smesrud,_male_birth_to_selmer__december_10,_1925_p4_tsr.pdf">Smesrud</a></td><td class="dataleft"></td><td class="dataleft">Selmer</td><td class="datacenter">M</td><td class="dataleft">December&nbsp;10,&nbsp;1925</td><td class="dataleft">The&nbsp;Sutton&nbsp;Reporter</td><td class="datacenter">4</td></tr> | V66: =LEN(D66) -> 6
A67: =OFFSET(A67,-1,0)+1 -> 66 | B67: Hilliard | C67: Long Story | D67: C. G. | E67: F | F67: 1925-12-31 | G67: The&nbsp;Sutton&nbsp;Reporter | H67: 4 | I67: 34 | J67: 904 | K67: hilliard,_female_birth_to_c_g_(long_story)_december_31,_1925_p4_tsr.pdf | L67: set03\tsr\tsr_january_1,_1925_-_january_8,_1931\births | O67: =YEAR(F67) -> 1925 | P67: 1925 | Q67: =TEXT(F67,"mmmm") -> December | R67: =MONTH(F67) -> 12 | S67: =R67 -> 12 | T67: =DAY(F67) -> 31 | U67: ="<tr><td class="&""""&"dataright"&""""&">"& TEXT(A67,"0")&"</td><td class="&""""&"dataleft"&""""&">"& "<a href="&""""&L67&"\"&K67&""""&">"&B67&"</a></td><td class="&"""dataleft"">"& TEXT(C67,"")&"</td><td class="&""""&"dataleft"&""""&">"& TEXT(D67,"")&"</td><td class="&""""&"datacenter"&""""&">"& TEXT(E67,"")&"</td><td class="&""""&"dataleft"&""""&">"& TEXT(Q67,"")&"&nbsp;"&T67&",&nbsp;"&O67&"</td><td class="&""""&"dataleft"&""""&">"& TEXT(G67,"0.0")&"</td><td class="&""""&"datacenter"&""""&">"& TEXT(H67,"0")&"</td>"& "</tr>" -> <tr><td class="dataright">66</td><td class="dataleft"><a href="set03\tsr\tsr_january_1,_1925_-_january_8,_1931\births\hilliard,_female_birth_to_c_g_(long_story)_december_31,_1925_p4_tsr.pdf">Hilliard</a></td><td class="dataleft">Long Story</td><td class="dataleft">C. G.</td><td class="datacenter">F</td><td class="dataleft">December&nbsp;31,&nbsp;1925</td><td class="dataleft">The&nbsp;Sutton&nbsp;Reporter</td><td class="datacenter">4</td></tr> | V67: =LEN(D67) -> 5
A68: =OFFSET(A68,-1,0)+1 -> 67 | B68: Smith | D68: Forrest | E68: M | F68: 1924-01-17 | G68: The&nbsp;Sutton&nbsp;Reporter | H68: 4 | I68: 33 | J68: 874 | K68: smith,_male_birth_to_forrest_(poor_copy)_january_17,_1924_p4_tsr.pdf | L68: set03\tsr\tsr_august_3,_1922_-_december_25,_1924\birth | O68: =YEAR(F68) -> 1924 | P68: 1924 | Q68: =TEXT(F68,"mmmm") -> January | R68: =MONTH(F68) -> 1 | S68: =R68 -> 1 | T68: =DAY(F68) -> 17 | U68: ="<tr><td class="&""""&"dataright"&""""&">"& TEXT(A68,"0")&"</td><td class="&""""&"dataleft"&""""&">"& "<a href="&""""&L68&"\"&K68&""""&">"&B68&"</a></td><td class="&"""dataleft"">"& TEXT(C68,"")&"</td><td class="&""""&"dataleft"&""""&">"& TEXT(D68,"")&"</td><td class="&""""&"datacenter"&""""&">"& TEXT(E68,"")&"</td><td class="&""""&"dataleft"&""""&">"& TEXT(Q68,"")&"&nbsp;"&T68&",&nbsp;"&O68&"</td><td class="&""""&"dataleft"&""""&">"& TEXT(G68,"0.0")&"</td><td class="&""""&"datacenter"&""""&">"& TEXT(H68,"0")&"</td>"& "</tr>" -> <tr><td class="dataright">67</td><td class="dataleft"><a href="set03\tsr\tsr_august_3,_1922_-_december_25,_1924\birth\smith,_male_birth_to_forrest_(poor_copy)_january_17,_1924_p4_tsr.pdf">Smith</a></td><td class="dataleft"></td><td class="dataleft">Forrest</td><td class="datacenter">M</td><td class="dataleft">January&nbsp;17,&nbsp;1924</td><td class="dataleft">The&nbsp;Sutton&nbsp;Reporter</td><td class="datacenter">4</td></tr> | V68: =LEN(D68) -> 7
A69: =OFFSET(A69,-1,0)+1 -> 68 | B69: Bailey | C69: Baptized | D69: James | E69: F | F69: 1924-02-21 | G69: The&nbsp;Sutton&nbsp;Reporter | H69: 1 | I69: 33 | J69: 850 | K69: bailey,_infant_of_james_baptized_february_21,_1924_p1_tsr.pdf | L69: set03\tsr\tsr_august_3,_1922_-_december_25,_1924\birth | O69: =YEAR(F69) -> 1924 | P69: 1924 | Q69: =TEXT(F69,"mmmm") -> February | R69: =MONTH(F69) -> 2 | S69: =R69 -> 2 | T69: =DAY(F69) -> 21 | U69: ="<tr><td class="&""""&"dataright"&""""&">"& TEXT(A69,"0")&"</td><td class="&""""&"dataleft"&""""&">"& "<a href="&""""&L69&"\"&K69&""""&">"&B69&"</a></td><td class="&"""dataleft"">"& TEXT(C69,"")&"</td><td class="&""""&"dataleft"&""""&">"& TEXT(D69,"")&"</td><td class="&""""&"datacenter"&""""&">"& TEXT(E69,"")&"</td><td class="&""""&"dataleft"&""""&">"& TEXT(Q69,"")&"&nbsp;"&T69&",&nbsp;"&O69&"</td><td class="&""""&"dataleft"&""""&">"& TEXT(G69,"0.0")&"</td><td class="&""""&"datacenter"&""""&">"& TEXT(H69,"0")&"</td>"& "</tr>" -> <tr><td class="dataright">68</td><td class="dataleft"><a href="set03\tsr\tsr_august_3,_1922_-_december_25,_1924\birth\bailey,_infant_of_james_baptized_february_21,_1924_p1_tsr.pdf">Bailey</a></td><td class="dataleft">Baptized</td><td class="dataleft">James</td><td class="datacenter">F</td><td class="dataleft">February&nbsp;21,&nbsp;1924</td><td class="dataleft">The&nbsp;Sutton&nbsp;Reporter</td><td class="datacenter">1</td></tr> | V69: =LEN(D69) -> 5
A70: =OFFSET(A70,-1,0)+1 -> 69 | B70: Nelson | D70: Albert | E70: M | F70: 1924-02-21 | G70: The&nbsp;Sutton&nbsp;Reporter | H70: 1 | I70: 33 | J70: 870 | K70: nelson,_male_birth_to_albert_february_21,_1924_p1_tsr.pdf | L70: set03\tsr\tsr_august_3,_1922_-_december_25,_1924\birth | O70: =YEAR(F70) -> 1924 | P70: 1924 | Q70: =TEXT(F70,"mmmm") -> February | R70: =MONTH(F70) -> 2 | S70: =R70 -> 2 | T70: =DAY(F70) -> 21 | U70: ="<tr><td class="&""""&"dataright"&""""&">"& TEXT(A70,"0")&"</td><td class="&""""&"dataleft"&""""&">"& "<a href="&""""&L70&"\"&K70&""""&">"&B70&"</a></td><td class="&"""dataleft"">"& TEXT(C70,"")&"</td><td class="&""""&"dataleft"&""""&">"& TEXT(D70,"")&"</td><td class="&""""&"datacenter"&""""&">"& TEXT(E70,"")&"</td><td class="&""""&"dataleft"&""""&">"& TEXT(Q70,"")&"&nbsp;"&T70&",&nbsp;"&O70&"</td><td class="&""""&"dataleft"&""""&">"& TEXT(G70,"0.0")&"</td><td class="&""""&"datacenter"&""""&">"& TEXT(H70,"0")&"</td>"& "</tr>" -> <tr><td class="dataright">69</td><td class="dataleft"><a href="set03\tsr\tsr_august_3,_1922_-_december_25,_1924\birth\nelson,_male_birth_to_albert_february_21,_1924_p1_tsr.pdf">Nelson</a></td><td class="dataleft"></td><td class="dataleft">Albert</td><td class="datacenter">M</td><td class="dataleft">February&nbsp;21,&nbsp;1924</td><td class="dataleft">The&nbsp;Sutton&nbsp;Reporter</td><td class="datacenter">1</td></tr> | V70: =LEN(D70) -> 6
A71: =OFFSET(A71,-1,0)+1 -> 70 | B71: Biggerstaff | D71: P. A. | E71: F | F71: 1924-04-17 | G71: The&nbsp;Sutton&nbsp;Reporter | H71: 1 | I71: 33 | J71: 851 | K71: biggerstaff,_female_birth_to_p_a_april_17,_1924_p1_tsr.pdf | L71: set03\tsr\tsr_august_3,_1922_-_december_25,_1924\birth | O71: =YEAR(F71) -> 1924 | P71: 1924 | Q71: =TEXT(F71,"mmmm") -> April | R71: =MONTH(F71) -> 4 | S71: =R71 -> 4 | T71: =DAY(F71) -> 17 | U71: ="<tr><td class="&""""&"dataright"&""""&">"& TEXT(A71,"0")&"</td><td class="&""""&"dataleft"&""""&">"& "<a href="&""""&L71&"\"&K71&""""&">"&B71&"</a></td><td class="&"""dataleft"">"& TEXT(C71,"")&"</td><td class="&""""&"dataleft"&""""&">"& TEXT(D71,"")&"</td><td class="&""""&"datacenter"&""""&">"& TEXT(E71,"")&"</td><td class="&""""&"dataleft"&""""&">"& TEXT(Q71,"")&"&nbsp;"&T71&",&nbsp;"&O71&"</td><td class="&""""&"dataleft"&""""&">"& TEXT(G71,"0.0")&"</td><td class="&""""&"datacenter"&""""&">"& TEXT(H71,"0")&"</td>"& "</tr>" -> <tr><td class="dataright">70</td><td class="dataleft"><a href="set03\tsr\tsr_august_3,_1922_-_december_25,_1924\birth\biggerstaff,_female_birth_to_p_a_april_17,_1924_p1_tsr.pdf">Biggerstaff</a></td><td class="dataleft"></td><td class="dataleft">P. A.</td><td class="datacenter">F</td><td class="dataleft">April&nbsp;17,&nbsp;1924</td><td class="dataleft">The&nbsp;Sutton&nbsp;Reporter</td><td class="datacenter">1</td></tr> | V71: =LEN(D71) -> 5
A72: =OFFSET(A72,-1,0)+1 -> 71 | B72: Hill | D72: H. L. | E72: F | F72: 1924-05-22 | G72: The&nbsp;Sutton&nbsp;Reporter | H72: 4 | I72: 33 | J72: 859 | K72: hill,_female_birth_to_h_l_may_22,_1924_p4_tsr.pdf | L72: set03\tsr\tsr_august_3,_1922_-_december_25,_1924\birth | O72: =YEAR(F72) -> 1924 | P72: 1924 | Q72: =TEXT(F72,"mmmm") -> May | R72: =MONTH(F72) -> 5 | S72: =R72 -> 5 | T72: =DAY(F72) -> 22 | U72: ="<tr><td class="&""""&"dataright"&""""&">"& TEXT(A72,"0")&"</td><td class="&""""&"dataleft"&""""&">"& "<a href="&""""&L72&"\"&K72&""""&">"&B72&"</a></td><td class="&"""dataleft"">"& TEXT(C72,"")&"</td><td class="&""""&"dataleft"&""""&">"& TEXT(D72,"")&"</td><td class="&""""&"datacenter"&""""&">"& TEXT(E72,"")&"</td><td class="&""""&"dataleft"&""""&">"& TEXT(Q72,"")&"&nbsp;"&T72&",&nbsp;"&O72&"</td><td class="&""""&"dataleft"&""""&">"& TEXT(G72,"0.0")&"</td><td class="&""""&"datacenter"&""""&">"& TEXT(H72,"0")&"</td>"& "</tr>" -> <tr><td class="dataright">71</td><td class="dataleft"><a href="set03\tsr\tsr_august_3,_1922_-_december_25,_1924\birth\hill,_female_birth_to_h_l_may_22,_1924_p4_tsr.pdf">Hill</a></td><td class="dataleft"></td><td class="dataleft">H. L.</td><td class="datacenter">F</td><td class="dataleft">May&nbsp;22,&nbsp;1924</td><td class="dataleft">The&nbsp;Sutton&nbsp;Reporter</td><td class="datacenter">4</td></tr> | V72: =LEN(D72) -> 5
A73: =OFFSET(A73,-1,0)+1 -> 72 | B73: Brastrup | D73: Geo | E73: F | F73: 1924-07-03 | G73: The&nbsp;Sutton&nbsp;Reporter | H73: 1 | I73: 33 | J73: 852 | K73: brastrup,_female_birth_to_geo_july_3,_1924_p1_tsr.pdf | L73: set03\tsr\tsr_august_3,_1922_-_december_25,_1924\birth | O73: =YEAR(F73) -> 1924 | P73: 1924 | Q73: =TEXT(F73,"mmmm") -> July | R73: =MONTH(F73) -> 7 | S73: =R73 -> 7 | T73: =DAY(F73) -> 3 | U73: ="<tr><td class="&""""&"dataright"&""""&">"& TEXT(A73,"0")&"</td><td class="&""""&"dataleft"&""""&">"& "<a href="&""""&L73&"\"&K73&""""&">"&B73&"</a></td><td class="&"""dataleft"">"& TEXT(C73,"")&"</td><td class="&""""&"dataleft"&""""&">"& TEXT(D73,"")&"</td><td class="&""""&"datacenter"&""""&">"& TEXT(E73,"")&"</td><td class="&""""&"dataleft"&""""&">"& TEXT(Q73,"")&"&nbsp;"&T73&",&nbsp;"&O73&"</td><td class="&""""&"dataleft"&""""&">"& TEXT(G73,"0.0")&"</td><td class="&""""&"datacenter"&""""&">"& TEXT(H73,"0")&"</td>"& "</tr>" -> <tr><td class="dataright">72</td><td class="dataleft"><a href="set03\tsr\tsr_august_3,_1922_-_december_25,_1924\birth\brastrup,_female_birth_to_geo_july_3,_1924_p1_tsr.pdf">Brastrup</a></td><td class="dataleft"></td><td class="dataleft">Geo </td><td class="datacenter">F</td><td class="dataleft">July&nbsp;3,&nbsp;1924</td><td class="dataleft">The&nbsp;Sutton&nbsp;Reporter</td><td class="datacenter">1</td></tr> | V73: =LEN(D73) -> 4
A74: =OFFSET(A74,-1,0)+1 -> 73 | B74: Fitch | D74: Kenneth | E74: M | F74: 1924-07-03 | G74: The&nbsp;Sutton&nbsp;Reporter | H74: 1 | I74: 33 | J74: 857 | K74: fitch,_male_birth_to_kenneth_july_3,_1924_p1_tsr.pdf | L74: set03\tsr\tsr_august_3,_1922_-_december_25,_1924\birth | O74: =YEAR(F74) -> 1924 | P74: 1924 | Q74: =TEXT(F74,"mmmm") -> July | R74: =MONTH(F74) -> 7 | S74: =R74 -> 7 | T74: =DAY(F74) -> 3 | U74: ="<tr><td class="&""""&"dataright"&""""&">"& TEXT(A74,"0")&"</td><td class="&""""&"dataleft"&""""&">"& "<a href="&""""&L74&"\"&K74&""""&">"&B74&"</a></td><td class="&"""dataleft"">"& TEXT(C74,"")&"</td><td class="&""""&"dataleft"&""""&">"& TEXT(D74,"")&"</td><td class="&""""&"datacenter"&""""&">"& TEXT(E74,"")&"</td><td class="&""""&"dataleft"&""""&">"& TEXT(Q74,"")&"&nbsp;"&T74&",&nbsp;"&O74&"</td><td class="&""""&"dataleft"&""""&">"& TEXT(G74,"0.0")&"</td><td class="&""""&"datacenter"&""""&">"& TEXT(H74,"0")&"</td>"& "</tr>" -> <tr><td class="dataright">73</td><td class="dataleft"><a href="set03\tsr\tsr_august_3,_1922_-_december_25,_1924\birth\fitch,_male_birth_to_kenneth_july_3,_1924_p1_tsr.pdf">Fitch</a></td><td class="dataleft"></td><td class="dataleft">Kenneth</td><td class="datacenter">M</td><td class="dataleft">July&nbsp;3,&nbsp;1924</td><td class="dataleft">The&nbsp;Sutton&nbsp;Reporter</td><td class="datacenter">1</td></tr> | V74: =LEN(D74) -> 7
A75: =OFFSET(A75,-1,0)+1 -> 74 | B75: Hoff | D75: Oscar F. | E75: F | F75: 1924-11-27 | G75: The&nbsp;Sutton&nbsp;Reporter | H75: 1 | I75: 33 | J75: 860 | K75: hoff,_female_birth_to_oscar_f_november_27,_1924_p1_tsr.pdf | L75: set03\tsr\tsr_august_3,_1922_-_december_25,_1924\birth | O75: =YEAR(F75) -> 1924 | P75: 1924 | Q75: =TEXT(F75,"mmmm") -> November | R75: =MONTH(F75) -> 11 | S75: =R75 -> 11 | T75: =DAY(F75) -> 27 | U75: ="<tr><td class="&""""&"dataright"&""""&">"& TEXT(A75,"0")&"</td><td class="&""""&"dataleft"&""""&">"& "<a href="&""""&L75&"\"&K75&""""&">"&B75&"</a></td><td class="&"""dataleft"">"& TEXT(C75,"")&"</td><td class="&""""&"dataleft"&""""&">"& TEXT(D75,"")&"</td><td class="&""""&"datacenter"&""""&">"& TEXT(E75,"")&"</td><td class="&""""&"dataleft"&""""&">"& TEXT(Q75,"")&"&nbsp;"&T75&",&nbsp;"&O75&"</td><td class="&""""&"dataleft"&""""&">"& TEXT(G75,"0.0")&"</td><td class="&""""&"datacenter"&""""&">"& TEXT(H75,"0")&"</td>"& "</tr>" -> <tr><td class="dataright">74</td><td class="dataleft"><a href="set03\tsr\tsr_august_3,_1922_-_december_25,_1924\birth\hoff,_female_birth_to_oscar_f_november_27,_1924_p1_tsr.pdf">Hoff</a></td><td class="dataleft"></td><td class="dataleft">Oscar F.</td><td class="datacenter">F</td><td class="dataleft">November&nbsp;27,&nbsp;1924</td><td class="dataleft">The&nbsp;Sutton&nbsp;Reporter</td><td class="datacenter">1</td></tr> | V75: =LEN(D75) -> 8
A76: =OFFSET(A76,-1,0)+1 -> 75 | B76: Johnston | D76: Fred | F76: 1924-11-27 | G76: The&nbsp;Sutton&nbsp;Reporter | H76: 1 | I76: 33 | J76: 864 | K76: johnston,_birth_to_fred_november_27,_1924_p1_tsr.pdf | L76: set03\tsr\tsr_august_3,_1922_-_december_25,_1924\birth | O76: =YEAR(F76) -> 1924 | P76: 1924 | Q76: =TEXT(F76,"mmmm") -> November | R76: =MONTH(F76) -> 11 | S76: =R76 -> 11 | T76: =DAY(F76) -> 27 | U76: ="<tr><td class="&""""&"dataright"&""""&">"& TEXT(A76,"0")&"</td><td class="&""""&"dataleft"&""""&">"& "<a href="&""""&L76&"\"&K76&""""&">"&B76&"</a></td><td class="&"""dataleft"">"& TEXT(C76,"")&"</td><td class="&""""&"dataleft"&""""&">"& TEXT(D76,"")&"</td><td class="&""""&"datacenter"&""""&">"& TEXT(E76,"")&"</td><td class="&""""&"dataleft"&""""&">"& TEXT(Q76,"")&"&nbsp;"&T76&",&nbsp;"&O76&"</td><td class="&""""&"dataleft"&""""&">"& TEXT(G76,"0.0")&"</td><td class="&""""&"datacenter"&""""&">"& TEXT(H76,"0")&"</td>"& "</tr>" -> <tr><td class="dataright">75</td><td class="dataleft"><a href="set03\tsr\tsr_august_3,_1922_-_december_25,_1924\birth\johnston,_birth_to_fred_november_27,_1924_p1_tsr.pdf">Johnston</a></td><td class="dataleft"></td><td class="dataleft">Fred</td><td class="datacenter"></td><td class="dataleft">November&nbsp;27,&nbsp;1924</td><td class="dataleft">The&nbsp;Sutton&nbsp;Reporter</td><td class="datacenter">1</td></tr> | V76: =LEN(D76) -> 4
A77: =OFFSET(A77,-1,0)+1 -> 76 | B77: Holtan | D77: Oscar | E77: F | F77: 1923-01-25 | G77: The&nbsp;Sutton&nbsp;Reporter | H77: 1 | I77: 33 | J77: 861 | K77: holtan,_female_birth_to_oscar_january_25,_1923_p1_tsr.pdf | L77: set03\tsr\tsr_august_3,_1922_-_december_25,_1924\birth | O77: =YEAR(F77) -> 1923 | P77: 1923 | Q77: =TEXT(F77,"mmmm") -> January | R77: =MONTH(F77) -> 1 | S77: =R77 -> 1 | T77: =DAY(F77) -> 25 | U77: ="<tr><td class="&""""&"dataright"&""""&">"& TEXT(A77,"0")&"</td><td class="&""""&"dataleft"&""""&">"& "<a href="&""""&L77&"\"&K77&""""&">"&B77&"</a></td><td class="&"""dataleft"">"& TEXT(C77,"")&"</td><td class="&""""&"dataleft"&""""&">"& TEXT(D77,"")&"</td><td class="&""""&"datacenter"&""""&">"& TEXT(E77,"")&"</td><td class="&""""&"dataleft"&""""&">"& TEXT(Q77,"")&"&nbsp;"&T77&",&nbsp;"&O77&"</td><td class="&""""&"dataleft"&""""&">"& TEXT(G77,"0.0")&"</td><td class="&""""&"datacenter"&""""&">"& TEXT(H77,"0")&"</td>"& "</tr>" -> <tr><td class="dataright">76</td><td class="dataleft"><a href="set03\tsr\tsr_august_3,_1922_-_december_25,_1924\birth\holtan,_female_birth_to_oscar_january_25,_1923_p1_tsr.pdf">Holtan</a></td><td class="dataleft"></td><td class="dataleft">Oscar </td><td class="datacenter">F</td><td class="dataleft">January&nbsp;25,&nbsp;1923</td><td class="dataleft">The&nbsp;Sutton&nbsp;Reporter</td><td class="datacenter">1</td></tr> | V77: =LEN(D77) -> 7
A78: =OFFSET(A78,-1,0)+1 -> 77 | B78: Sutton | D78: W. A. | E78: M | F78: 1923-02-01 | G78: The&nbsp;Sutton&nbsp;Reporter | H78: 1 | I78: 33 | J78: 876 | K78: sutton,_male_birth_to_w_a_february_1,_1923_p1_tsr.pdf | L78: set03\tsr\tsr_august_3,_1922_-_december_25,_1924\birth | O78: =YEAR(F78) -> 1923 | P78: 1923 | Q78: =TEXT(F78,"mmmm") -> February | R78: =MONTH(F78) -> 2 | S78: =R78 -> 2 | T78: =DAY(F78) -> 1 | U78: ="<tr><td class="&""""&"dataright"&""""&">"& TEXT(A78,"0")&"</td><td class="&""""&"dataleft"&""""&">"& "<a href="&""""&L78&"\"&K78&""""&">"&B78&"</a></td><td class="&"""dataleft"">"& TEXT(C78,"")&"</td><td class="&""""&"dataleft"&""""&">"& TEXT(D78,"")&"</td><td class="&""""&"datacenter"&""""&">"& TEXT(E78,"")&"</td><td class="&""""&"dataleft"&""""&">"& TEXT(Q78,"")&"&nbsp;"&T78&",&nbsp;"&O78&"</td><td class="&""""&"dataleft"&""""&">"& TEXT(G78,"0.0")&"</td><td class="&""""&"datacenter"&""""&">"& TEXT(H78,"0")&"</td>"& "</tr>" -> <tr><td class="dataright">77</td><td class="dataleft"><a href="set03\tsr\tsr_august_3,_1922_-_december_25,_1924\birth\sutton,_male_birth_to_w_a_february_1,_1923_p1_tsr.pdf">Sutton</a></td><td class="dataleft"></td><td class="dataleft">W. A.</td><td class="datacenter">M</td><td class="dataleft">February&nbsp;1,&nbsp;1923</td><td class="dataleft">The&nbsp;Sutton&nbsp;Reporter</td><td class="datacenter">1</td></tr> | V78: =LEN(D78) -> 5
A79: =OFFSET(A79,-1,0)+1 -> 78 | B79: Rist | D79: Lewis B. | E79: M | F79: 1923-02-20 | G79: Hannaford&nbsp;Enterprise | H79: 8 | I79: 23 | J79: 722 | K79: rist,_male_birth_to_lewis_b_february_20,_1923_p8_he.pdf | L79: set04\he_august 10, 1920 - july 31, 1923\birth | O79: =YEAR(F79) -> 1923 | P79: 1923 | Q79: =TEXT(F79,"mmmm") -> February | R79: =MONTH(F79) -> 2 | S79: =R79 -> 2 | T79: =DAY(F79) -> 20 | U79: ="<tr><td class="&""""&"dataright"&""""&">"& TEXT(A79,"0")&"</td><td class="&""""&"dataleft"&""""&">"& "<a href="&""""&L79&"\"&K79&""""&">"&B79&"</a></td><td class="&"""dataleft"">"& TEXT(C79,"")&"</td><td class="&""""&"dataleft"&""""&">"& TEXT(D79,"")&"</td><td class="&""""&"datacenter"&""""&">"& TEXT(E79,"")&"</td><td class="&""""&"dataleft"&""""&">"& TEXT(Q79,"")&"&nbsp;"&T79&",&nbsp;"&O79&"</td><td class="&""""&"dataleft"&""""&">"& TEXT(G79,"0.0")&"</td><td class="&""""&"datacenter"&""""&">"& TEXT(H79,"0")&"</td>"& "</tr>" -> <tr><td class="dataright">78</td><td class="dataleft"><a href="set04\he_august 10, 1920 - july 31, 1923\birth\rist,_male_birth_to_lewis_b_february_20,_1923_p8_he.pdf">Rist</a></td><td class="dataleft"></td><td class="dataleft">Lewis B.</td><td class="datacenter">M</td><td class="dataleft">February&nbsp;20,&nbsp;1923</td><td class="dataleft">Hannaford&nbsp;Enterprise</td><td class="datacenter">8</td></tr> | V79: =LEN(D79) -> 8
A80: =OFFSET(A80,-1,0)+1 -> 79 | B80: Ebentier | D80: Clarence | E80: F | F80: 1923-03-15 | G80: The&nbsp;Sutton&nbsp;Reporter | H80: 1 | I80: 33 | J80: 854 | K80: ebentier,_female_birth_to_clarence__march_15,_1923_p1_tsr.pdf | L80: set03\tsr\tsr_august_3,_1922_-_december_25,_1924\birth | O80: =YEAR(F80) -> 1923 | P80: 1923 | Q80: =TEXT(F80,"mmmm") -> March | R80: =MONTH(F80) -> 3 | S80: =R80 -> 3 | T80: =DAY(F80) -> 15 | U80: ="<tr><td class="&""""&"dataright"&""""&">"& TEXT(A80,"0")&"</td><td class="&""""&"dataleft"&""""&">"& "<a href="&""""&L80&"\"&K80&""""&">"&B80&"</a></td><td class="&"""dataleft"">"& TEXT(C80,"")&"</td><td class="&""""&"dataleft"&""""&">"& TEXT(D80,"")&"</td><td class="&""""&"datacenter"&""""&">"& TEXT(E80,"")&"</td><td class="&""""&"dataleft"&""""&">"& TEXT(Q80,"")&"&nbsp;"&T80&",&nbsp;"&O80&"</td><td class="&""""&"dataleft"&""""&">"& TEXT(G80,"0.0")&"</td><td class="&""""&"datacenter"&""""&">"& TEXT(H80,"0")&"</td>"& "</tr>" -> <tr><td class="dataright">79</td><td class="dataleft"><a href="set03\tsr\tsr_august_3,_1922_-_december_25,_1924\birth\ebentier,_female_birth_to_clarence__march_15,_1923_p1_tsr.pdf">Ebentier</a></td><td class="dataleft"></td><td class="dataleft">Clarence</td><td class="datacenter">F</td><td class="dataleft">March&nbsp;15,&nbsp;1923</td><td class="dataleft">The&nbsp;Sutton&nbsp;Reporter</td><td class="datacenter">1</td></tr> | V80: =LEN(D80) -> 8
A81: =OFFSET(A81,-1,0)+1 -> 80 | B81: Rise | D81: Sverre | E81: M | F81: 1923-06-07 | G81: The&nbsp;Sutton&nbsp;Reporter | H81: 4 | I81: 33 | J81: 873 | K81: rise,_male_birth_to_sverre_june_7,_1923_p4_tsr.pdf | L81: set03\tsr\tsr_august_3,_1922_-_december_25,_1924\birth | O81: =YEAR(F81) -> 1923 | P81: 1923 | Q81: =TEXT(F81,"mmmm") -> June | R81: =MONTH(F81) -> 6 | S81: =R81 -> 6 | T81: =DAY(F81) -> 7 | U81: ="<tr><td class="&""""&"dataright"&""""&">"& TEXT(A81,"0")&"</td><td class="&""""&"dataleft"&""""&">"& "<a href="&""""&L81&"\"&K81&""""&">"&B81&"</a></td><td class="&"""dataleft"">"& TEXT(C81,"")&"</td><td class="&""""&"dataleft"&""""&">"& TEXT(D81,"")&"</td><td class="&""""&"datacenter"&""""&">"& TEXT(E81,"")&"</td><td class="&""""&"dataleft"&""""&">"& TEXT(Q81,"")&"&nbsp;"&T81&",&nbsp;"&O81&"</td><td class="&""""&"dataleft"&""""&">"& TEXT(G81,"0.0")&"</td><td class="&""""&"datacenter"&""""&">"& TEXT(H81,"0")&"</td>"& "</tr>" -> <tr><td class="dataright">80</td><td class="dataleft"><a href="set03\tsr\tsr_august_3,_1922_-_december_25,_1924\birth\rise,_male_birth_to_sverre_june_7,_1923_p4_tsr.pdf">Rise</a></td><td class="dataleft"></td><td class="dataleft">Sverre</td><td class="datacenter">M</td><td class="dataleft">June&nbsp;7,&nbsp;1923</td><td class="dataleft">The&nbsp;Sutton&nbsp;Reporter</td><td class="datacenter">4</td></tr> | V81: =LEN(D81) -> 6
A82: =OFFSET(A82,-1,0)+1 -> 81 | B82: Linse | D82: C. A. | E82: F | F82: 1923-07-05 | G82: The&nbsp;Sutton&nbsp;Reporter | H82: 1 | I82: 33 | J82: 866 | K82: linse,_female_birth_to_c_a_july_5,_1923_p1_tsr.pdf | L82: set03\tsr\tsr_august_3,_1922_-_december_25,_1924\birth | O82: =YEAR(F82) -> 1923 | P82: 1923 | Q82: =TEXT(F82,"mmmm") -> July | R82: =MONTH(F82) -> 7 | S82: =R82 -> 7 | T82: =DAY(F82) -> 5 | U82: ="<tr><td class="&""""&"dataright"&""""&">"& TEXT(A82,"0")&"</td><td class="&""""&"dataleft"&""""&">"& "<a href="&""""&L82&"\"&K82&""""&">"&B82&"</a></td><td class="&"""dataleft"">"& TEXT(C82,"")&"</td><td class="&""""&"dataleft"&""""&">"& TEXT(D82,"")&"</td><td class="&""""&"datacenter"&""""&">"& TEXT(E82,"")&"</td><td class="&""""&"dataleft"&""""&">"& TEXT(Q82,"")&"&nbsp;"&T82&",&nbsp;"&O82&"</td><td class="&""""&"dataleft"&""""&">"& TEXT(G82,"0.0")&"</td><td class="&""""&"datacenter"&""""&">"& TEXT(H82,"0")&"</td>"& "</tr>" -> <tr><td class="dataright">81</td><td class="dataleft"><a href="set03\tsr\tsr_august_3,_1922_-_december_25,_1924\birth\linse,_female_birth_to_c_a_july_5,_1923_p1_tsr.pdf">Linse</a></td><td class="dataleft"></td><td class="dataleft">C. A.</td><td class="datacenter">F</td><td class="dataleft">July&nbsp;5,&nbsp;1923</td><td class="dataleft">The&nbsp;Sutton&nbsp;Reporter</td><td class="datacenter">1</td></tr> | V82: =LEN(D82) -> 5
A83: =OFFSET(A83,-1,0)+1 -> 82 | B83: Youngbeck | D83: John | E83: F | F83: 1923-07-26 | G83: The&nbsp;Sutton&nbsp;Reporter | H83: 1 | I83: 33 | J83: 877 | K83: youngbeck,_female_birth_to_john_july_26,_1923_p1_tsr.pdf | L83: set03\tsr\tsr_august_3,_1922_-_december_25,_1924\birth | O83: =YEAR(F83) -> 1923 | P83: 1923 | Q83: =TEXT(F83,"mmmm") -> July | R83: =MONTH(F83) -> 7 | S83: =R83 -> 7 | T83: =DAY(F83) -> 26 | U83: ="<tr><td class="&""""&"dataright"&""""&">"& TEXT(A83,"0")&"</td><td class="&""""&"dataleft"&""""&">"& "<a href="&""""&L83&"\"&K83&""""&">"&B83&"</a></td><td class="&"""dataleft"">"& TEXT(C83,"")&"</td><td class="&""""&"dataleft"&""""&">"& TEXT(D83,"")&"</td><td class="&""""&"datacenter"&""""&">"& TEXT(E83,"")&"</td><td class="&""""&"dataleft"&""""&">"& TEXT(Q83,"")&"&nbsp;"&T83&",&nbsp;"&O83&"</td><td class="&""""&"dataleft"&""""&">"& TEXT(G83,"0.0")&"</td><td class="&""""&"datacenter"&""""&">"& TEXT(H83,"0")&"</td>"& "</tr>" -> <tr><td class="dataright">82</td><td class="dataleft"><a href="set03\tsr\tsr_august_3,_1922_-_december_25,_1924\birth\youngbeck,_female_birth_to_john_july_26,_1923_p1_tsr.pdf">Youngbeck</a></td><td class="dataleft"></td><td class="dataleft">John</td><td class="datacenter">F</td><td class="dataleft">July&nbsp;26,&nbsp;1923</td><td class="dataleft">The&nbsp;Sutton&nbsp;Reporter</td><td class="datacenter">1</td></tr> | V83: =LEN(D83) -> 4
A84: =OFFSET(A84,-1,0)+1 -> 83 | B84: Ellingsen | D84: K. M. | E84: M | F84: 1923-08-02 | G84: The&nbsp;Sutton&nbsp;Reporter | H84: 1 | I84: 33 | J84: 855 | K84: ellingsen,_male_birth_to_k_m_august_2,_1923_p1_tsr.pdf | L84: set03\tsr\tsr_august_3,_1922_-_december_25,_1924\birth | O84: =YEAR(F84) -> 1923 | P84: 1923 | Q84: =TEXT(F84,"mmmm") -> August | R84: =MONTH(F84) -> 8 | S84: =R84 -> 8 | T84: =DAY(F84) -> 2 | U84: ="<tr><td class="&""""&"dataright"&""""&">"& TEXT(A84,"0")&"</td><td class="&""""&"dataleft"&""""&">"& "<a href="&""""&L84&"\"&K84&""""&">"&B84&"</a></td><td class="&"""dataleft"">"& TEXT(C84,"")&"</td><td class="&""""&"dataleft"&""""&">"& TEXT(D84,"")&"</td><td class="&""""&"datacenter"&""""&">"& TEXT(E84,"")&"</td><td class="&""""&"dataleft"&""""&">"& TEXT(Q84,"")&"&nbsp;"&T84&",&nbsp;"&O84&"</td><td class="&""""&"dataleft"&""""&">"& TEXT(G84,"0.0")&"</td><td class="&""""&"datacenter"&""""&">"& TEXT(H84,"0")&"</td>"& "</tr>" -> <tr><td class="dataright">83</td><td class="dataleft"><a href="set03\tsr\tsr_august_3,_1922_-_december_25,_1924\birth\ellingsen,_male_birth_to_k_m_august_2,_1923_p1_tsr.pdf">Ellingsen</a></td><td class="dataleft"></td><td class="dataleft">K. M.</td><td class="datacenter">M</td><td class="dataleft">August&nbsp;2,&nbsp;1923</td><td class="dataleft">The&nbsp;Sutton&nbsp;Reporter</td><td class="datacenter">1</td></tr> | V84: =LEN(D84) -> 5
A85: =OFFSET(A85,-1,0)+1 -> 84 | B85: Natwick | D85: Rev. | E85: M | F85: 1923-08-02 | G85: The&nbsp;Sutton&nbsp;Reporter | H85: 1 | I85: 33 | J85: 869 | K85: natwick,_male_birth_to_rev._august_2,_1923_p1_tsr.pdf | L85: set03\tsr\tsr_august_3,_1922_-_december_25,_1924\birth | O85: =YEAR(F85) -> 1923 | P85: 1923 | Q85: =TEXT(F85,"mmmm") -> August | R85: =MONTH(F85) -> 8 | S85: =R85 -> 8 | T85: =DAY(F85) -> 2 | U85: ="<tr><td class="&""""&"dataright"&""""&">"& TEXT(A85,"0")&"</td><td class="&""""&"dataleft"&""""&">"& "<a href="&""""&L85&"\"&K85&""""&">"&B85&"</a></td><td class="&"""dataleft"">"& TEXT(C85,"")&"</td><td class="&""""&"dataleft"&""""&">"& TEXT(D85,"")&"</td><td class="&""""&"datacenter"&""""&">"& TEXT(E85,"")&"</td><td class="&""""&"dataleft"&""""&">"& TEXT(Q85,"")&"&nbsp;"&T85&",&nbsp;"&O85&"</td><td class="&""""&"dataleft"&""""&">"& TEXT(G85,"0.0")&"</td><td class="&""""&"datacenter"&""""&">"& TEXT(H85,"0")&"</td>"& "</tr>" -> <tr><td class="dataright">84</td><td class="dataleft"><a href="set03\tsr\tsr_august_3,_1922_-_december_25,_1924\birth\natwick,_male_birth_to_rev._august_2,_1923_p1_tsr.pdf">Natwick</a></td><td class="dataleft"></td><td class="dataleft">Rev.</td><td class="datacenter">M</td><td class="dataleft">August&nbsp;2,&nbsp;1923</td><td class="dataleft">The&nbsp;Sutton&nbsp;Reporter</td><td class="datacenter">1</td></tr> | V85: =LEN(D85) -> 4
A86: =OFFSET(A86,-1,0)+1 -> 85 | B86: Hawkes | D86: B. E. | E86: F | F86: 1923-08-09 | G86: The&nbsp;Sutton&nbsp;Reporter | H86: 1 | I86: 33 | J86: 858 | K86: hawkes,_female_birth_to_be_august_9,_1923_p1_tsr.pdf | L86: set03\tsr\tsr_august_3,_1922_-_december_25,_1924\birth | O86: =YEAR(F86) -> 1923 | P86: 1923 | Q86: =TEXT(F86,"mmmm") -> August | R86: =MONTH(F86) -> 8 | S86: =R86 -> 8 | T86: =DAY(F86) -> 9 | U86: ="<tr><td class="&""""&"dataright"&""""&">"& TEXT(A86,"0")&"</td><td class="&""""&"dataleft"&""""&">"& "<a href="&""""&L86&"\"&K86&""""&">"&B86&"</a></td><td class="&"""dataleft"">"& TEXT(C86,"")&"</td><td class="&""""&"dataleft"&""""&">"& TEXT(D86,"")&"</td><td class="&""""&"datacenter"&""""&">"& TEXT(E86,"")&"</td><td class="&""""&"dataleft"&""""&">"& TEXT(Q86,"")&"&nbsp;"&T86&",&nbsp;"&O86&"</td><td class="&""""&"dataleft"&""""&">"& TEXT(G86,"0.0")&"</td><td class="&""""&"datacenter"&""""&">"& TEXT(H86,"0")&"</td>"& "</tr>" -> <tr><td class="dataright">85</td><td class="dataleft"><a href="set03\tsr\tsr_august_3,_1922_-_december_25,_1924\birth\hawkes,_female_birth_to_be_august_9,_1923_p1_tsr.pdf">Hawkes</a></td><td class="dataleft"></td><td class="dataleft">B. E.</td><td class="datacenter">F</td><td class="dataleft">August&nbsp;9,&nbsp;1923</td><td class="dataleft">The&nbsp;Sutton&nbsp;Reporter</td><td class="datacenter">1</td></tr> | V86: =LEN(D86) -> 5
A87: =OFFSET(A87,-1,0)+1 -> 86 | B87: Melgard | D87: Fred | E87: M | F87: 1923-08-09 | G87: The&nbsp;Sutton&nbsp;Reporter | H87: 1 | I87: 33 | J87: 868 | K87: melgard,_male_birth_to_fred_august_9,_1923_p1_tsr.pdf | L87: set03\tsr\tsr_august_3,_1922_-_december_25,_1924\birth | O87: =YEAR(F87) -> 1923 | P87: 1923 | Q87: =TEXT(F87,"mmmm") -> August | R87: =MONTH(F87) -> 8 | S87: =R87 -> 8 | T87: =DAY(F87) -> 9 | U87: ="<tr><td class="&""""&"dataright"&""""&">"& TEXT(A87,"0")&"</td><td class="&""""&"dataleft"&""""&">"& "<a href="&""""&L87&"\"&K87&""""&">"&B87&"</a></td><td class="&"""dataleft"">"& TEXT(C87,"")&"</td><td class="&""""&"dataleft"&""""&">"& TEXT(D87,"")&"</td><td class="&""""&"datacenter"&""""&">"& TEXT(E87,"")&"</td><td class="&""""&"dataleft"&""""&">"& TEXT(Q87,"")&"&nbsp;"&T87&",&nbsp;"&O87&"</td><td class="&""""&"dataleft"&""""&">"& TEXT(G87,"0.0")&"</td><td class="&""""&"datacenter"&""""&">"& TEXT(H87,"0")&"</td>"& "</tr>" -> <tr><td class="dataright">86</td><td class="dataleft"><a href="set03\tsr\tsr_august_3,_1922_-_december_25,_1924\birth\melgard,_male_birth_to_fred_august_9,_1923_p1_tsr.pdf">Melgard</a></td><td class="dataleft"></td><td class="dataleft">Fred</td><td class="datacenter">M</td><td class="dataleft">August&nbsp;9,&nbsp;1923</td><td class="dataleft">The&nbsp;Sutton&nbsp;Reporter</td><td class="datacenter">1</td></tr> | V87: =LEN(D87) -> 4
A88: =OFFSET(A88,-1,0)+1 -> 87 | B88: Albrecht | D88: Frank | E88: M | F88: 1923-10-04 | G88: The&nbsp;Sutton&nbsp;Reporter | H88: 4 | I88: 33 | J88: 848 | K88: albrecht,_male_birth_to_frank__october_4,_1923_p4_tsr.pdf | L88: set03\tsr\tsr_august_3,_1922_-_december_25,_1924\birth | O88: =YEAR(F88) -> 1923 | P88: 1923 | Q88: =TEXT(F88,"mmmm") -> October | R88: =MONTH(F88) -> 10 | S88: =R88 -> 10 | T88: =DAY(F88) -> 4 | U88: ="<tr><td class="&""""&"dataright"&""""&">"& TEXT(A88,"0")&"</td><td class="&""""&"dataleft"&""""&">"& "<a href="&""""&L88&"\"&K88&""""&">"&B88&"</a></td><td class="&"""dataleft"">"& TEXT(C88,"")&"</td><td class="&""""&"dataleft"&""""&">"& TEXT(D88,"")&"</td><td class="&""""&"datacenter"&""""&">"& TEXT(E88,"")&"</td><td class="&""""&"dataleft"&""""&">"& TEXT(Q88,"")&"&nbsp;"&T88&",&nbsp;"&O88&"</td><td class="&""""&"dataleft"&""""&">"& TEXT(G88,"0.0")&"</td><td class="&""""&"datacenter"&""""&">"& TEXT(H88,"0")&"</td>"& "</tr>" -> <tr><td class="dataright">87</td><td class="dataleft"><a href="set03\tsr\tsr_august_3,_1922_-_december_25,_1924\birth\albrecht,_male_birth_to_frank__october_4,_1923_p4_tsr.pdf">Albrecht</a></td><td class="dataleft"></td><td class="dataleft">Frank</td><td class="datacenter">M</td><td class="dataleft">October&nbsp;4,&nbsp;1923</td><td class="dataleft">The&nbsp;Sutton&nbsp;Reporter</td><td class="datacenter">4</td></tr> | V88: =LEN(D88) -> 5
A89: =OFFSET(A89,-1,0)+1 -> 88 | B89: Posey | D89: Ben | E89: M | F89: 1923-10-04 | G89: The&nbsp;Sutton&nbsp;Reporter | H89: 1 | I89: 33 | J89: 872 | K89: posey,_male_birth_to_ben_october_4,_1923_p1_tsr.pdf | L89: set03\tsr\tsr_august_3,_1922_-_december_25,_1924\birth | O89: =YEAR(F89) -> 1923 | P89: 1923 | Q89: =TEXT(F89,"mmmm") -> October | R89: =MONTH(F89) -> 10 | S89: =R89 -> 10 | T89: =DAY(F89) -> 4 | U89: ="<tr><td class="&""""&"dataright"&""""&">"& TEXT(A89,"0")&"</td><td class="&""""&"dataleft"&""""&">"& "<a href="&""""&L89&"\"&K89&""""&">"&B89&"</a></td><td class="&"""dataleft"">"& TEXT(C89,"")&"</td><td class="&""""&"dataleft"&""""&">"& TEXT(D89,"")&"</td><td class="&""""&"datacenter"&""""&">"& TEXT(E89,"")&"</td><td class="&""""&"dataleft"&""""&">"& TEXT(Q89,"")&"&nbsp;"&T89&",&nbsp;"&O89&"</td><td class="&""""&"dataleft"&""""&">"& TEXT(G89,"0.0")&"</td><td class="&""""&"datacenter"&""""&">"& TEXT(H89,"0")&"</td>"& "</tr>" -> <tr><td class="dataright">88</td><td class="dataleft"><a href="set03\tsr\tsr_august_3,_1922_-_december_25,_1924\birth\posey,_male_birth_to_ben_october_4,_1923_p1_tsr.pdf">Posey</a></td><td class="dataleft"></td><td class="dataleft">Ben</td><td class="datacenter">M</td><td class="dataleft">October&nbsp;4,&nbsp;1923</td><td class="dataleft">The&nbsp;Sutton&nbsp;Reporter</td><td class="datacenter">1</td></tr> | V89: =LEN(D89) -> 3
A90: =OFFSET(A90,-1,0)+1 -> 89 | B90: Strasser | D90: Max | E90: M | F90: 1923-10-11 | G90: The&nbsp;Sutton&nbsp;Reporter | H90: 1 | I90: 33 | J90: 875 | K90: strasser,_male_birth_to_max_october_11,_1923_p1_tsr.pdf | L90: set03\tsr\tsr_august_3,_1922_-_december_25,_1924\birth | O90: =YEAR(F90) -> 1923 | P90: 1923 | Q90: =TEXT(F90,"mmmm") -> October | R90: =MONTH(F90) -> 10 | S90: =R90 -> 10 | T90: =DAY(F90) -> 11 | U90: ="<tr><td class="&""""&"dataright"&""""&">"& TEXT(A90,"0")&"</td><td class="&""""&"dataleft"&""""&">"& "<a href="&""""&L90&"\"&K90&""""&">"&B90&"</a></td><td class="&"""dataleft"">"& TEXT(C90,"")&"</td><td class="&""""&"dataleft"&""""&">"& TEXT(D90,"")&"</td><td class="&""""&"datacenter"&""""&">"& TEXT(E90,"")&"</td><td class="&""""&"dataleft"&""""&">"& TEXT(Q90,"")&"&nbsp;"&T90&",&nbsp;"&O90&"</td><td class="&""""&"dataleft"&""""&">"& TEXT(G90,"0.0")&"</td><td class="&""""&"datacenter"&""""&">"& TEXT(H90,"0")&"</td>"& "</tr>" -> <tr><td class="dataright">89</td><td class="dataleft"><a href="set03\tsr\tsr_august_3,_1922_-_december_25,_1924\birth\strasser,_male_birth_to_max_october_11,_1923_p1_tsr.pdf">Strasser</a></td><td class="dataleft"></td><td class="dataleft">Max</td><td class="datacenter">M</td><td class="dataleft">October&nbsp;11,&nbsp;1923</td><td class="dataleft">The&nbsp;Sutton&nbsp;Reporter</td><td class="datacenter">1</td></tr> | V90: =LEN(D90) -> 3
A91: =OFFSET(A91,-1,0)+1 -> 90 | B91: Kingsley | D91: Milo | E91: F | F91: 1923-11-22 | G91: The&nbsp;Sutton&nbsp;Reporter | H91: 1 | I91: 33 | J91: 865 | K91: kingsley,_female_birth_to_milo_november_22,_1923_p1_tsr.pdf | L91: set03\tsr\tsr_august_3,_1922_-_december_25,_1924\birth | O91: =YEAR(F91) -> 1923 | P91: 1923 | Q91: =TEXT(F91,"mmmm") -> November | R91: =MONTH(F91) -> 11 | S91: =R91 -> 11 | T91: =DAY(F91) -> 22 | U91: ="<tr><td class="&""""&"dataright"&""""&">"& TEXT(A91,"0")&"</td><td class="&""""&"dataleft"&""""&">"& "<a href="&""""&L91&"\"&K91&""""&">"&B91&"</a></td><td class="&"""dataleft"">"& TEXT(C91,"")&"</td><td class="&""""&"dataleft"&""""&">"& TEXT(D91,"")&"</td><td class="&""""&"datacenter"&""""&">"& TEXT(E91,"")&"</td><td class="&""""&"dataleft"&""""&">"& TEXT(Q91,"")&"&nbsp;"&T91&",&nbsp;"&O91&"</td><td class="&""""&"dataleft"&""""&">"& TEXT(G91,"0.0")&"</td><td class="&""""&"datacenter"&""""&">"& TEXT(H91,"0")&"</td>"& "</tr>" -> <tr><td class="dataright">90</td><td class="dataleft"><a href="set03\tsr\tsr_august_3,_1922_-_december_25,_1924\birth\kingsley,_female_birth_to_milo_november_22,_1923_p1_tsr.pdf">Kingsley</a></td><td class="dataleft"></td><td class="dataleft">Milo</td><td class="datacenter">F</td><td class="dataleft">November&nbsp;22,&nbsp;1923</td><td class="dataleft">The&nbsp;Sutton&nbsp;Reporter</td><td class="datacenter">1</td></tr> | V91: =LEN(D91) -> 4
A92: =OFFSET(A92,-1,0)+1 -> 91 | B92: Olson | D92: Sig | E92: F | F92: 1923-11-22 | G92: The&nbsp;Sutton&nbsp;Reporter | H92: 1 | I92: 33 | J92: 871 | K92: olson,_female_birth_to_sig_november_22,_1923_p1_tsr.pdf | L92: set03\tsr\tsr_august_3,_1922_-_december_25,_1924\birth | O92: =YEAR(F92) -> 1923 | P92: 1923 | Q92: =TEXT(F92,"mmmm") -> November | R92: =MONTH(F92) -> 11 | S92: =R92 -> 11 | T92: =DAY(F92) -> 22 | U92: ="<tr><td class="&""""&"dataright"&""""&">"& TEXT(A92,"0")&"</td><td class="&""""&"dataleft"&""""&">"& "<a href="&""""&L92&"\"&K92&""""&">"&B92&"</a></td><td class="&"""dataleft"">"& TEXT(C92,"")&"</td><td class="&""""&"dataleft"&""""&">"& TEXT(D92,"")&"</td><td class="&""""&"datacenter"&""""&">"& TEXT(E92,"")&"</td><td class="&""""&"dataleft"&""""&">"& TEXT(Q92,"")&"&nbsp;"&T92&",&nbsp;"&O92&"</td><td class="&""""&"dataleft"&""""&">"& TEXT(G92,"0.0")&"</td><td class="&""""&"datacenter"&""""&">"& TEXT(H92,"0")&"</td>"& "</tr>" -> <tr><td class="dataright">91</td><td class="dataleft"><a href="set03\tsr\tsr_august_3,_1922_-_december_25,_1924\birth\olson,_female_birth_to_sig_november_22,_1923_p1_tsr.pdf">Olson</a></td><td class="dataleft"></td><td class="dataleft">Sig</td><td class="datacenter">F</td><td class="dataleft">November&nbsp;22,&nbsp;1923</td><td class="dataleft">The&nbsp;Sutton&nbsp;Reporter</td><td class="datacenter">1</td></tr> | V92: =LEN(D92) -> 3
A93: =OFFSET(A93,-1,0)+1 -> 92 | B93: Dieterich | D93: Fred | E93: F | F93: 1923-11-29 | G93: The&nbsp;Sutton&nbsp;Reporter | H93: 1 | I93: 33 | J93: 853 | K93: dieterich,_female_birth_to_fred_november_29,_1923_p1_tsr.pdf | L93: set03\tsr\tsr_august_3,_1922_-_december_25,_1924\birth | O93: =YEAR(F93) -> 1923 | P93: 1923 | Q93: =TEXT(F93,"mmmm") -> November | R93: =MONTH(F93) -> 11 | S93: =R93 -> 11 | T93: =DAY(F93) -> 29 | U93: ="<tr><td class="&""""&"dataright"&""""&">"& TEXT(A93,"0")&"</td><td class="&""""&"dataleft"&""""&">"& "<a href="&""""&L93&"\"&K93&""""&">"&B93&"</a></td><td class="&"""dataleft"">"& TEXT(C93,"")&"</td><td class="&""""&"dataleft"&""""&">"& TEXT(D93,"")&"</td><td class="&""""&"datacenter"&""""&">"& TEXT(E93,"")&"</td><td class="&""""&"dataleft"&""""&">"& TEXT(Q93,"")&"&nbsp;"&T93&",&nbsp;"&O93&"</td><td class="&""""&"dataleft"&""""&">"& TEXT(G93,"0.0")&"</td><td class="&""""&"datacenter"&""""&">"& TEXT(H93,"0")&"</td>"& "</tr>" -> <tr><td class="dataright">92</td><td class="dataleft"><a href="set03\tsr\tsr_august_3,_1922_-_december_25,_1924\birth\dieterich,_female_birth_to_fred_november_29,_1923_p1_tsr.pdf">Dieterich</a></td><td class="dataleft"></td><td class="dataleft">Fred</td><td class="datacenter">F</td><td class="dataleft">November&nbsp;29,&nbsp;1923</td><td class="dataleft">The&nbsp;Sutton&nbsp;Reporter</td><td class="datacenter">1</td></tr> | V93: =LEN(D93) -> 4
A94: =OFFSET(A94,-1,0)+1 -> 93 | B94: Bailey | D94: James | E94: F | F94: 1923-12-06 | G94: The&nbsp;Sutton&nbsp;Reporter | H94: 1 | I94: 33 | J94: 849 | K94: bailey,_female_birth_to_james_december_6,_1923_p1_tsr.pdf | L94: set03\tsr\tsr_august_3,_1922_-_december_25,_1924\birth | O94: =YEAR(F94) -> 1923 | P94: 1923 | Q94: =TEXT(F94,"mmmm") -> December | R94: =MONTH(F94) -> 12 | S94: =R94 -> 12 | T94: =DAY(F94) -> 6 | U94: ="<tr><td class="&""""&"dataright"&""""&">"& TEXT(A94,"0")&"</td><td class="&""""&"dataleft"&""""&">"& "<a href="&""""&L94&"\"&K94&""""&">"&B94&"</a></td><td class="&"""dataleft"">"& TEXT(C94,"")&"</td><td class="&""""&"dataleft"&""""&">"& TEXT(D94,"")&"</td><td class="&""""&"datacenter"&""""&">"& TEXT(E94,"")&"</td><td class="&""""&"dataleft"&""""&">"& TEXT(Q94,"")&"&nbsp;"&T94&",&nbsp;"&O94&"</td><td class="&""""&"dataleft"&""""&">"& TEXT(G94,"0.0")&"</td><td class="&""""&"datacenter"&""""&">"& TEXT(H94,"0")&"</td>"& "</tr>" -> <tr><td class="dataright">93</td><td class="dataleft"><a href="set03\tsr\tsr_august_3,_1922_-_december_25,_1924\birth\bailey,_female_birth_to_james_december_6,_1923_p1_tsr.pdf">Bailey</a></td><td class="dataleft"></td><td class="dataleft">James</td><td class="datacenter">F</td><td class="dataleft">December&nbsp;6,&nbsp;1923</td><td class="dataleft">The&nbsp;Sutton&nbsp;Reporter</td><td class="datacenter">1</td></tr> | V94: =LEN(D94) -> 5
A95: =OFFSET(A95,-1,0)+1 -> 94 | B95: Fadness | D95: Severt | E95: M | F95: 1922-01-06 | G95: The&nbsp;Sutton&nbsp;Reporter | H95: 1 | I95: 32 | J95: 790 | K95: fadness,_male_birth_to_severt_january_6,_1922_p1_tsr.pdf | L95: set03\tsr\tsr_october_26,_1916_-_august_3,_1922\birth | O95: =YEAR(F95) -> 1922 | P95: 1922 | Q95: =TEXT(F95,"mmmm") -> January | R95: =MONTH(F95) -> 1 | S95: =R95 -> 1 | T95: =DAY(F95) -> 6 | U95: ="<tr><td class="&""""&"dataright"&""""&">"& TEXT(A95,"0")&"</td><td class="&""""&"dataleft"&""""&">"& "<a href="&""""&L95&"\"&K95&""""&">"&B95&"</a></td><td class="&"""dataleft"">"& TEXT(C95,"")&"</td><td class="&""""&"dataleft"&""""&">"& TEXT(D95,"")&"</td><td class="&""""&"datacenter"&""""&">"& TEXT(E95,"")&"</td><td class="&""""&"dataleft"&""""&">"& TEXT(Q95,"")&"&nbsp;"&T95&",&nbsp;"&O95&"</td><td class="&""""&"dataleft"&""""&">"& TEXT(G95,"0.0")&"</td><td class="&""""&"datacenter"&""""&">"& TEXT(H95,"0")&"</td>"& "</tr>" -> <tr><td class="dataright">94</td><td class="dataleft"><a href="set03\tsr\tsr_october_26,_1916_-_august_3,_1922\birth\fadness,_male_birth_to_severt_january_6,_1922_p1_tsr.pdf">Fadness</a></td><td class="dataleft"></td><td class="dataleft">Severt</td><td class="datacenter">M</td><td class="dataleft">January&nbsp;6,&nbsp;1922</td><td class="dataleft">The&nbsp;Sutton&nbsp;Reporter</td><td class="datacenter">1</td></tr> | V95: =LEN(D95) -> 6
A96: =OFFSET(A96,-1,0)+1 -> 95 | B96: Jacobson | D96: Martin | E96: M | F96: 1922-01-06 | G96: The&nbsp;Sutton&nbsp;Reporter | H96: 1 | I96: 32 | J96: 804 | K96: jacobson,_male_birth_to_martin_on_26th_january_6,_1922_p1_tsr.pdf | L96: set03\tsr\tsr_october_26,_1916_-_august_3,_1922\birth | O96: =YEAR(F96) -> 1922 | P96: 1922 | Q96: =TEXT(F96,"mmmm") -> January | R96: =MONTH(F96) -> 1 | S96: =R96 -> 1 | T96: =DAY(F96) -> 6 | U96: ="<tr><td class="&""""&"dataright"&""""&">"& TEXT(A96,"0")&"</td><td class="&""""&"dataleft"&""""&">"& "<a href="&""""&L96&"\"&K96&""""&">"&B96&"</a></td><td class="&"""dataleft"">"& TEXT(C96,"")&"</td><td class="&""""&"dataleft"&""""&">"& TEXT(D96,"")&"</td><td class="&""""&"datacenter"&""""&">"& TEXT(E96,"")&"</td><td class="&""""&"dataleft"&""""&">"& TEXT(Q96,"")&"&nbsp;"&T96&",&nbsp;"&O96&"</td><td class="&""""&"dataleft"&""""&">"& TEXT(G96,"0.0")&"</td><td class="&""""&"datacenter"&""""&">"& TEXT(H96,"0")&"</td>"& "</tr>" -> <tr><td class="dataright">95</td><td class="dataleft"><a href="set03\tsr\tsr_october_26,_1916_-_august_3,_1922\birth\jacobson,_male_birth_to_martin_on_26th_january_6,_1922_p1_tsr.pdf">Jacobson</a></td><td class="dataleft"></td><td class="dataleft">Martin</td><td class="datacenter">M</td><td class="dataleft">January&nbsp;6,&nbsp;1922</td><td class="dataleft">The&nbsp;Sutton&nbsp;Reporter</td><td class="datacenter">1</td></tr> | V96: =LEN(D96) -> 6
A97: =OFFSET(A97,-1,0)+1 -> 96 | B97: Melgard | D97: Fred | E97: M | F97: 1922-01-06 | G97: The&nbsp;Sutton&nbsp;Reporter | H97: 1 | I97: 32 | J97: 813 | K97: melgard,_male_birth_to_fred_january_6,_1922_p1_tsr.pdf | L97: set03\tsr\tsr_october_26,_1916_-_august_3,_1922\birth | O97: =YEAR(F97) -> 1922 | P97: 1922 | Q97: =TEXT(F97,"mmmm") -> January | R97: =MONTH(F97) -> 1 | S97: =R97 -> 1 | T97: =DAY(F97) -> 6 | U97: ="<tr><td class="&""""&"dataright"&""""&">"& TEXT(A97,"0")&"</td><td class="&""""&"dataleft"&""""&">"& "<a href="&""""&L97&"\"&K97&""""&">"&B97&"</a></td><td class="&"""dataleft"">"& TEXT(C97,"")&"</td><td class="&""""&"dataleft"&""""&">"& TEXT(D97,"")&"</td><td class="&""""&"datacenter"&""""&">"& TEXT(E97,"")&"</td><td class="&""""&"dataleft"&""""&">"& TEXT(Q97,"")&"&nbsp;"&T97&",&nbsp;"&O97&"</td><td class="&""""&"dataleft"&""""&">"& TEXT(G97,"0.0")&"</td><td class="&""""&"datacenter"&""""&">"& TEXT(H97,"0")&"</td>"& "</tr>" -> <tr><td class="dataright">96</td><td class="dataleft"><a href="set03\tsr\tsr_october_26,_1916_-_august_3,_1922\birth\melgard,_male_birth_to_fred_january_6,_1922_p1_tsr.pdf">Melgard</a></td><td class="dataleft"></td><td class="dataleft">Fred</td><td class="datacenter">M</td><td class="dataleft">January&nbsp;6,&nbsp;1922</td><td class="dataleft">The&nbsp;Sutton&nbsp;Reporter</td><td class="datacenter">1</td></tr> | V97: =LEN(D97) -> 4
A98: =OFFSET(A98,-1,0)+1 -> 97 | B98: Hopwood | D98: Erbie | E98: M | F98: 1922-01-26 | G98: The&nbsp;Sutton&nbsp;Reporter | H98: 1 | I98: 32 | J98: 799 | K98: hopwood,_male_birth_to_erbie_january_26,_1922_p1_tsr.pdf | L98: set03\tsr\tsr_october_26,_1916_-_august_3,_1922\birth | O98: =YEAR(F98) -> 1922 | P98: 1922 | Q98: =TEXT(F98,"mmmm") -> January | R98: =MONTH(F98) -> 1 | S98: =R98 -> 1 | T98: =DAY(F98) -> 26 | U98: ="<tr><td class="&""""&"dataright"&""""&">"& TEXT(A98,"0")&"</td><td class="&""""&"dataleft"&""""&">"& "<a href="&""""&L98&"\"&K98&""""&">"&B98&"</a></td><td class="&"""dataleft"">"& TEXT(C98,"")&"</td><td class="&""""&"dataleft"&""""&">"& TEXT(D98,"")&"</td><td class="&""""&"datacenter"&""""&">"& TEXT(E98,"")&"</td><td class="&""""&"dataleft"&""""&">"& TEXT(Q98,"")&"&nbsp;"&T98&",&nbsp;"&O98&"</td><td class="&""""&"dataleft"&""""&">"& TEXT(G98,"0.0")&"</td><td class="&""""&"datacenter"&""""&">"& TEXT(H98,"0")&"</td>"& "</tr>" -> <tr><td class="dataright">97</td><td class="dataleft"><a href="set03\tsr\tsr_october_26,_1916_-_august_3,_1922\birth\hopwood,_male_birth_to_erbie_january_26,_1922_p1_tsr.pdf">Hopwood</a></td><td class="dataleft"></td><td class="dataleft">Erbie</td><td class="datacenter">M</td><td class="dataleft">January&nbsp;26,&nbsp;1922</td><td class="dataleft">The&nbsp;Sutton&nbsp;Reporter</td><td class="datacenter">1</td></tr> | V98: =LEN(D98) -> 5
A99: =OFFSET(A99,-1,0)+1 -> 98 | B99: Grotting | D99: Peter | E99: M | F99: 1922-02-09 | G99: The&nbsp;Sutton&nbsp;Reporter | H99: 1 | I99: 32 | J99: 793 | K99: grotting,_male_birth_to_peter_february_9,_1922_p1_tsr.pdf | L99: set03\tsr\tsr_october_26,_1916_-_august_3,_1922\birth | O99: =YEAR(F99) -> 1922 | P99: 1922 | Q99: =TEXT(F99,"mmmm") -> February | R99: =MONTH(F99) -> 2 | S99: =R99 -> 2 | T99: =DAY(F99) -> 9 | U99: ="<tr><td class="&""""&"dataright"&""""&">"& TEXT(A99,"0")&"</td><td class="&""""&"dataleft"&""""&">"& "<a href="&""""&L99&"\"&K99&""""&">"&B99&"</a></td><td class="&"""dataleft"">"& TEXT(C99,"")&"</td><td class="&""""&"dataleft"&""""&">"& TEXT(D99,"")&"</td><td class="&""""&"datacenter"&""""&">"& TEXT(E99,"")&"</td><td class="&""""&"dataleft"&""""&">"& TEXT(Q99,"")&"&nbsp;"&T99&",&nbsp;"&O99&"</td><td class="&""""&"dataleft"&""""&">"& TEXT(G99,"0.0")&"</td><td class="&""""&"datacenter"&""""&">"& TEXT(H99,"0")&"</td>"& "</tr>" -> <tr><td class="dataright">98</td><td class="dataleft"><a href="set03\tsr\tsr_october_26,_1916_-_august_3,_1922\birth\grotting,_male_birth_to_peter_february_9,_1922_p1_tsr.pdf">Grotting</a></td><td class="dataleft"></td><td class="dataleft">Peter</td><td class="datacenter">M</td><td class="dataleft">February&nbsp;9,&nbsp;1922</td><td class="dataleft">The&nbsp;Sutton&nbsp;Reporter</td><td class="datacenter">1</td></tr> | V99: =LEN(D99) -> 5
A100: =OFFSET(A100,-1,0)+1 -> 99 | B100: Howden | D100: J. B. | E100: F | F100: 1922-02-09 | G100: The&nbsp;Sutton&nbsp;Reporter | H100: 1 | I100: 32 | J100: 800 | K100: howden,_female_birth_to_j_b_february_9,_1922_p1_tsr.pdf | L100: set03\tsr\tsr_october_26,_1916_-_august_3,_1922\birth | O100: =YEAR(F100) -> 1922 | P100: 1922 | Q100: =TEXT(F100,"mmmm") -> February | R100: =MONTH(F100) -> 2 | S100: =R100 -> 2 | T100: =DAY(F100) -> 9 | U100: ="<tr><td class="&""""&"dataright"&""""&">"& TEXT(A100,"0")&"</td><td class="&""""&"dataleft"&""""&">"& "<a href="&""""&L100&"\"&K100&""""&">"&B100&"</a></td><td class="&"""dataleft"">"& TEXT(C100,"")&"</td><td class="&""""&"dataleft"&""""&">"& TEXT(D100,"")&"</td><td class="&""""&"datacenter"&""""&">"& TEXT(E100,"")&"</td><td class="&""""&"dataleft"&""""&">"& TEXT(Q100,"")&"&nbsp;"&T100&",&nbsp;"&O100&"</td><td class="&""""&"dataleft"&""""&">"& TEXT(G100,"0.0")&"</td><td class="&""""&"datacenter"&""""&">"& TEXT(H100,"0")&"</td>"& "</tr>" -> <tr><td class="dataright">99</td><td class="dataleft"><a href="set03\tsr\tsr_october_26,_1916_-_august_3,_1922\birth\howden,_female_birth_to_j_b_february_9,_1922_p1_tsr.pdf">Howden</a></td><td class="dataleft"></td><td class="dataleft">J. B.</td><td class="datacenter">F</td><td class="dataleft">February&nbsp;9,&nbsp;1922</td><td class="dataleft">The&nbsp;Sutton&nbsp;Reporter</td><td class="datacenter">1</td></tr> | V100: =LEN(D100) -> 5
A101: =OFFSET(A101,-1,0)+1 -> 100 | B101: Olson | D101: C. A. | E101: F | F101: 1922-02-23 | G101: The&nbsp;Sutton&nbsp;Reporter | H101: 1 | I101: 32 | J101: 818 | K101: olson,_female_birth_to_c_a_february_23,_1922_p1_tsr.pdf | L101: set03\tsr\tsr_october_26,_1916_-_august_3,_1922\birth | O101: =YEAR(F101) -> 1922 | P101: 1922 | Q101: =TEXT(F101,"mmmm") -> February | R101: =MONTH(F101) -> 2 | S101: =R101 -> 2 | T101: =DAY(F101) -> 23 | U101: ="<tr><td class="&""""&"dataright"&""""&">"& TEXT(A101,"0")&"</td><td class="&""""&"dataleft"&""""&">"& "<a href="&""""&L101&"\"&K101&""""&">"&B101&"</a></td><td class="&"""dataleft"">"& TEXT(C101,"")&"</td><td class="&""""&"dataleft"&""""&">"& TEXT(D101,"")&"</td><td class="&""""&"datacenter"&""""&">"& TEXT(E101,"")&"</td><td class="&""""&"dataleft"&""""&">"& TEXT(Q101,"")&"&nbsp;"&T101&",&nbsp;"&O101&"</td><td class="&""""&"dataleft"&""""&">"& TEXT(G101,"0.0")&"</td><td class="&""""&"datacenter"&""""&">"& TEXT(H101,"0")&"</td>"& "</tr>" -> <tr><td class="dataright">100</td><td class="dataleft"><a href="set03\tsr\tsr_october_26,_1916_-_august_3,_1922\birth\olson,_female_birth_to_c_a_february_23,_1922_p1_tsr.pdf">Olson</a></td><td class="dataleft"></td><td class="dataleft">C. A.</td><td class="datacenter">F</td><td class="dataleft">February&nbsp;23,&nbsp;1922</td><td class="dataleft">The&nbsp;Sutton&nbsp;Reporter</td><td class="datacenter">1</td></tr> | V101: =LEN(D101) -> 5
A102: =OFFSET(A102,-1,0)+1 -> 101 | B102: Honey | D102: H. S. | E102: F | F102: 1922-08-24 | G102: The&nbsp;Sutton&nbsp;Reporter | H102: 1 | I102: 33 | J102: 862 | K102: honey,_female_birth_to_h_s_august_24,_1922_p1_tsr.pdf | L102: set03\tsr\tsr_august_3,_1922_-_december_25,_1924\birth | O102: =YEAR(F102) -> 1922 | P102: 1922 | Q102: =TEXT(F102,"mmmm") -> August | R102: =MONTH(F102) -> 8 | S102: =R102 -> 8 | T102: =DAY(F102) -> 24 | U102: ="<tr><td class="&""""&"dataright"&""""&">"& TEXT(A102,"0")&"</td><td class="&""""&"dataleft"&""""&">"& "<a href="&""""&L102&"\"&K102&""""&">"&B102&"</a></td><td class="&"""dataleft"">"& TEXT(C102,"")&"</td><td class="&""""&"dataleft"&""""&">"& TEXT(D102,"")&"</td><td class="&""""&"datacenter"&""""&">"& TEXT(E102,"")&"</td><td class="&""""&"dataleft"&""""&">"& TEXT(Q102,"")&"&nbsp;"&T102&",&nbsp;"&O102&"</td><td class="&""""&"dataleft"&""""&">"& TEXT(G102,"0.0")&"</td><td class="&""""&"datacenter"&""""&">"& TEXT(H102,"0")&"</td>"& "</tr>" -> <tr><td class="dataright">101</td><td class="dataleft"><a href="set03\tsr\tsr_august_3,_1922_-_december_25,_1924\birth\honey,_female_birth_to_h_s_august_24,_1922_p1_tsr.pdf">Honey</a></td><td class="dataleft"></td><td class="dataleft">H. S.</td><td class="datacenter">F</td><td class="dataleft">August&nbsp;24,&nbsp;1922</td><td class="dataleft">The&nbsp;Sutton&nbsp;Reporter</td><td class="datacenter">1</td></tr> | V102: =LEN(D102) -> 5
A103: =OFFSET(A103,-1,0)+1 -> 102 | B103: Howden | D103: S. G. | E103: M | F103: 1922-10-12 | G103: The&nbsp;Sutton&nbsp;Reporter | H103: 1 | I103: 33 | J103: 863 | K103: howden,_male_birth_to_s_g_october_12,_1922_p1_tsr.pdf | L103: set03\tsr\tsr_august_3,_1922_-_december_25,_1924\birth | O103: =YEAR(F103) -> 1922 | P103: 1922 | Q103: =TEXT(F103,"mmmm") -> October | R103: =MONTH(F103) -> 10 | S103: =R103 -> 10 | T103: =DAY(F103) -> 12 | U103: ="<tr><td class="&""""&"dataright"&""""&">"& TEXT(A103,"0")&"</td><td class="&""""&"dataleft"&""""&">"& "<a href="&""""&L103&"\"&K103&""""&">"&B103&"</a></td><td class="&"""dataleft"">"& TEXT(C103,"")&"</td><td class="&""""&"dataleft"&""""&">"& TEXT(D103,"")&"</td><td class="&""""&"datacenter"&""""&">"& TEXT(E103,"")&"</td><td class="&""""&"dataleft"&""""&">"& TEXT(Q103,"")&"&nbsp;"&T103&",&nbsp;"&O103&"</td><td class="&""""&"dataleft"&""""&">"& TEXT(G103,"0.0")&"</td><td class="&""""&"datacenter"&""""&">"& TEXT(H103,"0")&"</td>"& "</tr>" -> <tr><td class="dataright">102</td><td class="dataleft"><a href="set03\tsr\tsr_august_3,_1922_-_december_25,_1924\birth\howden,_male_birth_to_s_g_october_12,_1922_p1_tsr.pdf">Howden</a></td><td class="dataleft"></td><td class="dataleft">S. G.</td><td class="datacenter">M</td><td class="dataleft">October&nbsp;12,&nbsp;1922</td><td class="dataleft">The&nbsp;Sutton&nbsp;Reporter</td><td class="datacenter">1</td></tr> | V103: =LEN(D103) -> 5
A104: =OFFSET(A104,-1,0)+1 -> 103 | B104: Lunder | D104: B. M. | E104: M | F104: 1922-11-30 | G104: The&nbsp;Sutton&nbsp;Reporter | H104: 1 | I104: 33 | J104: 867 | K104: lunder,_male_birth_to_b_m_november_30,_1922_p1_tsr.pdf | L104: set03\tsr\tsr_august_3,_1922_-_december_25,_1924\birth | O104: =YEAR(F104) -> 1922 | P104: 1922 | Q104: =TEXT(F104,"mmmm") -> November | R104: =MONTH(F104) -> 11 | S104: =R104 -> 11 | T104: =DAY(F104) -> 30 | U104: ="<tr><td class="&""""&"dataright"&""""&">"& TEXT(A104,"0")&"</td><td class="&""""&"dataleft"&""""&">"& "<a href="&""""&L104&"\"&K104&""""&">"&B104&"</a></td><td class="&"""dataleft"">"& TEXT(C104,"")&"</td><td class="&""""&"dataleft"&""""&">"& TEXT(D104,"")&"</td><td class="&""""&"datacenter"&""""&">"& TEXT(E104,"")&"</td><td class="&""""&"dataleft"&""""&">"& TEXT(Q104,"")&"&nbsp;"&T104&",&nbsp;"&O104&"</td><td class="&""""&"dataleft"&""""&">"& TEXT(G104,"0.0")&"</td><td class="&""""&"datacenter"&""""&">"& TEXT(H104,"0")&"</td>"& "</tr>" -> <tr><td class="dataright">103</td><td class="dataleft"><a href="set03\tsr\tsr_august_3,_1922_-_december_25,_1924\birth\lunder,_male_birth_to_b_m_november_30,_1922_p1_tsr.pdf">Lunder</a></td><td class="dataleft"></td><td class="dataleft">B. M.</td><td class="datacenter">M</td><td class="dataleft">November&nbsp;30,&nbsp;1922</td><td class="dataleft">The&nbsp;Sutton&nbsp;Reporter</td><td class="datacenter">1</td></tr> | V104: =LEN(D104) -> 5
A105: =OFFSET(A105,-1,0)+1 -> 104 | B105: Fallen | D105: C. W. | E105: F | F105: 1922-12-14 | G105: The&nbsp;Sutton&nbsp;Reporter | H105: 4 | I105: 33 | J105: 856 | K105: fallen,_female_birth_to_c_w_december_14,_1922_p4_tsr.pdf | L105: set03\tsr\tsr_august_3,_1922_-_december_25,_1924\birth | O105: =YEAR(F105) -> 1922 | P105: 1922 | Q105: =TEXT(F105,"mmmm") -> December | R105: =MONTH(F105) -> 12 | S105: =R105 -> 12 | T105: =DAY(F105) -> 14 | U105: ="<tr><td class="&""""&"dataright"&""""&">"& TEXT(A105,"0")&"</td><td class="&""""&"dataleft"&""""&">"& "<a href="&""""&L105&"\"&K105&""""&">"&B105&"</a></td><td class="&"""dataleft"">"& TEXT(C105,"")&"</td><td class="&""""&"dataleft"&""""&">"& TEXT(D105,"")&"</td><td class="&""""&"datacenter"&""""&">"& TEXT(E105,"")&"</td><td class="&""""&"dataleft"&""""&">"& TEXT(Q105,"")&"&nbsp;"&T105&",&nbsp;"&O105&"</td><td class="&""""&"dataleft"&""""&">"& TEXT(G105,"0.0")&"</td><td class="&""""&"datacenter"&""""&">"& TEXT(H105,"0")&"</td>"& "</tr>" -> <tr><td class="dataright">104</td><td class="dataleft"><a href="set03\tsr\tsr_august_3,_1922_-_december_25,_1924\birth\fallen,_female_birth_to_c_w_december_14,_1922_p4_tsr.pdf">Fallen</a></td><td class="dataleft"></td><td class="dataleft">C. W.</td><td class="datacenter">F</td><td class="dataleft">December&nbsp;14,&nbsp;1922</td><td class="dataleft">The&nbsp;Sutton&nbsp;Reporter</td><td class="datacenter">4</td></tr> | V105: =LEN(D105) -> 5
A106: =OFFSET(A106,-1,0)+1 -> 105 | B106: Fallen | D106: C. W. | E106: M | F106: 1921-01-27 | G106: The&nbsp;Sutton&nbsp;Reporter | H106: 1 | I106: 32 | J106: 791 | K106: fallen,_male_birth_to_c_w_january_27,_1921_p1_tsr.pdf | L106: set03\tsr\tsr_october_26,_1916_-_august_3,_1922\birth | O106: =YEAR(F106) -> 1921 | P106: 1921 | Q106: =TEXT(F106,"mmmm") -> January | R106: =MONTH(F106) -> 1 | S106: =R106 -> 1 | T106: =DAY(F106) -> 27 | U106: ="<tr><td class="&""""&"dataright"&""""&">"& TEXT(A106,"0")&"</td><td class="&""""&"dataleft"&""""&">"& "<a href="&""""&L106&"\"&K106&""""&">"&B106&"</a></td><td class="&"""dataleft"">"& TEXT(C106,"")&"</td><td class="&""""&"dataleft"&""""&">"& TEXT(D106,"")&"</td><td class="&""""&"datacenter"&""""&">"& TEXT(E106,"")&"</td><td class="&""""&"dataleft"&""""&">"& TEXT(Q106,"")&"&nbsp;"&T106&",&nbsp;"&O106&"</td><td class="&""""&"dataleft"&""""&">"& TEXT(G106,"0.0")&"</td><td class="&""""&"datacenter"&""""&">"& TEXT(H106,"0")&"</td>"& "</tr>" -> <tr><td class="dataright">105</td><td class="dataleft"><a href="set03\tsr\tsr_october_26,_1916_-_august_3,_1922\birth\fallen,_male_birth_to_c_w_january_27,_1921_p1_tsr.pdf">Fallen</a></td><td class="dataleft"></td><td class="dataleft">C. W.</td><td class="datacenter">M</td><td class="dataleft">January&nbsp;27,&nbsp;1921</td><td class="dataleft">The&nbsp;Sutton&nbsp;Reporter</td><td class="datacenter">1</td></tr> | V106: =LEN(D106) -> 5
A107: =OFFSET(A107,-1,0)+1 -> 106 | B107: Walum | D107: Marvin | E107: M | F107: 1921-02-08 | G107: Hannaford&nbsp;Enterprise | H107: 8 | I107: 23 | J107: 726 | K107: walum,_male_birth_to_marvin_february_8,_1921_p8_he.pdf | L107: set04\he_august 10, 1920 - july 31, 1923\birth | O107: =YEAR(F107) -> 1921 | P107: 1921 | Q107: =TEXT(F107,"mmmm") -> February | R107: =MONTH(F107) -> 2 | S107: =R107 -> 2 | T107: =DAY(F107) -> 8 | U107: ="<tr><td class="&""""&"dataright"&""""&">"& TEXT(A107,"0")&"</td><td class="&""""&"dataleft"&""""&">"& "<a href="&""""&L107&"\"&K107&""""&">"&B107&"</a></td><td class="&"""dataleft"">"& TEXT(C107,"")&"</td><td class="&""""&"dataleft"&""""&">"& TEXT(D107,"")&"</td><td class="&""""&"datacenter"&""""&">"& TEXT(E107,"")&"</td><td class="&""""&"dataleft"&""""&">"& TEXT(Q107,"")&"&nbsp;"&T107&",&nbsp;"&O107&"</td><td class="&""""&"dataleft"&""""&">"& TEXT(G107,"0.0")&"</td><td class="&""""&"datacenter"&""""&">"& TEXT(H107,"0")&"</td>"& "</tr>" -> <tr><td class="dataright">106</td><td class="dataleft"><a href="set04\he_august 10, 1920 - july 31, 1923\birth\walum,_male_birth_to_marvin_february_8,_1921_p8_he.pdf">Walum</a></td><td class="dataleft"></td><td class="dataleft">Marvin</td><td class="datacenter">M</td><td class="dataleft">February&nbsp;8,&nbsp;1921</td><td class="dataleft">Hannaford&nbsp;Enterprise</td><td class="datacenter">8</td></tr> | V107: =LEN(D107) -> 6
A108: =OFFSET(A108,-1,0)+1 -> 107 | B108: Miklethun | D108: John L. | E108: F | F108: 1921-02-15 | G108: Hannaford&nbsp;Enterprise | H108: 5 | I108: 23 | J108: 718 | K108: miklethun,_female_birth_to_john_l_february_15,_1921_p5_he.pdf | L108: set04\he_august 10, 1920 - july 31, 1923\birth | O108: =YEAR(F108) -> 1921 | P108: 1921 | Q108: =TEXT(F108,"mmmm") -> February | R108: =MONTH(F108) -> 2 | S108: =R108 -> 2 | T108: =DAY(F108) -> 15 | U108: ="<tr><td class="&""""&"dataright"&""""&">"& TEXT(A108,"0")&"</td><td class="&""""&"dataleft"&""""&">"& "<a href="&""""&L108&"\"&K108&""""&">"&B108&"</a></td><td class="&"""dataleft"">"& TEXT(C108,"")&"</td><td class="&""""&"dataleft"&""""&">"& TEXT(D108,"")&"</td><td class="&""""&"datacenter"&""""&">"& TEXT(E108,"")&"</td><td class="&""""&"dataleft"&""""&">"& TEXT(Q108,"")&"&nbsp;"&T108&",&nbsp;"&O108&"</td><td class="&""""&"dataleft"&""""&">"& TEXT(G108,"0.0")&"</td><td class="&""""&"datacenter"&""""&">"& TEXT(H108,"0")&"</td>"& "</tr>" -> <tr><td class="dataright">107</td><td class="dataleft"><a href="set04\he_august 10, 1920 - july 31, 1923\birth\miklethun,_female_birth_to_john_l_february_15,_1921_p5_he.pdf">Miklethun</a></td><td class="dataleft"></td><td class="dataleft">John L.</td><td class="datacenter">F</td><td class="dataleft">February&nbsp;15,&nbsp;1921</td><td class="dataleft">Hannaford&nbsp;Enterprise</td><td class="datacenter">5</td></tr> | V108: =LEN(D108) -> 7
A109: =OFFSET(A109,-1,0)+1 -> 108 | B109: Palm | D109: David | E109: M | F109: 1921-02-15 | G109: Hannaford&nbsp;Enterprise | H109: 5 | I109: 23 | J109: 720 | K109: palm,_male_birth_to_david_february_15,_1921_p5_he.pdf | L109: set04\he_august 10, 1920 - july 31, 1923\birth | O109: =YEAR(F109) -> 1921 | P109: 1921 | Q109: =TEXT(F109,"mmmm") -> February | R109: =MONTH(F109) -> 2 | S109: =R109 -> 2 | T109: =DAY(F109) -> 15 | U109: ="<tr><td class="&""""&"dataright"&""""&">"& TEXT(A109,"0")&"</td><td class="&""""&"dataleft"&""""&">"& "<a href="&""""&L109&"\"&K109&""""&">"&B109&"</a></td><td class="&"""dataleft"">"& TEXT(C109,"")&"</td><td class="&""""&"dataleft"&""""&">"& TEXT(D109,"")&"</td><td class="&""""&"datacenter"&""""&">"& TEXT(E109,"")&"</td><td class="&""""&"dataleft"&""""&">"& TEXT(Q109,"")&"&nbsp;"&T109&",&nbsp;"&O109&"</td><td class="&""""&"dataleft"&""""&">"& TEXT(G109,"0.0")&"</td><td class="&""""&"datacenter"&""""&">"& TEXT(H109,"0")&"</td>"& "</tr>" -> <tr><td class="dataright">108</td><td class="dataleft"><a href="set04\he_august 10, 1920 - july 31, 1923\birth\palm,_male_birth_to_david_february_15,_1921_p5_he.pdf">Palm</a></td><td class="dataleft"></td><td class="dataleft">David</td><td class="datacenter">M</td><td class="dataleft">February&nbsp;15,&nbsp;1921</td><td class="dataleft">Hannaford&nbsp;Enterprise</td><td class="datacenter">5</td></tr> | V109: =LEN(D109) -> 5
A110: =OFFSET(A110,-1,0)+1 -> 109 | B110: Rasmussen | D110: Hilmer | E110: M | F110: 1921-02-15 | G110: Hannaford&nbsp;Enterprise | H110: 5 | I110: 23 | J110: 721 | K110: rasmussen,_male_birth_to_hilmer_february_15,_1921_p5_he.pdf | L110: set04\he_august 10, 1920 - july 31, 1923\birth | O110: =YEAR(F110) -> 1921 | P110: 1921 | Q110: =TEXT(F110,"mmmm") -> February | R110: =MONTH(F110) -> 2 | S110: =R110 -> 2 | T110: =DAY(F110) -> 15 | U110: ="<tr><td class="&""""&"dataright"&""""&">"& TEXT(A110,"0")&"</td><td class="&""""&"dataleft"&""""&">"& "<a href="&""""&L110&"\"&K110&""""&">"&B110&"</a></td><td class="&"""dataleft"">"& TEXT(C110,"")&"</td><td class="&""""&"dataleft"&""""&">"& TEXT(D110,"")&"</td><td class="&""""&"datacenter"&""""&">"& TEXT(E110,"")&"</td><td class="&""""&"dataleft"&""""&">"& TEXT(Q110,"")&"&nbsp;"&T110&",&nbsp;"&O110&"</td><td class="&""""&"dataleft"&""""&">"& TEXT(G110,"0.0")&"</td><td class="&""""&"datacenter"&""""&">"& TEXT(H110,"0")&"</td>"& "</tr>" -> <tr><td class="dataright">109</td><td class="dataleft"><a href="set04\he_august 10, 1920 - july 31, 1923\birth\rasmussen,_male_birth_to_hilmer_february_15,_1921_p5_he.pdf">Rasmussen</a></td><td class="dataleft"></td><td class="dataleft">Hilmer</td><td class="datacenter">M</td><td class="dataleft">February&nbsp;15,&nbsp;1921</td><td class="dataleft">Hannaford&nbsp;Enterprise</td><td class="datacenter">5</td></tr> | V110: =LEN(D110) -> 6
A111: =OFFSET(A111,-1,0)+1 -> 110 | B111: Rohlwing | D111: Ernest | E111: M | F111: 1921-02-15 | G111: Hannaford&nbsp;Enterprise | H111: 5 | I111: 23 | J111: 723 | K111: rohlwing,_male_birth_to_ernest_february_15,_1921_p5_he.pdf | L111: set04\he_august 10, 1920 - july 31, 1923\birth | O111: =YEAR(F111) -> 1921 | P111: 1921 | Q111: =TEXT(F111,"mmmm") -> February | R111: =MONTH(F111) -> 2 | S111: =R111 -> 2 | T111: =DAY(F111) -> 15 | U111: ="<tr><td class="&""""&"dataright"&""""&">"& TEXT(A111,"0")&"</td><td class="&""""&"dataleft"&""""&">"& "<a href="&""""&L111&"\"&K111&""""&">"&B111&"</a></td><td class="&"""dataleft"">"& TEXT(C111,"")&"</td><td class="&""""&"dataleft"&""""&">"& TEXT(D111,"")&"</td><td class="&""""&"datacenter"&""""&">"& TEXT(E111,"")&"</td><td class="&""""&"dataleft"&""""&">"& TEXT(Q111,"")&"&nbsp;"&T111&",&nbsp;"&O111&"</td><td class="&""""&"dataleft"&""""&">"& TEXT(G111,"0.0")&"</td><td class="&""""&"datacenter"&""""&">"& TEXT(H111,"0")&"</td>"& "</tr>" -> <tr><td class="dataright">110</td><td class="dataleft"><a href="set04\he_august 10, 1920 - july 31, 1923\birth\rohlwing,_male_birth_to_ernest_february_15,_1921_p5_he.pdf">Rohlwing</a></td><td class="dataleft"></td><td class="dataleft">Ernest</td><td class="datacenter">M</td><td class="dataleft">February&nbsp;15,&nbsp;1921</td><td class="dataleft">Hannaford&nbsp;Enterprise</td><td class="datacenter">5</td></tr> | V111: =LEN(D111) -> 6
A112: =OFFSET(A112,-1,0)+1 -> 111 | B112: Fadness | D112: E. M. | E112: F | F112: 1921-03-17 | G112: The&nbsp;Sutton&nbsp;Reporter | H112: 1 | I112: 32 | J112: 786 | K112: fadness,_female_birth_to_e_m_march_17,_1921_p1_tsr.pdf | L112: set03\tsr\tsr_october_26,_1916_-_august_3,_1922\birth | O112: =YEAR(F112) -> 1921 | P112: 1921 | Q112: =TEXT(F112,"mmmm") -> March | R112: =MONTH(F112) -> 3 | S112: =R112 -> 3 | T112: =DAY(F112) -> 17 | U112: ="<tr><td class="&""""&"dataright"&""""&">"& TEXT(A112,"0")&"</td><td class="&""""&"dataleft"&""""&">"& "<a href="&""""&L112&"\"&K112&""""&">"&B112&"</a></td><td class="&"""dataleft"">"& TEXT(C112,"")&"</td><td class="&""""&"dataleft"&""""&">"& TEXT(D112,"")&"</td><td class="&""""&"datacenter"&""""&">"& TEXT(E112,"")&"</td><td class="&""""&"dataleft"&""""&">"& TEXT(Q112,"")&"&nbsp;"&T112&",&nbsp;"&O112&"</td><td class="&""""&"dataleft"&""""&">"& TEXT(G112,"0.0")&"</td><td class="&""""&"datacenter"&""""&">"& TEXT(H112,"0")&"</td>"& "</tr>" -> <tr><td class="dataright">111</td><td class="dataleft"><a href="set03\tsr\tsr_october_26,_1916_-_august_3,_1922\birth\fadness,_female_birth_to_e_m_march_17,_1921_p1_tsr.pdf">Fadness</a></td><td class="dataleft"></td><td class="dataleft">E. M.</td><td class="datacenter">F</td><td class="dataleft">March&nbsp;17,&nbsp;1921</td><td class="dataleft">The&nbsp;Sutton&nbsp;Reporter</td><td class="datacenter">1</td></tr> | V112: =LEN(D112) -> 5
A113: =OFFSET(A113,-1,0)+1 -> 112 | B113: Vance | D113: Ralph | E113: M | F113: 1921-04-07 | G113: The&nbsp;Sutton&nbsp;Reporter | H113: 4 | I113: 32 | J113: 838 | K113: vance,_male_birth_to_ralph_april_7,_1921_p4_tsr.pdf | L113: set03\tsr\tsr_october_26,_1916_-_august_3,_1922\birth | O113: =YEAR(F113) -> 1921 | P113: 1921 | Q113: =TEXT(F113,"mmmm") -> April | R113: =MONTH(F113) -> 4 | S113: =R113 -> 4 | T113: =DAY(F113) -> 7 | U113: ="<tr><td class="&""""&"dataright"&""""&">"& TEXT(A113,"0")&"</td><td class="&""""&"dataleft"&""""&">"& "<a href="&""""&L113&"\"&K113&""""&">"&B113&"</a></td><td class="&"""dataleft"">"& TEXT(C113,"")&"</td><td class="&""""&"dataleft"&""""&">"& TEXT(D113,"")&"</td><td class="&""""&"datacenter"&""""&">"& TEXT(E113,"")&"</td><td class="&""""&"dataleft"&""""&">"& TEXT(Q113,"")&"&nbsp;"&T113&",&nbsp;"&O113&"</td><td class="&""""&"dataleft"&""""&">"& TEXT(G113,"0.0")&"</td><td class="&""""&"datacenter"&""""&">"& TEXT(H113,"0")&"</td>"& "</tr>" -> <tr><td class="dataright">112</td><td class="dataleft"><a href="set03\tsr\tsr_october_26,_1916_-_august_3,_1922\birth\vance,_male_birth_to_ralph_april_7,_1921_p4_tsr.pdf">Vance</a></td><td class="dataleft"></td><td class="dataleft">Ralph</td><td class="datacenter">M</td><td class="dataleft">April&nbsp;7,&nbsp;1921</td><td class="dataleft">The&nbsp;Sutton&nbsp;Reporter</td><td class="datacenter">4</td></tr> | V113: =LEN(D113) -> 5
A114: =OFFSET(A114,-1,0)+1 -> 113 | B114: Hauge | D114: Wm. | E114: F | F114: 1921-04-21 | G114: The&nbsp;Sutton&nbsp;Reporter | H114: 1 | I114: 32 | J114: 797 | K114: hauge,_female_birth_to_wm_april_21,_1921_p1_tsr.pdf | L114: set03\tsr\tsr_october_26,_1916_-_august_3,_1922\birth | O114: =YEAR(F114) -> 1921 | P114: 1921 | Q114: =TEXT(F114,"mmmm") -> April | R114: =MONTH(F114) -> 4 | S114: =R114 -> 4 | T114: =DAY(F114) -> 21 | U114: ="<tr><td class="&""""&"dataright"&""""&">"& TEXT(A114,"0")&"</td><td class="&""""&"dataleft"&""""&">"& "<a href="&""""&L114&"\"&K114&""""&">"&B114&"</a></td><td class="&"""dataleft"">"& TEXT(C114,"")&"</td><td class="&""""&"dataleft"&""""&">"& TEXT(D114,"")&"</td><td class="&""""&"datacenter"&""""&">"& TEXT(E114,"")&"</td><td class="&""""&"dataleft"&""""&">"& TEXT(Q114,"")&"&nbsp;"&T114&",&nbsp;"&O114&"</td><td class="&""""&"dataleft"&""""&">"& TEXT(G114,"0.0")&"</td><td class="&""""&"datacenter"&""""&">"& TEXT(H114,"0")&"</td>"& "</tr>" -> <tr><td class="dataright">113</td><td class="dataleft"><a href="set03\tsr\tsr_october_26,_1916_-_august_3,_1922\birth\hauge,_female_birth_to_wm_april_21,_1921_p1_tsr.pdf">Hauge</a></td><td class="dataleft"></td><td class="dataleft">Wm.</td><td class="datacenter">F</td><td class="dataleft">April&nbsp;21,&nbsp;1921</td><td class="dataleft">The&nbsp;Sutton&nbsp;Reporter</td><td class="datacenter">1</td></tr> | V114: =LEN(D114) -> 3
A115: =OFFSET(A115,-1,0)+1 -> 114 | B115: Milender | D115: Roy | E115: M | F115: 1921-04-21 | G115: The&nbsp;Sutton&nbsp;Reporter | H115: 1 | I115: 32 | J115: 814 | K115: milender,_male_birth_to_roy_april_21,_1921_p1_tsr.pdf | L115: set03\tsr\tsr_october_26,_1916_-_august_3,_1922\birth | O115: =YEAR(F115) -> 1921 | P115: 1921 | Q115: =TEXT(F115,"mmmm") -> April | R115: =MONTH(F115) -> 4 | S115: =R115 -> 4 | T115: =DAY(F115) -> 21 | U115: ="<tr><td class="&""""&"dataright"&""""&">"& TEXT(A115,"0")&"</td><td class="&""""&"dataleft"&""""&">"& "<a href="&""""&L115&"\"&K115&""""&">"&B115&"</a></td><td class="&"""dataleft"">"& TEXT(C115,"")&"</td><td class="&""""&"dataleft"&""""&">"& TEXT(D115,"")&"</td><td class="&""""&"datacenter"&""""&">"& TEXT(E115,"")&"</td><td class="&""""&"dataleft"&""""&">"& TEXT(Q115,"")&"&nbsp;"&T115&",&nbsp;"&O115&"</td><td class="&""""&"dataleft"&""""&">"& TEXT(G115,"0.0")&"</td><td class="&""""&"datacenter"&""""&">"& TEXT(H115,"0")&"</td>"& "</tr>" -> <tr><td class="dataright">114</td><td class="dataleft"><a href="set03\tsr\tsr_october_26,_1916_-_august_3,_1922\birth\milender,_male_birth_to_roy_april_21,_1921_p1_tsr.pdf">Milender</a></td><td class="dataleft"></td><td class="dataleft">Roy</td><td class="datacenter">M</td><td class="dataleft">April&nbsp;21,&nbsp;1921</td><td class="dataleft">The&nbsp;Sutton&nbsp;Reporter</td><td class="datacenter">1</td></tr> | V115: =LEN(D115) -> 3
A116: =OFFSET(A116,-1,0)+1 -> 115 | B116: Williams | D116: Ted | F116: 1921-04-28 | G116: The&nbsp;Sutton&nbsp;Reporter | H116: 1 | I116: 32 | J116: 845 | K116: williams,_birth_to_ted_april_28,_1921_p1_tsr.pdf | L116: set03\tsr\tsr_october_26,_1916_-_august_3,_1922\birth | O116: =YEAR(F116) -> 1921 | P116: 1921 | Q116: =TEXT(F116,"mmmm") -> April | R116: =MONTH(F116) -> 4 | S116: =R116 -> 4 | T116: =DAY(F116) -> 28 | U116: ="<tr><td class="&""""&"dataright"&""""&">"& TEXT(A116,"0")&"</td><td class="&""""&"dataleft"&""""&">"& "<a href="&""""&L116&"\"&K116&""""&">"&B116&"</a></td><td class="&"""dataleft"">"& TEXT(C116,"")&"</td><td class="&""""&"dataleft"&""""&">"& TEXT(D116,"")&"</td><td class="&""""&"datacenter"&""""&">"& TEXT(E116,"")&"</td><td class="&""""&"dataleft"&""""&">"& TEXT(Q116,"")&"&nbsp;"&T116&",&nbsp;"&O116&"</td><td class="&""""&"dataleft"&""""&">"& TEXT(G116,"0.0")&"</td><td class="&""""&"datacenter"&""""&">"& TEXT(H116,"0")&"</td>"& "</tr>" -> <tr><td class="dataright">115</td><td class="dataleft"><a href="set03\tsr\tsr_october_26,_1916_-_august_3,_1922\birth\williams,_birth_to_ted_april_28,_1921_p1_tsr.pdf">Williams</a></td><td class="dataleft"></td><td class="dataleft">Ted</td><td class="datacenter"></td><td class="dataleft">April&nbsp;28,&nbsp;1921</td><td class="dataleft">The&nbsp;Sutton&nbsp;Reporter</td><td class="datacenter">1</td></tr> | V116: =LEN(D116) -> 3
A117: =OFFSET(A117,-1,0)+1 -> 116 | B117: Simenson | D117: Oliver | E117: M | F117: 1921-05-05 | G117: The&nbsp;Sutton&nbsp;Reporter | H117: 4 | I117: 32 | J117: 829 | K117: simenson,_male_birth_to_oliver_may_5,_1921_p4_tsr.pdf | L117: set03\tsr\tsr_october_26,_1916_-_august_3,_1922\birth | O117: =YEAR(F117) -> 1921 | P117: 1921 | Q117: =TEXT(F117,"mmmm") -> May | R117: =MONTH(F117) -> 5 | S117: =R117 -> 5 | T117: =DAY(F117) -> 5 | U117: ="<tr><td class="&""""&"dataright"&""""&">"& TEXT(A117,"0")&"</td><td class="&""""&"dataleft"&""""&">"& "<a href="&""""&L117&"\"&K117&""""&">"&B117&"</a></td><td class="&"""dataleft"">"& TEXT(C117,"")&"</td><td class="&""""&"dataleft"&""""&">"& TEXT(D117,"")&"</td><td class="&""""&"datacenter"&""""&">"& TEXT(E117,"")&"</td><td class="&""""&"dataleft"&""""&">"& TEXT(Q117,"")&"&nbsp;"&T117&",&nbsp;"&O117&"</td><td class="&""""&"dataleft"&""""&">"& TEXT(G117,"0.0")&"</td><td class="&""""&"datacenter"&""""&">"& TEXT(H117,"0")&"</td>"& "</tr>" -> <tr><td class="dataright">116</td><td class="dataleft"><a href="set03\tsr\tsr_october_26,_1916_-_august_3,_1922\birth\simenson,_male_birth_to_oliver_may_5,_1921_p4_tsr.pdf">Simenson</a></td><td class="dataleft"></td><td class="dataleft">Oliver</td><td class="datacenter">M</td><td class="dataleft">May&nbsp;5,&nbsp;1921</td><td class="dataleft">The&nbsp;Sutton&nbsp;Reporter</td><td class="datacenter">4</td></tr> | V117: =LEN(D117) -> 6
A118: =OFFSET(A118,-1,0)+1 -> 117 | B118: Westerhausen | D118: Wm. | F118: 1921-05-05 | G118: The&nbsp;Sutton&nbsp;Reporter | H118: 1 | I118: 32 | J118: 842 | K118: westerhausen,_birth_to_wm_may_5,_1921_p1_tsr.pdf | L118: set03\tsr\tsr_october_26,_1916_-_august_3,_1922\birth | O118: =YEAR(F118) -> 1921 | P118: 1921 | Q118: =TEXT(F118,"mmmm") -> May | R118: =MONTH(F118) -> 5 | S118: =R118 -> 5 | T118: =DAY(F118) -> 5 | U118: ="<tr><td class="&""""&"dataright"&""""&">"& TEXT(A118,"0")&"</td><td class="&""""&"dataleft"&""""&">"& "<a href="&""""&L118&"\"&K118&""""&">"&B118&"</a></td><td class="&"""dataleft"">"& TEXT(C118,"")&"</td><td class="&""""&"dataleft"&""""&">"& TEXT(D118,"")&"</td><td class="&""""&"datacenter"&""""&">"& TEXT(E118,"")&"</td><td class="&""""&"dataleft"&""""&">"& TEXT(Q118,"")&"&nbsp;"&T118&",&nbsp;"&O118&"</td><td class="&""""&"dataleft"&""""&">"& TEXT(G118,"0.0")&"</td><td class="&""""&"datacenter"&""""&">"& TEXT(H118,"0")&"</td>"& "</tr>" -> <tr><td class="dataright">117</td><td class="dataleft"><a href="set03\tsr\tsr_october_26,_1916_-_august_3,_1922\birth\westerhausen,_birth_to_wm_may_5,_1921_p1_tsr.pdf">Westerhausen</a></td><td class="dataleft"></td><td class="dataleft">Wm.</td><td class="datacenter"></td><td class="dataleft">May&nbsp;5,&nbsp;1921</td><td class="dataleft">The&nbsp;Sutton&nbsp;Reporter</td><td class="datacenter">1</td></tr> | V118: =LEN(D118) -> 3
A119: =OFFSET(A119,-1,0)+1 -> 118 | B119: Wagoner | D119: Roy | E119: F | F119: 1921-05-26 | G119: The&nbsp;Sutton&nbsp;Reporter | H119: 4 | I119: 32 | J119: 839 | K119: wagoner,_female_birth_to_roy_may_26,_1921_p4_tsr.pdf | L119: set03\tsr\tsr_october_26,_1916_-_august_3,_1922\birth | O119: =YEAR(F119) -> 1921 | P119: 1921 | Q119: =TEXT(F119,"mmmm") -> May | R119: =MONTH(F119) -> 5 | S119: =R119 -> 5 | T119: =DAY(F119) -> 26 | U119: ="<tr><td class="&""""&"dataright"&""""&">"& TEXT(A119,"0")&"</td><td class="&""""&"dataleft"&""""&">"& "<a href="&""""&L119&"\"&K119&""""&">"&B119&"</a></td><td class="&"""dataleft"">"& TEXT(C119,"")&"</td><td class="&""""&"dataleft"&""""&">"& TEXT(D119,"")&"</td><td class="&""""&"datacenter"&""""&">"& TEXT(E119,"")&"</td><td class="&""""&"dataleft"&""""&">"& TEXT(Q119,"")&"&nbsp;"&T119&",&nbsp;"&O119&"</td><td class="&""""&"dataleft"&""""&">"& TEXT(G119,"0.0")&"</td><td class="&""""&"datacenter"&""""&">"& TEXT(H119,"0")&"</td>"& "</tr>" -> <tr><td class="dataright">118</td><td class="dataleft"><a href="set03\tsr\tsr_october_26,_1916_-_august_3,_1922\birth\wagoner,_female_birth_to_roy_may_26,_1921_p4_tsr.pdf">Wagoner</a></td><td class="dataleft"></td><td class="dataleft">Roy</td><td class="datacenter">F</td><td class="dataleft">May&nbsp;26,&nbsp;1921</td><td class="dataleft">The&nbsp;Sutton&nbsp;Reporter</td><td class="datacenter">4</td></tr> | V119: =LEN(D119) -> 3
A120: =OFFSET(A120,-1,0)+1 -> 119 | B120: Anderson | D120: A. H. | E120: M | F120: 1921-06-14 | G120: Hannaford&nbsp;Enterprise | H120: 5 | I120: 23 | J120: 708 | K120: anderson,_male_birth_to_a_h_june_14,_1921_p5_he.pdf | L120: set04\he_august 10, 1920 - july 31, 1923\birth | O120: =YEAR(F120) -> 1921 | P120: 1921 | Q120: =TEXT(F120,"mmmm") -> June | R120: =MONTH(F120) -> 6 | S120: =R120 -> 6 | T120: =DAY(F120) -> 14 | U120: ="<tr><td class="&""""&"dataright"&""""&">"& TEXT(A120,"0")&"</td><td class="&""""&"dataleft"&""""&">"& "<a href="&""""&L120&"\"&K120&""""&">"&B120&"</a></td><td class="&"""dataleft"">"& TEXT(C120,"")&"</td><td class="&""""&"dataleft"&""""&">"& TEXT(D120,"")&"</td><td class="&""""&"datacenter"&""""&">"& TEXT(E120,"")&"</td><td class="&""""&"dataleft"&""""&">"& TEXT(Q120,"")&"&nbsp;"&T120&",&nbsp;"&O120&"</td><td class="&""""&"dataleft"&""""&">"& TEXT(G120,"0.0")&"</td><td class="&""""&"datacenter"&""""&">"& TEXT(H120,"0")&"</td>"& "</tr>" -> <tr><td class="dataright">119</td><td class="dataleft"><a href="set04\he_august 10, 1920 - july 31, 1923\birth\anderson,_male_birth_to_a_h_june_14,_1921_p5_he.pdf">Anderson</a></td><td class="dataleft"></td><td class="dataleft">A. H.</td><td class="datacenter">M</td><td class="dataleft">June&nbsp;14,&nbsp;1921</td><td class="dataleft">Hannaford&nbsp;Enterprise</td><td class="datacenter">5</td></tr> | V120: =LEN(D120) -> 5
A121: =OFFSET(A121,-1,0)+1 -> 120 | B121: Albrecht | D121: Frank | E121: F | F121: 1921-08-04 | G121: The&nbsp;Sutton&nbsp;Reporter | H121: 1 | I121: 32 | J121: 779 | K121: albrecht,_female_birth_to_frank_august_4,_1921_p1_tsr.pdf | L121: set03\tsr\tsr_october_26,_1916_-_august_3,_1922\birth | O121: =YEAR(F121) -> 1921 | P121: 1921 | Q121: =TEXT(F121,"mmmm") -> August | R121: =MONTH(F121) -> 8 | S121: =R121 -> 8 | T121: =DAY(F121) -> 4 | U121: ="<tr><td class="&""""&"dataright"&""""&">"& TEXT(A121,"0")&"</td><td class="&""""&"dataleft"&""""&">"& "<a href="&""""&L121&"\"&K121&""""&">"&B121&"</a></td><td class="&"""dataleft"">"& TEXT(C121,"")&"</td><td class="&""""&"dataleft"&""""&">"& TEXT(D121,"")&"</td><td class="&""""&"datacenter"&""""&">"& TEXT(E121,"")&"</td><td class="&""""&"dataleft"&""""&">"& TEXT(Q121,"")&"&nbsp;"&T121&",&nbsp;"&O121&"</td><td class="&""""&"dataleft"&""""&">"& TEXT(G121,"0.0")&"</td><td class="&""""&"datacenter"&""""&">"& TEXT(H121,"0")&"</td>"& "</tr>" -> <tr><td class="dataright">120</td><td class="dataleft"><a href="set03\tsr\tsr_october_26,_1916_-_august_3,_1922\birth\albrecht,_female_birth_to_frank_august_4,_1921_p1_tsr.pdf">Albrecht</a></td><td class="dataleft"></td><td class="dataleft">Frank</td><td class="datacenter">F</td><td class="dataleft">August&nbsp;4,&nbsp;1921</td><td class="dataleft">The&nbsp;Sutton&nbsp;Reporter</td><td class="datacenter">1</td></tr> | V121: =LEN(D121) -> 5
A122: =OFFSET(A122,-1,0)+1 -> 121 | B122: Howden | D122: S. G. | E122: F | F122: 1921-08-11 | G122: The&nbsp;Sutton&nbsp;Reporter | H122: 4 | I122: 32 | J122: 801 | K122: howden,_female_birth_to_s_g_august_11,_1921_p4_tsr.pdf | L122: set03\tsr\tsr_october_26,_1916_-_august_3,_1922\birth | O122: =YEAR(F122) -> 1921 | P122: 1921 | Q122: =TEXT(F122,"mmmm") -> August | R122: =MONTH(F122) -> 8 | S122: =R122 -> 8 | T122: =DAY(F122) -> 11 | U122: ="<tr><td class="&""""&"dataright"&""""&">"& TEXT(A122,"0")&"</td><td class="&""""&"dataleft"&""""&">"& "<a href="&""""&L122&"\"&K122&""""&">"&B122&"</a></td><td class="&"""dataleft"">"& TEXT(C122,"")&"</td><td class="&""""&"dataleft"&""""&">"& TEXT(D122,"")&"</td><td class="&""""&"datacenter"&""""&">"& TEXT(E122,"")&"</td><td class="&""""&"dataleft"&""""&">"& TEXT(Q122,"")&"&nbsp;"&T122&",&nbsp;"&O122&"</td><td class="&""""&"dataleft"&""""&">"& TEXT(G122,"0.0")&"</td><td class="&""""&"datacenter"&""""&">"& TEXT(H122,"0")&"</td>"& "</tr>" -> <tr><td class="dataright">121</td><td class="dataleft"><a href="set03\tsr\tsr_october_26,_1916_-_august_3,_1922\birth\howden,_female_birth_to_s_g_august_11,_1921_p4_tsr.pdf">Howden</a></td><td class="dataleft"></td><td class="dataleft">S. G.</td><td class="datacenter">F</td><td class="dataleft">August&nbsp;11,&nbsp;1921</td><td class="dataleft">The&nbsp;Sutton&nbsp;Reporter</td><td class="datacenter">4</td></tr> | V122: =LEN(D122) -> 5
A123: =OFFSET(A123,-1,0)+1 -> 122 | B123: Markuson | D123: Melvin | E123: F | F123: 1921-10-04 | G123: Hannaford&nbsp;Enterprise | H123: 5 | I123: 23 | J123: 717 | K123: markuson,_female_birth_to_melvin_october_4,_1921_p5_he.pdf | L123: set04\he_august 10, 1920 - july 31, 1923\birth | O123: =YEAR(F123) -> 1921 | P123: 1921 | Q123: =TEXT(F123,"mmmm") -> October | R123: =MONTH(F123) -> 10 | S123: =R123 -> 10 | T123: =DAY(F123) -> 4 | U123: ="<tr><td class="&""""&"dataright"&""""&">"& TEXT(A123,"0")&"</td><td class="&""""&"dataleft"&""""&">"& "<a href="&""""&L123&"\"&K123&""""&">"&B123&"</a></td><td class="&"""dataleft"">"& TEXT(C123,"")&"</td><td class="&""""&"dataleft"&""""&">"& TEXT(D123,"")&"</td><td class="&""""&"datacenter"&""""&">"& TEXT(E123,"")&"</td><td class="&""""&"dataleft"&""""&">"& TEXT(Q123,"")&"&nbsp;"&T123&",&nbsp;"&O123&"</td><td class="&""""&"dataleft"&""""&">"& TEXT(G123,"0.0")&"</td><td class="&""""&"datacenter"&""""&">"& TEXT(H123,"0")&"</td>"& "</tr>" -> <tr><td class="dataright">122</td><td class="dataleft"><a href="set04\he_august 10, 1920 - july 31, 1923\birth\markuson,_female_birth_to_melvin_october_4,_1921_p5_he.pdf">Markuson</a></td><td class="dataleft"></td><td class="dataleft">Melvin</td><td class="datacenter">F</td><td class="dataleft">October&nbsp;4,&nbsp;1921</td><td class="dataleft">Hannaford&nbsp;Enterprise</td><td class="datacenter">5</td></tr> | V123: =LEN(D123) -> 6
A124: =OFFSET(A124,-1,0)+1 -> 123 | B124: Hareland | D124: Ludvig | E124: M | F124: 1921-10-25 | G124: Hannaford&nbsp;Enterprise | H124: 5 | I124: 23 | J124: 715 | K124: hareland,_male_birth_to_ludvig_october_25,_1921_p5_he.pdf | L124: set04\he_august 10, 1920 - july 31, 1923\birth | O124: =YEAR(F124) -> 1921 | P124: 1921 | Q124: =TEXT(F124,"mmmm") -> October | R124: =MONTH(F124) -> 10 | S124: =R124 -> 10 | T124: =DAY(F124) -> 25 | U124: ="<tr><td class="&""""&"dataright"&""""&">"& TEXT(A124,"0")&"</td><td class="&""""&"dataleft"&""""&">"& "<a href="&""""&L124&"\"&K124&""""&">"&B124&"</a></td><td class="&"""dataleft"">"& TEXT(C124,"")&"</td><td class="&""""&"dataleft"&""""&">"& TEXT(D124,"")&"</td><td class="&""""&"datacenter"&""""&">"& TEXT(E124,"")&"</td><td class="&""""&"dataleft"&""""&">"& TEXT(Q124,"")&"&nbsp;"&T124&",&nbsp;"&O124&"</td><td class="&""""&"dataleft"&""""&">"& TEXT(G124,"0.0")&"</td><td class="&""""&"datacenter"&""""&">"& TEXT(H124,"0")&"</td>"& "</tr>" -> <tr><td class="dataright">123</td><td class="dataleft"><a href="set04\he_august 10, 1920 - july 31, 1923\birth\hareland,_male_birth_to_ludvig_october_25,_1921_p5_he.pdf">Hareland</a></td><td class="dataleft"></td><td class="dataleft">Ludvig</td><td class="datacenter">M</td><td class="dataleft">October&nbsp;25,&nbsp;1921</td><td class="dataleft">Hannaford&nbsp;Enterprise</td><td class="datacenter">5</td></tr> | V124: =LEN(D124) -> 6
A125: =OFFSET(A125,-1,0)+1 -> 124 | B125: Nelson | D125: Robert | E125: F | F125: 1921-10-25 | G125: Hannaford&nbsp;Enterprise | H125: 5 | I125: 23 | J125: 719 | K125: nelson,_female_birth_to_robert_october_25,_1921_p5_he.pdf | L125: set04\he_august 10, 1920 - july 31, 1923\birth | O125: =YEAR(F125) -> 1921 | P125: 1921 | Q125: =TEXT(F125,"mmmm") -> October | R125: =MONTH(F125) -> 10 | S125: =R125 -> 10 | T125: =DAY(F125) -> 25 | U125: ="<tr><td class="&""""&"dataright"&""""&">"& TEXT(A125,"0")&"</td><td class="&""""&"dataleft"&""""&">"& "<a href="&""""&L125&"\"&K125&""""&">"&B125&"</a></td><td class="&"""dataleft"">"& TEXT(C125,"")&"</td><td class="&""""&"dataleft"&""""&">"& TEXT(D125,"")&"</td><td class="&""""&"datacenter"&""""&">"& TEXT(E125,"")&"</td><td class="&""""&"dataleft"&""""&">"& TEXT(Q125,"")&"&nbsp;"&T125&",&nbsp;"&O125&"</td><td class="&""""&"dataleft"&""""&">"& TEXT(G125,"0.0")&"</td><td class="&""""&"datacenter"&""""&">"& TEXT(H125,"0")&"</td>"& "</tr>" -> <tr><td class="dataright">124</td><td class="dataleft"><a href="set04\he_august 10, 1920 - july 31, 1923\birth\nelson,_female_birth_to_robert_october_25,_1921_p5_he.pdf">Nelson</a></td><td class="dataleft"></td><td class="dataleft">Robert</td><td class="datacenter">F</td><td class="dataleft">October&nbsp;25,&nbsp;1921</td><td class="dataleft">Hannaford&nbsp;Enterprise</td><td class="datacenter">5</td></tr> | V125: =LEN(D125) -> 6
A126: =OFFSET(A126,-1,0)+1 -> 125 | B126: Walker | C126: Lucy | D126: George | E126: M | F126: 1921-11-17 | G126: The&nbsp;Sutton&nbsp;Reporter | H126: 1 | I126: 32 | J126: 841 | K126: walker,_male_birth_to_george_and_lucy_november_17,_1921_p1_tsr.pdf | L126: set03\tsr\tsr_october_26,_1916_-_august_3,_1922\birth | O126: =YEAR(F126) -> 1921 | P126: 1921 | Q126: =TEXT(F126,"mmmm") -> November | R126: =MONTH(F126) -> 11 | S126: =R126 -> 11 | T126: =DAY(F126) -> 17 | U126: ="<tr><td class="&""""&"dataright"&""""&">"& TEXT(A126,"0")&"</td><td class="&""""&"dataleft"&""""&">"& "<a href="&""""&L126&"\"&K126&""""&">"&B126&"</a></td><td class="&"""dataleft"">"& TEXT(C126,"")&"</td><td class="&""""&"dataleft"&""""&">"& TEXT(D126,"")&"</td><td class="&""""&"datacenter"&""""&">"& TEXT(E126,"")&"</td><td class="&""""&"dataleft"&""""&">"& TEXT(Q126,"")&"&nbsp;"&T126&",&nbsp;"&O126&"</td><td class="&""""&"dataleft"&""""&">"& TEXT(G126,"0.0")&"</td><td class="&""""&"datacenter"&""""&">"& TEXT(H126,"0")&"</td>"& "</tr>" -> <tr><td class="dataright">125</td><td class="dataleft"><a href="set03\tsr\tsr_october_26,_1916_-_august_3,_1922\birth\walker,_male_birth_to_george_and_lucy_november_17,_1921_p1_tsr.pdf">Walker</a></td><td class="dataleft">Lucy</td><td class="dataleft">George</td><td class="datacenter">M</td><td class="dataleft">November&nbsp;17,&nbsp;1921</td><td class="dataleft">The&nbsp;Sutton&nbsp;Reporter</td><td class="datacenter">1</td></tr> | V126: =LEN(D126) -> 6
A127: =OFFSET(A127,-1,0)+1 -> 126 | B127: Brekke | D127: Julius | E127: M | F127: 1921-12-06 | G127: Hannaford&nbsp;Enterprise | H127: 5 | I127: 23 | J127: 710 | K127: brekke,_male_birth_to_julius_december_6,_1921_p5_he.pdf | L127: set04\he_august 10, 1920 - july 31, 1923\birth | O127: =YEAR(F127) -> 1921 | P127: 1921 | Q127: =TEXT(F127,"mmmm") -> December | R127: =MONTH(F127) -> 12 | S127: =R127 -> 12 | T127: =DAY(F127) -> 6 | U127: ="<tr><td class="&""""&"dataright"&""""&">"& TEXT(A127,"0")&"</td><td class="&""""&"dataleft"&""""&">"& "<a href="&""""&L127&"\"&K127&""""&">"&B127&"</a></td><td class="&"""dataleft"">"& TEXT(C127,"")&"</td><td class="&""""&"dataleft"&""""&">"& TEXT(D127,"")&"</td><td class="&""""&"datacenter"&""""&">"& TEXT(E127,"")&"</td><td class="&""""&"dataleft"&""""&">"& TEXT(Q127,"")&"&nbsp;"&T127&",&nbsp;"&O127&"</td><td class="&""""&"dataleft"&""""&">"& TEXT(G127,"0.0")&"</td><td class="&""""&"datacenter"&""""&">"& TEXT(H127,"0")&"</td>"& "</tr>" -> <tr><td class="dataright">126</td><td class="dataleft"><a href="set04\he_august 10, 1920 - july 31, 1923\birth\brekke,_male_birth_to_julius_december_6,_1921_p5_he.pdf">Brekke</a></td><td class="dataleft"></td><td class="dataleft">Julius</td><td class="datacenter">M</td><td class="dataleft">December&nbsp;6,&nbsp;1921</td><td class="dataleft">Hannaford&nbsp;Enterprise</td><td class="datacenter">5</td></tr> | V127: =LEN(D127) -> 6
A128: =OFFSET(A128,-1,0)+1 -> 127 | B128: Fliflet | D128: Sig | E128: M | F128: 1921-12-06 | G128: Hannaford&nbsp;Enterprise | H128: 5 | I128: 23 | J128: 713 | K128: fliflet,_male_birth_to_sig_december_6,_1921_p5_he.pdf | L128: set04\he_august 10, 1920 - july 31, 1923\birth | O128: =YEAR(F128) -> 1921 | P128: 1921 | Q128: =TEXT(F128,"mmmm") -> December | R128: =MONTH(F128) -> 12 | S128: =R128 -> 12 | T128: =DAY(F128) -> 6 | U128: ="<tr><td class="&""""&"dataright"&""""&">"& TEXT(A128,"0")&"</td><td class="&""""&"dataleft"&""""&">"& "<a href="&""""&L128&"\"&K128&""""&">"&B128&"</a></td><td class="&"""dataleft"">"& TEXT(C128,"")&"</td><td class="&""""&"dataleft"&""""&">"& TEXT(D128,"")&"</td><td class="&""""&"datacenter"&""""&">"& TEXT(E128,"")&"</td><td class="&""""&"dataleft"&""""&">"& TEXT(Q128,"")&"&nbsp;"&T128&",&nbsp;"&O128&"</td><td class="&""""&"dataleft"&""""&">"& TEXT(G128,"0.0")&"</td><td class="&""""&"datacenter"&""""&">"& TEXT(H128,"0")&"</td>"& "</tr>" -> <tr><td class="dataright">127</td><td class="dataleft"><a href="set04\he_august 10, 1920 - july 31, 1923\birth\fliflet,_male_birth_to_sig_december_6,_1921_p5_he.pdf">Fliflet</a></td><td class="dataleft"></td><td class="dataleft">Sig</td><td class="datacenter">M</td><td class="dataleft">December&nbsp;6,&nbsp;1921</td><td class="dataleft">Hannaford&nbsp;Enterprise</td><td class="datacenter">5</td></tr> | V128: =LEN(D128) -> 3
A129: =OFFSET(A129,-1,0)+1 -> 128 | B129: Hagen | D129: A. O. | E129: M | F129: 1921-12-06 | G129: Hannaford&nbsp;Enterprise | H129: 5 | I129: 23 | J129: 714 | K129: hagen,_male_birth_to_a_o_december_6,_1921_p5_he.pdf | L129: set04\he_august 10, 1920 - july 31, 1923\birth | O129: =YEAR(F129) -> 1921 | P129: 1921 | Q129: =TEXT(F129,"mmmm") -> December | R129: =MONTH(F129) -> 12 | S129: =R129 -> 12 | T129: =DAY(F129) -> 6 | U129: ="<tr><td class="&""""&"dataright"&""""&">"& TEXT(A129,"0")&"</td><td class="&""""&"dataleft"&""""&">"& "<a href="&""""&L129&"\"&K129&""""&">"&B129&"</a></td><td class="&"""dataleft"">"& TEXT(C129,"")&"</td><td class="&""""&"dataleft"&""""&">"& TEXT(D129,"")&"</td><td class="&""""&"datacenter"&""""&">"& TEXT(E129,"")&"</td><td class="&""""&"dataleft"&""""&">"& TEXT(Q129,"")&"&nbsp;"&T129&",&nbsp;"&O129&"</td><td class="&""""&"dataleft"&""""&">"& TEXT(G129,"0.0")&"</td><td class="&""""&"datacenter"&""""&">"& TEXT(H129,"0")&"</td>"& "</tr>" -> <tr><td class="dataright">128</td><td class="dataleft"><a href="set04\he_august 10, 1920 - july 31, 1923\birth\hagen,_male_birth_to_a_o_december_6,_1921_p5_he.pdf">Hagen </a></td><td class="dataleft"></td><td class="dataleft">A. O.</td><td class="datacenter">M</td><td class="dataleft">December&nbsp;6,&nbsp;1921</td><td class="dataleft">Hannaford&nbsp;Enterprise</td><td class="datacenter">5</td></tr> | V129: =LEN(D129) -> 5
A130: =OFFSET(A130,-1,0)+1 -> 129 | B130: Larson | D130: Adolph | E130: M | F130: 1921-12-06 | G130: Hannaford&nbsp;Enterprise | H130: 5 | I130: 23 | J130: 716 | K130: larson,_male_birth_to_adolph_december_6,_1921_p5_he.pdf | L130: set04\he_august 10, 1920 - july 31, 1923\birth | O130: =YEAR(F130) -> 1921 | P130: 1921 | Q130: =TEXT(F130,"mmmm") -> December | R130: =MONTH(F130) -> 12 | S130: =R130 -> 12 | T130: =DAY(F130) -> 6 | U130: ="<tr><td class="&""""&"dataright"&""""&">"& TEXT(A130,"0")&"</td><td class="&""""&"dataleft"&""""&">"& "<a href="&""""&L130&"\"&K130&""""&">"&B130&"</a></td><td class="&"""dataleft"">"& TEXT(C130,"")&"</td><td class="&""""&"dataleft"&""""&">"& TEXT(D130,"")&"</td><td class="&""""&"datacenter"&""""&">"& TEXT(E130,"")&"</td><td class="&""""&"dataleft"&""""&">"& TEXT(Q130,"")&"&nbsp;"&T130&",&nbsp;"&O130&"</td><td class="&""""&"dataleft"&""""&">"& TEXT(G130,"0.0")&"</td><td class="&""""&"datacenter"&""""&">"& TEXT(H130,"0")&"</td>"& "</tr>" -> <tr><td class="dataright">129</td><td class="dataleft"><a href="set04\he_august 10, 1920 - july 31, 1923\birth\larson,_male_birth_to_adolph_december_6,_1921_p5_he.pdf">Larson</a></td><td class="dataleft"></td><td class="dataleft">Adolph</td><td class="datacenter">M</td><td class="dataleft">December&nbsp;6,&nbsp;1921</td><td class="dataleft">Hannaford&nbsp;Enterprise</td><td class="datacenter">5</td></tr> | V130: =LEN(D130) -> 6
A131: =OFFSET(A131,-1,0)+1 -> 130 | B131: Wunderlich | D131: Arvie | E131: M | F131: 1921-12-06 | G131: Hannaford&nbsp;Enterprise | H131: 5 | I131: 23 | J131: 727 | K131: wunderlich,_male_birth_to_arvie_december_6,_1921_p5_he.pdf | L131: set04\he_august 10, 1920 - july 31, 1923\birth | O131: =YEAR(F131) -> 1921 | P131: 1921 | Q131: =TEXT(F131,"mmmm") -> December | R131: =MONTH(F131) -> 12 | S131: =R131 -> 12 | T131: =DAY(F131) -> 6 | U131: ="<tr><td class="&""""&"dataright"&""""&">"& TEXT(A131,"0")&"</td><td class="&""""&"dataleft"&""""&">"& "<a href="&""""&L131&"\"&K131&""""&">"&B131&"</a></td><td class="&"""dataleft"">"& TEXT(C131,"")&"</td><td class="&""""&"dataleft"&""""&">"& TEXT(D131,"")&"</td><td class="&""""&"datacenter"&""""&">"& TEXT(E131,"")&"</td><td class="&""""&"dataleft"&""""&">"& TEXT(Q131,"")&"&nbsp;"&T131&",&nbsp;"&O131&"</td><td class="&""""&"dataleft"&""""&">"& TEXT(G131,"0.0")&"</td><td class="&""""&"datacenter"&""""&">"& TEXT(H131,"0")&"</td>"& "</tr>" -> <tr><td class="dataright">130</td><td class="dataleft"><a href="set04\he_august 10, 1920 - july 31, 1923\birth\wunderlich,_male_birth_to_arvie_december_6,_1921_p5_he.pdf">Wunderlich</a></td><td class="dataleft"></td><td class="dataleft">Arvie</td><td class="datacenter">M</td><td class="dataleft">December&nbsp;6,&nbsp;1921</td><td class="dataleft">Hannaford&nbsp;Enterprise</td><td class="datacenter">5</td></tr> | V131: =LEN(D131) -> 5
A132: =OFFSET(A132,-1,0)+1 -> 131 | B132: Flesjer | D132: Palmer | E132: F | F132: 1921-12-20 | G132: Hannaford&nbsp;Enterprise | H132: 5 | I132: 23 | J132: 712 | K132: flesjer,_female_birth_to_palmer_december_20,_1921_p5_he.pdf | L132: set04\he_august 10, 1920 - july 31, 1923\birth | O132: =YEAR(F132) -> 1921 | P132: 1921 | Q132: =TEXT(F132,"mmmm") -> December | R132: =MONTH(F132) -> 12 | S132: =R132 -> 12 | T132: =DAY(F132) -> 20 | U132: ="<tr><td class="&""""&"dataright"&""""&">"& TEXT(A132,"0")&"</td><td class="&""""&"dataleft"&""""&">"& "<a href="&""""&L132&"\"&K132&""""&">"&B132&"</a></td><td class="&"""dataleft"">"& TEXT(C132,"")&"</td><td class="&""""&"dataleft"&""""&">"& TEXT(D132,"")&"</td><td class="&""""&"datacenter"&""""&">"& TEXT(E132,"")&"</td><td class="&""""&"dataleft"&""""&">"& TEXT(Q132,"")&"&nbsp;"&T132&",&nbsp;"&O132&"</td><td class="&""""&"dataleft"&""""&">"& TEXT(G132,"0.0")&"</td><td class="&""""&"datacenter"&""""&">"& TEXT(H132,"0")&"</td>"& "</tr>" -> <tr><td class="dataright">131</td><td class="dataleft"><a href="set04\he_august 10, 1920 - july 31, 1923\birth\flesjer,_female_birth_to_palmer_december_20,_1921_p5_he.pdf">Flesjer</a></td><td class="dataleft"></td><td class="dataleft">Palmer</td><td class="datacenter">F</td><td class="dataleft">December&nbsp;20,&nbsp;1921</td><td class="dataleft">Hannaford&nbsp;Enterprise</td><td class="datacenter">5</td></tr> | V132: =LEN(D132) -> 6
A133: =OFFSET(A133,-1,0)+1 -> 132 | B133: Cederson | D133: Charles | E133: F | F133: 1920-01-20 | G133: Hannaford&nbsp;Enterprise | H133: 5 | I133: 22 | J133: 667 | K133: cederson,_female_birth_to_charles_january_20,_1920_p5_he.pdf | L133: set04\he_november 20, 1917 - august 10, 1920\birth | O133: =YEAR(F133) -> 1920 | P133: 1920 | Q133: =TEXT(F133,"mmmm") -> January | R133: =MONTH(F133) -> 1 | S133: =R133 -> 1 | T133: =DAY(F133) -> 20 | U133: ="<tr><td class="&""""&"dataright"&""""&">"& TEXT(A133,"0")&"</td><td class="&""""&"dataleft"&""""&">"& "<a href="&""""&L133&"\"&K133&""""&">"&B133&"</a></td><td class="&"""dataleft"">"& TEXT(C133,"")&"</td><td class="&""""&"dataleft"&""""&">"& TEXT(D133,"")&"</td><td class="&""""&"datacenter"&""""&">"& TEXT(E133,"")&"</td><td class="&""""&"dataleft"&""""&">"& TEXT(Q133,"")&"&nbsp;"&T133&",&nbsp;"&O133&"</td><td class="&""""&"dataleft"&""""&">"& TEXT(G133,"0.0")&"</td><td class="&""""&"datacenter"&""""&">"& TEXT(H133,"0")&"</td>"& "</tr>" -> <tr><td class="dataright">132</td><td class="dataleft"><a href="set04\he_november 20, 1917 - august 10, 1920\birth\cederson,_female_birth_to_charles_january_20,_1920_p5_he.pdf">Cederson</a></td><td class="dataleft"></td><td class="dataleft">Charles</td><td class="datacenter">F</td><td class="dataleft">January&nbsp;20,&nbsp;1920</td><td class="dataleft">Hannaford&nbsp;Enterprise</td><td class="datacenter">5</td></tr> | V133: =LEN(D133) -> 7
A134: =OFFSET(A134,-1,0)+1 -> 133 | B134: Groneberg | D134: Christ | E134: M | F134: 1920-02-03 | G134: Hannaford&nbsp;Enterprise | H134: 5 | I134: 22 | J134: 677 | K134: groneberg,_male_birth_to_christ_february_3,_1920_p5_he.pdf | L134: set04\he_november 20, 1917 - august 10, 1920\birth | O134: =YEAR(F134) -> 1920 | P134: 1920 | Q134: =TEXT(F134,"mmmm") -> February | R134: =MONTH(F134) -> 2 | S134: =R134 -> 2 | T134: =DAY(F134) -> 3 | U134: ="<tr><td class="&""""&"dataright"&""""&">"& TEXT(A134,"0")&"</td><td class="&""""&"dataleft"&""""&">"& "<a href="&""""&L134&"\"&K134&""""&">"&B134&"</a></td><td class="&"""dataleft"">"& TEXT(C134,"")&"</td><td class="&""""&"dataleft"&""""&">"& TEXT(D134,"")&"</td><td class="&""""&"datacenter"&""""&">"& TEXT(E134,"")&"</td><td class="&""""&"dataleft"&""""&">"& TEXT(Q134,"")&"&nbsp;"&T134&",&nbsp;"&O134&"</td><td class="&""""&"dataleft"&""""&">"& TEXT(G134,"0.0")&"</td><td class="&""""&"datacenter"&""""&">"& TEXT(H134,"0")&"</td>"& "</tr>" -> <tr><td class="dataright">133</td><td class="dataleft"><a href="set04\he_november 20, 1917 - august 10, 1920\birth\groneberg,_male_birth_to_christ_february_3,_1920_p5_he.pdf">Groneberg</a></td><td class="dataleft"></td><td class="dataleft">Christ</td><td class="datacenter">M</td><td class="dataleft">February&nbsp;3,&nbsp;1920</td><td class="dataleft">Hannaford&nbsp;Enterprise</td><td class="datacenter">5</td></tr> | V134: =LEN(D134) -> 6
A135: =OFFSET(A135,-1,0)+1 -> 134 | B135: Olson | D135: C. A. | E135: F | F135: 1920-02-12 | G135: The&nbsp;Sutton&nbsp;Reporter | H135: 1 | I135: 32 | J135: 817 | K135: olson,_female_birth_to_c_a_february_12,_1920_p1_tsr.pdf | L135: set03\tsr\tsr_october_26,_1916_-_august_3,_1922\birth | O135: =YEAR(F135) -> 1920 | P135: 1920 | Q135: =TEXT(F135,"mmmm") -> February | R135: =MONTH(F135) -> 2 | S135: =R135 -> 2 | T135: =DAY(F135) -> 12 | U135: ="<tr><td class="&""""&"dataright"&""""&">"& TEXT(A135,"0")&"</td><td class="&""""&"dataleft"&""""&">"& "<a href="&""""&L135&"\"&K135&""""&">"&B135&"</a></td><td class="&"""dataleft"">"& TEXT(C135,"")&"</td><td class="&""""&"dataleft"&""""&">"& TEXT(D135,"")&"</td><td class="&""""&"datacenter"&""""&">"& TEXT(E135,"")&"</td><td class="&""""&"dataleft"&""""&">"& TEXT(Q135,"")&"&nbsp;"&T135&",&nbsp;"&O135&"</td><td class="&""""&"dataleft"&""""&">"& TEXT(G135,"0.0")&"</td><td class="&""""&"datacenter"&""""&">"& TEXT(H135,"0")&"</td>"& "</tr>" -> <tr><td class="dataright">134</td><td class="dataleft"><a href="set03\tsr\tsr_october_26,_1916_-_august_3,_1922\birth\olson,_female_birth_to_c_a_february_12,_1920_p1_tsr.pdf">Olson</a></td><td class="dataleft"></td><td class="dataleft">C. A.</td><td class="datacenter">F</td><td class="dataleft">February&nbsp;12,&nbsp;1920</td><td class="dataleft">The&nbsp;Sutton&nbsp;Reporter</td><td class="datacenter">1</td></tr> | V135: =LEN(D135) -> 5
A136: =OFFSET(A136,-1,0)+1 -> 135 | B136: Davidson | D136: P. J. | E136: F | F136: 1920-02-26 | G136: The&nbsp;Sutton&nbsp;Reporter | H136: 1 | I136: 32 | J136: 784 | K136: davidson,_female_birth_to_p_j_february_26,_1920_p1_tsr.pdf | L136: set03\tsr\tsr_october_26,_1916_-_august_3,_1922\birth | O136: =YEAR(F136) -> 1920 | P136: 1920 | Q136: =TEXT(F136,"mmmm") -> February | R136: =MONTH(F136) -> 2 | S136: =R136 -> 2 | T136: =DAY(F136) -> 26 | U136: ="<tr><td class="&""""&"dataright"&""""&">"& TEXT(A136,"0")&"</td><td class="&""""&"dataleft"&""""&">"& "<a href="&""""&L136&"\"&K136&""""&">"&B136&"</a></td><td class="&"""dataleft"">"& TEXT(C136,"")&"</td><td class="&""""&"dataleft"&""""&">"& TEXT(D136,"")&"</td><td class="&""""&"datacenter"&""""&">"& TEXT(E136,"")&"</td><td class="&""""&"dataleft"&""""&">"& TEXT(Q136,"")&"&nbsp;"&T136&",&nbsp;"&O136&"</td><td class="&""""&"dataleft"&""""&">"& TEXT(G136,"0.0")&"</td><td class="&""""&"datacenter"&""""&">"& TEXT(H136,"0")&"</td>"& "</tr>" -> <tr><td class="dataright">135</td><td class="dataleft"><a href="set03\tsr\tsr_october_26,_1916_-_august_3,_1922\birth\davidson,_female_birth_to_p_j_february_26,_1920_p1_tsr.pdf">Davidson</a></td><td class="dataleft"></td><td class="dataleft">P. J.</td><td class="datacenter">F</td><td class="dataleft">February&nbsp;26,&nbsp;1920</td><td class="dataleft">The&nbsp;Sutton&nbsp;Reporter</td><td class="datacenter">1</td></tr> | V136: =LEN(D136) -> 5
A137: =OFFSET(A137,-1,0)+1 -> 136 | B137: Pousette | D137: Ed | E137: M | F137: 1920-03-02 | G137: Hannaford&nbsp;Enterprise | H137: 7 | I137: 22 | J137: 698 | K137: pousette,_male_birth_to_ed_march_2,_1920_p7_he.pdf | L137: set04\he_november 20, 1917 - august 10, 1920\birth | O137: =YEAR(F137) -> 1920 | P137: 1920 | Q137: =TEXT(F137,"mmmm") -> March | R137: =MONTH(F137) -> 3 | S137: =R137 -> 3 | T137: =DAY(F137) -> 2 | U137: ="<tr><td class="&""""&"dataright"&""""&">"& TEXT(A137,"0")&"</td><td class="&""""&"dataleft"&""""&">"& "<a href="&""""&L137&"\"&K137&""""&">"&B137&"</a></td><td class="&"""dataleft"">"& TEXT(C137,"")&"</td><td class="&""""&"dataleft"&""""&">"& TEXT(D137,"")&"</td><td class="&""""&"datacenter"&""""&">"& TEXT(E137,"")&"</td><td class="&""""&"dataleft"&""""&">"& TEXT(Q137,"")&"&nbsp;"&T137&",&nbsp;"&O137&"</td><td class="&""""&"dataleft"&""""&">"& TEXT(G137,"0.0")&"</td><td class="&""""&"datacenter"&""""&">"& TEXT(H137,"0")&"</td>"& "</tr>" -> <tr><td class="dataright">136</td><td class="dataleft"><a href="set04\he_november 20, 1917 - august 10, 1920\birth\pousette,_male_birth_to_ed_march_2,_1920_p7_he.pdf">Pousette</a></td><td class="dataleft"></td><td class="dataleft">Ed</td><td class="datacenter">M</td><td class="dataleft">March&nbsp;2,&nbsp;1920</td><td class="dataleft">Hannaford&nbsp;Enterprise</td><td class="datacenter">7</td></tr> | V137: =LEN(D137) -> 2
A138: =OFFSET(A138,-1,0)+1 -> 137 | B138: Elvig | D138: John | E138: F | F138: 1920-03-09 | G138: Hannaford&nbsp;Enterprise | H138: 7 | I138: 22 | J138: 670 | K138: elvig,_female_birth_to_john_march_9,_1920_p7_he.pdf | L138: set04\he_november 20, 1917 - august 10, 1920\birth | O138: =YEAR(F138) -> 1920 | P138: 1920 | Q138: =TEXT(F138,"mmmm") -> March | R138: =MONTH(F138) -> 3 | S138: =R138 -> 3 | T138: =DAY(F138) -> 9 | U138: ="<tr><td class="&""""&"dataright"&""""&">"& TEXT(A138,"0")&"</td><td class="&""""&"dataleft"&""""&">"& "<a href="&""""&L138&"\"&K138&""""&">"&B138&"</a></td><td class="&"""dataleft"">"& TEXT(C138,"")&"</td><td class="&""""&"dataleft"&""""&">"& TEXT(D138,"")&"</td><td class="&""""&"datacenter"&""""&">"& TEXT(E138,"")&"</td><td class="&""""&"dataleft"&""""&">"& TEXT(Q138,"")&"&nbsp;"&T138&",&nbsp;"&O138&"</td><td class="&""""&"dataleft"&""""&">"& TEXT(G138,"0.0")&"</td><td class="&""""&"datacenter"&""""&">"& TEXT(H138,"0")&"</td>"& "</tr>" -> <tr><td class="dataright">137</td><td class="dataleft"><a href="set04\he_november 20, 1917 - august 10, 1920\birth\elvig,_female_birth_to_john_march_9,_1920_p7_he.pdf">Elvig</a></td><td class="dataleft"></td><td class="dataleft">John</td><td class="datacenter">F</td><td class="dataleft">March&nbsp;9,&nbsp;1920</td><td class="dataleft">Hannaford&nbsp;Enterprise</td><td class="datacenter">7</td></tr> | V138: =LEN(D138) -> 4
A139: =OFFSET(A139,-1,0)+1 -> 138 | B139: Heyerdahl | D139: Gilbert | E139: F | F139: 1920-03-09 | G139: Hannaford&nbsp;Enterprise | H139: 7 | I139: 22 | J139: 682 | K139: heyerdahl,_female_birth_to_gilbert_march_9,_1920_p7_he.pdf | L139: set04\he_november 20, 1917 - august 10, 1920\birth | O139: =YEAR(F139) -> 1920 | P139: 1920 | Q139: =TEXT(F139,"mmmm") -> March | R139: =MONTH(F139) -> 3 | S139: =R139 -> 3 | T139: =DAY(F139) -> 9 | U139: ="<tr><td class="&""""&"dataright"&""""&">"& TEXT(A139,"0")&"</td><td class="&""""&"dataleft"&""""&">"& "<a href="&""""&L139&"\"&K139&""""&">"&B139&"</a></td><td class="&"""dataleft"">"& TEXT(C139,"")&"</td><td class="&""""&"dataleft"&""""&">"& TEXT(D139,"")&"</td><td class="&""""&"datacenter"&""""&">"& TEXT(E139,"")&"</td><td class="&""""&"dataleft"&""""&">"& TEXT(Q139,"")&"&nbsp;"&T139&",&nbsp;"&O139&"</td><td class="&""""&"dataleft"&""""&">"& TEXT(G139,"0.0")&"</td><td class="&""""&"datacenter"&""""&">"& TEXT(H139,"0")&"</td>"& "</tr>" -> <tr><td class="dataright">138</td><td class="dataleft"><a href="set04\he_november 20, 1917 - august 10, 1920\birth\heyerdahl,_female_birth_to_gilbert_march_9,_1920_p7_he.pdf">Heyerdahl</a></td><td class="dataleft"></td><td class="dataleft">Gilbert</td><td class="datacenter">F</td><td class="dataleft">March&nbsp;9,&nbsp;1920</td><td class="dataleft">Hannaford&nbsp;Enterprise</td><td class="datacenter">7</td></tr> | V139: =LEN(D139) -> 7
A140: =OFFSET(A140,-1,0)+1 -> 139 | B140: Kerber | D140: John W. | E140: M | F140: 1920-03-09 | G140: Hannaford&nbsp;Enterprise | H140: 7 | I140: 22 | J140: 684 | K140: kerber,_male_birth_to_john_w_march_9,_1920_p7_he.pdf | L140: set04\he_november 20, 1917 - august 10, 1920\birth | O140: =YEAR(F140) -> 1920 | P140: 1920 | Q140: =TEXT(F140,"mmmm") -> March | R140: =MONTH(F140) -> 3 | S140: =R140 -> 3 | T140: =DAY(F140) -> 9 | U140: ="<tr><td class="&""""&"dataright"&""""&">"& TEXT(A140,"0")&"</td><td class="&""""&"dataleft"&""""&">"& "<a href="&""""&L140&"\"&K140&""""&">"&B140&"</a></td><td class="&"""dataleft"">"& TEXT(C140,"")&"</td><td class="&""""&"dataleft"&""""&">"& TEXT(D140,"")&"</td><td class="&""""&"datacenter"&""""&">"& TEXT(E140,"")&"</td><td class="&""""&"dataleft"&""""&">"& TEXT(Q140,"")&"&nbsp;"&T140&",&nbsp;"&O140&"</td><td class="&""""&"dataleft"&""""&">"& TEXT(G140,"0.0")&"</td><td class="&""""&"datacenter"&""""&">"& TEXT(H140,"0")&"</td>"& "</tr>" -> <tr><td class="dataright">139</td><td class="dataleft"><a href="set04\he_november 20, 1917 - august 10, 1920\birth\kerber,_male_birth_to_john_w_march_9,_1920_p7_he.pdf">Kerber</a></td><td class="dataleft"></td><td class="dataleft">John W.</td><td class="datacenter">M</td><td class="dataleft">March&nbsp;9,&nbsp;1920</td><td class="dataleft">Hannaford&nbsp;Enterprise</td><td class="datacenter">7</td></tr> | V140: =LEN(D140) -> 7
A141: =OFFSET(A141,-1,0)+1 -> 140 | B141: Sonju | D141: Melvin | E141: F | F141: 1920-03-09 | G141: Hannaford&nbsp;Enterprise | H141: 7 | I141: 22 | J141: 702 | K141: sonju,_female_birth_to_melvin_march_9,_1920_p7_he.pdf | L141: set04\he_november 20, 1917 - august 10, 1920\birth | O141: =YEAR(F141) -> 1920 | P141: 1920 | Q141: =TEXT(F141,"mmmm") -> March | R141: =MONTH(F141) -> 3 | S141: =R141 -> 3 | T141: =DAY(F141) -> 9 | U141: ="<tr><td class="&""""&"dataright"&""""&">"& TEXT(A141,"0")&"</td><td class="&""""&"dataleft"&""""&">"& "<a href="&""""&L141&"\"&K141&""""&">"&B141&"</a></td><td class="&"""dataleft"">"& TEXT(C141,"")&"</td><td class="&""""&"dataleft"&""""&">"& TEXT(D141,"")&"</td><td class="&""""&"datacenter"&""""&">"& TEXT(E141,"")&"</td><td class="&""""&"dataleft"&""""&">"& TEXT(Q141,"")&"&nbsp;"&T141&",&nbsp;"&O141&"</td><td class="&""""&"dataleft"&""""&">"& TEXT(G141,"0.0")&"</td><td class="&""""&"datacenter"&""""&">"& TEXT(H141,"0")&"</td>"& "</tr>" -> <tr><td class="dataright">140</td><td class="dataleft"><a href="set04\he_november 20, 1917 - august 10, 1920\birth\sonju,_female_birth_to_melvin_march_9,_1920_p7_he.pdf">Sonju</a></td><td class="dataleft"></td><td class="dataleft">Melvin</td><td class="datacenter">F</td><td class="dataleft">March&nbsp;9,&nbsp;1920</td><td class="dataleft">Hannaford&nbsp;Enterprise</td><td class="datacenter">7</td></tr> | V141: =LEN(D141) -> 6
A142: =OFFSET(A142,-1,0)+1 -> 141 | B142: Mosher | D142: Oscar | E142: M | F142: 1920-03-16 | G142: Hannaford&nbsp;Enterprise | H142: 4 | I142: 22 | J142: 693 | K142: mosher,_male_birth_to_oscar_march_16,_1920_p4_he.pdf | L142: set04\he_november 20, 1917 - august 10, 1920\birth | O142: =YEAR(F142) -> 1920 | P142: 1920 | Q142: =TEXT(F142,"mmmm") -> March | R142: =MONTH(F142) -> 3 | S142: =R142 -> 3 | T142: =DAY(F142) -> 16 | U142: ="<tr><td class="&""""&"dataright"&""""&">"& TEXT(A142,"0")&"</td><td class="&""""&"dataleft"&""""&">"& "<a href="&""""&L142&"\"&K142&""""&">"&B142&"</a></td><td class="&"""dataleft"">"& TEXT(C142,"")&"</td><td class="&""""&"dataleft"&""""&">"& TEXT(D142,"")&"</td><td class="&""""&"datacenter"&""""&">"& TEXT(E142,"")&"</td><td class="&""""&"dataleft"&""""&">"& TEXT(Q142,"")&"&nbsp;"&T142&",&nbsp;"&O142&"</td><td class="&""""&"dataleft"&""""&">"& TEXT(G142,"0.0")&"</td><td class="&""""&"datacenter"&""""&">"& TEXT(H142,"0")&"</td>"& "</tr>" -> <tr><td class="dataright">141</td><td class="dataleft"><a href="set04\he_november 20, 1917 - august 10, 1920\birth\mosher,_male_birth_to_oscar_march_16,_1920_p4_he.pdf">Mosher</a></td><td class="dataleft"></td><td class="dataleft">Oscar</td><td class="datacenter">M</td><td class="dataleft">March&nbsp;16,&nbsp;1920</td><td class="dataleft">Hannaford&nbsp;Enterprise</td><td class="datacenter">4</td></tr> | V142: =LEN(D142) -> 5
A143: =OFFSET(A143,-1,0)+1 -> 142 | B143: Lowe | D143: Emil | E143: M | F143: 1920-04-15 | G143: The&nbsp;Sutton&nbsp;Reporter | H143: 4 | I143: 32 | J143: 810 | K143: lowe,_male_birth_to_emil_april_15,_1920_p4_tsr.pdf | L143: set03\tsr\tsr_october_26,_1916_-_august_3,_1922\birth | O143: =YEAR(F143) -> 1920 | P143: 1920 | Q143: =TEXT(F143,"mmmm") -> April | R143: =MONTH(F143) -> 4 | S143: =R143 -> 4 | T143: =DAY(F143) -> 15 | U143: ="<tr><td class="&""""&"dataright"&""""&">"& TEXT(A143,"0")&"</td><td class="&""""&"dataleft"&""""&">"& "<a href="&""""&L143&"\"&K143&""""&">"&B143&"</a></td><td class="&"""dataleft"">"& TEXT(C143,"")&"</td><td class="&""""&"dataleft"&""""&">"& TEXT(D143,"")&"</td><td class="&""""&"datacenter"&""""&">"& TEXT(E143,"")&"</td><td class="&""""&"dataleft"&""""&">"& TEXT(Q143,"")&"&nbsp;"&T143&",&nbsp;"&O143&"</td><td class="&""""&"dataleft"&""""&">"& TEXT(G143,"0.0")&"</td><td class="&""""&"datacenter"&""""&">"& TEXT(H143,"0")&"</td>"& "</tr>" -> <tr><td class="dataright">142</td><td class="dataleft"><a href="set03\tsr\tsr_october_26,_1916_-_august_3,_1922\birth\lowe,_male_birth_to_emil_april_15,_1920_p4_tsr.pdf">Lowe</a></td><td class="dataleft"></td><td class="dataleft">Emil</td><td class="datacenter">M</td><td class="dataleft">April&nbsp;15,&nbsp;1920</td><td class="dataleft">The&nbsp;Sutton&nbsp;Reporter</td><td class="datacenter">4</td></tr> | V143: =LEN(D143) -> 4
A144: =OFFSET(A144,-1,0)+1 -> 143 | B144: Haugen | D144: Iver | E144: F | F144: 1920-04-20 | G144: Hannaford&nbsp;Enterprise | H144: 1 | I144: 22 | J144: 681 | K144: haugen,_female_birth_to_iver_april_20,_1920_p1_he.pdf | L144: set04\he_november 20, 1917 - august 10, 1920\birth | O144: =YEAR(F144) -> 1920 | P144: 1920 | Q144: =TEXT(F144,"mmmm") -> April | R144: =MONTH(F144) -> 4 | S144: =R144 -> 4 | T144: =DAY(F144) -> 20 | U144: ="<tr><td class="&""""&"dataright"&""""&">"& TEXT(A144,"0")&"</td><td class="&""""&"dataleft"&""""&">"& "<a href="&""""&L144&"\"&K144&""""&">"&B144&"</a></td><td class="&"""dataleft"">"& TEXT(C144,"")&"</td><td class="&""""&"dataleft"&""""&">"& TEXT(D144,"")&"</td><td class="&""""&"datacenter"&""""&">"& TEXT(E144,"")&"</td><td class="&""""&"dataleft"&""""&">"& TEXT(Q144,"")&"&nbsp;"&T144&",&nbsp;"&O144&"</td><td class="&""""&"dataleft"&""""&">"& TEXT(G144,"0.0")&"</td><td class="&""""&"datacenter"&""""&">"& TEXT(H144,"0")&"</td>"& "</tr>" -> <tr><td class="dataright">143</td><td class="dataleft"><a href="set04\he_november 20, 1917 - august 10, 1920\birth\haugen,_female_birth_to_iver_april_20,_1920_p1_he.pdf">Haugen</a></td><td class="dataleft"></td><td class="dataleft">Iver</td><td class="datacenter">F</td><td class="dataleft">April&nbsp;20,&nbsp;1920</td><td class="dataleft">Hannaford&nbsp;Enterprise</td><td class="datacenter">1</td></tr> | V144: =LEN(D144) -> 4
A145: =OFFSET(A145,-1,0)+1 -> 144 | B145: Reite | D145: C. | E145: F | F145: 1920-05-18 | G145: Hannaford&nbsp;Enterprise | H145: 7 | I145: 22 | J145: 699 | K145: reite,_female_birth_to_c_may_18,_1920_p7_he.pdf | L145: set04\he_november 20, 1917 - august 10, 1920\birth | O145: =YEAR(F145) -> 1920 | P145: 1920 | Q145: =TEXT(F145,"mmmm") -> May | R145: =MONTH(F145) -> 5 | S145: =R145 -> 5 | T145: =DAY(F145) -> 18 | U145: ="<tr><td class="&""""&"dataright"&""""&">"& TEXT(A145,"0")&"</td><td class="&""""&"dataleft"&""""&">"& "<a href="&""""&L145&"\"&K145&""""&">"&B145&"</a></td><td class="&"""dataleft"">"& TEXT(C145,"")&"</td><td class="&""""&"dataleft"&""""&">"& TEXT(D145,"")&"</td><td class="&""""&"datacenter"&""""&">"& TEXT(E145,"")&"</td><td class="&""""&"dataleft"&""""&">"& TEXT(Q145,"")&"&nbsp;"&T145&",&nbsp;"&O145&"</td><td class="&""""&"dataleft"&""""&">"& TEXT(G145,"0.0")&"</td><td class="&""""&"datacenter"&""""&">"& TEXT(H145,"0")&"</td>"& "</tr>" -> <tr><td class="dataright">144</td><td class="dataleft"><a href="set04\he_november 20, 1917 - august 10, 1920\birth\reite,_female_birth_to_c_may_18,_1920_p7_he.pdf">Reite</a></td><td class="dataleft"></td><td class="dataleft">C.</td><td class="datacenter">F</td><td class="dataleft">May&nbsp;18,&nbsp;1920</td><td class="dataleft">Hannaford&nbsp;Enterprise</td><td class="datacenter">7</td></tr> | V145: =LEN(D145) -> 2
A146: =OFFSET(A146,-1,0)+1 -> 145 | B146: Hafner | D146: L. G. | E146: M | F146: 1920-08-26 | G146: The&nbsp;Sutton&nbsp;Reporter | H146: 1 | I146: 32 | J146: 796 | K146: hafner,_male_birth_to_l_g_august_26,_1920_p1_tsr.pdf | L146: set03\tsr\tsr_october_26,_1916_-_august_3,_1922\birth | O146: =YEAR(F146) -> 1920 | P146: 1920 | Q146: =TEXT(F146,"mmmm") -> August | R146: =MONTH(F146) -> 8 | S146: =R146 -> 8 | T146: =DAY(F146) -> 26 | U146: ="<tr><td class="&""""&"dataright"&""""&">"& TEXT(A146,"0")&"</td><td class="&""""&"dataleft"&""""&">"& "<a href="&""""&L146&"\"&K146&""""&">"&B146&"</a></td><td class="&"""dataleft"">"& TEXT(C146,"")&"</td><td class="&""""&"dataleft"&""""&">"& TEXT(D146,"")&"</td><td class="&""""&"datacenter"&""""&">"& TEXT(E146,"")&"</td><td class="&""""&"dataleft"&""""&">"& TEXT(Q146,"")&"&nbsp;"&T146&",&nbsp;"&O146&"</td><td class="&""""&"dataleft"&""""&">"& TEXT(G146,"0.0")&"</td><td class="&""""&"datacenter"&""""&">"& TEXT(H146,"0")&"</td>"& "</tr>" -> <tr><td class="dataright">145</td><td class="dataleft"><a href="set03\tsr\tsr_october_26,_1916_-_august_3,_1922\birth\hafner,_male_birth_to_l_g_august_26,_1920_p1_tsr.pdf">Hafner</a></td><td class="dataleft"></td><td class="dataleft">L. G.</td><td class="datacenter">M</td><td class="dataleft">August&nbsp;26,&nbsp;1920</td><td class="dataleft">The&nbsp;Sutton&nbsp;Reporter</td><td class="datacenter">1</td></tr> | V146: =LEN(D146) -> 5
A147: =OFFSET(A147,-1,0)+1 -> 146 | B147: Staffney | D147: Jhalmer | E147: M | F147: 1920-09-14 | G147: Hannaford&nbsp;Enterprise | H147: 4 | I147: 23 | J147: 724 | K147: staffney,_male_birth_to_jhalmer_september_14,_1920_p4_he.pdf | L147: set04\he_august 10, 1920 - july 31, 1923\birth | O147: =YEAR(F147) -> 1920 | P147: 1920 | Q147: =TEXT(F147,"mmmm") -> September | R147: =MONTH(F147) -> 9 | S147: =R147 -> 9 | T147: =DAY(F147) -> 14 | U147: ="<tr><td class="&""""&"dataright"&""""&">"& TEXT(A147,"0")&"</td><td class="&""""&"dataleft"&""""&">"& "<a href="&""""&L147&"\"&K147&""""&">"&B147&"</a></td><td class="&"""dataleft"">"& TEXT(C147,"")&"</td><td class="&""""&"dataleft"&""""&">"& TEXT(D147,"")&"</td><td class="&""""&"datacenter"&""""&">"& TEXT(E147,"")&"</td><td class="&""""&"dataleft"&""""&">"& TEXT(Q147,"")&"&nbsp;"&T147&",&nbsp;"&O147&"</td><td class="&""""&"dataleft"&""""&">"& TEXT(G147,"0.0")&"</td><td class="&""""&"datacenter"&""""&">"& TEXT(H147,"0")&"</td>"& "</tr>" -> <tr><td class="dataright">146</td><td class="dataleft"><a href="set04\he_august 10, 1920 - july 31, 1923\birth\staffney,_male_birth_to_jhalmer_september_14,_1920_p4_he.pdf">Staffney</a></td><td class="dataleft"></td><td class="dataleft">Jhalmer</td><td class="datacenter">M</td><td class="dataleft">September&nbsp;14,&nbsp;1920</td><td class="dataleft">Hannaford&nbsp;Enterprise</td><td class="datacenter">4</td></tr> | V147: =LEN(D147) -> 7
A148: =OFFSET(A148,-1,0)+1 -> 147 | B148: Almklov | D148: Ole | E148: M | F148: 1920-10-12 | G148: Hannaford&nbsp;Enterprise | H148: 5 | I148: 23 | J148: 707 | K148: almklov,_male_birth_to_ole_october_12,_1920_p5_he.pdf | L148: set04\he_august 10, 1920 - july 31, 1923\birth | O148: =YEAR(F148) -> 1920 | P148: 1920 | Q148: =TEXT(F148,"mmmm") -> October | R148: =MONTH(F148) -> 10 | S148: =R148 -> 10 | T148: =DAY(F148) -> 12 | U148: ="<tr><td class="&""""&"dataright"&""""&">"& TEXT(A148,"0")&"</td><td class="&""""&"dataleft"&""""&">"& "<a href="&""""&L148&"\"&K148&""""&">"&B148&"</a></td><td class="&"""dataleft"">"& TEXT(C148,"")&"</td><td class="&""""&"dataleft"&""""&">"& TEXT(D148,"")&"</td><td class="&""""&"datacenter"&""""&">"& TEXT(E148,"")&"</td><td class="&""""&"dataleft"&""""&">"& TEXT(Q148,"")&"&nbsp;"&T148&",&nbsp;"&O148&"</td><td class="&""""&"dataleft"&""""&">"& TEXT(G148,"0.0")&"</td><td class="&""""&"datacenter"&""""&">"& TEXT(H148,"0")&"</td>"& "</tr>" -> <tr><td class="dataright">147</td><td class="dataleft"><a href="set04\he_august 10, 1920 - july 31, 1923\birth\almklov,_male_birth_to_ole_october_12,_1920_p5_he.pdf">Almklov</a></td><td class="dataleft"></td><td class="dataleft">Ole</td><td class="datacenter">M</td><td class="dataleft">October&nbsp;12,&nbsp;1920</td><td class="dataleft">Hannaford&nbsp;Enterprise</td><td class="datacenter">5</td></tr> | V148: =LEN(D148) -> 3
A149: =OFFSET(A149,-1,0)+1 -> 148 | B149: Hochberger | D149: F. W . | E149: M | F149: 1920-10-21 | G149: The&nbsp;Sutton&nbsp;Reporter | H149: 1 | I149: 32 | J149: 798 | K149: hochberger,_male_birth_to_f_w_october_21,_1920_p1_tsr.pdf | L149: set03\tsr\tsr_october_26,_1916_-_august_3,_1922\birth | O149: =YEAR(F149) -> 1920 | P149: 1920 | Q149: =TEXT(F149,"mmmm") -> October | R149: =MONTH(F149) -> 10 | S149: =R149 -> 10 | T149: =DAY(F149) -> 21 | U149: ="<tr><td class="&""""&"dataright"&""""&">"& TEXT(A149,"0")&"</td><td class="&""""&"dataleft"&""""&">"& "<a href="&""""&L149&"\"&K149&""""&">"&B149&"</a></td><td class="&"""dataleft"">"& TEXT(C149,"")&"</td><td class="&""""&"dataleft"&""""&">"& TEXT(D149,"")&"</td><td class="&""""&"datacenter"&""""&">"& TEXT(E149,"")&"</td><td class="&""""&"dataleft"&""""&">"& TEXT(Q149,"")&"&nbsp;"&T149&",&nbsp;"&O149&"</td><td class="&""""&"dataleft"&""""&">"& TEXT(G149,"0.0")&"</td><td class="&""""&"datacenter"&""""&">"& TEXT(H149,"0")&"</td>"& "</tr>" -> <tr><td class="dataright">148</td><td class="dataleft"><a href="set03\tsr\tsr_october_26,_1916_-_august_3,_1922\birth\hochberger,_male_birth_to_f_w_october_21,_1920_p1_tsr.pdf">Hochberger</a></td><td class="dataleft"></td><td class="dataleft">F. W .</td><td class="datacenter">M</td><td class="dataleft">October&nbsp;21,&nbsp;1920</td><td class="dataleft">The&nbsp;Sutton&nbsp;Reporter</td><td class="datacenter">1</td></tr> | V149: =LEN(D149) -> 6
A150: =OFFSET(A150,-1,0)+1 -> 149 | B150: Anfinson | D150: Carl | E150: F | F150: 1920-11-09 | G150: Hannaford&nbsp;Enterprise | H150: 5 | I150: 23 | J150: 709 | K150: anfinson,_female_birth_to_carl_november_9,_1920_p5_he.pdf | L150: set04\he_august 10, 1920 - july 31, 1923\birth | O150: =YEAR(F150) -> 1920 | P150: 1920 | Q150: =TEXT(F150,"mmmm") -> November | R150: =MONTH(F150) -> 11 | S150: =R150 -> 11 | T150: =DAY(F150) -> 9 | U150: ="<tr><td class="&""""&"dataright"&""""&">"& TEXT(A150,"0")&"</td><td class="&""""&"dataleft"&""""&">"& "<a href="&""""&L150&"\"&K150&""""&">"&B150&"</a></td><td class="&"""dataleft"">"& TEXT(C150,"")&"</td><td class="&""""&"dataleft"&""""&">"& TEXT(D150,"")&"</td><td class="&""""&"datacenter"&""""&">"& TEXT(E150,"")&"</td><td class="&""""&"dataleft"&""""&">"& TEXT(Q150,"")&"&nbsp;"&T150&",&nbsp;"&O150&"</td><td class="&""""&"dataleft"&""""&">"& TEXT(G150,"0.0")&"</td><td class="&""""&"datacenter"&""""&">"& TEXT(H150,"0")&"</td>"& "</tr>" -> <tr><td class="dataright">149</td><td class="dataleft"><a href="set04\he_august 10, 1920 - july 31, 1923\birth\anfinson,_female_birth_to_carl_november_9,_1920_p5_he.pdf">Anfinson</a></td><td class="dataleft"></td><td class="dataleft">Carl</td><td class="datacenter">F</td><td class="dataleft">November&nbsp;9,&nbsp;1920</td><td class="dataleft">Hannaford&nbsp;Enterprise</td><td class="datacenter">5</td></tr> | V150: =LEN(D150) -> 4
A151: =OFFSET(A151,-1,0)+1 -> 150 | B151: Stone | D151: Erik | E151: M | F151: 1920-11-09 | G151: Hannaford&nbsp;Enterprise | H151: 5 | I151: 23 | J151: 725 | K151: stone,_male_birth_to_erik_november_9,_1920_p5_he.pdf | L151: set04\he_august 10, 1920 - july 31, 1923\birth | O151: =YEAR(F151) -> 1920 | P151: 1920 | Q151: =TEXT(F151,"mmmm") -> November | R151: =MONTH(F151) -> 11 | S151: =R151 -> 11 | T151: =DAY(F151) -> 9 | U151: ="<tr><td class="&""""&"dataright"&""""&">"& TEXT(A151,"0")&"</td><td class="&""""&"dataleft"&""""&">"& "<a href="&""""&L151&"\"&K151&""""&">"&B151&"</a></td><td class="&"""dataleft"">"& TEXT(C151,"")&"</td><td class="&""""&"dataleft"&""""&">"& TEXT(D151,"")&"</td><td class="&""""&"datacenter"&""""&">"& TEXT(E151,"")&"</td><td class="&""""&"dataleft"&""""&">"& TEXT(Q151,"")&"&nbsp;"&T151&",&nbsp;"&O151&"</td><td class="&""""&"dataleft"&""""&">"& TEXT(G151,"0.0")&"</td><td class="&""""&"datacenter"&""""&">"& TEXT(H151,"0")&"</td>"& "</tr>" -> <tr><td class="dataright">150</td><td class="dataleft"><a href="set04\he_august 10, 1920 - july 31, 1923\birth\stone,_male_birth_to_erik_november_9,_1920_p5_he.pdf">Stone</a></td><td class="dataleft"></td><td class="dataleft">Erik</td><td class="datacenter">M</td><td class="dataleft">November&nbsp;9,&nbsp;1920</td><td class="dataleft">Hannaford&nbsp;Enterprise</td><td class="datacenter">5</td></tr> | V151: =LEN(D151) -> 4
A152: =OFFSET(A152,-1,0)+1 -> 151 | B152: Sutton | D152: Wm. | E152: M | F152: 1920-11-11 | G152: The&nbsp;Sutton&nbsp;Reporter | H152: 1 | I152: 32 | J152: 834 | K152: sutton,_male_birth_to_wm_november_11,_1920_p1_tsr.pdf | L152: set03\tsr\tsr_october_26,_1916_-_august_3,_1922\birth | O152: =YEAR(F152) -> 1920 | P152: 1920 | Q152: =TEXT(F152,"mmmm") -> November | R152: =MONTH(F152) -> 11 | S152: =R152 -> 11 | T152: =DAY(F152) -> 11 | U152: ="<tr><td class="&""""&"dataright"&""""&">"& TEXT(A152,"0")&"</td><td class="&""""&"dataleft"&""""&">"& "<a href="&""""&L152&"\"&K152&""""&">"&B152&"</a></td><td class="&"""dataleft"">"& TEXT(C152,"")&"</td><td class="&""""&"dataleft"&""""&">"& TEXT(D152,"")&"</td><td class="&""""&"datacenter"&""""&">"& TEXT(E152,"")&"</td><td class="&""""&"dataleft"&""""&">"& TEXT(Q152,"")&"&nbsp;"&T152&",&nbsp;"&O152&"</td><td class="&""""&"dataleft"&""""&">"& TEXT(G152,"0.0")&"</td><td class="&""""&"datacenter"&""""&">"& TEXT(H152,"0")&"</td>"& "</tr>" -> <tr><td class="dataright">151</td><td class="dataleft"><a href="set03\tsr\tsr_october_26,_1916_-_august_3,_1922\birth\sutton,_male_birth_to_wm_november_11,_1920_p1_tsr.pdf">Sutton</a></td><td class="dataleft"></td><td class="dataleft">Wm.</td><td class="datacenter">M</td><td class="dataleft">November&nbsp;11,&nbsp;1920</td><td class="dataleft">The&nbsp;Sutton&nbsp;Reporter</td><td class="datacenter">1</td></tr> | V152: =LEN(D152) -> 3
A153: =OFFSET(A153,-1,0)+1 -> 152 | B153: Russell | D153: H. L. | E153: F | F153: 1920-11-25 | G153: The&nbsp;Sutton&nbsp;Reporter | H153: 4 | I153: 32 | J153: 825 | K153: russell,_female_birth_to_h_l_november_25,_1920_p4_tsr.pdf | L153: set03\tsr\tsr_october_26,_1916_-_august_3,_1922\birth | O153: =YEAR(F153) -> 1920 | P153: 1920 | Q153: =TEXT(F153,"mmmm") -> November | R153: =MONTH(F153) -> 11 | S153: =R153 -> 11 | T153: =DAY(F153) -> 25 | U153: ="<tr><td class="&""""&"dataright"&""""&">"& TEXT(A153,"0")&"</td><td class="&""""&"dataleft"&""""&">"& "<a href="&""""&L153&"\"&K153&""""&">"&B153&"</a></td><td class="&"""dataleft"">"& TEXT(C153,"")&"</td><td class="&""""&"dataleft"&""""&">"& TEXT(D153,"")&"</td><td class="&""""&"datacenter"&""""&">"& TEXT(E153,"")&"</td><td class="&""""&"dataleft"&""""&">"& TEXT(Q153,"")&"&nbsp;"&T153&",&nbsp;"&O153&"</td><td class="&""""&"dataleft"&""""&">"& TEXT(G153,"0.0")&"</td><td class="&""""&"datacenter"&""""&">"& TEXT(H153,"0")&"</td>"& "</tr>" -> <tr><td class="dataright">152</td><td class="dataleft"><a href="set03\tsr\tsr_october_26,_1916_-_august_3,_1922\birth\russell,_female_birth_to_h_l_november_25,_1920_p4_tsr.pdf">Russell</a></td><td class="dataleft"></td><td class="dataleft">H. L.</td><td class="datacenter">F</td><td class="dataleft">November&nbsp;25,&nbsp;1920</td><td class="dataleft">The&nbsp;Sutton&nbsp;Reporter</td><td class="datacenter">4</td></tr> | V153: =LEN(D153) -> 5
A154: =OFFSET(A154,-1,0)+1 -> 153 | B154: Curtis | D154: Herbert | E154: M | F154: 1920-11-30 | G154: Hannaford&nbsp;Enterprise | H154: 4 | I154: 23 | J154: 711 | K154: curtis,_male_birth_to_herbert_november_30,_1920_p4_he.pdf | L154: set04\he_august 10, 1920 - july 31, 1923\birth | O154: =YEAR(F154) -> 1920 | P154: 1920 | Q154: =TEXT(F154,"mmmm") -> November | R154: =MONTH(F154) -> 11 | S154: =R154 -> 11 | T154: =DAY(F154) -> 30 | U154: ="<tr><td class="&""""&"dataright"&""""&">"& TEXT(A154,"0")&"</td><td class="&""""&"dataleft"&""""&">"& "<a href="&""""&L154&"\"&K154&""""&">"&B154&"</a></td><td class="&"""dataleft"">"& TEXT(C154,"")&"</td><td class="&""""&"dataleft"&""""&">"& TEXT(D154,"")&"</td><td class="&""""&"datacenter"&""""&">"& TEXT(E154,"")&"</td><td class="&""""&"dataleft"&""""&">"& TEXT(Q154,"")&"&nbsp;"&T154&",&nbsp;"&O154&"</td><td class="&""""&"dataleft"&""""&">"& TEXT(G154,"0.0")&"</td><td class="&""""&"datacenter"&""""&">"& TEXT(H154,"0")&"</td>"& "</tr>" -> <tr><td class="dataright">153</td><td class="dataleft"><a href="set04\he_august 10, 1920 - july 31, 1923\birth\curtis,_male_birth_to_herbert_november_30,_1920_p4_he.pdf">Curtis</a></td><td class="dataleft"></td><td class="dataleft">Herbert</td><td class="datacenter">M</td><td class="dataleft">November&nbsp;30,&nbsp;1920</td><td class="dataleft">Hannaford&nbsp;Enterprise</td><td class="datacenter">4</td></tr> | V154: =LEN(D154) -> 7
A155: =OFFSET(A155,-1,0)+1 -> 154 | B155: Jackson | D155: C. M. | E155: F | F155: 1919-01-09 | G155: The&nbsp;Sutton&nbsp;Reporter | H155: 1 | I155: 32 | J155: 802 | K155: jackson,_female_birth_to_c_m_january_9,_1919_p1_tsr.pdf | L155: set03\tsr\tsr_october_26,_1916_-_august_3,_1922\birth | O155: =YEAR(F155) -> 1919 | P155: 1919 | Q155: =TEXT(F155,"mmmm") -> January | R155: =MONTH(F155) -> 1 | S155: =R155 -> 1 | T155: =DAY(F155) -> 9 | U155: ="<tr><td class="&""""&"dataright"&""""&">"& TEXT(A155,"0")&"</td><td class="&""""&"dataleft"&""""&">"& "<a href="&""""&L155&"\"&K155&""""&">"&B155&"</a></td><td class="&"""dataleft"">"& TEXT(C155,"")&"</td><td class="&""""&"dataleft"&""""&">"& TEXT(D155,"")&"</td><td class="&""""&"datacenter"&""""&">"& TEXT(E155,"")&"</td><td class="&""""&"dataleft"&""""&">"& TEXT(Q155,"")&"&nbsp;"&T155&",&nbsp;"&O155&"</td><td class="&""""&"dataleft"&""""&">"& TEXT(G155,"0.0")&"</td><td class="&""""&"datacenter"&""""&">"& TEXT(H155,"0")&"</td>"& "</tr>" -> <tr><td class="dataright">154</td><td class="dataleft"><a href="set03\tsr\tsr_october_26,_1916_-_august_3,_1922\birth\jackson,_female_birth_to_c_m_january_9,_1919_p1_tsr.pdf">Jackson</a></td><td class="dataleft"></td><td class="dataleft">C. M.</td><td class="datacenter">F</td><td class="dataleft">January&nbsp;9,&nbsp;1919</td><td class="dataleft">The&nbsp;Sutton&nbsp;Reporter</td><td class="datacenter">1</td></tr> | V155: =LEN(D155) -> 5
A156: =OFFSET(A156,-1,0)+1 -> 155 | B156: Leininger | D156: J. W. | E156: M | F156: 1919-01-23 | G156: The&nbsp;Sutton&nbsp;Reporter | H156: 1 | I156: 32 | J156: 809 | K156: leininger,_male_birth_to_j_w_january_23,_1919_p1_tsr.pdf | L156: set03\tsr\tsr_october_26,_1916_-_august_3,_1922\birth | O156: =YEAR(F156) -> 1919 | P156: 1919 | Q156: =TEXT(F156,"mmmm") -> January | R156: =MONTH(F156) -> 1 | S156: =R156 -> 1 | T156: =DAY(F156) -> 23 | U156: ="<tr><td class="&""""&"dataright"&""""&">"& TEXT(A156,"0")&"</td><td class="&""""&"dataleft"&""""&">"& "<a href="&""""&L156&"\"&K156&""""&">"&B156&"</a></td><td class="&"""dataleft"">"& TEXT(C156,"")&"</td><td class="&""""&"dataleft"&""""&">"& TEXT(D156,"")&"</td><td class="&""""&"datacenter"&""""&">"& TEXT(E156,"")&"</td><td class="&""""&"dataleft"&""""&">"& TEXT(Q156,"")&"&nbsp;"&T156&",&nbsp;"&O156&"</td><td class="&""""&"dataleft"&""""&">"& TEXT(G156,"0.0")&"</td><td class="&""""&"datacenter"&""""&">"& TEXT(H156,"0")&"</td>"& "</tr>" -> <tr><td class="dataright">155</td><td class="dataleft"><a href="set03\tsr\tsr_october_26,_1916_-_august_3,_1922\birth\leininger,_male_birth_to_j_w_january_23,_1919_p1_tsr.pdf">Leininger</a></td><td class="dataleft"></td><td class="dataleft">J. W.</td><td class="datacenter">M</td><td class="dataleft">January&nbsp;23,&nbsp;1919</td><td class="dataleft">The&nbsp;Sutton&nbsp;Reporter</td><td class="datacenter">1</td></tr> | V156: =LEN(D156) -> 5
A157: =OFFSET(A157,-1,0)+1 -> 156 | B157: Odegaard | C157: Twin | D157: Ole | E157: F F | F157: 1919-01-28 | G157: Hannaford&nbsp;Enterprise | H157: 5 | I157: 22 | J157: 695 | K157: odegaard,_twin_female_birth_to_ole_january_28,_1919_p5_he.pdf | L157: set04\he_november 20, 1917 - august 10, 1920\birth | O157: =YEAR(F157) -> 1919 | P157: 1919 | Q157: =TEXT(F157,"mmmm") -> January | R157: =MONTH(F157) -> 1 | S157: =R157 -> 1 | T157: =DAY(F157) -> 28 | U157: ="<tr><td class="&""""&"dataright"&""""&">"& TEXT(A157,"0")&"</td><td class="&""""&"dataleft"&""""&">"& "<a href="&""""&L157&"\"&K157&""""&">"&B157&"</a></td><td class="&"""dataleft"">"& TEXT(C157,"")&"</td><td class="&""""&"dataleft"&""""&">"& TEXT(D157,"")&"</td><td class="&""""&"datacenter"&""""&">"& TEXT(E157,"")&"</td><td class="&""""&"dataleft"&""""&">"& TEXT(Q157,"")&"&nbsp;"&T157&",&nbsp;"&O157&"</td><td class="&""""&"dataleft"&""""&">"& TEXT(G157,"0.0")&"</td><td class="&""""&"datacenter"&""""&">"& TEXT(H157,"0")&"</td>"& "</tr>" -> <tr><td class="dataright">156</td><td class="dataleft"><a href="set04\he_november 20, 1917 - august 10, 1920\birth\odegaard,_twin_female_birth_to_ole_january_28,_1919_p5_he.pdf">Odegaard</a></td><td class="dataleft">Twin</td><td class="dataleft">Ole</td><td class="datacenter">F F</td><td class="dataleft">January&nbsp;28,&nbsp;1919</td><td class="dataleft">Hannaford&nbsp;Enterprise</td><td class="datacenter">5</td></tr> | V157: =LEN(D157) -> 3
A158: =OFFSET(A158,-1,0)+1 -> 157 | B158: Larson | D158: Amanda | E158: F | F158: 1919-02-04 | G158: Hannaford&nbsp;Enterprise | H158: 5 | I158: 22 | J158: 687 | K158: larson,_female_birth_to_amanda_february_4,_1919_p5_he.pdf | L158: set04\he_november 20, 1917 - august 10, 1920\birth | O158: =YEAR(F158) -> 1919 | P158: 1919 | Q158: =TEXT(F158,"mmmm") -> February | R158: =MONTH(F158) -> 2 | S158: =R158 -> 2 | T158: =DAY(F158) -> 4 | U158: ="<tr><td class="&""""&"dataright"&""""&">"& TEXT(A158,"0")&"</td><td class="&""""&"dataleft"&""""&">"& "<a href="&""""&L158&"\"&K158&""""&">"&B158&"</a></td><td class="&"""dataleft"">"& TEXT(C158,"")&"</td><td class="&""""&"dataleft"&""""&">"& TEXT(D158,"")&"</td><td class="&""""&"datacenter"&""""&">"& TEXT(E158,"")&"</td><td class="&""""&"dataleft"&""""&">"& TEXT(Q158,"")&"&nbsp;"&T158&",&nbsp;"&O158&"</td><td class="&""""&"dataleft"&""""&">"& TEXT(G158,"0.0")&"</td><td class="&""""&"datacenter"&""""&">"& TEXT(H158,"0")&"</td>"& "</tr>" -> <tr><td class="dataright">157</td><td class="dataleft"><a href="set04\he_november 20, 1917 - august 10, 1920\birth\larson,_female_birth_to_amanda_february_4,_1919_p5_he.pdf">Larson</a></td><td class="dataleft"></td><td class="dataleft">Amanda</td><td class="datacenter">F</td><td class="dataleft">February&nbsp;4,&nbsp;1919</td><td class="dataleft">Hannaford&nbsp;Enterprise</td><td class="datacenter">5</td></tr> | V158: =LEN(D158) -> 6
A159: =OFFSET(A159,-1,0)+1 -> 158 | B159: Ebentier | D159: Joseph | E159: M | F159: 1919-02-13 | G159: The&nbsp;Sutton&nbsp;Reporter | H159: 4 | I159: 32 | J159: 785 | K159: ebentier,_male_birth_to_joseph_february_13,_1919_p4_tsr.pdf | L159: set03\tsr\tsr_october_26,_1916_-_august_3,_1922\birth | O159: =YEAR(F159) -> 1919 | P159: 1919 | Q159: =TEXT(F159,"mmmm") -> February | R159: =MONTH(F159) -> 2 | S159: =R159 -> 2 | T159: =DAY(F159) -> 13 | U159: ="<tr><td class="&""""&"dataright"&""""&">"& TEXT(A159,"0")&"</td><td class="&""""&"dataleft"&""""&">"& "<a href="&""""&L159&"\"&K159&""""&">"&B159&"</a></td><td class="&"""dataleft"">"& TEXT(C159,"")&"</td><td class="&""""&"dataleft"&""""&">"& TEXT(D159,"")&"</td><td class="&""""&"datacenter"&""""&">"& TEXT(E159,"")&"</td><td class="&""""&"dataleft"&""""&">"& TEXT(Q159,"")&"&nbsp;"&T159&",&nbsp;"&O159&"</td><td class="&""""&"dataleft"&""""&">"& TEXT(G159,"0.0")&"</td><td class="&""""&"datacenter"&""""&">"& TEXT(H159,"0")&"</td>"& "</tr>" -> <tr><td class="dataright">158</td><td class="dataleft"><a href="set03\tsr\tsr_october_26,_1916_-_august_3,_1922\birth\ebentier,_male_birth_to_joseph_february_13,_1919_p4_tsr.pdf">Ebentier</a></td><td class="dataleft"></td><td class="dataleft">Joseph</td><td class="datacenter">M</td><td class="dataleft">February&nbsp;13,&nbsp;1919</td><td class="dataleft">The&nbsp;Sutton&nbsp;Reporter</td><td class="datacenter">4</td></tr> | V159: =LEN(D159) -> 6
A160: =OFFSET(A160,-1,0)+1 -> 159 | B160: Ekstrand | D160: Carl | E160: M | F160: 1919-03-11 | G160: Hannaford&nbsp;Enterprise | H160: 4 | I160: 22 | J160: 669 | K160: ekstrand,_male_birth_to_carl_march_11,_1919_p4_he.pdf | L160: set04\he_november 20, 1917 - august 10, 1920\birth | O160: =YEAR(F160) -> 1919 | P160: 1919 | Q160: =TEXT(F160,"mmmm") -> March | R160: =MONTH(F160) -> 3 | S160: =R160 -> 3 | T160: =DAY(F160) -> 11 | U160: ="<tr><td class="&""""&"dataright"&""""&">"& TEXT(A160,"0")&"</td><td class="&""""&"dataleft"&""""&">"& "<a href="&""""&L160&"\"&K160&""""&">"&B160&"</a></td><td class="&"""dataleft"">"& TEXT(C160,"")&"</td><td class="&""""&"dataleft"&""""&">"& TEXT(D160,"")&"</td><td class="&""""&"datacenter"&""""&">"& TEXT(E160,"")&"</td><td class="&""""&"dataleft"&""""&">"& TEXT(Q160,"")&"&nbsp;"&T160&",&nbsp;"&O160&"</td><td class="&""""&"dataleft"&""""&">"& TEXT(G160,"0.0")&"</td><td class="&""""&"datacenter"&""""&">"& TEXT(H160,"0")&"</td>"& "</tr>" -> <tr><td class="dataright">159</td><td class="dataleft"><a href="set04\he_november 20, 1917 - august 10, 1920\birth\ekstrand,_male_birth_to_carl_march_11,_1919_p4_he.pdf">Ekstrand</a></td><td class="dataleft"></td><td class="dataleft">Carl</td><td class="datacenter">M</td><td class="dataleft">March&nbsp;11,&nbsp;1919</td><td class="dataleft">Hannaford&nbsp;Enterprise</td><td class="datacenter">4</td></tr> | V160: =LEN(D160) -> 4
A161: =OFFSET(A161,-1,0)+1 -> 160 | B161: Fadness | D161: E. M. | E161: M | F161: 1919-03-20 | G161: The&nbsp;Sutton&nbsp;Reporter | H161: 3 | I161: 32 | J161: 789 | K161: fadness,_male_birth_to_e_m_march_20,_1919_p3_tsr.pdf | L161: set03\tsr\tsr_october_26,_1916_-_august_3,_1922\birth | O161: =YEAR(F161) -> 1919 | P161: 1919 | Q161: =TEXT(F161,"mmmm") -> March | R161: =MONTH(F161) -> 3 | S161: =R161 -> 3 | T161: =DAY(F161) -> 20 | U161: ="<tr><td class="&""""&"dataright"&""""&">"& TEXT(A161,"0")&"</td><td class="&""""&"dataleft"&""""&">"& "<a href="&""""&L161&"\"&K161&""""&">"&B161&"</a></td><td class="&"""dataleft"">"& TEXT(C161,"")&"</td><td class="&""""&"dataleft"&""""&">"& TEXT(D161,"")&"</td><td class="&""""&"datacenter"&""""&">"& TEXT(E161,"")&"</td><td class="&""""&"dataleft"&""""&">"& TEXT(Q161,"")&"&nbsp;"&T161&",&nbsp;"&O161&"</td><td class="&""""&"dataleft"&""""&">"& TEXT(G161,"0.0")&"</td><td class="&""""&"datacenter"&""""&">"& TEXT(H161,"0")&"</td>"& "</tr>" -> <tr><td class="dataright">160</td><td class="dataleft"><a href="set03\tsr\tsr_october_26,_1916_-_august_3,_1922\birth\fadness,_male_birth_to_e_m_march_20,_1919_p3_tsr.pdf">Fadness</a></td><td class="dataleft"></td><td class="dataleft">E. M.</td><td class="datacenter">M</td><td class="dataleft">March&nbsp;20,&nbsp;1919</td><td class="dataleft">The&nbsp;Sutton&nbsp;Reporter</td><td class="datacenter">3</td></tr> | V161: =LEN(D161) -> 5
A162: =OFFSET(A162,-1,0)+1 -> 161 | B162: Smith | D162: C. W. | E162: M | F162: 1919-03-20 | G162: The&nbsp;Sutton&nbsp;Reporter | H162: 3 | I162: 32 | J162: 832 | K162: smith,_male_birth_to_c_w_march_20,_1919_p3_tsr.pdf | L162: set03\tsr\tsr_october_26,_1916_-_august_3,_1922\birth | O162: =YEAR(F162) -> 1919 | P162: 1919 | Q162: =TEXT(F162,"mmmm") -> March | R162: =MONTH(F162) -> 3 | S162: =R162 -> 3 | T162: =DAY(F162) -> 20 | U162: ="<tr><td class="&""""&"dataright"&""""&">"& TEXT(A162,"0")&"</td><td class="&""""&"dataleft"&""""&">"& "<a href="&""""&L162&"\"&K162&""""&">"&B162&"</a></td><td class="&"""dataleft"">"& TEXT(C162,"")&"</td><td class="&""""&"dataleft"&""""&">"& TEXT(D162,"")&"</td><td class="&""""&"datacenter"&""""&">"& TEXT(E162,"")&"</td><td class="&""""&"dataleft"&""""&">"& TEXT(Q162,"")&"&nbsp;"&T162&",&nbsp;"&O162&"</td><td class="&""""&"dataleft"&""""&">"& TEXT(G162,"0.0")&"</td><td class="&""""&"datacenter"&""""&">"& TEXT(H162,"0")&"</td>"& "</tr>" -> <tr><td class="dataright">161</td><td class="dataleft"><a href="set03\tsr\tsr_october_26,_1916_-_august_3,_1922\birth\smith,_male_birth_to_c_w_march_20,_1919_p3_tsr.pdf">Smith</a></td><td class="dataleft"></td><td class="dataleft">C. W.</td><td class="datacenter">M</td><td class="dataleft">March&nbsp;20,&nbsp;1919</td><td class="dataleft">The&nbsp;Sutton&nbsp;Reporter</td><td class="datacenter">3</td></tr> | V162: =LEN(D162) -> 5
A163: =OFFSET(A163,-1,0)+1 -> 162 | B163: Thompson | D163: Martin J. | E163: F | F163: 1919-04-17 | G163: The&nbsp;Sutton&nbsp;Reporter | H163: 1 | I163: 32 | J163: 837 | K163: thompson,_female_birth_to_martin_j_april_17,_1919_p1_tsr.pdf | L163: set03\tsr\tsr_october_26,_1916_-_august_3,_1922\birth | O163: =YEAR(F163) -> 1919 | P163: 1919 | Q163: =TEXT(F163,"mmmm") -> April | R163: =MONTH(F163) -> 4 | S163: =R163 -> 4 | T163: =DAY(F163) -> 17 | U163: ="<tr><td class="&""""&"dataright"&""""&">"& TEXT(A163,"0")&"</td><td class="&""""&"dataleft"&""""&">"& "<a href="&""""&L163&"\"&K163&""""&">"&B163&"</a></td><td class="&"""dataleft"">"& TEXT(C163,"")&"</td><td class="&""""&"dataleft"&""""&">"& TEXT(D163,"")&"</td><td class="&""""&"datacenter"&""""&">"& TEXT(E163,"")&"</td><td class="&""""&"dataleft"&""""&">"& TEXT(Q163,"")&"&nbsp;"&T163&",&nbsp;"&O163&"</td><td class="&""""&"dataleft"&""""&">"& TEXT(G163,"0.0")&"</td><td class="&""""&"datacenter"&""""&">"& TEXT(H163,"0")&"</td>"& "</tr>" -> <tr><td class="dataright">162</td><td class="dataleft"><a href="set03\tsr\tsr_october_26,_1916_-_august_3,_1922\birth\thompson,_female_birth_to_martin_j_april_17,_1919_p1_tsr.pdf">Thompson</a></td><td class="dataleft"></td><td class="dataleft">Martin J.</td><td class="datacenter">F</td><td class="dataleft">April&nbsp;17,&nbsp;1919</td><td class="dataleft">The&nbsp;Sutton&nbsp;Reporter</td><td class="datacenter">1</td></tr> | V163: =LEN(D163) -> 9
A164: =OFFSET(A164,-1,0)+1 -> 163 | B164: Thompson | D164: Martin | E164: F | F164: 1919-04-22 | G164: Hannaford&nbsp;Enterprise | H164: 7 | I164: 22 | J164: 705 | K164: thompson,_female_birth_to_martin_april_22,_1919_p7_he.pdf | L164: set04\he_november 20, 1917 - august 10, 1920\birth | O164: =YEAR(F164) -> 1919 | P164: 1919 | Q164: =TEXT(F164,"mmmm") -> April | R164: =MONTH(F164) -> 4 | S164: =R164 -> 4 | T164: =DAY(F164) -> 22 | U164: ="<tr><td class="&""""&"dataright"&""""&">"& TEXT(A164,"0")&"</td><td class="&""""&"dataleft"&""""&">"& "<a href="&""""&L164&"\"&K164&""""&">"&B164&"</a></td><td class="&"""dataleft"">"& TEXT(C164,"")&"</td><td class="&""""&"dataleft"&""""&">"& TEXT(D164,"")&"</td><td class="&""""&"datacenter"&""""&">"& TEXT(E164,"")&"</td><td class="&""""&"dataleft"&""""&">"& TEXT(Q164,"")&"&nbsp;"&T164&",&nbsp;"&O164&"</td><td class="&""""&"dataleft"&""""&">"& TEXT(G164,"0.0")&"</td><td class="&""""&"datacenter"&""""&">"& TEXT(H164,"0")&"</td>"& "</tr>" -> <tr><td class="dataright">163</td><td class="dataleft"><a href="set04\he_november 20, 1917 - august 10, 1920\birth\thompson,_female_birth_to_martin_april_22,_1919_p7_he.pdf">Thompson</a></td><td class="dataleft"></td><td class="dataleft">Martin</td><td class="datacenter">F</td><td class="dataleft">April&nbsp;22,&nbsp;1919</td><td class="dataleft">Hannaford&nbsp;Enterprise</td><td class="datacenter">7</td></tr> | V164: =LEN(D164) -> 6
A165: =OFFSET(A165,-1,0)+1 -> 164 | B165: Schmidt | D165: Wm. | E165: F | F165: 1919-04-24 | G165: The&nbsp;Sutton&nbsp;Reporter | H165: 4 | I165: 32 | J165: 827 | K165: schmidt,_female_birth_to_wm_april_24,_1919_p4_tsr.pdf | L165: set03\tsr\tsr_october_26,_1916_-_august_3,_1922\birth | O165: =YEAR(F165) -> 1919 | P165: 1919 | Q165: =TEXT(F165,"mmmm") -> April | R165: =MONTH(F165) -> 4 | S165: =R165 -> 4 | T165: =DAY(F165) -> 24 | U165: ="<tr><td class="&""""&"dataright"&""""&">"& TEXT(A165,"0")&"</td><td class="&""""&"dataleft"&""""&">"& "<a href="&""""&L165&"\"&K165&""""&">"&B165&"</a></td><td class="&"""dataleft"">"& TEXT(C165,"")&"</td><td class="&""""&"dataleft"&""""&">"& TEXT(D165,"")&"</td><td class="&""""&"datacenter"&""""&">"& TEXT(E165,"")&"</td><td class="&""""&"dataleft"&""""&">"& TEXT(Q165,"")&"&nbsp;"&T165&",&nbsp;"&O165&"</td><td class="&""""&"dataleft"&""""&">"& TEXT(G165,"0.0")&"</td><td class="&""""&"datacenter"&""""&">"& TEXT(H165,"0")&"</td>"& "</tr>" -> <tr><td class="dataright">164</td><td class="dataleft"><a href="set03\tsr\tsr_october_26,_1916_-_august_3,_1922\birth\schmidt,_female_birth_to_wm_april_24,_1919_p4_tsr.pdf">Schmidt</a></td><td class="dataleft"></td><td class="dataleft">Wm.</td><td class="datacenter">F</td><td class="dataleft">April&nbsp;24,&nbsp;1919</td><td class="dataleft">The&nbsp;Sutton&nbsp;Reporter</td><td class="datacenter">4</td></tr> | V165: =LEN(D165) -> 3
A166: =OFFSET(A166,-1,0)+1 -> 165 | B166: Mills | D166: George | E166: F | F166: 1919-06-03 | G166: Hannaford&nbsp;Enterprise | H166: 7 | I166: 22 | J166: 692 | K166: mills,_female_birth_to_george_june_3,_1919_p7_he.pdf | L166: set04\he_november 20, 1917 - august 10, 1920\birth | O166: =YEAR(F166) -> 1919 | P166: 1919 | Q166: =TEXT(F166,"mmmm") -> June | R166: =MONTH(F166) -> 6 | S166: =R166 -> 6 | T166: =DAY(F166) -> 3 | U166: ="<tr><td class="&""""&"dataright"&""""&">"& TEXT(A166,"0")&"</td><td class="&""""&"dataleft"&""""&">"& "<a href="&""""&L166&"\"&K166&""""&">"&B166&"</a></td><td class="&"""dataleft"">"& TEXT(C166,"")&"</td><td class="&""""&"dataleft"&""""&">"& TEXT(D166,"")&"</td><td class="&""""&"datacenter"&""""&">"& TEXT(E166,"")&"</td><td class="&""""&"dataleft"&""""&">"& TEXT(Q166,"")&"&nbsp;"&T166&",&nbsp;"&O166&"</td><td class="&""""&"dataleft"&""""&">"& TEXT(G166,"0.0")&"</td><td class="&""""&"datacenter"&""""&">"& TEXT(H166,"0")&"</td>"& "</tr>" -> <tr><td class="dataright">165</td><td class="dataleft"><a href="set04\he_november 20, 1917 - august 10, 1920\birth\mills,_female_birth_to_george_june_3,_1919_p7_he.pdf">Mills</a></td><td class="dataleft"></td><td class="dataleft">George</td><td class="datacenter">F</td><td class="dataleft">June&nbsp;3,&nbsp;1919</td><td class="dataleft">Hannaford&nbsp;Enterprise</td><td class="datacenter">7</td></tr> | V166: =LEN(D166) -> 6
A167: =OFFSET(A167,-1,0)+1 -> 166 | B167: Ringlee | D167: Francis | E167: M | F167: 1919-06-05 | G167: The&nbsp;Sutton&nbsp;Reporter | H167: 1 | I167: 32 | J167: 823 | K167: ringlee,_male_birth_to_francis_june_5,_1919_p1_tsr.pdf | L167: set03\tsr\tsr_october_26,_1916_-_august_3,_1922\birth | O167: =YEAR(F167) -> 1919 | P167: 1919 | Q167: =TEXT(F167,"mmmm") -> June | R167: =MONTH(F167) -> 6 | S167: =R167 -> 6 | T167: =DAY(F167) -> 5 | U167: ="<tr><td class="&""""&"dataright"&""""&">"& TEXT(A167,"0")&"</td><td class="&""""&"dataleft"&""""&">"& "<a href="&""""&L167&"\"&K167&""""&">"&B167&"</a></td><td class="&"""dataleft"">"& TEXT(C167,"")&"</td><td class="&""""&"dataleft"&""""&">"& TEXT(D167,"")&"</td><td class="&""""&"datacenter"&""""&">"& TEXT(E167,"")&"</td><td class="&""""&"dataleft"&""""&">"& TEXT(Q167,"")&"&nbsp;"&T167&",&nbsp;"&O167&"</td><td class="&""""&"dataleft"&""""&">"& TEXT(G167,"0.0")&"</td><td class="&""""&"datacenter"&""""&">"& TEXT(H167,"0")&"</td>"& "</tr>" -> <tr><td class="dataright">166</td><td class="dataleft"><a href="set03\tsr\tsr_october_26,_1916_-_august_3,_1922\birth\ringlee,_male_birth_to_francis_june_5,_1919_p1_tsr.pdf">Ringlee</a></td><td class="dataleft"></td><td class="dataleft">Francis</td><td class="datacenter">M</td><td class="dataleft">June&nbsp;5,&nbsp;1919</td><td class="dataleft">The&nbsp;Sutton&nbsp;Reporter</td><td class="datacenter">1</td></tr> | V167: =LEN(D167) -> 7
A168: =OFFSET(A168,-1,0)+1 -> 167 | B168: Martin | D168: Floyd | E168: F | F168: 1919-06-12 | G168: The&nbsp;Sutton&nbsp;Reporter | H168: 1 | I168: 32 | J168: 811 | K168: martin,_female_birth_to_floyd_june_12,_1919_p1_tsr.pdf | L168: set03\tsr\tsr_october_26,_1916_-_august_3,_1922\birth | O168: =YEAR(F168) -> 1919 | P168: 1919 | Q168: =TEXT(F168,"mmmm") -> June | R168: =MONTH(F168) -> 6 | S168: =R168 -> 6 | T168: =DAY(F168) -> 12 | U168: ="<tr><td class="&""""&"dataright"&""""&">"& TEXT(A168,"0")&"</td><td class="&""""&"dataleft"&""""&">"& "<a href="&""""&L168&"\"&K168&""""&">"&B168&"</a></td><td class="&"""dataleft"">"& TEXT(C168,"")&"</td><td class="&""""&"dataleft"&""""&">"& TEXT(D168,"")&"</td><td class="&""""&"datacenter"&""""&">"& TEXT(E168,"")&"</td><td class="&""""&"dataleft"&""""&">"& TEXT(Q168,"")&"&nbsp;"&T168&",&nbsp;"&O168&"</td><td class="&""""&"dataleft"&""""&">"& TEXT(G168,"0.0")&"</td><td class="&""""&"datacenter"&""""&">"& TEXT(H168,"0")&"</td>"& "</tr>" -> <tr><td class="dataright">167</td><td class="dataleft"><a href="set03\tsr\tsr_october_26,_1916_-_august_3,_1922\birth\martin,_female_birth_to_floyd_june_12,_1919_p1_tsr.pdf">Martin</a></td><td class="dataleft"></td><td class="dataleft">Floyd</td><td class="datacenter">F</td><td class="dataleft">June&nbsp;12,&nbsp;1919</td><td class="dataleft">The&nbsp;Sutton&nbsp;Reporter</td><td class="datacenter">1</td></tr> | V168: =LEN(D168) -> 5
A169: =OFFSET(A169,-1,0)+1 -> 168 | B169: Smith | D169: Mike | E169: F | F169: 1919-06-12 | G169: The&nbsp;Sutton&nbsp;Reporter | H169: 1 | I169: 32 | J169: 831 | K169: smith,_female_birth_to_mike_june_12,_1919_p1_tsr.pdf | L169: set03\tsr\tsr_october_26,_1916_-_august_3,_1922\birth | O169: =YEAR(F169) -> 1919 | P169: 1919 | Q169: =TEXT(F169,"mmmm") -> June | R169: =MONTH(F169) -> 6 | S169: =R169 -> 6 | T169: =DAY(F169) -> 12 | U169: ="<tr><td class="&""""&"dataright"&""""&">"& TEXT(A169,"0")&"</td><td class="&""""&"dataleft"&""""&">"& "<a href="&""""&L169&"\"&K169&""""&">"&B169&"</a></td><td class="&"""dataleft"">"& TEXT(C169,"")&"</td><td class="&""""&"dataleft"&""""&">"& TEXT(D169,"")&"</td><td class="&""""&"datacenter"&""""&">"& TEXT(E169,"")&"</td><td class="&""""&"dataleft"&""""&">"& TEXT(Q169,"")&"&nbsp;"&T169&",&nbsp;"&O169&"</td><td class="&""""&"dataleft"&""""&">"& TEXT(G169,"0.0")&"</td><td class="&""""&"datacenter"&""""&">"& TEXT(H169,"0")&"</td>"& "</tr>" -> <tr><td class="dataright">168</td><td class="dataleft"><a href="set03\tsr\tsr_october_26,_1916_-_august_3,_1922\birth\smith,_female_birth_to_mike_june_12,_1919_p1_tsr.pdf">Smith</a></td><td class="dataleft"></td><td class="dataleft">Mike</td><td class="datacenter">F</td><td class="dataleft">June&nbsp;12,&nbsp;1919</td><td class="dataleft">The&nbsp;Sutton&nbsp;Reporter</td><td class="datacenter">1</td></tr> | V169: =LEN(D169) -> 4
A170: =OFFSET(A170,-1,0)+1 -> 169 | B170: Hafner | D170: Charles | E170: M | F170: 1919-06-19 | G170: The&nbsp;Sutton&nbsp;Reporter | H170: 1 | I170: 32 | J170: 795 | K170: hafner,_male_birth_to_charles_june_19,_1919_p1_tsr.pdf | L170: set03\tsr\tsr_october_26,_1916_-_august_3,_1922\birth | O170: =YEAR(F170) -> 1919 | P170: 1919 | Q170: =TEXT(F170,"mmmm") -> June | R170: =MONTH(F170) -> 6 | S170: =R170 -> 6 | T170: =DAY(F170) -> 19 | U170: ="<tr><td class="&""""&"dataright"&""""&">"& TEXT(A170,"0")&"</td><td class="&""""&"dataleft"&""""&">"& "<a href="&""""&L170&"\"&K170&""""&">"&B170&"</a></td><td class="&"""dataleft"">"& TEXT(C170,"")&"</td><td class="&""""&"dataleft"&""""&">"& TEXT(D170,"")&"</td><td class="&""""&"datacenter"&""""&">"& TEXT(E170,"")&"</td><td class="&""""&"dataleft"&""""&">"& TEXT(Q170,"")&"&nbsp;"&T170&",&nbsp;"&O170&"</td><td class="&""""&"dataleft"&""""&">"& TEXT(G170,"0.0")&"</td><td class="&""""&"datacenter"&""""&">"& TEXT(H170,"0")&"</td>"& "</tr>" -> <tr><td class="dataright">169</td><td class="dataleft"><a href="set03\tsr\tsr_october_26,_1916_-_august_3,_1922\birth\hafner,_male_birth_to_charles_june_19,_1919_p1_tsr.pdf">Hafner</a></td><td class="dataleft"></td><td class="dataleft">Charles</td><td class="datacenter">M</td><td class="dataleft">June&nbsp;19,&nbsp;1919</td><td class="dataleft">The&nbsp;Sutton&nbsp;Reporter</td><td class="datacenter">1</td></tr> | V170: =LEN(D170) -> 7
A171: =OFFSET(A171,-1,0)+1 -> 170 | B171: McWethy | D171: John | E171: M | F171: 1919-06-19 | G171: The&nbsp;Sutton&nbsp;Reporter | H171: 1 | I171: 32 | J171: 812 | K171: mcwethy,_male_birth_to_john_june_19,_1919_p1_tsr.pdf | L171: set03\tsr\tsr_october_26,_1916_-_august_3,_1922\birth | O171: =YEAR(F171) -> 1919 | P171: 1919 | Q171: =TEXT(F171,"mmmm") -> June | R171: =MONTH(F171) -> 6 | S171: =R171 -> 6 | T171: =DAY(F171) -> 19 | U171: ="<tr><td class="&""""&"dataright"&""""&">"& TEXT(A171,"0")&"</td><td class="&""""&"dataleft"&""""&">"& "<a href="&""""&L171&"\"&K171&""""&">"&B171&"</a></td><td class="&"""dataleft"">"& TEXT(C171,"")&"</td><td class="&""""&"dataleft"&""""&">"& TEXT(D171,"")&"</td><td class="&""""&"datacenter"&""""&">"& TEXT(E171,"")&"</td><td class="&""""&"dataleft"&""""&">"& TEXT(Q171,"")&"&nbsp;"&T171&",&nbsp;"&O171&"</td><td class="&""""&"dataleft"&""""&">"& TEXT(G171,"0.0")&"</td><td class="&""""&"datacenter"&""""&">"& TEXT(H171,"0")&"</td>"& "</tr>" -> <tr><td class="dataright">170</td><td class="dataleft"><a href="set03\tsr\tsr_october_26,_1916_-_august_3,_1922\birth\mcwethy,_male_birth_to_john_june_19,_1919_p1_tsr.pdf">McWethy</a></td><td class="dataleft"></td><td class="dataleft">John </td><td class="datacenter">M</td><td class="dataleft">June&nbsp;19,&nbsp;1919</td><td class="dataleft">The&nbsp;Sutton&nbsp;Reporter</td><td class="datacenter">1</td></tr> | V171: =LEN(D171) -> 5
A172: =OFFSET(A172,-1,0)+1 -> 171 | B172: Markuson | D172: Melvin | E172: F | F172: 1919-06-24 | G172: Hannaford&nbsp;Enterprise | H172: 7 | I172: 22 | J172: 689 | K172: markuson,_female_birth_to_melvin_june_24,_1919_p7_he.pdf | L172: set04\he_november 20, 1917 - august 10, 1920\birth | O172: =YEAR(F172) -> 1919 | P172: 1919 | Q172: =TEXT(F172,"mmmm") -> June | R172: =MONTH(F172) -> 6 | S172: =R172 -> 6 | T172: =DAY(F172) -> 24 | U172: ="<tr><td class="&""""&"dataright"&""""&">"& TEXT(A172,"0")&"</td><td class="&""""&"dataleft"&""""&">"& "<a href="&""""&L172&"\"&K172&""""&">"&B172&"</a></td><td class="&"""dataleft"">"& TEXT(C172,"")&"</td><td class="&""""&"dataleft"&""""&">"& TEXT(D172,"")&"</td><td class="&""""&"datacenter"&""""&">"& TEXT(E172,"")&"</td><td class="&""""&"dataleft"&""""&">"& TEXT(Q172,"")&"&nbsp;"&T172&",&nbsp;"&O172&"</td><td class="&""""&"dataleft"&""""&">"& TEXT(G172,"0.0")&"</td><td class="&""""&"datacenter"&""""&">"& TEXT(H172,"0")&"</td>"& "</tr>" -> <tr><td class="dataright">171</td><td class="dataleft"><a href="set04\he_november 20, 1917 - august 10, 1920\birth\markuson,_female_birth_to_melvin_june_24,_1919_p7_he.pdf">Markuson</a></td><td class="dataleft"></td><td class="dataleft">Melvin</td><td class="datacenter">F</td><td class="dataleft">June&nbsp;24,&nbsp;1919</td><td class="dataleft">Hannaford&nbsp;Enterprise</td><td class="datacenter">7</td></tr> | V172: =LEN(D172) -> 6
A173: =OFFSET(A173,-1,0)+1 -> 172 | B173: Harris | D173: J. W. | E173: F | F173: 1919-07-08 | G173: Hannaford&nbsp;Enterprise | H173: 5 | I173: 22 | J173: 680 | K173: harris,_female_birth_to_j_w_july_8,_1919_p5_he.pdf | L173: set04\he_november 20, 1917 - august 10, 1920\birth | O173: =YEAR(F173) -> 1919 | P173: 1919 | Q173: =TEXT(F173,"mmmm") -> July | R173: =MONTH(F173) -> 7 | S173: =R173 -> 7 | T173: =DAY(F173) -> 8 | U173: ="<tr><td class="&""""&"dataright"&""""&">"& TEXT(A173,"0")&"</td><td class="&""""&"dataleft"&""""&">"& "<a href="&""""&L173&"\"&K173&""""&">"&B173&"</a></td><td class="&"""dataleft"">"& TEXT(C173,"")&"</td><td class="&""""&"dataleft"&""""&">"& TEXT(D173,"")&"</td><td class="&""""&"datacenter"&""""&">"& TEXT(E173,"")&"</td><td class="&""""&"dataleft"&""""&">"& TEXT(Q173,"")&"&nbsp;"&T173&",&nbsp;"&O173&"</td><td class="&""""&"dataleft"&""""&">"& TEXT(G173,"0.0")&"</td><td class="&""""&"datacenter"&""""&">"& TEXT(H173,"0")&"</td>"& "</tr>" -> <tr><td class="dataright">172</td><td class="dataleft"><a href="set04\he_november 20, 1917 - august 10, 1920\birth\harris,_female_birth_to_j_w_july_8,_1919_p5_he.pdf">Harris</a></td><td class="dataleft"></td><td class="dataleft">J. W.</td><td class="datacenter">F</td><td class="dataleft">July&nbsp;8,&nbsp;1919</td><td class="dataleft">Hannaford&nbsp;Enterprise</td><td class="datacenter">5</td></tr> | V173: =LEN(D173) -> 5
A174: =OFFSET(A174,-1,0)+1 -> 173 | B174: Stee | D174: Clarence O. | E174: F | F174: 1919-08-19 | G174: Hannaford&nbsp;Enterprise | H174: 5 | I174: 22 | J174: 704 | K174: stee,_female_birth_to_clarence_o_august_19,_1919_p5_he.pdf | L174: set04\he_november 20, 1917 - august 10, 1920\birth | O174: =YEAR(F174) -> 1919 | P174: 1919 | Q174: =TEXT(F174,"mmmm") -> August | R174: =MONTH(F174) -> 8 | S174: =R174 -> 8 | T174: =DAY(F174) -> 19 | U174: ="<tr><td class="&""""&"dataright"&""""&">"& TEXT(A174,"0")&"</td><td class="&""""&"dataleft"&""""&">"& "<a href="&""""&L174&"\"&K174&""""&">"&B174&"</a></td><td class="&"""dataleft"">"& TEXT(C174,"")&"</td><td class="&""""&"dataleft"&""""&">"& TEXT(D174,"")&"</td><td class="&""""&"datacenter"&""""&">"& TEXT(E174,"")&"</td><td class="&""""&"dataleft"&""""&">"& TEXT(Q174,"")&"&nbsp;"&T174&",&nbsp;"&O174&"</td><td class="&""""&"dataleft"&""""&">"& TEXT(G174,"0.0")&"</td><td class="&""""&"datacenter"&""""&">"& TEXT(H174,"0")&"</td>"& "</tr>" -> <tr><td class="dataright">173</td><td class="dataleft"><a href="set04\he_november 20, 1917 - august 10, 1920\birth\stee,_female_birth_to_clarence_o_august_19,_1919_p5_he.pdf">Stee</a></td><td class="dataleft"></td><td class="dataleft">Clarence O.</td><td class="datacenter">F</td><td class="dataleft">August&nbsp;19,&nbsp;1919</td><td class="dataleft">Hannaford&nbsp;Enterprise</td><td class="datacenter">5</td></tr> | V174: =LEN(D174) -> 11
A175: =OFFSET(A175,-1,0)+1 -> 174 | B175: Youngbeck | D175: John | E175: M | F175: 1919-09-18 | G175: The&nbsp;Sutton&nbsp;Reporter | H175: 4 | I175: 32 | J175: 847 | K175: youngbeck,_male_birth_to_john_september_18,_1919_p4_tsr.pdf | L175: set03\tsr\tsr_october_26,_1916_-_august_3,_1922\birth | O175: =YEAR(F175) -> 1919 | P175: 1919 | Q175: =TEXT(F175,"mmmm") -> September | R175: =MONTH(F175) -> 9 | S175: =R175 -> 9 | T175: =DAY(F175) -> 18 | U175: ="<tr><td class="&""""&"dataright"&""""&">"& TEXT(A175,"0")&"</td><td class="&""""&"dataleft"&""""&">"& "<a href="&""""&L175&"\"&K175&""""&">"&B175&"</a></td><td class="&"""dataleft"">"& TEXT(C175,"")&"</td><td class="&""""&"dataleft"&""""&">"& TEXT(D175,"")&"</td><td class="&""""&"datacenter"&""""&">"& TEXT(E175,"")&"</td><td class="&""""&"dataleft"&""""&">"& TEXT(Q175,"")&"&nbsp;"&T175&",&nbsp;"&O175&"</td><td class="&""""&"dataleft"&""""&">"& TEXT(G175,"0.0")&"</td><td class="&""""&"datacenter"&""""&">"& TEXT(H175,"0")&"</td>"& "</tr>" -> <tr><td class="dataright">174</td><td class="dataleft"><a href="set03\tsr\tsr_october_26,_1916_-_august_3,_1922\birth\youngbeck,_male_birth_to_john_september_18,_1919_p4_tsr.pdf">Youngbeck</a></td><td class="dataleft"></td><td class="dataleft">John</td><td class="datacenter">M</td><td class="dataleft">September&nbsp;18,&nbsp;1919</td><td class="dataleft">The&nbsp;Sutton&nbsp;Reporter</td><td class="datacenter">4</td></tr> | V175: =LEN(D175) -> 4
A176: =OFFSET(A176,-1,0)+1 -> 175 | B176: Brekke | D176: Julius | E176: F | F176: 1919-09-23 | G176: Hannaford&nbsp;Enterprise | H176: 5 | I176: 22 | J176: 665 | K176: brekke,_female_birth_to_julius_september_23,_1919_p5_he.pdf | L176: set04\he_november 20, 1917 - august 10, 1920\birth | O176: =YEAR(F176) -> 1919 | P176: 1919 | Q176: =TEXT(F176,"mmmm") -> September | R176: =MONTH(F176) -> 9 | S176: =R176 -> 9 | T176: =DAY(F176) -> 23 | U176: ="<tr><td class="&""""&"dataright"&""""&">"& TEXT(A176,"0")&"</td><td class="&""""&"dataleft"&""""&">"& "<a href="&""""&L176&"\"&K176&""""&">"&B176&"</a></td><td class="&"""dataleft"">"& TEXT(C176,"")&"</td><td class="&""""&"dataleft"&""""&">"& TEXT(D176,"")&"</td><td class="&""""&"datacenter"&""""&">"& TEXT(E176,"")&"</td><td class="&""""&"dataleft"&""""&">"& TEXT(Q176,"")&"&nbsp;"&T176&",&nbsp;"&O176&"</td><td class="&""""&"dataleft"&""""&">"& TEXT(G176,"0.0")&"</td><td class="&""""&"datacenter"&""""&">"& TEXT(H176,"0")&"</td>"& "</tr>" -> <tr><td class="dataright">175</td><td class="dataleft"><a href="set04\he_november 20, 1917 - august 10, 1920\birth\brekke,_female_birth_to_julius_september_23,_1919_p5_he.pdf">Brekke</a></td><td class="dataleft"></td><td class="dataleft">Julius</td><td class="datacenter">F</td><td class="dataleft">September&nbsp;23,&nbsp;1919</td><td class="dataleft">Hannaford&nbsp;Enterprise</td><td class="datacenter">5</td></tr> | V176: =LEN(D176) -> 6
A177: =OFFSET(A177,-1,0)+1 -> 176 | B177: Rudiselle | E177: F | F177: 1919-10-09 | G177: The&nbsp;Sutton&nbsp;Reporter | H177: 1 | I177: 32 | J177: 824 | K177: rudiselle,_female_birth_to_gparents_ts_davidson_october_9,_1919_p1_tsr.pdf | L177: set03\tsr\tsr_october_26,_1916_-_august_3,_1922\birth | O177: =YEAR(F177) -> 1919 | P177: 1919 | Q177: =TEXT(F177,"mmmm") -> October | R177: =MONTH(F177) -> 10 | S177: =R177 -> 10 | T177: =DAY(F177) -> 9 | U177: ="<tr><td class="&""""&"dataright"&""""&">"& TEXT(A177,"0")&"</td><td class="&""""&"dataleft"&""""&">"& "<a href="&""""&L177&"\"&K177&""""&">"&B177&"</a></td><td class="&"""dataleft"">"& TEXT(C177,"")&"</td><td class="&""""&"dataleft"&""""&">"& TEXT(D177,"")&"</td><td class="&""""&"datacenter"&""""&">"& TEXT(E177,"")&"</td><td class="&""""&"dataleft"&""""&">"& TEXT(Q177,"")&"&nbsp;"&T177&",&nbsp;"&O177&"</td><td class="&""""&"dataleft"&""""&">"& TEXT(G177,"0.0")&"</td><td class="&""""&"datacenter"&""""&">"& TEXT(H177,"0")&"</td>"& "</tr>" -> <tr><td class="dataright">176</td><td class="dataleft"><a href="set03\tsr\tsr_october_26,_1916_-_august_3,_1922\birth\rudiselle,_female_birth_to_gparents_ts_davidson_october_9,_1919_p1_tsr.pdf">Rudiselle</a></td><td class="dataleft"></td><td class="dataleft"></td><td class="datacenter">F</td><td class="dataleft">October&nbsp;9,&nbsp;1919</td><td class="dataleft">The&nbsp;Sutton&nbsp;Reporter</td><td class="datacenter">1</td></tr> | V177: =LEN(D177) -> 0
A178: =OFFSET(A178,-1,0)+1 -> 177 | B178: White | E178: M | F178: 1919-10-09 | G178: The&nbsp;Sutton&nbsp;Reporter | H178: 1 | I178: 32 | J178: 844 | K178: white,_male_birth_to_gparents_ts_davidson_october_9,_1919_p1_tsr.pdf | L178: set03\tsr\tsr_october_26,_1916_-_august_3,_1922\birth | O178: =YEAR(F178) -> 1919 | P178: 1919 | Q178: =TEXT(F178,"mmmm") -> October | R178: =MONTH(F178) -> 10 | S178: =R178 -> 10 | T178: =DAY(F178) -> 9 | U178: ="<tr><td class="&""""&"dataright"&""""&">"& TEXT(A178,"0")&"</td><td class="&""""&"dataleft"&""""&">"& "<a href="&""""&L178&"\"&K178&""""&">"&B178&"</a></td><td class="&"""dataleft"">"& TEXT(C178,"")&"</td><td class="&""""&"dataleft"&""""&">"& TEXT(D178,"")&"</td><td class="&""""&"datacenter"&""""&">"& TEXT(E178,"")&"</td><td class="&""""&"dataleft"&""""&">"& TEXT(Q178,"")&"&nbsp;"&T178&",&nbsp;"&O178&"</td><td class="&""""&"dataleft"&""""&">"& TEXT(G178,"0.0")&"</td><td class="&""""&"datacenter"&""""&">"& TEXT(H178,"0")&"</td>"& "</tr>" -> <tr><td class="dataright">177</td><td class="dataleft"><a href="set03\tsr\tsr_october_26,_1916_-_august_3,_1922\birth\white,_male_birth_to_gparents_ts_davidson_october_9,_1919_p1_tsr.pdf">White</a></td><td class="dataleft"></td><td class="dataleft"></td><td class="datacenter">M</td><td class="dataleft">October&nbsp;9,&nbsp;1919</td><td class="dataleft">The&nbsp;Sutton&nbsp;Reporter</td><td class="datacenter">1</td></tr> | V178: =LEN(D178) -> 0
A179: =OFFSET(A179,-1,0)+1 -> 178 | B179: Fliflet | D179: Gust | E179: F | F179: 1919-11-18 | G179: Hannaford&nbsp;Enterprise | H179: 4 | I179: 22 | J179: 674 | K179: fliflet,_female_birth_to_gust_november_18,_1919_p4_he.pdf | L179: set04\he_november 20, 1917 - august 10, 1920\birth | O179: =YEAR(F179) -> 1919 | P179: 1919 | Q179: =TEXT(F179,"mmmm") -> November | R179: =MONTH(F179) -> 11 | S179: =R179 -> 11 | T179: =DAY(F179) -> 18 | U179: ="<tr><td class="&""""&"dataright"&""""&">"& TEXT(A179,"0")&"</td><td class="&""""&"dataleft"&""""&">"& "<a href="&""""&L179&"\"&K179&""""&">"&B179&"</a></td><td class="&"""dataleft"">"& TEXT(C179,"")&"</td><td class="&""""&"dataleft"&""""&">"& TEXT(D179,"")&"</td><td class="&""""&"datacenter"&""""&">"& TEXT(E179,"")&"</td><td class="&""""&"dataleft"&""""&">"& TEXT(Q179,"")&"&nbsp;"&T179&",&nbsp;"&O179&"</td><td class="&""""&"dataleft"&""""&">"& TEXT(G179,"0.0")&"</td><td class="&""""&"datacenter"&""""&">"& TEXT(H179,"0")&"</td>"& "</tr>" -> <tr><td class="dataright">178</td><td class="dataleft"><a href="set04\he_november 20, 1917 - august 10, 1920\birth\fliflet,_female_birth_to_gust_november_18,_1919_p4_he.pdf">Fliflet</a></td><td class="dataleft"></td><td class="dataleft">Gust</td><td class="datacenter">F</td><td class="dataleft">November&nbsp;18,&nbsp;1919</td><td class="dataleft">Hannaford&nbsp;Enterprise</td><td class="datacenter">4</td></tr> | V179: =LEN(D179) -> 4
A180: =OFFSET(A180,-1,0)+1 -> 179 | B180: Councilman | D180: George | E180: M | F180: 1919-11-20 | G180: The&nbsp;Sutton&nbsp;Reporter | H180: 1 | I180: 32 | J180: 783 | K180: councilman,_male_birth_to_george_november_20,_1919_p1_tsr.pdf | L180: set03\tsr\tsr_october_26,_1916_-_august_3,_1922\birth | O180: =YEAR(F180) -> 1919 | P180: 1919 | Q180: =TEXT(F180,"mmmm") -> November | R180: =MONTH(F180) -> 11 | S180: =R180 -> 11 | T180: =DAY(F180) -> 20 | U180: ="<tr><td class="&""""&"dataright"&""""&">"& TEXT(A180,"0")&"</td><td class="&""""&"dataleft"&""""&">"& "<a href="&""""&L180&"\"&K180&""""&">"&B180&"</a></td><td class="&"""dataleft"">"& TEXT(C180,"")&"</td><td class="&""""&"dataleft"&""""&">"& TEXT(D180,"")&"</td><td class="&""""&"datacenter"&""""&">"& TEXT(E180,"")&"</td><td class="&""""&"dataleft"&""""&">"& TEXT(Q180,"")&"&nbsp;"&T180&",&nbsp;"&O180&"</td><td class="&""""&"dataleft"&""""&">"& TEXT(G180,"0.0")&"</td><td class="&""""&"datacenter"&""""&">"& TEXT(H180,"0")&"</td>"& "</tr>" -> <tr><td class="dataright">179</td><td class="dataleft"><a href="set03\tsr\tsr_october_26,_1916_-_august_3,_1922\birth\councilman,_male_birth_to_george_november_20,_1919_p1_tsr.pdf">Councilman</a></td><td class="dataleft"></td><td class="dataleft">George</td><td class="datacenter">M</td><td class="dataleft">November&nbsp;20,&nbsp;1919</td><td class="dataleft">The&nbsp;Sutton&nbsp;Reporter</td><td class="datacenter">1</td></tr> | V180: =LEN(D180) -> 6
A181: =OFFSET(A181,-1,0)+1 -> 180 | B181: Sorenson | D181: Peter | E181: F | F181: 1919-11-25 | G181: Hannaford&nbsp;Enterprise | H181: 1 | I181: 22 | J181: 703 | K181: sorenson,_female_birth_to_peter_november_25,_1919_p1_he.pdf | L181: set04\he_november 20, 1917 - august 10, 1920\birth | O181: =YEAR(F181) -> 1919 | P181: 1919 | Q181: =TEXT(F181,"mmmm") -> November | R181: =MONTH(F181) -> 11 | S181: =R181 -> 11 | T181: =DAY(F181) -> 25 | U181: ="<tr><td class="&""""&"dataright"&""""&">"& TEXT(A181,"0")&"</td><td class="&""""&"dataleft"&""""&">"& "<a href="&""""&L181&"\"&K181&""""&">"&B181&"</a></td><td class="&"""dataleft"">"& TEXT(C181,"")&"</td><td class="&""""&"dataleft"&""""&">"& TEXT(D181,"")&"</td><td class="&""""&"datacenter"&""""&">"& TEXT(E181,"")&"</td><td class="&""""&"dataleft"&""""&">"& TEXT(Q181,"")&"&nbsp;"&T181&",&nbsp;"&O181&"</td><td class="&""""&"dataleft"&""""&">"& TEXT(G181,"0.0")&"</td><td class="&""""&"datacenter"&""""&">"& TEXT(H181,"0")&"</td>"& "</tr>" -> <tr><td class="dataright">180</td><td class="dataleft"><a href="set04\he_november 20, 1917 - august 10, 1920\birth\sorenson,_female_birth_to_peter_november_25,_1919_p1_he.pdf">Sorenson</a></td><td class="dataleft"></td><td class="dataleft">Peter</td><td class="datacenter">F</td><td class="dataleft">November&nbsp;25,&nbsp;1919</td><td class="dataleft">Hannaford&nbsp;Enterprise</td><td class="datacenter">1</td></tr> | V181: =LEN(D181) -> 5
A182: =OFFSET(A182,-1,0)+1 -> 181 | B182: Fadness | D182: Severt | E182: M | F182: 1919-11-27 | G182: The&nbsp;Sutton&nbsp;Reporter | H182: 1 | I182: 32 | J182: 788 | K182: fadness,_female_birth_to_severt_november_27,_1919_p1_tsr.pdf | L182: set03\tsr\tsr_october_26,_1916_-_august_3,_1922\birth | O182: =YEAR(F182) -> 1919 | P182: 1919 | Q182: =TEXT(F182,"mmmm") -> November | R182: =MONTH(F182) -> 11 | S182: =R182 -> 11 | T182: =DAY(F182) -> 27 | U182: ="<tr><td class="&""""&"dataright"&""""&">"& TEXT(A182,"0")&"</td><td class="&""""&"dataleft"&""""&">"& "<a href="&""""&L182&"\"&K182&""""&">"&B182&"</a></td><td class="&"""dataleft"">"& TEXT(C182,"")&"</td><td class="&""""&"dataleft"&""""&">"& TEXT(D182,"")&"</td><td class="&""""&"datacenter"&""""&">"& TEXT(E182,"")&"</td><td class="&""""&"dataleft"&""""&">"& TEXT(Q182,"")&"&nbsp;"&T182&",&nbsp;"&O182&"</td><td class="&""""&"dataleft"&""""&">"& TEXT(G182,"0.0")&"</td><td class="&""""&"datacenter"&""""&">"& TEXT(H182,"0")&"</td>"& "</tr>" -> <tr><td class="dataright">181</td><td class="dataleft"><a href="set03\tsr\tsr_october_26,_1916_-_august_3,_1922\birth\fadness,_female_birth_to_severt_november_27,_1919_p1_tsr.pdf">Fadness</a></td><td class="dataleft"></td><td class="dataleft">Severt</td><td class="datacenter">M</td><td class="dataleft">November&nbsp;27,&nbsp;1919</td><td class="dataleft">The&nbsp;Sutton&nbsp;Reporter</td><td class="datacenter">1</td></tr> | V182: =LEN(D182) -> 6
A183: =OFFSET(A183,-1,0)+1 -> 182 | B183: Coen | D183: G. W. | E183: M | F183: 1919-12-16 | G183: Hannaford&nbsp;Enterprise | H183: 20 | I183: 22 | J183: 668 | K183: coen,_male_birth_to_g_w_december_16,_1919_p20_he.pdf | L183: set04\he_november 20, 1917 - august 10, 1920\birth | O183: =YEAR(F183) -> 1919 | P183: 1919 | Q183: =TEXT(F183,"mmmm") -> December | R183: =MONTH(F183) -> 12 | S183: =R183 -> 12 | T183: =DAY(F183) -> 16 | U183: ="<tr><td class="&""""&"dataright"&""""&">"& TEXT(A183,"0")&"</td><td class="&""""&"dataleft"&""""&">"& "<a href="&""""&L183&"\"&K183&""""&">"&B183&"</a></td><td class="&"""dataleft"">"& TEXT(C183,"")&"</td><td class="&""""&"dataleft"&""""&">"& TEXT(D183,"")&"</td><td class="&""""&"datacenter"&""""&">"& TEXT(E183,"")&"</td><td class="&""""&"dataleft"&""""&">"& TEXT(Q183,"")&"&nbsp;"&T183&",&nbsp;"&O183&"</td><td class="&""""&"dataleft"&""""&">"& TEXT(G183,"0.0")&"</td><td class="&""""&"datacenter"&""""&">"& TEXT(H183,"0")&"</td>"& "</tr>" -> <tr><td class="dataright">182</td><td class="dataleft"><a href="set04\he_november 20, 1917 - august 10, 1920\birth\coen,_male_birth_to_g_w_december_16,_1919_p20_he.pdf">Coen</a></td><td class="dataleft"></td><td class="dataleft">G. W.</td><td class="datacenter">M</td><td class="dataleft">December&nbsp;16,&nbsp;1919</td><td class="dataleft">Hannaford&nbsp;Enterprise</td><td class="datacenter">20</td></tr> | V183: =LEN(D183) -> 5
A184: =OFFSET(A184,-1,0)+1 -> 183 | B184: Brastrup | D184: George | E184: M | F184: 1919-12-25 | G184: The&nbsp;Sutton&nbsp;Reporter | H184: 1 | I184: 32 | J184: 781 | K184: brastrup,_male_birth_to_george_december_25,_1919_p1_tsr.pdf | L184: set03\tsr\tsr_october_26,_1916_-_august_3,_1922\birth | O184: =YEAR(F184) -> 1919 | P184: 1919 | Q184: =TEXT(F184,"mmmm") -> December | R184: =MONTH(F184) -> 12 | S184: =R184 -> 12 | T184: =DAY(F184) -> 25 | U184: ="<tr><td class="&""""&"dataright"&""""&">"& TEXT(A184,"0")&"</td><td class="&""""&"dataleft"&""""&">"& "<a href="&""""&L184&"\"&K184&""""&">"&B184&"</a></td><td class="&"""dataleft"">"& TEXT(C184,"")&"</td><td class="&""""&"dataleft"&""""&">"& TEXT(D184,"")&"</td><td class="&""""&"datacenter"&""""&">"& TEXT(E184,"")&"</td><td class="&""""&"dataleft"&""""&">"& TEXT(Q184,"")&"&nbsp;"&T184&",&nbsp;"&O184&"</td><td class="&""""&"dataleft"&""""&">"& TEXT(G184,"0.0")&"</td><td class="&""""&"datacenter"&""""&">"& TEXT(H184,"0")&"</td>"& "</tr>" -> <tr><td class="dataright">183</td><td class="dataleft"><a href="set03\tsr\tsr_october_26,_1916_-_august_3,_1922\birth\brastrup,_male_birth_to_george_december_25,_1919_p1_tsr.pdf">Brastrup</a></td><td class="dataleft"></td><td class="dataleft">George</td><td class="datacenter">M</td><td class="dataleft">December&nbsp;25,&nbsp;1919</td><td class="dataleft">The&nbsp;Sutton&nbsp;Reporter</td><td class="datacenter">1</td></tr> | V184: =LEN(D184) -> 6
A185: =OFFSET(A185,-1,0)+1 -> 184 | B185: Mills | C185: Adoption | D185: Milton | E185: M | F185: 1918-01-22 | G185: Hannaford&nbsp;Enterprise | H185: 5 | I185: 22 | J185: 691 | K185: mills,_19_mo_old_boy_adopted_to_milton_january_22,_1918_p5_he.pdf | L185: set04\he_november 20, 1917 - august 10, 1920\birth | O185: =YEAR(F185) -> 1918 | P185: 1918 | Q185: =TEXT(F185,"mmmm") -> January | R185: =MONTH(F185) -> 1 | S185: =R185 -> 1 | T185: =DAY(F185) -> 22 | U185: ="<tr><td class="&""""&"dataright"&""""&">"& TEXT(A185,"0")&"</td><td class="&""""&"dataleft"&""""&">"& "<a href="&""""&L185&"\"&K185&""""&">"&B185&"</a></td><td class="&"""dataleft"">"& TEXT(C185,"")&"</td><td class="&""""&"dataleft"&""""&">"& TEXT(D185,"")&"</td><td class="&""""&"datacenter"&""""&">"& TEXT(E185,"")&"</td><td class="&""""&"dataleft"&""""&">"& TEXT(Q185,"")&"&nbsp;"&T185&",&nbsp;"&O185&"</td><td class="&""""&"dataleft"&""""&">"& TEXT(G185,"0.0")&"</td><td class="&""""&"datacenter"&""""&">"& TEXT(H185,"0")&"</td>"& "</tr>" -> <tr><td class="dataright">184</td><td class="dataleft"><a href="set04\he_november 20, 1917 - august 10, 1920\birth\mills,_19_mo_old_boy_adopted_to_milton_january_22,_1918_p5_he.pdf">Mills</a></td><td class="dataleft">Adoption</td><td class="dataleft">Milton</td><td class="datacenter">M</td><td class="dataleft">January&nbsp;22,&nbsp;1918</td><td class="dataleft">Hannaford&nbsp;Enterprise</td><td class="datacenter">5</td></tr> | V185: =LEN(D185) -> 6
A186: =OFFSET(A186,-1,0)+1 -> 185 | B186: Taylor | D186: H. S. | E186: F | F186: 1918-01-31 | G186: The&nbsp;Sutton&nbsp;Reporter | H186: 4 | I186: 32 | J186: 836 | K186: taylor,_female_birth_to_h_s_january_31,_1918_p4_tsr.pdf | L186: set03\tsr\tsr_october_26,_1916_-_august_3,_1922\birth | O186: =YEAR(F186) -> 1918 | P186: 1918 | Q186: =TEXT(F186,"mmmm") -> January | R186: =MONTH(F186) -> 1 | S186: =R186 -> 1 | T186: =DAY(F186) -> 31 | U186: ="<tr><td class="&""""&"dataright"&""""&">"& TEXT(A186,"0")&"</td><td class="&""""&"dataleft"&""""&">"& "<a href="&""""&L186&"\"&K186&""""&">"&B186&"</a></td><td class="&"""dataleft"">"& TEXT(C186,"")&"</td><td class="&""""&"dataleft"&""""&">"& TEXT(D186,"")&"</td><td class="&""""&"datacenter"&""""&">"& TEXT(E186,"")&"</td><td class="&""""&"dataleft"&""""&">"& TEXT(Q186,"")&"&nbsp;"&T186&",&nbsp;"&O186&"</td><td class="&""""&"dataleft"&""""&">"& TEXT(G186,"0.0")&"</td><td class="&""""&"datacenter"&""""&">"& TEXT(H186,"0")&"</td>"& "</tr>" -> <tr><td class="dataright">185</td><td class="dataleft"><a href="set03\tsr\tsr_october_26,_1916_-_august_3,_1922\birth\taylor,_female_birth_to_h_s_january_31,_1918_p4_tsr.pdf">Taylor</a></td><td class="dataleft"></td><td class="dataleft">H. S.</td><td class="datacenter">F</td><td class="dataleft">January&nbsp;31,&nbsp;1918</td><td class="dataleft">The&nbsp;Sutton&nbsp;Reporter</td><td class="datacenter">4</td></tr> | V186: =LEN(D186) -> 5
A187: =OFFSET(A187,-1,0)+1 -> 186 | B187: Fliflet | C187: Twin | D187: Gust | E187: M M | F187: 1918-02-12 | G187: Hannaford&nbsp;Enterprise | H187: 5 | I187: 22 | J187: 673 | K187: fliflet,_twin_male_birth_to_gust_february_12,_1918_p5_he.pdf | L187: set04\he_november 20, 1917 - august 10, 1920\birth | O187: =YEAR(F187) -> 1918 | P187: 1918 | Q187: =TEXT(F187,"mmmm") -> February | R187: =MONTH(F187) -> 2 | S187: =R187 -> 2 | T187: =DAY(F187) -> 12 | U187: ="<tr><td class="&""""&"dataright"&""""&">"& TEXT(A187,"0")&"</td><td class="&""""&"dataleft"&""""&">"& "<a href="&""""&L187&"\"&K187&""""&">"&B187&"</a></td><td class="&"""dataleft"">"& TEXT(C187,"")&"</td><td class="&""""&"dataleft"&""""&">"& TEXT(D187,"")&"</td><td class="&""""&"datacenter"&""""&">"& TEXT(E187,"")&"</td><td class="&""""&"dataleft"&""""&">"& TEXT(Q187,"")&"&nbsp;"&T187&",&nbsp;"&O187&"</td><td class="&""""&"dataleft"&""""&">"& TEXT(G187,"0.0")&"</td><td class="&""""&"datacenter"&""""&">"& TEXT(H187,"0")&"</td>"& "</tr>" -> <tr><td class="dataright">186</td><td class="dataleft"><a href="set04\he_november 20, 1917 - august 10, 1920\birth\fliflet,_twin_male_birth_to_gust_february_12,_1918_p5_he.pdf">Fliflet</a></td><td class="dataleft">Twin</td><td class="dataleft">Gust</td><td class="datacenter">M M</td><td class="dataleft">February&nbsp;12,&nbsp;1918</td><td class="dataleft">Hannaford&nbsp;Enterprise</td><td class="datacenter">5</td></tr> | V187: =LEN(D187) -> 4
A188: =OFFSET(A188,-1,0)+1 -> 187 | B188: Lampert | D188: P. | E188: F | F188: 1918-03-14 | G188: The&nbsp;Sutton&nbsp;Reporter | H188: 4 | I188: 32 | J188: 808 | K188: lampert,_female_birth_to_p._march_14,_1918_p4_tsr.pdf | L188: set03\tsr\tsr_october_26,_1916_-_august_3,_1922\birth | O188: =YEAR(F188) -> 1918 | P188: 1918 | Q188: =TEXT(F188,"mmmm") -> March | R188: =MONTH(F188) -> 3 | S188: =R188 -> 3 | T188: =DAY(F188) -> 14 | U188: ="<tr><td class="&""""&"dataright"&""""&">"& TEXT(A188,"0")&"</td><td class="&""""&"dataleft"&""""&">"& "<a href="&""""&L188&"\"&K188&""""&">"&B188&"</a></td><td class="&"""dataleft"">"& TEXT(C188,"")&"</td><td class="&""""&"dataleft"&""""&">"& TEXT(D188,"")&"</td><td class="&""""&"datacenter"&""""&">"& TEXT(E188,"")&"</td><td class="&""""&"dataleft"&""""&">"& TEXT(Q188,"")&"&nbsp;"&T188&",&nbsp;"&O188&"</td><td class="&""""&"dataleft"&""""&">"& TEXT(G188,"0.0")&"</td><td class="&""""&"datacenter"&""""&">"& TEXT(H188,"0")&"</td>"& "</tr>" -> <tr><td class="dataright">187</td><td class="dataleft"><a href="set03\tsr\tsr_october_26,_1916_-_august_3,_1922\birth\lampert,_female_birth_to_p._march_14,_1918_p4_tsr.pdf">Lampert</a></td><td class="dataleft"></td><td class="dataleft">P.</td><td class="datacenter">F</td><td class="dataleft">March&nbsp;14,&nbsp;1918</td><td class="dataleft">The&nbsp;Sutton&nbsp;Reporter</td><td class="datacenter">4</td></tr> | V188: =LEN(D188) -> 2
A189: =OFFSET(A189,-1,0)+1 -> 188 | B189: Kong | D189: Ole | E189: M | F189: 1918-03-19 | G189: Hannaford&nbsp;Enterprise | H189: 5 | I189: 22 | J189: 686 | K189: kong,_male_birth_to_ole_march_19,_1918_p5_he.pdf | L189: set04\he_november 20, 1917 - august 10, 1920\birth | O189: =YEAR(F189) -> 1918 | P189: 1918 | Q189: =TEXT(F189,"mmmm") -> March | R189: =MONTH(F189) -> 3 | S189: =R189 -> 3 | T189: =DAY(F189) -> 19 | U189: ="<tr><td class="&""""&"dataright"&""""&">"& TEXT(A189,"0")&"</td><td class="&""""&"dataleft"&""""&">"& "<a href="&""""&L189&"\"&K189&""""&">"&B189&"</a></td><td class="&"""dataleft"">"& TEXT(C189,"")&"</td><td class="&""""&"dataleft"&""""&">"& TEXT(D189,"")&"</td><td class="&""""&"datacenter"&""""&">"& TEXT(E189,"")&"</td><td class="&""""&"dataleft"&""""&">"& TEXT(Q189,"")&"&nbsp;"&T189&",&nbsp;"&O189&"</td><td class="&""""&"dataleft"&""""&">"& TEXT(G189,"0.0")&"</td><td class="&""""&"datacenter"&""""&">"& TEXT(H189,"0")&"</td>"& "</tr>" -> <tr><td class="dataright">188</td><td class="dataleft"><a href="set04\he_november 20, 1917 - august 10, 1920\birth\kong,_male_birth_to_ole_march_19,_1918_p5_he.pdf">Kong</a></td><td class="dataleft"></td><td class="dataleft">Ole</td><td class="datacenter">M</td><td class="dataleft">March&nbsp;19,&nbsp;1918</td><td class="dataleft">Hannaford&nbsp;Enterprise</td><td class="datacenter">5</td></tr> | V189: =LEN(D189) -> 3
A190: =OFFSET(A190,-1,0)+1 -> 189 | B190: Glasscock | D190: T. J. | E190: M | F190: 1918-05-07 | G190: Hannaford&nbsp;Enterprise | H190: 5 | I190: 22 | J190: 676 | K190: glasscock,_male_birth_to_t_j_may_7,_1918_p5_he.pdf | L190: set04\he_november 20, 1917 - august 10, 1920\birth | O190: =YEAR(F190) -> 1918 | P190: 1918 | Q190: =TEXT(F190,"mmmm") -> May | R190: =MONTH(F190) -> 5 | S190: =R190 -> 5 | T190: =DAY(F190) -> 7 | U190: ="<tr><td class="&""""&"dataright"&""""&">"& TEXT(A190,"0")&"</td><td class="&""""&"dataleft"&""""&">"& "<a href="&""""&L190&"\"&K190&""""&">"&B190&"</a></td><td class="&"""dataleft"">"& TEXT(C190,"")&"</td><td class="&""""&"dataleft"&""""&">"& TEXT(D190,"")&"</td><td class="&""""&"datacenter"&""""&">"& TEXT(E190,"")&"</td><td class="&""""&"dataleft"&""""&">"& TEXT(Q190,"")&"&nbsp;"&T190&",&nbsp;"&O190&"</td><td class="&""""&"dataleft"&""""&">"& TEXT(G190,"0.0")&"</td><td class="&""""&"datacenter"&""""&">"& TEXT(H190,"0")&"</td>"& "</tr>" -> <tr><td class="dataright">189</td><td class="dataleft"><a href="set04\he_november 20, 1917 - august 10, 1920\birth\glasscock,_male_birth_to_t_j_may_7,_1918_p5_he.pdf">Glasscock</a></td><td class="dataleft"></td><td class="dataleft">T. J.</td><td class="datacenter">M</td><td class="dataleft">May&nbsp;7,&nbsp;1918</td><td class="dataleft">Hannaford&nbsp;Enterprise</td><td class="datacenter">5</td></tr> | V190: =LEN(D190) -> 5
A191: =OFFSET(A191,-1,0)+1 -> 190 | B191: Peterson | D191: Fred | E191: F | F191: 1918-05-21 | G191: Hannaford&nbsp;Enterprise | H191: 8 | I191: 22 | J191: 697 | K191: peterson,_female_birth_to_fred_may_21,_1918_p8_he.pdf | L191: set04\he_november 20, 1917 - august 10, 1920\birth | O191: =YEAR(F191) -> 1918 | P191: 1918 | Q191: =TEXT(F191,"mmmm") -> May | R191: =MONTH(F191) -> 5 | S191: =R191 -> 5 | T191: =DAY(F191) -> 21 | U191: ="<tr><td class="&""""&"dataright"&""""&">"& TEXT(A191,"0")&"</td><td class="&""""&"dataleft"&""""&">"& "<a href="&""""&L191&"\"&K191&""""&">"&B191&"</a></td><td class="&"""dataleft"">"& TEXT(C191,"")&"</td><td class="&""""&"dataleft"&""""&">"& TEXT(D191,"")&"</td><td class="&""""&"datacenter"&""""&">"& TEXT(E191,"")&"</td><td class="&""""&"dataleft"&""""&">"& TEXT(Q191,"")&"&nbsp;"&T191&",&nbsp;"&O191&"</td><td class="&""""&"dataleft"&""""&">"& TEXT(G191,"0.0")&"</td><td class="&""""&"datacenter"&""""&">"& TEXT(H191,"0")&"</td>"& "</tr>" -> <tr><td class="dataright">190</td><td class="dataleft"><a href="set04\he_november 20, 1917 - august 10, 1920\birth\peterson,_female_birth_to_fred_may_21,_1918_p8_he.pdf">Peterson</a></td><td class="dataleft"></td><td class="dataleft">Fred</td><td class="datacenter">F</td><td class="dataleft">May&nbsp;21,&nbsp;1918</td><td class="dataleft">Hannaford&nbsp;Enterprise</td><td class="datacenter">8</td></tr> | V191: =LEN(D191) -> 4
A192: =OFFSET(A192,-1,0)+1 -> 191 | B192: Walker | C192: Lucy | E192: M | F192: 1918-05-23 | G192: The&nbsp;Sutton&nbsp;Reporter | H192: 4 | I192: 32 | J192: 840 | K192: mcwethy_walker,_lucy_new_baby_may_23,_1918_p4_tsr.pdf | L192: set03\tsr\tsr_october_26,_1916_-_august_3,_1922\birth | O192: =YEAR(F192) -> 1918 | P192: 1918 | Q192: =TEXT(F192,"mmmm") -> May | R192: =MONTH(F192) -> 5 | S192: =R192 -> 5 | T192: =DAY(F192) -> 23 | U192: ="<tr><td class="&""""&"dataright"&""""&">"& TEXT(A192,"0")&"</td><td class="&""""&"dataleft"&""""&">"& "<a href="&""""&L192&"\"&K192&""""&">"&B192&"</a></td><td class="&"""dataleft"">"& TEXT(C192,"")&"</td><td class="&""""&"dataleft"&""""&">"& TEXT(D192,"")&"</td><td class="&""""&"datacenter"&""""&">"& TEXT(E192,"")&"</td><td class="&""""&"dataleft"&""""&">"& TEXT(Q192,"")&"&nbsp;"&T192&",&nbsp;"&O192&"</td><td class="&""""&"dataleft"&""""&">"& TEXT(G192,"0.0")&"</td><td class="&""""&"datacenter"&""""&">"& TEXT(H192,"0")&"</td>"& "</tr>" -> <tr><td class="dataright">191</td><td class="dataleft"><a href="set03\tsr\tsr_october_26,_1916_-_august_3,_1922\birth\mcwethy_walker,_lucy_new_baby_may_23,_1918_p4_tsr.pdf">Walker</a></td><td class="dataleft">Lucy</td><td class="dataleft"></td><td class="datacenter">M</td><td class="dataleft">May&nbsp;23,&nbsp;1918</td><td class="dataleft">The&nbsp;Sutton&nbsp;Reporter</td><td class="datacenter">4</td></tr> | V192: =LEN(D192) -> 0
A193: =OFFSET(A193,-1,0)+1 -> 192 | B193: Ross | D193: Claude | E193: F | F193: 1918-05-28 | G193: Hannaford&nbsp;Enterprise | H193: 8 | I193: 22 | J193: 700 | K193: ross,_female_birth_to_claude_may_28,_1918_p8_he.pdf | L193: set04\he_november 20, 1917 - august 10, 1920\birth | O193: =YEAR(F193) -> 1918 | P193: 1918 | Q193: =TEXT(F193,"mmmm") -> May | R193: =MONTH(F193) -> 5 | S193: =R193 -> 5 | T193: =DAY(F193) -> 28 | U193: ="<tr><td class="&""""&"dataright"&""""&">"& TEXT(A193,"0")&"</td><td class="&""""&"dataleft"&""""&">"& "<a href="&""""&L193&"\"&K193&""""&">"&B193&"</a></td><td class="&"""dataleft"">"& TEXT(C193,"")&"</td><td class="&""""&"dataleft"&""""&">"& TEXT(D193,"")&"</td><td class="&""""&"datacenter"&""""&">"& TEXT(E193,"")&"</td><td class="&""""&"dataleft"&""""&">"& TEXT(Q193,"")&"&nbsp;"&T193&",&nbsp;"&O193&"</td><td class="&""""&"dataleft"&""""&">"& TEXT(G193,"0.0")&"</td><td class="&""""&"datacenter"&""""&">"& TEXT(H193,"0")&"</td>"& "</tr>" -> <tr><td class="dataright">192</td><td class="dataleft"><a href="set04\he_november 20, 1917 - august 10, 1920\birth\ross,_female_birth_to_claude_may_28,_1918_p8_he.pdf">Ross</a></td><td class="dataleft"></td><td class="dataleft">Claude</td><td class="datacenter">F</td><td class="dataleft">May&nbsp;28,&nbsp;1918</td><td class="dataleft">Hannaford&nbsp;Enterprise</td><td class="datacenter">8</td></tr> | V193: =LEN(D193) -> 6
A194: =OFFSET(A194,-1,0)+1 -> 193 | B194: Westerhousen | D194: Wm. | E194: F | F194: 1918-06-13 | G194: The&nbsp;Sutton&nbsp;Reporter | H194: 4 | I194: 32 | J194: 843 | K194: westerhousen,_female_birth_to_wm._june_13,_1918_p4_tsr.pdf | L194: set03\tsr\tsr_october_26,_1916_-_august_3,_1922\birth | O194: =YEAR(F194) -> 1918 | P194: 1918 | Q194: =TEXT(F194,"mmmm") -> June | R194: =MONTH(F194) -> 6 | S194: =R194 -> 6 | T194: =DAY(F194) -> 13 | U194: ="<tr><td class="&""""&"dataright"&""""&">"& TEXT(A194,"0")&"</td><td class="&""""&"dataleft"&""""&">"& "<a href="&""""&L194&"\"&K194&""""&">"&B194&"</a></td><td class="&"""dataleft"">"& TEXT(C194,"")&"</td><td class="&""""&"dataleft"&""""&">"& TEXT(D194,"")&"</td><td class="&""""&"datacenter"&""""&">"& TEXT(E194,"")&"</td><td class="&""""&"dataleft"&""""&">"& TEXT(Q194,"")&"&nbsp;"&T194&",&nbsp;"&O194&"</td><td class="&""""&"dataleft"&""""&">"& TEXT(G194,"0.0")&"</td><td class="&""""&"datacenter"&""""&">"& TEXT(H194,"0")&"</td>"& "</tr>" -> <tr><td class="dataright">193</td><td class="dataleft"><a href="set03\tsr\tsr_october_26,_1916_-_august_3,_1922\birth\westerhousen,_female_birth_to_wm._june_13,_1918_p4_tsr.pdf">Westerhousen</a></td><td class="dataleft"></td><td class="dataleft">Wm.</td><td class="datacenter">F</td><td class="dataleft">June&nbsp;13,&nbsp;1918</td><td class="dataleft">The&nbsp;Sutton&nbsp;Reporter</td><td class="datacenter">4</td></tr> | V194: =LEN(D194) -> 3
A195: =OFFSET(A195,-1,0)+1 -> 194 | B195: Harris | D195: O. | E195: F | F195: 1918-06-25 | G195: Hannaford&nbsp;Enterprise | H195: 8 | I195: 22 | J195: 679 | K195: harris,_female_to_o_of_karnak_june_25,_1918_p8_he.pdf | L195: set04\he_november 20, 1917 - august 10, 1920\birth | O195: =YEAR(F195) -> 1918 | P195: 1918 | Q195: =TEXT(F195,"mmmm") -> June | R195: =MONTH(F195) -> 6 | S195: =R195 -> 6 | T195: =DAY(F195) -> 25 | U195: ="<tr><td class="&""""&"dataright"&""""&">"& TEXT(A195,"0")&"</td><td class="&""""&"dataleft"&""""&">"& "<a href="&""""&L195&"\"&K195&""""&">"&B195&"</a></td><td class="&"""dataleft"">"& TEXT(C195,"")&"</td><td class="&""""&"dataleft"&""""&">"& TEXT(D195,"")&"</td><td class="&""""&"datacenter"&""""&">"& TEXT(E195,"")&"</td><td class="&""""&"dataleft"&""""&">"& TEXT(Q195,"")&"&nbsp;"&T195&",&nbsp;"&O195&"</td><td class="&""""&"dataleft"&""""&">"& TEXT(G195,"0.0")&"</td><td class="&""""&"datacenter"&""""&">"& TEXT(H195,"0")&"</td>"& "</tr>" -> <tr><td class="dataright">194</td><td class="dataleft"><a href="set04\he_november 20, 1917 - august 10, 1920\birth\harris,_female_to_o_of_karnak_june_25,_1918_p8_he.pdf">Harris</a></td><td class="dataleft"></td><td class="dataleft">O.</td><td class="datacenter">F</td><td class="dataleft">June&nbsp;25,&nbsp;1918</td><td class="dataleft">Hannaford&nbsp;Enterprise</td><td class="datacenter">8</td></tr> | V195: =LEN(D195) -> 2
A196: =OFFSET(A196,-1,0)+1 -> 195 | B196: Lura | D196: Andrew | E196: F | F196: 1918-06-25 | G196: Hannaford&nbsp;Enterprise | H196: 5 | I196: 22 | J196: 688 | K196: lura,_female_birth_to_andrew_june_25,_1918_p5_he.pdf | L196: set04\he_november 20, 1917 - august 10, 1920\birth | O196: =YEAR(F196) -> 1918 | P196: 1918 | Q196: =TEXT(F196,"mmmm") -> June | R196: =MONTH(F196) -> 6 | S196: =R196 -> 6 | T196: =DAY(F196) -> 25 | U196: ="<tr><td class="&""""&"dataright"&""""&">"& TEXT(A196,"0")&"</td><td class="&""""&"dataleft"&""""&">"& "<a href="&""""&L196&"\"&K196&""""&">"&B196&"</a></td><td class="&"""dataleft"">"& TEXT(C196,"")&"</td><td class="&""""&"dataleft"&""""&">"& TEXT(D196,"")&"</td><td class="&""""&"datacenter"&""""&">"& TEXT(E196,"")&"</td><td class="&""""&"dataleft"&""""&">"& TEXT(Q196,"")&"&nbsp;"&T196&",&nbsp;"&O196&"</td><td class="&""""&"dataleft"&""""&">"& TEXT(G196,"0.0")&"</td><td class="&""""&"datacenter"&""""&">"& TEXT(H196,"0")&"</td>"& "</tr>" -> <tr><td class="dataright">195</td><td class="dataleft"><a href="set04\he_november 20, 1917 - august 10, 1920\birth\lura,_female_birth_to_andrew_june_25,_1918_p5_he.pdf">Lura</a></td><td class="dataleft"></td><td class="dataleft">Andrew</td><td class="datacenter">F</td><td class="dataleft">June&nbsp;25,&nbsp;1918</td><td class="dataleft">Hannaford&nbsp;Enterprise</td><td class="datacenter">5</td></tr> | V196: =LEN(D196) -> 6
A197: =OFFSET(A197,-1,0)+1 -> 196 | B197: Almklov | D197: Olof | E197: F | F197: 1918-07-02 | G197: Hannaford&nbsp;Enterprise | H197: 5 | I197: 22 | J197: 662 | K197: almklov,_female_birth_to_olof_july_2,_1918_p5_he.pdf | L197: set04\he_november 20, 1917 - august 10, 1920\birth | O197: =YEAR(F197) -> 1918 | P197: 1918 | Q197: =TEXT(F197,"mmmm") -> July | R197: =MONTH(F197) -> 7 | S197: =R197 -> 7 | T197: =DAY(F197) -> 2 | U197: ="<tr><td class="&""""&"dataright"&""""&">"& TEXT(A197,"0")&"</td><td class="&""""&"dataleft"&""""&">"& "<a href="&""""&L197&"\"&K197&""""&">"&B197&"</a></td><td class="&"""dataleft"">"& TEXT(C197,"")&"</td><td class="&""""&"dataleft"&""""&">"& TEXT(D197,"")&"</td><td class="&""""&"datacenter"&""""&">"& TEXT(E197,"")&"</td><td class="&""""&"dataleft"&""""&">"& TEXT(Q197,"")&"&nbsp;"&T197&",&nbsp;"&O197&"</td><td class="&""""&"dataleft"&""""&">"& TEXT(G197,"0.0")&"</td><td class="&""""&"datacenter"&""""&">"& TEXT(H197,"0")&"</td>"& "</tr>" -> <tr><td class="dataright">196</td><td class="dataleft"><a href="set04\he_november 20, 1917 - august 10, 1920\birth\almklov,_female_birth_to_olof_july_2,_1918_p5_he.pdf">Almklov</a></td><td class="dataleft"></td><td class="dataleft">Olof</td><td class="datacenter">F</td><td class="dataleft">July&nbsp;2,&nbsp;1918</td><td class="dataleft">Hannaford&nbsp;Enterprise</td><td class="datacenter">5</td></tr> | V197: =LEN(D197) -> 4
A198: =OFFSET(A198,-1,0)+1 -> 197 | B198: Kingsley | D198: Milo | E198: M | F198: 1918-07-18 | G198: The&nbsp;Sutton&nbsp;Reporter | H198: 4 | I198: 32 | J198: 805 | K198: kingsley,_male_birth_to_milo_july_18,_1918_p4_tsr.pdf | L198: set03\tsr\tsr_october_26,_1916_-_august_3,_1922\birth | O198: =YEAR(F198) -> 1918 | P198: 1918 | Q198: =TEXT(F198,"mmmm") -> July | R198: =MONTH(F198) -> 7 | S198: =R198 -> 7 | T198: =DAY(F198) -> 18 | U198: ="<tr><td class="&""""&"dataright"&""""&">"& TEXT(A198,"0")&"</td><td class="&""""&"dataleft"&""""&">"& "<a href="&""""&L198&"\"&K198&""""&">"&B198&"</a></td><td class="&"""dataleft"">"& TEXT(C198,"")&"</td><td class="&""""&"dataleft"&""""&">"& TEXT(D198,"")&"</td><td class="&""""&"datacenter"&""""&">"& TEXT(E198,"")&"</td><td class="&""""&"dataleft"&""""&">"& TEXT(Q198,"")&"&nbsp;"&T198&",&nbsp;"&O198&"</td><td class="&""""&"dataleft"&""""&">"& TEXT(G198,"0.0")&"</td><td class="&""""&"datacenter"&""""&">"& TEXT(H198,"0")&"</td>"& "</tr>" -> <tr><td class="dataright">197</td><td class="dataleft"><a href="set03\tsr\tsr_october_26,_1916_-_august_3,_1922\birth\kingsley,_male_birth_to_milo_july_18,_1918_p4_tsr.pdf">Kingsley</a></td><td class="dataleft"></td><td class="dataleft">Milo</td><td class="datacenter">M</td><td class="dataleft">July&nbsp;18,&nbsp;1918</td><td class="dataleft">The&nbsp;Sutton&nbsp;Reporter</td><td class="datacenter">4</td></tr> | V198: =LEN(D198) -> 4
A199: =OFFSET(A199,-1,0)+1 -> 198 | B199: Feiber | D199: John | E199: F | F199: 1918-07-23 | G199: Hannaford&nbsp;Enterprise | H199: 8 | I199: 22 | J199: 672 | K199: feiber,_female_birth_to_john_july_23,_1918_p8_he.pdf | L199: set04\he_november 20, 1917 - august 10, 1920\birth | O199: =YEAR(F199) -> 1918 | P199: 1918 | Q199: =TEXT(F199,"mmmm") -> July | R199: =MONTH(F199) -> 7 | S199: =R199 -> 7 | T199: =DAY(F199) -> 23 | U199: ="<tr><td class="&""""&"dataright"&""""&">"& TEXT(A199,"0")&"</td><td class="&""""&"dataleft"&""""&">"& "<a href="&""""&L199&"\"&K199&""""&">"&B199&"</a></td><td class="&"""dataleft"">"& TEXT(C199,"")&"</td><td class="&""""&"dataleft"&""""&">"& TEXT(D199,"")&"</td><td class="&""""&"datacenter"&""""&">"& TEXT(E199,"")&"</td><td class="&""""&"dataleft"&""""&">"& TEXT(Q199,"")&"&nbsp;"&T199&",&nbsp;"&O199&"</td><td class="&""""&"dataleft"&""""&">"& TEXT(G199,"0.0")&"</td><td class="&""""&"datacenter"&""""&">"& TEXT(H199,"0")&"</td>"& "</tr>" -> <tr><td class="dataright">198</td><td class="dataleft"><a href="set04\he_november 20, 1917 - august 10, 1920\birth\feiber,_female_birth_to_john_july_23,_1918_p8_he.pdf">Feiber</a></td><td class="dataleft"></td><td class="dataleft">John</td><td class="datacenter">F</td><td class="dataleft">July&nbsp;23,&nbsp;1918</td><td class="dataleft">Hannaford&nbsp;Enterprise</td><td class="datacenter">8</td></tr> | V199: =LEN(D199) -> 4
A200: =OFFSET(A200,-1,0)+1 -> 199 | B200: Kingsley | D200: Milo | E200: M | F200: 1918-07-23 | G200: Hannaford&nbsp;Enterprise | H200: 5 | I200: 22 | J200: 685 | K200: kingsley,_male_birth_to_milo_july_23,_1918_p5_he.pdf | L200: set04\he_november 20, 1917 - august 10, 1920\birth | O200: =YEAR(F200) -> 1918 | P200: 1918 | Q200: =TEXT(F200,"mmmm") -> July | R200: =MONTH(F200) -> 7 | S200: =R200 -> 7 | T200: =DAY(F200) -> 23 | U200: ="<tr><td class="&""""&"dataright"&""""&">"& TEXT(A200,"0")&"</td><td class="&""""&"dataleft"&""""&">"& "<a href="&""""&L200&"\"&K200&""""&">"&B200&"</a></td><td class="&"""dataleft"">"& TEXT(C200,"")&"</td><td class="&""""&"dataleft"&""""&">"& TEXT(D200,"")&"</td><td class="&""""&"datacenter"&""""&">"& TEXT(E200,"")&"</td><td class="&""""&"dataleft"&""""&">"& TEXT(Q200,"")&"&nbsp;"&T200&",&nbsp;"&O200&"</td><td class="&""""&"dataleft"&""""&">"& TEXT(G200,"0.0")&"</td><td class="&""""&"datacenter"&""""&">"& TEXT(H200,"0")&"</td>"& "</tr>" -> <tr><td class="dataright">199</td><td class="dataleft"><a href="set04\he_november 20, 1917 - august 10, 1920\birth\kingsley,_male_birth_to_milo_july_23,_1918_p5_he.pdf">Kingsley</a></td><td class="dataleft"></td><td class="dataleft">Milo</td><td class="datacenter">M</td><td class="dataleft">July&nbsp;23,&nbsp;1918</td><td class="dataleft">Hannaford&nbsp;Enterprise</td><td class="datacenter">5</td></tr> | V200: =LEN(D200) -> 4
... 1055 more rows

Sheet Death
A1: 0 | B1: Name | C1: Maiden Name | D1: Subject | E1: Cause | F1: Age | G1: Date | H1: Publication | I1: Page | J1: Cause Sort | K1: Age Sort | L1: Survivors | M1: Code | N1: RD | O1: File Name | P1: File Path | Q1: Upload text | R1: Space | S1: Comma | T1: Year | U1: Year Sort | V1: Month | W1: M No | X1: Date | Z1: lenb | AA1: leng
A2: =OFFSET(A2,-1,0)+1 -> 1 | B2: Aarestad, Evelyn | D2: Obituary | E2: Tonsillitis operation | F2: 4 | G2: 1917-10-16 | H2: Hannaford Enterprise | I2: 4 | J2: Tonsillitis operation | K2: 4 | M2: 21 | N2: 1565 | O2: aarestad,_evelyn_obituary_october_16,_1917_p4_he.pdf | P2: set04\he_december 8, 1914 - november 20, 1917\death | Q2: ="<tr><td class="&""""&"dataright"&""""&">"& TEXT(A2,"0")&"</td><td class="&""""&"dataleft"&""""&">"& "<a href="&""""&P2&"\"&O2&""""&">"&B2&"</a></td><td class="&"""dataleft"">"& TEXT(C2,"")&"</td><td class="&""""&"dataleft"&""""&">"& TEXT(D2,"0.0")&"</td><td class="&""""&"dataleft"&""""&">"& TEXT(E2,"")&"</td><td class="&""""&"dataright"&""""&">"& TEXT(F2,"0;-0;;@")&"</td><td class="&""""&"dataright"&""""&">"& TEXT(G2,"mmmm d, yyyy")&"</td><td class="&""""&"datacenter"&""""&">"& TEXT(H2,"0")&"</td><td class="&""""&"datacenter"&""""&">"& TEXT(I2,"0")&"</td>"& "</tr>" -> <tr><td class="dataright">1</td><td class="dataleft"><a href="set04\he_december 8, 1914 - november 20, 1917\death\aarestad,_evelyn_obituary_october_16,_1917_p4_he.pdf">Aarestad, Evelyn</a></td><td class="dataleft"></td><td class="dataleft">Obituary</td><td class="dataleft">Tonsillitis operation</td><td class="dataright">4</td><td class="dataright">October 16, 1917</td><td class="datacenter">Hannaford Enterprise</td><td class="datacenter">4</td></tr> | T2: =YEAR(G2) -> 1917 | U2: =VALUE(T2) -> 1917 | V2: =MONTH(G2) -> 10 | W2: =V2 -> 10 | X2: =DAY(G2) -> 16 | Y2: =LEN(Q2) -> 453 | Z2: =LEN(B2) -> 16 | AA2: =LEN(G2) -> 4
A3: =OFFSET(A3,-1,0)+1 -> 2 | B3: Aarestad, Geneva | D3: Obituary | F3: 14 | G3: 1921-04-12 | H3: Hannaford Enterprise | I3: 5 | K3: 14 | M3: 23 | N3: 1842 | O3: aarestad,_geneva_obituary_april_12,_1921_p5_he.pdf | P3: set04\he_august 10, 1920 - july 31, 1923\death | Q3: ="<tr><td class="&""""&"dataright"&""""&">"& TEXT(A3,"0")&"</td><td class="&""""&"dataleft"&""""&">"& "<a href="&""""&P3&"\"&O3&""""&">"&B3&"</a></td><td class="&"""dataleft"">"& TEXT(C3,"")&"</td><td class="&""""&"dataleft"&""""&">"& TEXT(D3,"0.0")&"</td><td class="&""""&"dataleft"&""""&">"& TEXT(E3,"")&"</td><td class="&""""&"dataright"&""""&">"& TEXT(F3,"0;-0;;@")&"</td><td class="&""""&"dataright"&""""&">"& TEXT(G3,"mmmm d, yyyy")&"</td><td class="&""""&"datacenter"&""""&">"& TEXT(H3,"0")&"</td><td class="&""""&"datacenter"&""""&">"& TEXT(I3,"0")&"</td>"& "</tr>" -> <tr><td class="dataright">2</td><td class="dataleft"><a href="set04\he_august 10, 1920 - july 31, 1923\death\aarestad,_geneva_obituary_april_12,_1921_p5_he.pdf">Aarestad, Geneva</a></td><td class="dataleft"></td><td class="dataleft">Obituary</td><td class="dataleft"></td><td class="dataright">14</td><td class="dataright">April 12, 1921</td><td class="datacenter">Hannaford Enterprise</td><td class="datacenter">5</td></tr> | T3: =YEAR(G3) -> 1921 | U3: =VALUE(T3) -> 1921 | V3: =MONTH(G3) -> 4 | W3: =V3 -> 4 | X3: =DAY(G3) -> 12 | Y3: =LEN(Q3) -> 424 | Z3: =LEN(B3) -> 16 | AA3: =LEN(G3) -> 4
A4: =OFFSET(A4,-1,0)+1 -> 3 | B4: Aarestad, Leland | D4: Funeral Report | F4: Child | G4: 1916-12-19 | H4: Hannaford Enterprise | I4: 13 | K4: 2 | M4: 21 | N4: 1566 | O4: aarestad,_leland_funeral_report_december_19,_1916_p13_he.pdf | P4: set04\he_december 8, 1914 - november 20, 1917\death | Q4: ="<tr><td class="&""""&"dataright"&""""&">"& TEXT(A4,"0")&"</td><td class="&""""&"dataleft"&""""&">"& "<a href="&""""&P4&"\"&O4&""""&">"&B4&"</a></td><td class="&"""dataleft"">"& TEXT(C4,"")&"</td><td class="&""""&"dataleft"&""""&">"& TEXT(D4,"0.0")&"</td><td class="&""""&"dataleft"&""""&">"& TEXT(E4,"")&"</td><td class="&""""&"dataright"&""""&">"& TEXT(F4,"0;-0;;@")&"</td><td class="&""""&"dataright"&""""&">"& TEXT(G4,"mmmm d, yyyy")&"</td><td class="&""""&"datacenter"&""""&">"& TEXT(H4,"0")&"</td><td class="&""""&"datacenter"&""""&">"& TEXT(I4,"0")&"</td>"& "</tr>" -> <tr><td class="dataright">3</td><td class="dataleft"><a href="set04\he_december 8, 1914 - november 20, 1917\death\aarestad,_leland_funeral_report_december_19,_1916_p13_he.pdf">Aarestad, Leland</a></td><td class="dataleft"></td><td class="dataleft">Funeral Report</td><td class="dataleft"></td><td class="dataright">Child</td><td class="dataright">December 19, 1916</td><td class="datacenter">Hannaford Enterprise</td><td class="datacenter">13</td></tr> | T4: =YEAR(G4) -> 1916 | U4: =VALUE(T4) -> 1916 | V4: =MONTH(G4) -> 12 | W4: =V4 -> 12 | X4: =DAY(G4) -> 19 | Y4: =LEN(Q4) -> 452 | Z4: =LEN(B4) -> 16 | AA4: =LEN(G4) -> 4
A5: =OFFSET(A5,-1,0)+1 -> 4 | B5: Aarestad, Leland | D5: Obituary | F5: Child | G5: 1916-12-12 | H5: Hannaford Enterprise | I5: 6 | K5: 2 | M5: 21 | N5: 1567 | O5: aarestad,_leland_obituary_(unreadable)_december_12,_1916_p6_he.pdf | P5: set04\he_december 8, 1914 - november 20, 1917\death | Q5: ="<tr><td class="&""""&"dataright"&""""&">"& TEXT(A5,"0")&"</td><td class="&""""&"dataleft"&""""&">"& "<a href="&""""&P5&"\"&O5&""""&">"&B5&"</a></td><td class="&"""dataleft"">"& TEXT(C5,"")&"</td><td class="&""""&"dataleft"&""""&">"& TEXT(D5,"0.0")&"</td><td class="&""""&"dataleft"&""""&">"& TEXT(E5,"")&"</td><td class="&""""&"dataright"&""""&">"& TEXT(F5,"0;-0;;@")&"</td><td class="&""""&"dataright"&""""&">"& TEXT(G5,"mmmm d, yyyy")&"</td><td class="&""""&"datacenter"&""""&">"& TEXT(H5,"0")&"</td><td class="&""""&"datacenter"&""""&">"& TEXT(I5,"0")&"</td>"& "</tr>" -> <tr><td class="dataright">4</td><td class="dataleft"><a href="set04\he_december 8, 1914 - november 20, 1917\death\aarestad,_leland_obituary_(unreadable)_december_12,_1916_p6_he.pdf">Aarestad, Leland</a></td><td class="dataleft"></td><td class="dataleft">Obituary</td><td class="dataleft"></td><td class="dataright">Child</td><td class="dataright">December 12, 1916</td><td class="datacenter">Hannaford Enterprise</td><td class="datacenter">6</td></tr> | T5: =YEAR(G5) -> 1916 | U5: =VALUE(T5) -> 1916 | V5: =MONTH(G5) -> 12 | W5: =V5 -> 12 | X5: =DAY(G5) -> 12 | Y5: =LEN(Q5) -> 451 | Z5: =LEN(B5) -> 16 | AA5: =LEN(G5) -> 4
A6: =OFFSET(A6,-1,0)+1 -> 5 | B6: Aarestad, Mrs Hannah Oien | D6: Obituary | E6: Tuberculosis | F6: 37 | G6: 1916-04-11 | H6: Hannaford Enterprise | I6: 4 | J6: Tuberculosis | K6: 37 | L6: Husband and 8 children | M6: 21 | N6: 1568 | O6: aarestad,_mrs_hannah_oien_obituary_april_11,_1916_p4_he.pdf | P6: set04\he_december 8, 1914 - november 20, 1917\death | Q6: ="<tr><td class="&""""&"dataright"&""""&">"& TEXT(A6,"0")&"</td><td class="&""""&"dataleft"&""""&">"& "<a href="&""""&P6&"\"&O6&""""&">"&B6&"</a></td><td class="&"""dataleft"">"& TEXT(C6,"")&"</td><td class="&""""&"dataleft"&""""&">"& TEXT(D6,"0.0")&"</td><td class="&""""&"dataleft"&""""&">"& TEXT(E6,"")&"</td><td class="&""""&"dataright"&""""&">"& TEXT(F6,"0;-0;;@")&"</td><td class="&""""&"dataright"&""""&">"& TEXT(G6,"mmmm d, yyyy")&"</td><td class="&""""&"datacenter"&""""&">"& TEXT(H6,"0")&"</td><td class="&""""&"datacenter"&""""&">"& TEXT(I6,"0")&"</td>"& "</tr>" -> <tr><td class="dataright">5</td><td class="dataleft"><a href="set04\he_december 8, 1914 - november 20, 1917\death\aarestad,_mrs_hannah_oien_obituary_april_11,_1916_p4_he.pdf">Aarestad, Mrs Hannah Oien</a></td><td class="dataleft"></td><td class="dataleft">Obituary</td><td class="dataleft">Tuberculosis</td><td class="dataright">37</td><td class="dataright">April 11, 1916</td><td class="datacenter">Hannaford Enterprise</td><td class="datacenter">4</td></tr> | T6: =YEAR(G6) -> 1916 | U6: =VALUE(T6) -> 1916 | V6: =MONTH(G6) -> 4 | W6: =V6 -> 4 | X6: =DAY(G6) -> 11 | Y6: =LEN(Q6) -> 459 | Z6: =LEN(B6) -> 25 | AA6: =LEN(G6) -> 4
A7: =OFFSET(A7,-1,0)+1 -> 6 | B7: Aasved, Elsie | D7: Obituary | E7: Cholera infantum | F7: Infant | G7: July 26, 1895 | H7: Hope Pioneer | I7: 1 | J7: Cholera infantum | K7: 0 | L7: 0 | M7: 25 | N7: 2033 | O7: aasved_elsie_obituary_july_26_1895_p1_hp.pdf | P7: set01\hope_pioneer_jan1894todec1899\obituaries | Q7: ="<tr><td class="&""""&"dataright"&""""&">"& TEXT(A7,"0")&"</td><td class="&""""&"dataleft"&""""&">"& "<a href="&""""&P7&"\"&O7&""""&">"&B7&"</a></td><td class="&"""dataleft"">"& TEXT(C7,"")&"</td><td class="&""""&"dataleft"&""""&">"& TEXT(D7,"0.0")&"</td><td class="&""""&"dataleft"&""""&">"& TEXT(E7,"")&"</td><td class="&""""&"dataright"&""""&">"& TEXT(F7,"0;-0;;@")&"</td><td class="&""""&"dataright"&""""&">"& TEXT(G7,"mmmm d, yyyy")&"</td><td class="&""""&"datacenter"&""""&">"& TEXT(H7,"0")&"</td><td class="&""""&"datacenter"&""""&">"& TEXT(I7,"0")&"</td>"& "</tr>" -> <tr><td class="dataright">6</td><td class="dataleft"><a href="set01\hope_pioneer_jan1894todec1899\obituaries\aasved_elsie_obituary_july_26_1895_p1_hp.pdf">Aasved, Elsie</a></td><td class="dataleft"></td><td class="dataleft">Obituary</td><td class="dataleft">Cholera infantum</td><td class="dataright">Infant</td><td class="dataright">July 26, 1895</td><td class="datacenter">Hope Pioneer</td><td class="datacenter">1</td></tr> | R7: =FIND(" ",G7) -> 5 | S7: =FIND(",",G7) -> 8 | T7: =MID(G7,S7+2,4) -> 1895 | U7: =VALUE(T7) -> 1895 | V7: =MID(G7,1,R7-1) -> July | W7: =_xlfn.SWITCH(TRIM(V7), "January",1,"February",2,"March",3,"April",4, "May",5,"June",6,"July",7,"August",8, "September",9,"October",10,"November",11,"December",12,"No Match") -> 7 | X7: =MID(G7,S7-2,2) -> 26 | Y7: =LEN(Q7) -> 426 | Z7: =LEN(B7) -> 13 | AA7: =LEN(G7) -> 13
A8: =OFFSET(A8,-1,0)+1 -> 7 | B8: Abbott, Laura Mae | D8: Obituary | E8: 0 | F8: 9 | G8: 1911-10-19 | H8: Cooperstown Courier | I8: 1 | K8: 9 | L8: 0 | M8: 6 | N8: 304 | O8: abbott,_laura_mae_obituary_october_19,_1911_p1_cc.pdf | P8: set02\obituaries\cooperstown_courier\1910_-_1913 | Q8: ="<tr><td class="&""""&"dataright"&""""&">"& TEXT(A8,"0")&"</td><td class="&""""&"dataleft"&""""&">"& "<a href="&""""&P8&"\"&O8&""""&">"&B8&"</a></td><td class="&"""dataleft"">"& TEXT(C8,"")&"</td><td class="&""""&"dataleft"&""""&">"& TEXT(D8,"0.0")&"</td><td class="&""""&"dataleft"&""""&">"& TEXT(E8,"")&"</td><td class="&""""&"dataright"&""""&">"& TEXT(F8,"0;-0;;@")&"</td><td class="&""""&"dataright"&""""&">"& TEXT(G8,"mmmm d, yyyy")&"</td><td class="&""""&"datacenter"&""""&">"& TEXT(H8,"0")&"</td><td class="&""""&"datacenter"&""""&">"& TEXT(I8,"0")&"</td>"& "</tr>" -> <tr><td class="dataright">7</td><td class="dataleft"><a href="set02\obituaries\cooperstown_courier\1910_-_1913\abbott,_laura_mae_obituary_october_19,_1911_p1_cc.pdf">Abbott, Laura Mae</a></td><td class="dataleft"></td><td class="dataleft">Obituary</td><td class="dataleft"></td><td class="dataright">9</td><td class="dataright">October 19, 1911</td><td class="datacenter">Cooperstown Courier</td><td class="datacenter">1</td></tr> | T8: =YEAR(G8) -> 1911 | U8: =VALUE(T8) -> 1911 | V8: =MONTH(G8) -> 10 | W8: =V8 -> 10 | X8: =DAY(G8) -> 19 | Y8: =LEN(Q8) -> 430 | Z8: =LEN(B8) -> 17 | AA8: =LEN(G8) -> 4
A9: =OFFSET(A9,-1,0)+1 -> 8 | B9: Ableman, Mrs James | D9: Death Notice | E9: Paralytic stroke | G9: 1916-09-19 | H9: Hannaford Enterprise | I9: 5 | J9: Paralytic stroke | M9: 21 | N9: 1569 | O9: ableman,_mrs_james_death_notice_september_19,_1916_p5_he.pdf | P9: set04\he_december 8, 1914 - november 20, 1917\death | Q9: ="<tr><td class="&""""&"dataright"&""""&">"& TEXT(A9,"0")&"</td><td class="&""""&"dataleft"&""""&">"& "<a href="&""""&P9&"\"&O9&""""&">"&B9&"</a></td><td class="&"""dataleft"">"& TEXT(C9,"")&"</td><td class="&""""&"dataleft"&""""&">"& TEXT(D9,"0.0")&"</td><td class="&""""&"dataleft"&""""&">"& TEXT(E9,"")&"</td><td class="&""""&"dataright"&""""&">"& TEXT(F9,"0;-0;;@")&"</td><td class="&""""&"dataright"&""""&">"& TEXT(G9,"mmmm d, yyyy")&"</td><td class="&""""&"datacenter"&""""&">"& TEXT(H9,"0")&"</td><td class="&""""&"datacenter"&""""&">"& TEXT(I9,"0")&"</td>"& "</tr>" -> <tr><td class="dataright">8</td><td class="dataleft"><a href="set04\he_december 8, 1914 - november 20, 1917\death\ableman,_mrs_james_death_notice_september_19,_1916_p5_he.pdf">Ableman, Mrs James</a></td><td class="dataleft"></td><td class="dataleft">Death Notice</td><td class="dataleft">Paralytic stroke</td><td class="dataright"></td><td class="dataright">September 19, 1916</td><td class="datacenter">Hannaford Enterprise</td><td class="datacenter">5</td></tr> | T9: =YEAR(G9) -> 1916 | U9: =VALUE(T9) -> 1916 | V9: =MONTH(G9) -> 9 | W9: =V9 -> 9 | X9: =DAY(G9) -> 19 | Y9: =LEN(Q9) -> 463 | Z9: =LEN(B9) -> 18 | AA9: =LEN(G9) -> 4
A10: =OFFSET(A10,-1,0)+1 -> 9 | B10: Adams, A S | D10: Death Notice | E10: Operation | G10: 1912-12-19 | H10: Courtenay Gazette | I10: 1 | J10: Operation | M10: 11 | N10: 792 | O10: adams,_a_s_death_notice_december_19,_1912_p1_cg.pdf | P10: set04\cg_january 4, 1912 - december 31, 1914\death | Q10: ="<tr><td class="&""""&"dataright"&""""&">"& TEXT(A10,"0")&"</td><td class="&""""&"dataleft"&""""&">"& "<a href="&""""&P10&"\"&O10&""""&">"&B10&"</a></td><td class="&"""dataleft"">"& TEXT(C10,"")&"</td><td class="&""""&"dataleft"&""""&">"& TEXT(D10,"0.0")&"</td><td class="&""""&"dataleft"&""""&">"& TEXT(E10,"")&"</td><td class="&""""&"dataright"&""""&">"& TEXT(F10,"0;-0;;@")&"</td><td class="&""""&"dataright"&""""&">"& TEXT(G10,"mmmm d, yyyy")&"</td><td class="&""""&"datacenter"&""""&">"& TEXT(H10,"0")&"</td><td class="&""""&"datacenter"&""""&">"& TEXT(I10,"0")&"</td>"& "</tr>" -> <tr><td class="dataright">9</td><td class="dataleft"><a href="set04\cg_january 4, 1912 - december 31, 1914\death\adams,_a_s_death_notice_december_19,_1912_p1_cg.pdf">Adams, A S</a></td><td class="dataleft"></td><td class="dataleft">Death Notice</td><td class="dataleft">Operation</td><td class="dataright"></td><td class="dataright">December 19, 1912</td><td class="datacenter">Courtenay Gazette</td><td class="datacenter">1</td></tr> | T10: =YEAR(G10) -> 1912 | U10: =VALUE(T10) -> 1912 | V10: =MONTH(G10) -> 12 | W10: =V10 -> 12 | X10: =DAY(G10) -> 19 | Y10: =LEN(Q10) -> 434 | Z10: =LEN(B10) -> 10 | AA10: =LEN(G10) -> 4
A11: =OFFSET(A11,-1,0)+1 -> 10 | B11: Adams, Fred H | D11: Obituary | E11: Suicide | F11: 45 | G11: October 25, 1895 | H11: Griggs Courier | I11: 1 | J11: Suicide | K11: 45 | L11: 0 | M11: 13 | N11: 976 | O11: adams,_fred_h_obituary_october_25,_1895_p1_gc.pdf | P11: set03\gc\gc_january_1893_to_december_1895\obituaries | Q11: ="<tr><td class="&""""&"dataright"&""""&">"& TEXT(A11,"0")&"</td><td class="&""""&"dataleft"&""""&">"& "<a href="&""""&P11&"\"&O11&""""&">"&B11&"</a></td><td class="&"""dataleft"">"& TEXT(C11,"")&"</td><td class="&""""&"dataleft"&""""&">"& TEXT(D11,"0.0")&"</td><td class="&""""&"dataleft"&""""&">"& TEXT(E11,"")&"</td><td class="&""""&"dataright"&""""&">"& TEXT(F11,"0;-0;;@")&"</td><td class="&""""&"dataright"&""""&">"& TEXT(G11,"mmmm d, yyyy")&"</td><td class="&""""&"datacenter"&""""&">"& TEXT(H11,"0")&"</td><td class="&""""&"datacenter"&""""&">"& TEXT(I11,"0")&"</td>"& "</tr>" -> <tr><td class="dataright">10</td><td class="dataleft"><a href="set03\gc\gc_january_1893_to_december_1895\obituaries\adams,_fred_h_obituary_october_25,_1895_p1_gc.pdf">Adams, Fred H</a></td><td class="dataleft"></td><td class="dataleft">Obituary</td><td class="dataleft">Suicide</td><td class="dataright">45</td><td class="dataright">October 25, 1895</td><td class="datacenter">Griggs Courier</td><td class="datacenter">1</td></tr> | R11: =FIND(" ",G11) -> 8 | S11: =FIND(",",G11) -> 11 | T11: =MID(G11,S11+2,4) -> 1895 | U11: =VALUE(T11) -> 1895 | V11: =MID(G11,1,R11-1) -> October | W11: =_xlfn.SWITCH(TRIM(V11), "January",1,"February",2,"March",3,"April",4, "May",5,"June",6,"July",7,"August",8, "September",9,"October",10,"November",11,"December",12,"No Match") -> 10 | X11: =MID(G11,S11-2,2) -> 25 | Y11: =LEN(Q11) -> 430 | Z11: =LEN(B11) -> 13 | AA11: =LEN(G11) -> 16
A12: =OFFSET(A12,-1,0)+1 -> 11 | B12: Adams, Mrs. Rozina | C12: Ecker | D12: Obituary | E12: 0 | F12: 64 | G12: 1905-07-27 | H12: Griggs County Sentinel | I12: 1 | K12: 64 | L12: 0 | M12: 17 | N12: 1257 | O12: adams,_mrs._rozina_(ecker)_obituary_july_27,_1905_p1_gcs.pdf | P12: set02\obituaries\griggs_county_sentinel\1899_-_1906 | Q12: ="<tr><td class="&""""&"dataright"&""""&">"& TEXT(A12,"0")&"</td><td class="&""""&"dataleft"&""""&">"& "<a href="&""""&P12&"\"&O12&""""&">"&B12&"</a></td><td class="&"""dataleft"">"& TEXT(C12,"")&"</td><td class="&""""&"dataleft"&""""&">"& TEXT(D12,"0.0")&"</td><td class="&""""&"dataleft"&""""&">"& TEXT(E12,"")&"</td><td class="&""""&"dataright"&""""&">"& TEXT(F12,"0;-0;;@")&"</td><td class="&""""&"dataright"&""""&">"& TEXT(G12,"mmmm d, yyyy")&"</td><td class="&""""&"datacenter"&""""&">"& TEXT(H12,"0")&"</td><td class="&""""&"datacenter"&""""&">"& TEXT(I12,"0")&"</td>"& "</tr>" -> <tr><td class="dataright">11</td><td class="dataleft"><a href="set02\obituaries\griggs_county_sentinel\1899_-_1906\adams,_mrs._rozina_(ecker)_obituary_july_27,_1905_p1_gcs.pdf">Adams, Mrs. Rozina</a></td><td class="dataleft">Ecker</td><td class="dataleft">Obituary</td><td class="dataleft"></td><td class="dataright">64</td><td class="dataright">July 27, 1905</td><td class="datacenter">Griggs County Sentinel</td><td class="datacenter">1</td></tr> | T12: =YEAR(G12) -> 1905 | U12: =VALUE(T12) -> 1905 | V12: =MONTH(G12) -> 7 | W12: =V12 -> 7 | X12: =DAY(G12) -> 27 | Y12: =LEN(Q12) -> 448 | Z12: =LEN(B12) -> 18 | AA12: =LEN(G12) -> 4
